Workbook

Sheet Summary
B6: Summary
B9: SOP | G9: Project manager | M9: Produced by
B10: =IF(Calculator!$G$10="","-",Calculator!$G$10) -> IMSE50017 | G10: =IF(Calculator!$I$10="","-",Calculator!$I$10) -> Heather Taylor | M10: =IF(Calculator!$E$10="","-",Calculator!$E$10) -> VHJ
B12: Project name | G12: Date produced | M12: Reviewed by
B13: =IF(Calculator!$H$10="","-",Calculator!$H$10) -> Oxford FAS | G13: =IF(Calculator!$C$10="","-",Calculator!$C$10) -> 42584 | M13: =IF(Calculator!$F$10="","-",Calculator!$F$10) -> -

Sheet GraphData (hidden)
A1: Culmative Whole Life Carbon | D1: Whole Life Carbon by Asset | G1: Whole Life Carbon per New Build Stage | J1: Whole Life Operational Carbon per Asset | M1: Whole Life Use Carbon Operational stage | P1: Carbon by Stage | S1: Material Carbon | V1: Whole Life New Build per Asset
A2: Row Labels | B2: Whole Life carbon | D2: Row Labels | E2: Whole Life Carbon | G2: Values | J2: Row Labels | K2: Whole Life Operational Carbon | M2: Values | P2: Values | S2: Row Labels | T2: CO2e (t) | V2: Row Labels | W2: Sum of WLCDF
A3: 0 | B3: 47350.89643 | D3: (blank) | G3: Materials | H3: 34128.47404 | J3: (blank) | M3: Use | N3: 8.470128519 | P3: Capital Carbon | Q3: 47123.20208 | S3: Steel | T3: 6826.1856 | V3: (blank)
A4: 1 | B4: 48176.63514 | D4: Bridge - Vehicle Access | E4: 2161.901409 | G4: Materials Transport | H4: 830.3757962 | J4: Bridge - Vehicle Access | K4: 1715.222506 | M4: Maintenance | N4: 82770.38855 | P4: Operational Carbon | Q4: 95393.23511 | S4: Stone | T4: 91.64 | V4: Bridge - Vehicle Access | W4: 2161.901409
A5: 2 | B5: 51842.71756 | D5: Embankment - New | E5: 2460.585994 | G5: People Transport | H5: 583.3107915 | J5: Embankment - New | K5: 1824.886299 | M5: Repair | N5: 12614.37643 | P5: Replacement Carbon | Q5: 1007.822687 | S5: (blank) | T5: 0 | V5: Embankment - New | W5: 2460.585994
A6: 3 | B6: 52613.55348 | D6: Bridge - Pedestrian | E6: 40591.38646 | G6: Plant Transport | H6: 1.259274878 | J6: Bridge - Pedestrian | K6: 33091.24462 | M6: Energy | N6: 0 | P6: Refurbishment Carbon | Q6: 637.0421576 | S6: Concrete | T6: 4018.586845 | V6: Bridge - Pedestrian | W6: 40591.38646
A7: 4 | B7: 56035.88065 | D7: Erosion Protection - Grasscrete | E7: 631.9977386 | G7: Site Establishment | H7: 190.759147 | J7: Erosion Protection - Grasscrete | K7: 471.6164901 | P7: Demolition Carbon | Q7: 44.61908377 | S7: Aggregate | T7: 12.48 | V7: Erosion Protection - Grasscrete | W7: 631.9977386
A8: 5 | B8: 59686.78458 | D8: Culvert | E8: 23604.17862 | G8: Plant Use | H8: 0 | J8: Culvert | K8: 19920.00425 | P8: Residual Carbon | Q8: -1100.079216 | S8: Soil/Clay | T8: 23179.5816 | V8: Culvert | W8: 23604.17862
A9: 6 | B9: 62881.56362 | D9: Channel - RC | E9: 2591.135036 | G9: Waste | H9: 11389.02303 | J9: Channel - RC | K9: 2408.18891 | S9: Grand Total | T9: 34128.47404 | V9: Channel - RC | W9: 2591.135036
A10: 7 | B10: 63553.30259 | D10: Soft Landscaping - Shrubs/Tress | E10: 1920.146818 | J10: Soft Landscaping - Shrubs/Tress | K10: 1398.753624 | V10: Soft Landscaping - Shrubs/Tress | W10: 1920.146818
A11: 8 | B11: 66535.663 | D11: Erosion Protection | E11: 388.2960223 | J11: Erosion Protection | K11: 287.8021766 | V11: Erosion Protection | W11: 388.2960223
A12: 9 | B12: 67162.73852 | D12: Dredging Works | E12: 68756.2138 | J12: Dredging Works | K12: 34275.51623 | V12: Dredging Works | W12: 68756.2138
A13: 10 | B13: 72414.89696 | D13: Grand Total | E13: 143105.8419 | J13: Grand Total | K13: 95393.23511 | V13: Grand Total | W13: 143105.8419
A14: 11 | B14: 73000.27867
A15: 12 | B15: 75599.23347
A16: 13 | B16: 76145.69355
A17: 14 | B17: 78571.84567
A18: 15 | B18: 81160.04016
A19: 16 | B19: 83424.87912
A20: 17 | B20: 83901.08751
A21: 18 | B21: 86015.33892
A22: 19 | B22: 86459.88455
A23: 20 | B23: 90183.23848
A24: 21 | B24: 90598.22659
A25: 22 | B25: 92440.67454
A26: 23 | B26: 92828.07038
A27: 24 | B27: 94548.01526
A28: 25 | B28: 96382.83503
A29: 26 | B29: 97988.42198
A30: 27 | B30: 98326.01507
A31: 28 | B31: 99824.84766
A32: 29 | B32: 100139.9944
A33: 30 | B33: 102779.5501
A34: 31 | B34: 103121.3949
A35: 32 | B35: 104646.4718
A36: 33 | B36: 104968.6933
A37: 34 | B37: 106406.2245
A38: 35 | B38: 107947.2127
A39: 36 | B39: 109302.2237
A40: 37 | B40: 109588.5134
A41: 38 | B41: 110865.7412
A42: 39 | B42: 111135.5967
A43: 40 | B43: 113406.7808
A44: 41 | B44: 113661.1454
A45: 42 | B45: 114795.9458
A46: 43 | B46: 115035.7089
A47: 44 | B47: 116105.3672
A48: 45 | B48: 117252.0071
A49: 46 | B49: 118260.2625
A50: 47 | B50: 118473.2889
A51: 48 | B51: 119423.6664
A52: 49 | B52: 119624.4642
A53: 50 | B53: 121327.6103
A54: 51 | B54: 121516.8815
A55: 52 | B55: 122361.2796
A56: 53 | B56: 122539.6859
A57: 54 | B57: 123335.612
A58: 55 | B58: 124188.8198
A59: 56 | B59: 124939.0566
A60: 57 | B60: 125097.5682
A61: 58 | B61: 125804.7383
A62: 59 | B62: 125954.1507
A63: 60 | B63: 128407.3441
A64: 61 | B64: 128548.1796
A65: 62 | B65: 129176.4911
A66: 63 | B66: 129309.2421
A67: 64 | B67: 129901.486
A68: 65 | B68: 130536.3527
A69: 66 | B69: 131094.5993
A70: 67 | B70: 131212.5468
A71: 68 | B71: 131738.7478
A72: 69 | B72: 131849.9247
A73: 70 | B73: 132785.6224
A74: 71 | B74: 132890.4173
A75: 72 | B75: 133357.94
A76: 73 | B76: 133456.7193
A77: 74 | B77: 133897.4043
A78: 75 | B78: 134369.8047
A79: 76 | B79: 134971.0742
A80: 77 | B80: 135098.7314
A81: 78 | B81: 135671.0284
A82: 79 | B82: 135792.5343
A83: 80 | B83: 136825.1426
A84: 81 | B84: 136940.7937
A85: 82 | B85: 137459.2665
A86: 83 | B86: 137569.3449
A87: 84 | B87: 138062.8348
A88: 85 | B88: 138594.4208
A89: 86 | B89: 139064.1316
A90: 87 | B90: 139163.8572
A91: 88 | B91: 139610.9347
A92: 89 | B92: 139705.8549
A93: 90 | B93: 141177.5563
A94: 91 | B94: 141267.9028
A95: 92 | B95: 141672.9329
A96: 93 | B96: 141758.9259
A97: 94 | B97: 142144.4394
A98: 95 | B98: 142559.7136
A99: 96 | B99: 142926.6509
A100: 97 | B100: 143004.5564
A101: 98 | B101: 143353.8126
A102: 99 | B102: 143427.9642
A103: 100 | B103: 143105.8419
A104: (blank) | B104: 143105.8419
A105: Grand Total

Sheet FlatData (hidden)
A1: Asset ID | B1: Asset description | C1: Asset class | D1: Sub-Asset ref. | E1: Sub-Asset description | F1: Sub-Asset category | G1: Standard life | H1: Expected new build life | I1: Refurbishment type | J1: Expected refurbished Life | K1: First intervention | L1: Last Refurb | M1: Last Replace | N1: Remaining Life | O1: Last intervention | P1: Weighted Split | Q1: Materials | R1: Materials Transport | S1: People Transport | T1: Plant Transport | U1: Site Establishment | V1: Plant use | W1: Waste | X1: New Build Co2e | Y1: Use | Z1: Energy | AA1: Refurbishment | AB1: Den - Material Waste | AC1: Dem - Plant use | AD1: Dem - People | AE1: Year | AF1: Profile | AG1: Discount Factor | AH1: MaterialsDF | AI1: Materials TransportDF | AJ1: People TransportDF | AK1: Plant TransportDF | AL1: Site EstablishmentDF | AM1: Plant UseDF | AN1: WasteDF | AO1: CapitalDF | AP1: UseDF | AQ1: MaintenanceDF | AR1: RepairDF | AS1: EnergyDF | AT1: OP Co2eDF | AU1: RefurbDF | AV1: Dem - MaterialsDF | AW1: Dem - Plant | AX1: Dem - PeopleDf | AY1: ReplacementDF | AZ1: WLCDF | BA1: Residual | BB1: Replace Materials TransportDF | BC1: Replace People TransportDF | BD1: Replace Plant TransportDF | BE1: Replace MaterialsDF | BF1: Replace Site EstablishmentDF | BG1: Replace Plant UseDF | BH1: Replace WasteDF
A2: DredEA11 | B2: New channel | C2: Dredging Works | D2: DredEA1146 | E2: New channel-Excavation | F2: Dredging | G2: 120 | H2: 120 | I2: Moderate Refurbishment | J2: 60 | K2: New Build | L2: 0 | M2: 0 | N2: 0 | O2: 2 | P2: 22156.8888 | Q2: 22156.8888 | R2: 772.6037996 | S2: 153.8312699 | T2: 0.3320971537 | U2: 50.30718144 | V2: 0 | W2: 11346.73443 | X2: 34480.69757 | Y2: 0.26988 | Z2: 0 | AA2: 8620.174394 | AB2: 4554.35561 | AC2: 0.1660485769 | AD2: 76.91563493 | AE2: 0 | AF2: 1 | AG2: =VLOOKUP(AE2,ValidationLists!$M$1:$N$102,2,FALSE) -> 1 | AH2: =IF(AE2=0,Q2*AG2,0) -> 22156.8888 | AI2: =IF(AE2=0,R2*AG2,0) -> 772.6037996 | AJ2: =IF(AE2=0,S2*AG2,0) -> 153.8312699 | AK2: =IF(AE2=0,T2*AG2,0) -> 0.3320971537 | AL2: =IF(AE2=0,U2*AG2,0) -> 50.30718144 | AM2: =IF(AE2=0,V2*AG2,0) -> 0 | AN2: =IF(AE2=0,W2*AG2,0) -> 11346.73443 | AO2: =IF(AE2=0,AH2+AI2+AJ2+AK2+AL2+AM2+AN2,0) -> 34480.69757 | AP2: =IF(OR(AF2=3,AF2=2,AF2=0),Y2*AG2,0) -> 0 | AQ2: =IF(OR(AF2=3,AF2=2,AF2=0),SUMIFS(FlatMaint!$Z$2:$Z$10000,FlatMaint!$A$2:$A$10000,D2,FlatMaint!$Y$2:$Y$10000,AE2)*AG2,0) -> 0 | AR2: =IF(OR(AF2=3,AF2=2,AF2=0),SUMIFS(FlatRepair!$Z$2:$Z$10000,FlatRepair!$A$2:$A$10000,D2,FlatRepair!$Y$2:$Y$10000,AE2)*AG2,0) -> 0 | AS2: =IF(OR(AF2=3,AF2=2,AF2=0),Z2*AG2,0) -> 0 | AT2: =AP2+AQ2+AR2+AS2 -> 0 | AU2: =IF(AF2=2,AA2*AG2,0) -> 0 | AV2: =IF(AF2=3,AB2*AG2,0) -> 0 | AW2: =IF(AF2=3,AC2*AG2,0) -> 0 | AX2: =IF(AF2=3,AD2*AG2,0) -> 0 | AY2: =IF($AF$2=3,BB2+BC2+BD2+BE2+BF2+BG2+BH2,BB2+BC2+BD2+BE2+BF2+BG2+BH2) -> 0 | AZ2: =AO2+AT2+AU2+AV2+AW2+AX2+AY2+BA2 -> 34480.69757 | BA2: =IFERROR(IF(AE2=100,IF(O2=3,(N2/H2)*(X2*AG2)*-1,(N2/M2)*(X2*AG2)*-1),0),0) -> 0 | BB2: =IF($AF2=3,IF($AF$2=2,(R2/SUMIF(Refurb_Poss_Tbl[Refurbishment Possible],I2,Refurb_Poss_Tbl[%]))*AG2,IF($AF$2=3,(R2*AG2)-AV2,R2*AG2)),0) -> 0 | BC2: =IF(AF2=3,IF($AF$2=2,(S2/SUMIF(Refurb_Poss_Tbl[Refurbishment Possible],I2,Refurb_Poss_Tbl[%]))*AG2,IF($AF$2=3,(S2*AG2)-AX2,S2*AG2)),0) -> 0 | BD2: =IF($AF2=3,IF($AF$2=2,(T2/SUMIF(Refurb_Poss_Tbl[Refurbishment Possible],I2,Refurb_Poss_Tbl[%]))*AG2,T2*$AG2),0) -> 0 | BE2: =IF($AF2=3,IF($AF$2=2,(Q2/SUMIF(Refurb_Poss_Tbl[Refurbishment Possible],I2,Refurb_Poss_Tbl[%]))*AG2,Q2*$AG2),0) -> 0 | BF2: =IF($AF2=3,IF($AF$2=2,(U2/SUMIF(Refurb_Poss_Tbl[Refurbishment Possible],I2,Refurb_Poss_Tbl[%]))*AG2,U2*$AG2),0) -> 0 | BG2: =IF($AF2=3,IF($AF$2=2,(V2/SUMIF(Refurb_Poss_Tbl[Refurbishment Possible],I2,Refurb_Poss_Tbl[%]))*AG2,IF($AF$2=3,(V2*AG2)-AW2,V2*AG2)),0) -> 0 | BH2: =IF($AF2=3,IF($AF$2=2,(W2/SUMIF(Refurb_Poss_Tbl[Refurbishment Possible],I2,Refurb_Poss_Tbl[%]))*AG2,W2*$AG2),0) -> 0
A3: DredEA11 | B3: New channel | C3: Dredging Works | D3: DredEA1146 | E3: New channel-Excavation | F3: Dredging | G3: 120 | H3: 120 | I3: Moderate Refurbishment | J3: 60 | K3: New Build | L3: 0 | M3: 0 | N3: 0 | O3: 2 | P3: 22156.8888 | Q3: 22156.8888 | R3: 772.6037996 | S3: 153.8312699 | T3: 0.3320971537 | U3: 50.30718144 | V3: 0 | W3: 11346.73443 | X3: 34480.69757 | Y3: 0.26988 | Z3: 0 | AA3: 8620.174394 | AB3: 4554.35561 | AC3: 0.1660485769 | AD3: 76.91563493 | AE3: 1 | AF3: 0 | AG3: =VLOOKUP(AE3,ValidationLists!$M$1:$N$102,2,FALSE) -> 0.9661835749 | AH3: =IF(AE3=0,Q3*AG3,0) -> 0 | AI3: =IF(AE3=0,R3*AG3,0) -> 0 | AJ3: =IF(AE3=0,S3*AG3,0) -> 0 | AK3: =IF(AE3=0,T3*AG3,0) -> 0 | AL3: =IF(AE3=0,U3*AG3,0) -> 0 | AM3: =IF(AE3=0,V3*AG3,0) -> 0 | AN3: =IF(AE3=0,W3*AG3,0) -> 0 | AO3: =IF(AE3=0,AH3+AI3+AJ3+AK3+AL3+AM3+AN3,0) -> 0 | AP3: =IF(OR(AF3=3,AF3=2,AF3=0),Y3*AG3,0) -> 0.2607536232 | AQ3: =IF(OR(AF3=3,AF3=2,AF3=0),SUMIFS(FlatMaint!$Z$2:$Z$10000,FlatMaint!$A$2:$A$10000,D3,FlatMaint!$Y$2:$Y$10000,AE3)*AG3,0) -> 0 | AR3: =IF(OR(AF3=3,AF3=2,AF3=0),SUMIFS(FlatRepair!$Z$2:$Z$10000,FlatRepair!$A$2:$A$10000,D3,FlatRepair!$Y$2:$Y$10000,AE3)*AG3,0) -> 0 | AS3: =IF(OR(AF3=3,AF3=2,AF3=0),Z3*AG3,0) -> 0 | AT3: =AP3+AQ3+AR3+AS3 -> 0.2607536232 | AU3: =IF(AF3=2,AA3*AG3,0) -> 0 | AV3: =IF(AF3=3,AB3*AG3,0) -> 0 | AW3: =IF(AF3=3,AC3*AG3,0) -> 0 | AX3: =IF(AF3=3,AD3*AG3,0) -> 0 | AY3: =IF($AF$2=3,BB3+BC3+BD3+BE3+BF3+BG3+BH3,BB3+BC3+BD3+BE3+BF3+BG3+BH3) -> 0 | AZ3: =AO3+AT3+AU3+AV3+AW3+AX3+AY3+BA3 -> 0.2607536232 | BA3: =IFERROR(IF(AE3=100,IF(O3=3,(N3/H3)*(X3*AG3)*-1,(N3/M3)*(X3*AG3)*-1),0),0) -> 0 | BB3: =IF($AF3=3,IF($AF$2=2,(R3/SUMIF(Refurb_Poss_Tbl[Refurbishment Possible],I3,Refurb_Poss_Tbl[%]))*AG3,IF($AF$2=3,(R3*AG3)-AV3,R3*AG3)),0) -> 0 | BC3: =IF(AF3=3,IF($AF$2=2,(S3/SUMIF(Refurb_Poss_Tbl[Refurbishment Possible],I3,Refurb_Poss_Tbl[%]))*AG3,IF($AF$2=3,(S3*AG3)-AX3,S3*AG3)),0) -> 0 | BD3: =IF($AF3=3,IF($AF$2=2,(T3/SUMIF(Refurb_Poss_Tbl[Refurbishment Possible],I3,Refurb_Poss_Tbl[%]))*AG3,T3*$AG3),0) -> 0 | BE3: =IF($AF3=3,IF($AF$2=2,(Q3/SUMIF(Refurb_Poss_Tbl[Refurbishment Possible],I3,Refurb_Poss_Tbl[%]))*AG3,Q3*$AG3),0) -> 0 | BF3: =IF($AF3=3,IF($AF$2=2,(U3/SUMIF(Refurb_Poss_Tbl[Refurbishment Possible],I3,Refurb_Poss_Tbl[%]))*AG3,U3*$AG3),0) -> 0 | BG3: =IF($AF3=3,IF($AF$2=2,(V3/SUMIF(Refurb_Poss_Tbl[Refurbishment Possible],I3,Refurb_Poss_Tbl[%]))*AG3,IF($AF$2=3,(V3*AG3)-AW3,V3*AG3)),0) -> 0 | BH3: =IF($AF3=3,IF($AF$2=2,(W3/SUMIF(Refurb_Poss_Tbl[Refurbishment Possible],I3,Refurb_Poss_Tbl[%]))*AG3,W3*$AG3),0) -> 0
A4: DredEA11 | B4: New channel | C4: Dredging Works | D4: DredEA1146 | E4: New channel-Excavation | F4: Dredging | G4: 120 | H4: 120 | I4: Moderate Refurbishment | J4: 60 | K4: New Build | L4: 0 | M4: 0 | N4: 0 | O4: 2 | P4: 22156.8888 | Q4: 22156.8888 | R4: 772.6037996 | S4: 153.8312699 | T4: 0.3320971537 | U4: 50.30718144 | V4: 0 | W4: 11346.73443 | X4: 34480.69757 | Y4: 0.26988 | Z4: 0 | AA4: 8620.174394 | AB4: 4554.35561 | AC4: 0.1660485769 | AD4: 76.91563493 | AE4: 2 | AF4: 0 | AG4: =VLOOKUP(AE4,ValidationLists!$M$1:$N$102,2,FALSE) -> 0.9335107004 | AH4: 0 | AI4: 0 | AJ4: 0 | AK4: 0 | AL4: 0 | AM4: 0 | AN4: 0 | AO4: 0 | AP4: 0.2519358678 | AQ4: =IF(OR(AF4=3,AF4=2,AF4=0),SUMIFS(FlatMaint!$Z$2:$Z$10000,FlatMaint!$A$2:$A$10000,D4,FlatMaint!$Y$2:$Y$10000,AE4)*AG4,0) -> 2068.377841 | AR4: =IF(OR(AF4=3,AF4=2,AF4=0),SUMIFS(FlatRepair!$Z$2:$Z$10000,FlatRepair!$A$2:$A$10000,D4,FlatRepair!$Y$2:$Y$10000,AE4)*AG4,0) -> 0 | AS4: 0 | AT4: 2068.629776 | AU4: 0 | AV4: 0 | AW4: 0 | AX4: 0 | AY4: 0 | AZ4: 2068.629776 | BA4: 0 | BB4: =IF($AF4=3,IF($AF$2=2,(R4/SUMIF(Refurb_Poss_Tbl[Refurbishment Possible],I4,Refurb_Poss_Tbl[%]))*AG4,IF($AF$2=3,(R4*AG4)-AV4,R4*AG4)),0) -> 0 | BC4: =IF(AF4=3,IF($AF$2=2,(S4/SUMIF(Refurb_Poss_Tbl[Refurbishment Possible],I4,Refurb_Poss_Tbl[%]))*AG4,IF($AF$2=3,(S4*AG4)-AX4,S4*AG4)),0) -> 0 | BD4: =IF($AF4=3,IF($AF$2=2,(T4/SUMIF(Refurb_Poss_Tbl[Refurbishment Possible],I4,Refurb_Poss_Tbl[%]))*AG4,T4*$AG4),0) -> 0 | BE4: =IF($AF4=3,IF($AF$2=2,(Q4/SUMIF(Refurb_Poss_Tbl[Refurbishment Possible],I4,Refurb_Poss_Tbl[%]))*AG4,Q4*$AG4),0) -> 0 | BF4: =IF($AF4=3,IF($AF$2=2,(U4/SUMIF(Refurb_Poss_Tbl[Refurbishment Possible],I4,Refurb_Poss_Tbl[%]))*AG4,U4*$AG4),0) -> 0 | BG4: =IF($AF4=3,IF($AF$2=2,(V4/SUMIF(Refurb_Poss_Tbl[Refurbishment Possible],I4,Refurb_Poss_Tbl[%]))*AG4,IF($AF$2=3,(V4*AG4)-AW4,V4*AG4)),0) -> 0 | BH4: =IF($AF4=3,IF($AF$2=2,(W4/SUMIF(Refurb_Poss_Tbl[Refurbishment Possible],I4,Refurb_Poss_Tbl[%]))*AG4,W4*$AG4),0) -> 0
A5: DredEA11 | B5: New channel | C5: Dredging Works | D5: DredEA1146 | E5: New channel-Excavation | F5: Dredging | G5: 120 | H5: 120 | I5: Moderate Refurbishment | J5: 60 | K5: New Build | L5: 0 | M5: 0 | N5: 0 | O5: 2 | P5: 22156.8888 | Q5: 22156.8888 | R5: 772.6037996 | S5: 153.8312699 | T5: 0.3320971537 | U5: 50.30718144 | V5: 0 | W5: 11346.73443 | X5: 34480.69757 | Y5: 0.26988 | Z5: 0 | AA5: 8620.174394 | AB5: 4554.35561 | AC5: 0.1660485769 | AD5: 76.91563493 | AE5: 3 | AF5: 0 | AG5: =VLOOKUP(AE5,ValidationLists!$M$1:$N$102,2,FALSE) -> 0.9019427057 | AH5: 0 | AI5: 0 | AJ5: 0 | AK5: 0 | AL5: 0 | AM5: 0 | AN5: 0 | AO5: 0 | AP5: 0.2434162974 | AQ5: =IF(OR(AF5=3,AF5=2,AF5=0),SUMIFS(FlatMaint!$Z$2:$Z$10000,FlatMaint!$A$2:$A$10000,D5,FlatMaint!$Y$2:$Y$10000,AE5)*AG5,0) -> 0 | AR5: =IF(OR(AF5=3,AF5=2,AF5=0),SUMIFS(FlatRepair!$Z$2:$Z$10000,FlatRepair!$A$2:$A$10000,D5,FlatRepair!$Y$2:$Y$10000,AE5)*AG5,0) -> 0 | AS5: 0 | AT5: 0.2434162974 | AU5: 0 | AV5: 0 | AW5: 0 | AX5: 0 | AY5: 0 | AZ5: 0.2434162974 | BA5: 0 | BB5: =IF($AF5=3,IF($AF$2=2,(R5/SUMIF(Refurb_Poss_Tbl[Refurbishment Possible],I5,Refurb_Poss_Tbl[%]))*AG5,IF($AF$2=3,(R5*AG5)-AV5,R5*AG5)),0) -> 0 | BC5: =IF(AF5=3,IF($AF$2=2,(S5/SUMIF(Refurb_Poss_Tbl[Refurbishment Possible],I5,Refurb_Poss_Tbl[%]))*AG5,IF($AF$2=3,(S5*AG5)-AX5,S5*AG5)),0) -> 0 | BD5: =IF($AF5=3,IF($AF$2=2,(T5/SUMIF(Refurb_Poss_Tbl[Refurbishment Possible],I5,Refurb_Poss_Tbl[%]))*AG5,T5*$AG5),0) -> 0 | BE5: =IF($AF5=3,IF($AF$2=2,(Q5/SUMIF(Refurb_Poss_Tbl[Refurbishment Possible],I5,Refurb_Poss_Tbl[%]))*AG5,Q5*$AG5),0) -> 0 | BF5: =IF($AF5=3,IF($AF$2=2,(U5/SUMIF(Refurb_Poss_Tbl[Refurbishment Possible],I5,Refurb_Poss_Tbl[%]))*AG5,U5*$AG5),0) -> 0 | BG5: =IF($AF5=3,IF($AF$2=2,(V5/SUMIF(Refurb_Poss_Tbl[Refurbishment Possible],I5,Refurb_Poss_Tbl[%]))*AG5,IF($AF$2=3,(V5*AG5)-AW5,V5*AG5)),0) -> 0 | BH5: =IF($AF5=3,IF($AF$2=2,(W5/SUMIF(Refurb_Poss_Tbl[Refurbishment Possible],I5,Refurb_Poss_Tbl[%]))*AG5,W5*$AG5),0) -> 0
A6: DredEA11 | B6: New channel | C6: Dredging Works | D6: DredEA1146 | E6: New channel-Excavation | F6: Dredging | G6: 120 | H6: 120 | I6: Moderate Refurbishment | J6: 60 | K6: New Build | L6: 0 | M6: 0 | N6: 0 | O6: 2 | P6: 22156.8888 | Q6: 22156.8888 | R6: 772.6037996 | S6: 153.8312699 | T6: 0.3320971537 | U6: 50.30718144 | V6: 0 | W6: 11346.73443 | X6: 34480.69757 | Y6: 0.26988 | Z6: 0 | AA6: 8620.174394 | AB6: 4554.35561 | AC6: 0.1660485769 | AD6: 76.91563493 | AE6: 4 | AF6: 0 | AG6: =VLOOKUP(AE6,ValidationLists!$M$1:$N$102,2,FALSE) -> 0.8714422277 | AH6: 0 | AI6: 0 | AJ6: 0 | AK6: 0 | AL6: 0 | AM6: 0 | AN6: 0 | AO6: 0 | AP6: 0.2351848284 | AQ6: =IF(OR(AF6=3,AF6=2,AF6=0),SUMIFS(FlatMaint!$Z$2:$Z$10000,FlatMaint!$A$2:$A$10000,D6,FlatMaint!$Y$2:$Y$10000,AE6)*AG6,0) -> 1930.852847 | AR6: =IF(OR(AF6=3,AF6=2,AF6=0),SUMIFS(FlatRepair!$Z$2:$Z$10000,FlatRepair!$A$2:$A$10000,D6,FlatRepair!$Y$2:$Y$10000,AE6)*AG6,0) -> 0 | AS6: 0 | AT6: 1931.088031 | AU6: 0 | AV6: 0 | AW6: 0 | AX6: 0 | AY6: 0 | AZ6: 1931.088031 | BA6: 0 | BB6: =IF($AF6=3,IF($AF$2=2,(R6/SUMIF(Refurb_Poss_Tbl[Refurbishment Possible],I6,Refurb_Poss_Tbl[%]))*AG6,IF($AF$2=3,(R6*AG6)-AV6,R6*AG6)),0) -> 0 | BC6: =IF(AF6=3,IF($AF$2=2,(S6/SUMIF(Refurb_Poss_Tbl[Refurbishment Possible],I6,Refurb_Poss_Tbl[%]))*AG6,IF($AF$2=3,(S6*AG6)-AX6,S6*AG6)),0) -> 0 | BD6: =IF($AF6=3,IF($AF$2=2,(T6/SUMIF(Refurb_Poss_Tbl[Refurbishment Possible],I6,Refurb_Poss_Tbl[%]))*AG6,T6*$AG6),0) -> 0 | BE6: =IF($AF6=3,IF($AF$2=2,(Q6/SUMIF(Refurb_Poss_Tbl[Refurbishment Possible],I6,Refurb_Poss_Tbl[%]))*AG6,Q6*$AG6),0) -> 0 | BF6: =IF($AF6=3,IF($AF$2=2,(U6/SUMIF(Refurb_Poss_Tbl[Refurbishment Possible],I6,Refurb_Poss_Tbl[%]))*AG6,U6*$AG6),0) -> 0 | BG6: =IF($AF6=3,IF($AF$2=2,(V6/SUMIF(Refurb_Poss_Tbl[Refurbishment Possible],I6,Refurb_Poss_Tbl[%]))*AG6,IF($AF$2=3,(V6*AG6)-AW6,V6*AG6)),0) -> 0 | BH6: =IF($AF6=3,IF($AF$2=2,(W6/SUMIF(Refurb_Poss_Tbl[Refurbishment Possible],I6,Refurb_Poss_Tbl[%]))*AG6,W6*$AG6),0) -> 0
A7: DredEA11 | B7: New channel | C7: Dredging Works | D7: DredEA1146 | E7: New channel-Excavation | F7: Dredging | G7: 120 | H7: 120 | I7: Moderate Refurbishment | J7: 60 | K7: New Build | L7: 0 | M7: 0 | N7: 0 | O7: 2 | P7: 22156.8888 | Q7: 22156.8888 | R7: 772.6037996 | S7: 153.8312699 | T7: 0.3320971537 | U7: 50.30718144 | V7: 0 | W7: 11346.73443 | X7: 34480.69757 | Y7: 0.26988 | Z7: 0 | AA7: 8620.174394 | AB7: 4554.35561 | AC7: 0.1660485769 | AD7: 76.91563493 | AE7: 5 | AF7: 0 | AG7: =VLOOKUP(AE7,ValidationLists!$M$1:$N$102,2,FALSE) -> 0.8419731669 | AH7: 0 | AI7: 0 | AJ7: 0 | AK7: 0 | AL7: 0 | AM7: 0 | AN7: 0 | AO7: 0 | AP7: 0.2272317183 | AQ7: =IF(OR(AF7=3,AF7=2,AF7=0),SUMIFS(FlatMaint!$Z$2:$Z$10000,FlatMaint!$A$2:$A$10000,D7,FlatMaint!$Y$2:$Y$10000,AE7)*AG7,0) -> 0 | AR7: =IF(OR(AF7=3,AF7=2,AF7=0),SUMIFS(FlatRepair!$Z$2:$Z$10000,FlatRepair!$A$2:$A$10000,D7,FlatRepair!$Y$2:$Y$10000,AE7)*AG7,0) -> 0 | AS7: 0 | AT7: 0.2272317183 | AU7: 0 | AV7: 0 | AW7: 0 | AX7: 0 | AY7: 0 | AZ7: 0.2272317183 | BA7: 0 | BB7: =IF($AF7=3,IF($AF$2=2,(R7/SUMIF(Refurb_Poss_Tbl[Refurbishment Possible],I7,Refurb_Poss_Tbl[%]))*AG7,IF($AF$2=3,(R7*AG7)-AV7,R7*AG7)),0) -> 0 | BC7: =IF(AF7=3,IF($AF$2=2,(S7/SUMIF(Refurb_Poss_Tbl[Refurbishment Possible],I7,Refurb_Poss_Tbl[%]))*AG7,IF($AF$2=3,(S7*AG7)-AX7,S7*AG7)),0) -> 0 | BD7: =IF($AF7=3,IF($AF$2=2,(T7/SUMIF(Refurb_Poss_Tbl[Refurbishment Possible],I7,Refurb_Poss_Tbl[%]))*AG7,T7*$AG7),0) -> 0 | BE7: =IF($AF7=3,IF($AF$2=2,(Q7/SUMIF(Refurb_Poss_Tbl[Refurbishment Possible],I7,Refurb_Poss_Tbl[%]))*AG7,Q7*$AG7),0) -> 0 | BF7: =IF($AF7=3,IF($AF$2=2,(U7/SUMIF(Refurb_Poss_Tbl[Refurbishment Possible],I7,Refurb_Poss_Tbl[%]))*AG7,U7*$AG7),0) -> 0 | BG7: =IF($AF7=3,IF($AF$2=2,(V7/SUMIF(Refurb_Poss_Tbl[Refurbishment Possible],I7,Refurb_Poss_Tbl[%]))*AG7,IF($AF$2=3,(V7*AG7)-AW7,V7*AG7)),0) -> 0 | BH7: =IF($AF7=3,IF($AF$2=2,(W7/SUMIF(Refurb_Poss_Tbl[Refurbishment Possible],I7,Refurb_Poss_Tbl[%]))*AG7,W7*$AG7),0) -> 0
A8: DredEA11 | B8: New channel | C8: Dredging Works | D8: DredEA1146 | E8: New channel-Excavation | F8: Dredging | G8: 120 | H8: 120 | I8: Moderate Refurbishment | J8: 60 | K8: New Build | L8: 0 | M8: 0 | N8: 0 | O8: 2 | P8: 22156.8888 | Q8: 22156.8888 | R8: 772.6037996 | S8: 153.8312699 | T8: 0.3320971537 | U8: 50.30718144 | V8: 0 | W8: 11346.73443 | X8: 34480.69757 | Y8: 0.26988 | Z8: 0 | AA8: 8620.174394 | AB8: 4554.35561 | AC8: 0.1660485769 | AD8: 76.91563493 | AE8: 6 | AF8: 0 | AG8: =VLOOKUP(AE8,ValidationLists!$M$1:$N$102,2,FALSE) -> 0.8135006443 | AH8: 0 | AI8: 0 | AJ8: 0 | AK8: 0 | AL8: 0 | AM8: 0 | AN8: 0 | AO8: 0 | AP8: 0.2195475539 | AQ8: =IF(OR(AF8=3,AF8=2,AF8=0),SUMIFS(FlatMaint!$Z$2:$Z$10000,FlatMaint!$A$2:$A$10000,D8,FlatMaint!$Y$2:$Y$10000,AE8)*AG8,0) -> 1802.471793 | AR8: =IF(OR(AF8=3,AF8=2,AF8=0),SUMIFS(FlatRepair!$Z$2:$Z$10000,FlatRepair!$A$2:$A$10000,D8,FlatRepair!$Y$2:$Y$10000,AE8)*AG8,0) -> 0 | AS8: 0 | AT8: 1802.691341 | AU8: 0 | AV8: 0 | AW8: 0 | AX8: 0 | AY8: 0 | AZ8: 1802.691341 | BA8: 0 | BB8: =IF($AF8=3,IF($AF$2=2,(R8/SUMIF(Refurb_Poss_Tbl[Refurbishment Possible],I8,Refurb_Poss_Tbl[%]))*AG8,IF($AF$2=3,(R8*AG8)-AV8,R8*AG8)),0) -> 0 | BC8: =IF(AF8=3,IF($AF$2=2,(S8/SUMIF(Refurb_Poss_Tbl[Refurbishment Possible],I8,Refurb_Poss_Tbl[%]))*AG8,IF($AF$2=3,(S8*AG8)-AX8,S8*AG8)),0) -> 0 | BD8: =IF($AF8=3,IF($AF$2=2,(T8/SUMIF(Refurb_Poss_Tbl[Refurbishment Possible],I8,Refurb_Poss_Tbl[%]))*AG8,T8*$AG8),0) -> 0 | BE8: =IF($AF8=3,IF($AF$2=2,(Q8/SUMIF(Refurb_Poss_Tbl[Refurbishment Possible],I8,Refurb_Poss_Tbl[%]))*AG8,Q8*$AG8),0) -> 0 | BF8: =IF($AF8=3,IF($AF$2=2,(U8/SUMIF(Refurb_Poss_Tbl[Refurbishment Possible],I8,Refurb_Poss_Tbl[%]))*AG8,U8*$AG8),0) -> 0 | BG8: =IF($AF8=3,IF($AF$2=2,(V8/SUMIF(Refurb_Poss_Tbl[Refurbishment Possible],I8,Refurb_Poss_Tbl[%]))*AG8,IF($AF$2=3,(V8*AG8)-AW8,V8*AG8)),0) -> 0 | BH8: =IF($AF8=3,IF($AF$2=2,(W8/SUMIF(Refurb_Poss_Tbl[Refurbishment Possible],I8,Refurb_Poss_Tbl[%]))*AG8,W8*$AG8),0) -> 0
A9: DredEA11 | B9: New channel | C9: Dredging Works | D9: DredEA1146 | E9: New channel-Excavation | F9: Dredging | G9: 120 | H9: 120 | I9: Moderate Refurbishment | J9: 60 | K9: New Build | L9: 0 | M9: 0 | N9: 0 | O9: 2 | P9: 22156.8888 | Q9: 22156.8888 | R9: 772.6037996 | S9: 153.8312699 | T9: 0.3320971537 | U9: 50.30718144 | V9: 0 | W9: 11346.73443 | X9: 34480.69757 | Y9: 0.26988 | Z9: 0 | AA9: 8620.174394 | AB9: 4554.35561 | AC9: 0.1660485769 | AD9: 76.91563493 | AE9: 7 | AF9: 0 | AG9: =VLOOKUP(AE9,ValidationLists!$M$1:$N$102,2,FALSE) -> 0.7859909607 | AH9: 0 | AI9: 0 | AJ9: 0 | AK9: 0 | AL9: 0 | AM9: 0 | AN9: 0 | AO9: 0 | AP9: 0.2121232405 | AQ9: =IF(OR(AF9=3,AF9=2,AF9=0),SUMIFS(FlatMaint!$Z$2:$Z$10000,FlatMaint!$A$2:$A$10000,D9,FlatMaint!$Y$2:$Y$10000,AE9)*AG9,0) -> 0 | AR9: =IF(OR(AF9=3,AF9=2,AF9=0),SUMIFS(FlatRepair!$Z$2:$Z$10000,FlatRepair!$A$2:$A$10000,D9,FlatRepair!$Y$2:$Y$10000,AE9)*AG9,0) -> 0 | AS9: 0 | AT9: 0.2121232405 | AU9: 0 | AV9: 0 | AW9: 0 | AX9: 0 | AY9: 0 | AZ9: 0.2121232405 | BA9: 0 | BB9: =IF($AF9=3,IF($AF$2=2,(R9/SUMIF(Refurb_Poss_Tbl[Refurbishment Possible],I9,Refurb_Poss_Tbl[%]))*AG9,IF($AF$2=3,(R9*AG9)-AV9,R9*AG9)),0) -> 0 | BC9: =IF(AF9=3,IF($AF$2=2,(S9/SUMIF(Refurb_Poss_Tbl[Refurbishment Possible],I9,Refurb_Poss_Tbl[%]))*AG9,IF($AF$2=3,(S9*AG9)-AX9,S9*AG9)),0) -> 0 | BD9: =IF($AF9=3,IF($AF$2=2,(T9/SUMIF(Refurb_Poss_Tbl[Refurbishment Possible],I9,Refurb_Poss_Tbl[%]))*AG9,T9*$AG9),0) -> 0 | BE9: =IF($AF9=3,IF($AF$2=2,(Q9/SUMIF(Refurb_Poss_Tbl[Refurbishment Possible],I9,Refurb_Poss_Tbl[%]))*AG9,Q9*$AG9),0) -> 0 | BF9: =IF($AF9=3,IF($AF$2=2,(U9/SUMIF(Refurb_Poss_Tbl[Refurbishment Possible],I9,Refurb_Poss_Tbl[%]))*AG9,U9*$AG9),0) -> 0 | BG9: =IF($AF9=3,IF($AF$2=2,(V9/SUMIF(Refurb_Poss_Tbl[Refurbishment Possible],I9,Refurb_Poss_Tbl[%]))*AG9,IF($AF$2=3,(V9*AG9)-AW9,V9*AG9)),0) -> 0 | BH9: =IF($AF9=3,IF($AF$2=2,(W9/SUMIF(Refurb_Poss_Tbl[Refurbishment Possible],I9,Refurb_Poss_Tbl[%]))*AG9,W9*$AG9),0) -> 0
A10: DredEA11 | B10: New channel | C10: Dredging Works | D10: DredEA1146 | E10: New channel-Excavation | F10: Dredging | G10: 120 | H10: 120 | I10: Moderate Refurbishment | J10: 60 | K10: New Build | L10: 0 | M10: 0 | N10: 0 | O10: 2 | P10: 22156.8888 | Q10: 22156.8888 | R10: 772.6037996 | S10: 153.8312699 | T10: 0.3320971537 | U10: 50.30718144 | V10: 0 | W10: 11346.73443 | X10: 34480.69757 | Y10: 0.26988 | Z10: 0 | AA10: 8620.174394 | AB10: 4554.35561 | AC10: 0.1660485769 | AD10: 76.91563493 | AE10: 8 | AF10: 0 | AG10: =VLOOKUP(AE10,ValidationLists!$M$1:$N$102,2,FALSE) -> 0.7594115562 | AH10: 0 | AI10: 0 | AJ10: 0 | AK10: 0 | AL10: 0 | AM10: 0 | AN10: 0 | AO10: 0 | AP10: 0.2049499908 | AQ10: =IF(OR(AF10=3,AF10=2,AF10=0),SUMIFS(FlatMaint!$Z$2:$Z$10000,FlatMaint!$A$2:$A$10000,D10,FlatMaint!$Y$2:$Y$10000,AE10)*AG10,0) -> 1682.626706 | AR10: =IF(OR(AF10=3,AF10=2,AF10=0),SUMIFS(FlatRepair!$Z$2:$Z$10000,FlatRepair!$A$2:$A$10000,D10,FlatRepair!$Y$2:$Y$10000,AE10)*AG10,0) -> 0 | AS10: 0 | AT10: 1682.831656 | AU10: 0 | AV10: 0 | AW10: 0 | AX10: 0 | AY10: 0 | AZ10: 1682.831656 | BA10: 0 | BB10: =IF($AF10=3,IF($AF$2=2,(R10/SUMIF(Refurb_Poss_Tbl[Refurbishment Possible],I10,Refurb_Poss_Tbl[%]))*AG10,IF($AF$2=3,(R10*AG10)-AV10,R10*AG10)),0) -> 0 | BC10: =IF(AF10=3,IF($AF$2=2,(S10/SUMIF(Refurb_Poss_Tbl[Refurbishment Possible],I10,Refurb_Poss_Tbl[%]))*AG10,IF($AF$2=3,(S10*AG10)-AX10,S10*AG10)),0) -> 0 | BD10: =IF($AF10=3,IF($AF$2=2,(T10/SUMIF(Refurb_Poss_Tbl[Refurbishment Possible],I10,Refurb_Poss_Tbl[%]))*AG10,T10*$AG10),0) -> 0 | BE10: =IF($AF10=3,IF($AF$2=2,(Q10/SUMIF(Refurb_Poss_Tbl[Refurbishment Possible],I10,Refurb_Poss_Tbl[%]))*AG10,Q10*$AG10),0) -> 0 | BF10: =IF($AF10=3,IF($AF$2=2,(U10/SUMIF(Refurb_Poss_Tbl[Refurbishment Possible],I10,Refurb_Poss_Tbl[%]))*AG10,U10*$AG10),0) -> 0 | BG10: =IF($AF10=3,IF($AF$2=2,(V10/SUMIF(Refurb_Poss_Tbl[Refurbishment Possible],I10,Refurb_Poss_Tbl[%]))*AG10,IF($AF$2=3,(V10*AG10)-AW10,V10*AG10)),0) -> 0 | BH10: =IF($AF10=3,IF($AF$2=2,(W10/SUMIF(Refurb_Poss_Tbl[Refurbishment Possible],I10,Refurb_Poss_Tbl[%]))*AG10,W10*$AG10),0) -> 0
A11: DredEA11 | B11: New channel | C11: Dredging Works | D11: DredEA1146 | E11: New channel-Excavation | F11: Dredging | G11: 120 | H11: 120 | I11: Moderate Refurbishment | J11: 60 | K11: New Build | L11: 0 | M11: 0 | N11: 0 | O11: 2 | P11: 22156.8888 | Q11: 22156.8888 | R11: 772.6037996 | S11: 153.8312699 | T11: 0.3320971537 | U11: 50.30718144 | V11: 0 | W11: 11346.73443 | X11: 34480.69757 | Y11: 0.26988 | Z11: 0 | AA11: 8620.174394 | AB11: 4554.35561 | AC11: 0.1660485769 | AD11: 76.91563493 | AE11: 9 | AF11: 0 | AG11: =VLOOKUP(AE11,ValidationLists!$M$1:$N$102,2,FALSE) -> 0.7337309722 | AH11: 0 | AI11: 0 | AJ11: 0 | AK11: 0 | AL11: 0 | AM11: 0 | AN11: 0 | AO11: 0 | AP11: 0.1980193148 | AQ11: =IF(OR(AF11=3,AF11=2,AF11=0),SUMIFS(FlatMaint!$Z$2:$Z$10000,FlatMaint!$A$2:$A$10000,D11,FlatMaint!$Y$2:$Y$10000,AE11)*AG11,0) -> 0 | AR11: =IF(OR(AF11=3,AF11=2,AF11=0),SUMIFS(FlatRepair!$Z$2:$Z$10000,FlatRepair!$A$2:$A$10000,D11,FlatRepair!$Y$2:$Y$10000,AE11)*AG11,0) -> 0 | AS11: 0 | AT11: 0.1980193148 | AU11: 0 | AV11: 0 | AW11: 0 | AX11: 0 | AY11: 0 | AZ11: 0.1980193148 | BA11: 0 | BB11: =IF($AF11=3,IF($AF$2=2,(R11/SUMIF(Refurb_Poss_Tbl[Refurbishment Possible],I11,Refurb_Poss_Tbl[%]))*AG11,IF($AF$2=3,(R11*AG11)-AV11,R11*AG11)),0) -> 0 | BC11: =IF(AF11=3,IF($AF$2=2,(S11/SUMIF(Refurb_Poss_Tbl[Refurbishment Possible],I11,Refurb_Poss_Tbl[%]))*AG11,IF($AF$2=3,(S11*AG11)-AX11,S11*AG11)),0) -> 0 | BD11: =IF($AF11=3,IF($AF$2=2,(T11/SUMIF(Refurb_Poss_Tbl[Refurbishment Possible],I11,Refurb_Poss_Tbl[%]))*AG11,T11*$AG11),0) -> 0 | BE11: =IF($AF11=3,IF($AF$2=2,(Q11/SUMIF(Refurb_Poss_Tbl[Refurbishment Possible],I11,Refurb_Poss_Tbl[%]))*AG11,Q11*$AG11),0) -> 0 | BF11: =IF($AF11=3,IF($AF$2=2,(U11/SUMIF(Refurb_Poss_Tbl[Refurbishment Possible],I11,Refurb_Poss_Tbl[%]))*AG11,U11*$AG11),0) -> 0 | BG11: =IF($AF11=3,IF($AF$2=2,(V11/SUMIF(Refurb_Poss_Tbl[Refurbishment Possible],I11,Refurb_Poss_Tbl[%]))*AG11,IF($AF$2=3,(V11*AG11)-AW11,V11*AG11)),0) -> 0 | BH11: =IF($AF11=3,IF($AF$2=2,(W11/SUMIF(Refurb_Poss_Tbl[Refurbishment Possible],I11,Refurb_Poss_Tbl[%]))*AG11,W11*$AG11),0) -> 0
A12: DredEA11 | B12: New channel | C12: Dredging Works | D12: DredEA1146 | E12: New channel-Excavation | F12: Dredging | G12: 120 | H12: 120 | I12: Moderate Refurbishment | J12: 60 | K12: New Build | L12: 0 | M12: 0 | N12: 0 | O12: 2 | P12: 22156.8888 | Q12: 22156.8888 | R12: 772.6037996 | S12: 153.8312699 | T12: 0.3320971537 | U12: 50.30718144 | V12: 0 | W12: 11346.73443 | X12: 34480.69757 | Y12: 0.26988 | Z12: 0 | AA12: 8620.174394 | AB12: 4554.35561 | AC12: 0.1660485769 | AD12: 76.91563493 | AE12: 10 | AF12: 0 | AG12: =VLOOKUP(AE12,ValidationLists!$M$1:$N$102,2,FALSE) -> 0.7089188137 | AH12: 0 | AI12: 0 | AJ12: 0 | AK12: 0 | AL12: 0 | AM12: 0 | AN12: 0 | AO12: 0 | AP12: 0.1913230094 | AQ12: =IF(OR(AF12=3,AF12=2,AF12=0),SUMIFS(FlatMaint!$Z$2:$Z$10000,FlatMaint!$A$2:$A$10000,D12,FlatMaint!$Y$2:$Y$10000,AE12)*AG12,0) -> 1570.750035 | AR12: =IF(OR(AF12=3,AF12=2,AF12=0),SUMIFS(FlatRepair!$Z$2:$Z$10000,FlatRepair!$A$2:$A$10000,D12,FlatRepair!$Y$2:$Y$10000,AE12)*AG12,0) -> 0 | AS12: 0 | AT12: 1570.941358 | AU12: 0 | AV12: 0 | AW12: 0 | AX12: 0 | AY12: 0 | AZ12: 1570.941358 | BA12: 0 | BB12: =IF($AF12=3,IF($AF$2=2,(R12/SUMIF(Refurb_Poss_Tbl[Refurbishment Possible],I12,Refurb_Poss_Tbl[%]))*AG12,IF($AF$2=3,(R12*AG12)-AV12,R12*AG12)),0) -> 0 | BC12: =IF(AF12=3,IF($AF$2=2,(S12/SUMIF(Refurb_Poss_Tbl[Refurbishment Possible],I12,Refurb_Poss_Tbl[%]))*AG12,IF($AF$2=3,(S12*AG12)-AX12,S12*AG12)),0) -> 0 | BD12: =IF($AF12=3,IF($AF$2=2,(T12/SUMIF(Refurb_Poss_Tbl[Refurbishment Possible],I12,Refurb_Poss_Tbl[%]))*AG12,T12*$AG12),0) -> 0 | BE12: =IF($AF12=3,IF($AF$2=2,(Q12/SUMIF(Refurb_Poss_Tbl[Refurbishment Possible],I12,Refurb_Poss_Tbl[%]))*AG12,Q12*$AG12),0) -> 0 | BF12: =IF($AF12=3,IF($AF$2=2,(U12/SUMIF(Refurb_Poss_Tbl[Refurbishment Possible],I12,Refurb_Poss_Tbl[%]))*AG12,U12*$AG12),0) -> 0 | BG12: =IF($AF12=3,IF($AF$2=2,(V12/SUMIF(Refurb_Poss_Tbl[Refurbishment Possible],I12,Refurb_Poss_Tbl[%]))*AG12,IF($AF$2=3,(V12*AG12)-AW12,V12*AG12)),0) -> 0 | BH12: =IF($AF12=3,IF($AF$2=2,(W12/SUMIF(Refurb_Poss_Tbl[Refurbishment Possible],I12,Refurb_Poss_Tbl[%]))*AG12,W12*$AG12),0) -> 0
A13: DredEA11 | B13: New channel | C13: Dredging Works | D13: DredEA1146 | E13: New channel-Excavation | F13: Dredging | G13: 120 | H13: 120 | I13: Moderate Refurbishment | J13: 60 | K13: New Build | L13: 0 | M13: 0 | N13: 0 | O13: 2 | P13: 22156.8888 | Q13: 22156.8888 | R13: 772.6037996 | S13: 153.8312699 | T13: 0.3320971537 | U13: 50.30718144 | V13: 0 | W13: 11346.73443 | X13: 34480.69757 | Y13: 0.26988 | Z13: 0 | AA13: 8620.174394 | AB13: 4554.35561 | AC13: 0.1660485769 | AD13: 76.91563493 | AE13: 11 | AF13: 0 | AG13: =VLOOKUP(AE13,ValidationLists!$M$1:$N$102,2,FALSE) -> 0.6849457137 | AH13: 0 | AI13: 0 | AJ13: 0 | AK13: 0 | AL13: 0 | AM13: 0 | AN13: 0 | AO13: 0 | AP13: 0.1848531492 | AQ13: =IF(OR(AF13=3,AF13=2,AF13=0),SUMIFS(FlatMaint!$Z$2:$Z$10000,FlatMaint!$A$2:$A$10000,D13,FlatMaint!$Y$2:$Y$10000,AE13)*AG13,0) -> 0 | AR13: =IF(OR(AF13=3,AF13=2,AF13=0),SUMIFS(FlatRepair!$Z$2:$Z$10000,FlatRepair!$A$2:$A$10000,D13,FlatRepair!$Y$2:$Y$10000,AE13)*AG13,0) -> 0 | AS13: 0 | AT13: 0.1848531492 | AU13: 0 | AV13: 0 | AW13: 0 | AX13: 0 | AY13: 0 | AZ13: 0.1848531492 | BA13: 0 | BB13: =IF($AF13=3,IF($AF$2=2,(R13/SUMIF(Refurb_Poss_Tbl[Refurbishment Possible],I13,Refurb_Poss_Tbl[%]))*AG13,IF($AF$2=3,(R13*AG13)-AV13,R13*AG13)),0) -> 0 | BC13: =IF(AF13=3,IF($AF$2=2,(S13/SUMIF(Refurb_Poss_Tbl[Refurbishment Possible],I13,Refurb_Poss_Tbl[%]))*AG13,IF($AF$2=3,(S13*AG13)-AX13,S13*AG13)),0) -> 0 | BD13: =IF($AF13=3,IF($AF$2=2,(T13/SUMIF(Refurb_Poss_Tbl[Refurbishment Possible],I13,Refurb_Poss_Tbl[%]))*AG13,T13*$AG13),0) -> 0 | BE13: =IF($AF13=3,IF($AF$2=2,(Q13/SUMIF(Refurb_Poss_Tbl[Refurbishment Possible],I13,Refurb_Poss_Tbl[%]))*AG13,Q13*$AG13),0) -> 0 | BF13: =IF($AF13=3,IF($AF$2=2,(U13/SUMIF(Refurb_Poss_Tbl[Refurbishment Possible],I13,Refurb_Poss_Tbl[%]))*AG13,U13*$AG13),0) -> 0 | BG13: =IF($AF13=3,IF($AF$2=2,(V13/SUMIF(Refurb_Poss_Tbl[Refurbishment Possible],I13,Refurb_Poss_Tbl[%]))*AG13,IF($AF$2=3,(V13*AG13)-AW13,V13*AG13)),0) -> 0 | BH13: =IF($AF13=3,IF($AF$2=2,(W13/SUMIF(Refurb_Poss_Tbl[Refurbishment Possible],I13,Refurb_Poss_Tbl[%]))*AG13,W13*$AG13),0) -> 0
A14: DredEA11 | B14: New channel | C14: Dredging Works | D14: DredEA1146 | E14: New channel-Excavation | F14: Dredging | G14: 120 | H14: 120 | I14: Moderate Refurbishment | J14: 60 | K14: New Build | L14: 0 | M14: 0 | N14: 0 | O14: 2 | P14: 22156.8888 | Q14: 22156.8888 | R14: 772.6037996 | S14: 153.8312699 | T14: 0.3320971537 | U14: 50.30718144 | V14: 0 | W14: 11346.73443 | X14: 34480.69757 | Y14: 0.26988 | Z14: 0 | AA14: 8620.174394 | AB14: 4554.35561 | AC14: 0.1660485769 | AD14: 76.91563493 | AE14: 12 | AF14: 0 | AG14: =VLOOKUP(AE14,ValidationLists!$M$1:$N$102,2,FALSE) -> 0.6617832983 | AH14: 0 | AI14: 0 | AJ14: 0 | AK14: 0 | AL14: 0 | AM14: 0 | AN14: 0 | AO14: 0 | AP14: 0.1786020765 | AQ14: =IF(OR(AF14=3,AF14=2,AF14=0),SUMIFS(FlatMaint!$Z$2:$Z$10000,FlatMaint!$A$2:$A$10000,D14,FlatMaint!$Y$2:$Y$10000,AE14)*AG14,0) -> 1466.311965 | AR14: =IF(OR(AF14=3,AF14=2,AF14=0),SUMIFS(FlatRepair!$Z$2:$Z$10000,FlatRepair!$A$2:$A$10000,D14,FlatRepair!$Y$2:$Y$10000,AE14)*AG14,0) -> 0 | AS14: 0 | AT14: 1466.490567 | AU14: 0 | AV14: 0 | AW14: 0 | AX14: 0 | AY14: 0 | AZ14: 1466.490567 | BA14: 0 | BB14: =IF($AF14=3,IF($AF$2=2,(R14/SUMIF(Refurb_Poss_Tbl[Refurbishment Possible],I14,Refurb_Poss_Tbl[%]))*AG14,IF($AF$2=3,(R14*AG14)-AV14,R14*AG14)),0) -> 0 | BC14: =IF(AF14=3,IF($AF$2=2,(S14/SUMIF(Refurb_Poss_Tbl[Refurbishment Possible],I14,Refurb_Poss_Tbl[%]))*AG14,IF($AF$2=3,(S14*AG14)-AX14,S14*AG14)),0) -> 0 | BD14: =IF($AF14=3,IF($AF$2=2,(T14/SUMIF(Refurb_Poss_Tbl[Refurbishment Possible],I14,Refurb_Poss_Tbl[%]))*AG14,T14*$AG14),0) -> 0 | BE14: =IF($AF14=3,IF($AF$2=2,(Q14/SUMIF(Refurb_Poss_Tbl[Refurbishment Possible],I14,Refurb_Poss_Tbl[%]))*AG14,Q14*$AG14),0) -> 0 | BF14: =IF($AF14=3,IF($AF$2=2,(U14/SUMIF(Refurb_Poss_Tbl[Refurbishment Possible],I14,Refurb_Poss_Tbl[%]))*AG14,U14*$AG14),0) -> 0 | BG14: =IF($AF14=3,IF($AF$2=2,(V14/SUMIF(Refurb_Poss_Tbl[Refurbishment Possible],I14,Refurb_Poss_Tbl[%]))*AG14,IF($AF$2=3,(V14*AG14)-AW14,V14*AG14)),0) -> 0 | BH14: =IF($AF14=3,IF($AF$2=2,(W14/SUMIF(Refurb_Poss_Tbl[Refurbishment Possible],I14,Refurb_Poss_Tbl[%]))*AG14,W14*$AG14),0) -> 0
A15: DredEA11 | B15: New channel | C15: Dredging Works | D15: DredEA1146 | E15: New channel-Excavation | F15: Dredging | G15: 120 | H15: 120 | I15: Moderate Refurbishment | J15: 60 | K15: New Build | L15: 0 | M15: 0 | N15: 0 | O15: 2 | P15: 22156.8888 | Q15: 22156.8888 | R15: 772.6037996 | S15: 153.8312699 | T15: 0.3320971537 | U15: 50.30718144 | V15: 0 | W15: 11346.73443 | X15: 34480.69757 | Y15: 0.26988 | Z15: 0 | AA15: 8620.174394 | AB15: 4554.35561 | AC15: 0.1660485769 | AD15: 76.91563493 | AE15: 13 | AF15: 0 | AG15: =VLOOKUP(AE15,ValidationLists!$M$1:$N$102,2,FALSE) -> 0.6394041529 | AH15: 0 | AI15: 0 | AJ15: 0 | AK15: 0 | AL15: 0 | AM15: 0 | AN15: 0 | AO15: 0 | AP15: 0.1725623928 | AQ15: =IF(OR(AF15=3,AF15=2,AF15=0),SUMIFS(FlatMaint!$Z$2:$Z$10000,FlatMaint!$A$2:$A$10000,D15,FlatMaint!$Y$2:$Y$10000,AE15)*AG15,0) -> 0 | AR15: =IF(OR(AF15=3,AF15=2,AF15=0),SUMIFS(FlatRepair!$Z$2:$Z$10000,FlatRepair!$A$2:$A$10000,D15,FlatRepair!$Y$2:$Y$10000,AE15)*AG15,0) -> 0 | AS15: 0 | AT15: 0.1725623928 | AU15: 0 | AV15: 0 | AW15: 0 | AX15: 0 | AY15: 0 | AZ15: 0.1725623928 | BA15: 0 | BB15: =IF($AF15=3,IF($AF$2=2,(R15/SUMIF(Refurb_Poss_Tbl[Refurbishment Possible],I15,Refurb_Poss_Tbl[%]))*AG15,IF($AF$2=3,(R15*AG15)-AV15,R15*AG15)),0) -> 0 | BC15: =IF(AF15=3,IF($AF$2=2,(S15/SUMIF(Refurb_Poss_Tbl[Refurbishment Possible],I15,Refurb_Poss_Tbl[%]))*AG15,IF($AF$2=3,(S15*AG15)-AX15,S15*AG15)),0) -> 0 | BD15: =IF($AF15=3,IF($AF$2=2,(T15/SUMIF(Refurb_Poss_Tbl[Refurbishment Possible],I15,Refurb_Poss_Tbl[%]))*AG15,T15*$AG15),0) -> 0 | BE15: =IF($AF15=3,IF($AF$2=2,(Q15/SUMIF(Refurb_Poss_Tbl[Refurbishment Possible],I15,Refurb_Poss_Tbl[%]))*AG15,Q15*$AG15),0) -> 0 | BF15: =IF($AF15=3,IF($AF$2=2,(U15/SUMIF(Refurb_Poss_Tbl[Refurbishment Possible],I15,Refurb_Poss_Tbl[%]))*AG15,U15*$AG15),0) -> 0 | BG15: =IF($AF15=3,IF($AF$2=2,(V15/SUMIF(Refurb_Poss_Tbl[Refurbishment Possible],I15,Refurb_Poss_Tbl[%]))*AG15,IF($AF$2=3,(V15*AG15)-AW15,V15*AG15)),0) -> 0 | BH15: =IF($AF15=3,IF($AF$2=2,(W15/SUMIF(Refurb_Poss_Tbl[Refurbishment Possible],I15,Refurb_Poss_Tbl[%]))*AG15,W15*$AG15),0) -> 0
A16: DredEA11 | B16: New channel | C16: Dredging Works | D16: DredEA1146 | E16: New channel-Excavation | F16: Dredging | G16: 120 | H16: 120 | I16: Moderate Refurbishment | J16: 60 | K16: New Build | L16: 0 | M16: 0 | N16: 0 | O16: 2 | P16: 22156.8888 | Q16: 22156.8888 | R16: 772.6037996 | S16: 153.8312699 | T16: 0.3320971537 | U16: 50.30718144 | V16: 0 | W16: 11346.73443 | X16: 34480.69757 | Y16: 0.26988 | Z16: 0 | AA16: 8620.174394 | AB16: 4554.35561 | AC16: 0.1660485769 | AD16: 76.91563493 | AE16: 14 | AF16: 0 | AG16: =VLOOKUP(AE16,ValidationLists!$M$1:$N$102,2,FALSE) -> 0.6177817903 | AH16: 0 | AI16: 0 | AJ16: 0 | AK16: 0 | AL16: 0 | AM16: 0 | AN16: 0 | AO16: 0 | AP16: 0.1667269496 | AQ16: =IF(OR(AF16=3,AF16=2,AF16=0),SUMIFS(FlatMaint!$Z$2:$Z$10000,FlatMaint!$A$2:$A$10000,D16,FlatMaint!$Y$2:$Y$10000,AE16)*AG16,0) -> 1368.817909 | AR16: =IF(OR(AF16=3,AF16=2,AF16=0),SUMIFS(FlatRepair!$Z$2:$Z$10000,FlatRepair!$A$2:$A$10000,D16,FlatRepair!$Y$2:$Y$10000,AE16)*AG16,0) -> 0 | AS16: 0 | AT16: 1368.984636 | AU16: 0 | AV16: 0 | AW16: 0 | AX16: 0 | AY16: 0 | AZ16: 1368.984636 | BA16: 0 | BB16: =IF($AF16=3,IF($AF$2=2,(R16/SUMIF(Refurb_Poss_Tbl[Refurbishment Possible],I16,Refurb_Poss_Tbl[%]))*AG16,IF($AF$2=3,(R16*AG16)-AV16,R16*AG16)),0) -> 0 | BC16: =IF(AF16=3,IF($AF$2=2,(S16/SUMIF(Refurb_Poss_Tbl[Refurbishment Possible],I16,Refurb_Poss_Tbl[%]))*AG16,IF($AF$2=3,(S16*AG16)-AX16,S16*AG16)),0) -> 0 | BD16: =IF($AF16=3,IF($AF$2=2,(T16/SUMIF(Refurb_Poss_Tbl[Refurbishment Possible],I16,Refurb_Poss_Tbl[%]))*AG16,T16*$AG16),0) -> 0 | BE16: =IF($AF16=3,IF($AF$2=2,(Q16/SUMIF(Refurb_Poss_Tbl[Refurbishment Possible],I16,Refurb_Poss_Tbl[%]))*AG16,Q16*$AG16),0) -> 0 | BF16: =IF($AF16=3,IF($AF$2=2,(U16/SUMIF(Refurb_Poss_Tbl[Refurbishment Possible],I16,Refurb_Poss_Tbl[%]))*AG16,U16*$AG16),0) -> 0 | BG16: =IF($AF16=3,IF($AF$2=2,(V16/SUMIF(Refurb_Poss_Tbl[Refurbishment Possible],I16,Refurb_Poss_Tbl[%]))*AG16,IF($AF$2=3,(V16*AG16)-AW16,V16*AG16)),0) -> 0 | BH16: =IF($AF16=3,IF($AF$2=2,(W16/SUMIF(Refurb_Poss_Tbl[Refurbishment Possible],I16,Refurb_Poss_Tbl[%]))*AG16,W16*$AG16),0) -> 0
A17: DredEA11 | B17: New channel | C17: Dredging Works | D17: DredEA1146 | E17: New channel-Excavation | F17: Dredging | G17: 120 | H17: 120 | I17: Moderate Refurbishment | J17: 60 | K17: New Build | L17: 0 | M17: 0 | N17: 0 | O17: 2 | P17: 22156.8888 | Q17: 22156.8888 | R17: 772.6037996 | S17: 153.8312699 | T17: 0.3320971537 | U17: 50.30718144 | V17: 0 | W17: 11346.73443 | X17: 34480.69757 | Y17: 0.26988 | Z17: 0 | AA17: 8620.174394 | AB17: 4554.35561 | AC17: 0.1660485769 | AD17: 76.91563493 | AE17: 15 | AF17: 0 | AG17: =VLOOKUP(AE17,ValidationLists!$M$1:$N$102,2,FALSE) -> 0.5968906186 | AH17: 0 | AI17: 0 | AJ17: 0 | AK17: 0 | AL17: 0 | AM17: 0 | AN17: 0 | AO17: 0 | AP17: 0.1610888402 | AQ17: =IF(OR(AF17=3,AF17=2,AF17=0),SUMIFS(FlatMaint!$Z$2:$Z$10000,FlatMaint!$A$2:$A$10000,D17,FlatMaint!$Y$2:$Y$10000,AE17)*AG17,0) -> 0 | AR17: =IF(OR(AF17=3,AF17=2,AF17=0),SUMIFS(FlatRepair!$Z$2:$Z$10000,FlatRepair!$A$2:$A$10000,D17,FlatRepair!$Y$2:$Y$10000,AE17)*AG17,0) -> 0 | AS17: 0 | AT17: 0.1610888402 | AU17: 0 | AV17: 0 | AW17: 0 | AX17: 0 | AY17: 0 | AZ17: 0.1610888402 | BA17: 0 | BB17: =IF($AF17=3,IF($AF$2=2,(R17/SUMIF(Refurb_Poss_Tbl[Refurbishment Possible],I17,Refurb_Poss_Tbl[%]))*AG17,IF($AF$2=3,(R17*AG17)-AV17,R17*AG17)),0) -> 0 | BC17: =IF(AF17=3,IF($AF$2=2,(S17/SUMIF(Refurb_Poss_Tbl[Refurbishment Possible],I17,Refurb_Poss_Tbl[%]))*AG17,IF($AF$2=3,(S17*AG17)-AX17,S17*AG17)),0) -> 0 | BD17: =IF($AF17=3,IF($AF$2=2,(T17/SUMIF(Refurb_Poss_Tbl[Refurbishment Possible],I17,Refurb_Poss_Tbl[%]))*AG17,T17*$AG17),0) -> 0 | BE17: =IF($AF17=3,IF($AF$2=2,(Q17/SUMIF(Refurb_Poss_Tbl[Refurbishment Possible],I17,Refurb_Poss_Tbl[%]))*AG17,Q17*$AG17),0) -> 0 | BF17: =IF($AF17=3,IF($AF$2=2,(U17/SUMIF(Refurb_Poss_Tbl[Refurbishment Possible],I17,Refurb_Poss_Tbl[%]))*AG17,U17*$AG17),0) -> 0 | BG17: =IF($AF17=3,IF($AF$2=2,(V17/SUMIF(Refurb_Poss_Tbl[Refurbishment Possible],I17,Refurb_Poss_Tbl[%]))*AG17,IF($AF$2=3,(V17*AG17)-AW17,V17*AG17)),0) -> 0 | BH17: =IF($AF17=3,IF($AF$2=2,(W17/SUMIF(Refurb_Poss_Tbl[Refurbishment Possible],I17,Refurb_Poss_Tbl[%]))*AG17,W17*$AG17),0) -> 0
A18: DredEA11 | B18: New channel | C18: Dredging Works | D18: DredEA1146 | E18: New channel-Excavation | F18: Dredging | G18: 120 | H18: 120 | I18: Moderate Refurbishment | J18: 60 | K18: New Build | L18: 0 | M18: 0 | N18: 0 | O18: 2 | P18: 22156.8888 | Q18: 22156.8888 | R18: 772.6037996 | S18: 153.8312699 | T18: 0.3320971537 | U18: 50.30718144 | V18: 0 | W18: 11346.73443 | X18: 34480.69757 | Y18: 0.26988 | Z18: 0 | AA18: 8620.174394 | AB18: 4554.35561 | AC18: 0.1660485769 | AD18: 76.91563493 | AE18: 16 | AF18: 0 | AG18: =VLOOKUP(AE18,ValidationLists!$M$1:$N$102,2,FALSE) -> 0.5767059117 | AH18: 0 | AI18: 0 | AJ18: 0 | AK18: 0 | AL18: 0 | AM18: 0 | AN18: 0 | AO18: 0 | AP18: 0.1556413915 | AQ18: =IF(OR(AF18=3,AF18=2,AF18=0),SUMIFS(FlatMaint!$Z$2:$Z$10000,FlatMaint!$A$2:$A$10000,D18,FlatMaint!$Y$2:$Y$10000,AE18)*AG18,0) -> 1277.806165 | AR18: =IF(OR(AF18=3,AF18=2,AF18=0),SUMIFS(FlatRepair!$Z$2:$Z$10000,FlatRepair!$A$2:$A$10000,D18,FlatRepair!$Y$2:$Y$10000,AE18)*AG18,0) -> 0 | AS18: 0 | AT18: 1277.961807 | AU18: 0 | AV18: 0 | AW18: 0 | AX18: 0 | AY18: 0 | AZ18: 1277.961807 | BA18: 0 | BB18: =IF($AF18=3,IF($AF$2=2,(R18/SUMIF(Refurb_Poss_Tbl[Refurbishment Possible],I18,Refurb_Poss_Tbl[%]))*AG18,IF($AF$2=3,(R18*AG18)-AV18,R18*AG18)),0) -> 0 | BC18: =IF(AF18=3,IF($AF$2=2,(S18/SUMIF(Refurb_Poss_Tbl[Refurbishment Possible],I18,Refurb_Poss_Tbl[%]))*AG18,IF($AF$2=3,(S18*AG18)-AX18,S18*AG18)),0) -> 0 | BD18: =IF($AF18=3,IF($AF$2=2,(T18/SUMIF(Refurb_Poss_Tbl[Refurbishment Possible],I18,Refurb_Poss_Tbl[%]))*AG18,T18*$AG18),0) -> 0 | BE18: =IF($AF18=3,IF($AF$2=2,(Q18/SUMIF(Refurb_Poss_Tbl[Refurbishment Possible],I18,Refurb_Poss_Tbl[%]))*AG18,Q18*$AG18),0) -> 0 | BF18: =IF($AF18=3,IF($AF$2=2,(U18/SUMIF(Refurb_Poss_Tbl[Refurbishment Possible],I18,Refurb_Poss_Tbl[%]))*AG18,U18*$AG18),0) -> 0 | BG18: =IF($AF18=3,IF($AF$2=2,(V18/SUMIF(Refurb_Poss_Tbl[Refurbishment Possible],I18,Refurb_Poss_Tbl[%]))*AG18,IF($AF$2=3,(V18*AG18)-AW18,V18*AG18)),0) -> 0 | BH18: =IF($AF18=3,IF($AF$2=2,(W18/SUMIF(Refurb_Poss_Tbl[Refurbishment Possible],I18,Refurb_Poss_Tbl[%]))*AG18,W18*$AG18),0) -> 0
A19: DredEA11 | B19: New channel | C19: Dredging Works | D19: DredEA1146 | E19: New channel-Excavation | F19: Dredging | G19: 120 | H19: 120 | I19: Moderate Refurbishment | J19: 60 | K19: New Build | L19: 0 | M19: 0 | N19: 0 | O19: 2 | P19: 22156.8888 | Q19: 22156.8888 | R19: 772.6037996 | S19: 153.8312699 | T19: 0.3320971537 | U19: 50.30718144 | V19: 0 | W19: 11346.73443 | X19: 34480.69757 | Y19: 0.26988 | Z19: 0 | AA19: 8620.174394 | AB19: 4554.35561 | AC19: 0.1660485769 | AD19: 76.91563493 | AE19: 17 | AF19: 0 | AG19: =VLOOKUP(AE19,ValidationLists!$M$1:$N$102,2,FALSE) -> 0.5572037794 | AH19: 0 | AI19: 0 | AJ19: 0 | AK19: 0 | AL19: 0 | AM19: 0 | AN19: 0 | AO19: 0 | AP19: 0.150378156 | AQ19: =IF(OR(AF19=3,AF19=2,AF19=0),SUMIFS(FlatMaint!$Z$2:$Z$10000,FlatMaint!$A$2:$A$10000,D19,FlatMaint!$Y$2:$Y$10000,AE19)*AG19,0) -> 0 | AR19: =IF(OR(AF19=3,AF19=2,AF19=0),SUMIFS(FlatRepair!$Z$2:$Z$10000,FlatRepair!$A$2:$A$10000,D19,FlatRepair!$Y$2:$Y$10000,AE19)*AG19,0) -> 0 | AS19: 0 | AT19: 0.150378156 | AU19: 0 | AV19: 0 | AW19: 0 | AX19: 0 | AY19: 0 | AZ19: 0.150378156 | BA19: 0 | BB19: =IF($AF19=3,IF($AF$2=2,(R19/SUMIF(Refurb_Poss_Tbl[Refurbishment Possible],I19,Refurb_Poss_Tbl[%]))*AG19,IF($AF$2=3,(R19*AG19)-AV19,R19*AG19)),0) -> 0 | BC19: =IF(AF19=3,IF($AF$2=2,(S19/SUMIF(Refurb_Poss_Tbl[Refurbishment Possible],I19,Refurb_Poss_Tbl[%]))*AG19,IF($AF$2=3,(S19*AG19)-AX19,S19*AG19)),0) -> 0 | BD19: =IF($AF19=3,IF($AF$2=2,(T19/SUMIF(Refurb_Poss_Tbl[Refurbishment Possible],I19,Refurb_Poss_Tbl[%]))*AG19,T19*$AG19),0) -> 0 | BE19: =IF($AF19=3,IF($AF$2=2,(Q19/SUMIF(Refurb_Poss_Tbl[Refurbishment Possible],I19,Refurb_Poss_Tbl[%]))*AG19,Q19*$AG19),0) -> 0 | BF19: =IF($AF19=3,IF($AF$2=2,(U19/SUMIF(Refurb_Poss_Tbl[Refurbishment Possible],I19,Refurb_Poss_Tbl[%]))*AG19,U19*$AG19),0) -> 0 | BG19: =IF($AF19=3,IF($AF$2=2,(V19/SUMIF(Refurb_Poss_Tbl[Refurbishment Possible],I19,Refurb_Poss_Tbl[%]))*AG19,IF($AF$2=3,(V19*AG19)-AW19,V19*AG19)),0) -> 0 | BH19: =IF($AF19=3,IF($AF$2=2,(W19/SUMIF(Refurb_Poss_Tbl[Refurbishment Possible],I19,Refurb_Poss_Tbl[%]))*AG19,W19*$AG19),0) -> 0
A20: DredEA11 | B20: New channel | C20: Dredging Works | D20: DredEA1146 | E20: New channel-Excavation | F20: Dredging | G20: 120 | H20: 120 | I20: Moderate Refurbishment | J20: 60 | K20: New Build | L20: 0 | M20: 0 | N20: 0 | O20: 2 | P20: 22156.8888 | Q20: 22156.8888 | R20: 772.6037996 | S20: 153.8312699 | T20: 0.3320971537 | U20: 50.30718144 | V20: 0 | W20: 11346.73443 | X20: 34480.69757 | Y20: 0.26988 | Z20: 0 | AA20: 8620.174394 | AB20: 4554.35561 | AC20: 0.1660485769 | AD20: 76.91563493 | AE20: 18 | AF20: 0 | AG20: =VLOOKUP(AE20,ValidationLists!$M$1:$N$102,2,FALSE) -> 0.5383611396 | AH20: 0 | AI20: 0 | AJ20: 0 | AK20: 0 | AL20: 0 | AM20: 0 | AN20: 0 | AO20: 0 | AP20: 0.1452929043 | AQ20: =IF(OR(AF20=3,AF20=2,AF20=0),SUMIFS(FlatMaint!$Z$2:$Z$10000,FlatMaint!$A$2:$A$10000,D20,FlatMaint!$Y$2:$Y$10000,AE20)*AG20,0) -> 1192.845728 | AR20: =IF(OR(AF20=3,AF20=2,AF20=0),SUMIFS(FlatRepair!$Z$2:$Z$10000,FlatRepair!$A$2:$A$10000,D20,FlatRepair!$Y$2:$Y$10000,AE20)*AG20,0) -> 0 | AS20: 0 | AT20: 1192.991021 | AU20: 0 | AV20: 0 | AW20: 0 | AX20: 0 | AY20: 0 | AZ20: 1192.991021 | BA20: 0 | BB20: =IF($AF20=3,IF($AF$2=2,(R20/SUMIF(Refurb_Poss_Tbl[Refurbishment Possible],I20,Refurb_Poss_Tbl[%]))*AG20,IF($AF$2=3,(R20*AG20)-AV20,R20*AG20)),0) -> 0 | BC20: =IF(AF20=3,IF($AF$2=2,(S20/SUMIF(Refurb_Poss_Tbl[Refurbishment Possible],I20,Refurb_Poss_Tbl[%]))*AG20,IF($AF$2=3,(S20*AG20)-AX20,S20*AG20)),0) -> 0 | BD20: =IF($AF20=3,IF($AF$2=2,(T20/SUMIF(Refurb_Poss_Tbl[Refurbishment Possible],I20,Refurb_Poss_Tbl[%]))*AG20,T20*$AG20),0) -> 0 | BE20: =IF($AF20=3,IF($AF$2=2,(Q20/SUMIF(Refurb_Poss_Tbl[Refurbishment Possible],I20,Refurb_Poss_Tbl[%]))*AG20,Q20*$AG20),0) -> 0 | BF20: =IF($AF20=3,IF($AF$2=2,(U20/SUMIF(Refurb_Poss_Tbl[Refurbishment Possible],I20,Refurb_Poss_Tbl[%]))*AG20,U20*$AG20),0) -> 0 | BG20: =IF($AF20=3,IF($AF$2=2,(V20/SUMIF(Refurb_Poss_Tbl[Refurbishment Possible],I20,Refurb_Poss_Tbl[%]))*AG20,IF($AF$2=3,(V20*AG20)-AW20,V20*AG20)),0) -> 0 | BH20: =IF($AF20=3,IF($AF$2=2,(W20/SUMIF(Refurb_Poss_Tbl[Refurbishment Possible],I20,Refurb_Poss_Tbl[%]))*AG20,W20*$AG20),0) -> 0
A21: DredEA11 | B21: New channel | C21: Dredging Works | D21: DredEA1146 | E21: New channel-Excavation | F21: Dredging | G21: 120 | H21: 120 | I21: Moderate Refurbishment | J21: 60 | K21: New Build | L21: 0 | M21: 0 | N21: 0 | O21: 2 | P21: 22156.8888 | Q21: 22156.8888 | R21: 772.6037996 | S21: 153.8312699 | T21: 0.3320971537 | U21: 50.30718144 | V21: 0 | W21: 11346.73443 | X21: 34480.69757 | Y21: 0.26988 | Z21: 0 | AA21: 8620.174394 | AB21: 4554.35561 | AC21: 0.1660485769 | AD21: 76.91563493 | AE21: 19 | AF21: 0 | AG21: =VLOOKUP(AE21,ValidationLists!$M$1:$N$102,2,FALSE) -> 0.5201556904 | AH21: 0 | AI21: 0 | AJ21: 0 | AK21: 0 | AL21: 0 | AM21: 0 | AN21: 0 | AO21: 0 | AP21: 0.1403796177 | AQ21: =IF(OR(AF21=3,AF21=2,AF21=0),SUMIFS(FlatMaint!$Z$2:$Z$10000,FlatMaint!$A$2:$A$10000,D21,FlatMaint!$Y$2:$Y$10000,AE21)*AG21,0) -> 0 | AR21: =IF(OR(AF21=3,AF21=2,AF21=0),SUMIFS(FlatRepair!$Z$2:$Z$10000,FlatRepair!$A$2:$A$10000,D21,FlatRepair!$Y$2:$Y$10000,AE21)*AG21,0) -> 0 | AS21: 0 | AT21: 0.1403796177 | AU21: 0 | AV21: 0 | AW21: 0 | AX21: 0 | AY21: 0 | AZ21: 0.1403796177 | BA21: 0 | BB21: =IF($AF21=3,IF($AF$2=2,(R21/SUMIF(Refurb_Poss_Tbl[Refurbishment Possible],I21,Refurb_Poss_Tbl[%]))*AG21,IF($AF$2=3,(R21*AG21)-AV21,R21*AG21)),0) -> 0 | BC21: =IF(AF21=3,IF($AF$2=2,(S21/SUMIF(Refurb_Poss_Tbl[Refurbishment Possible],I21,Refurb_Poss_Tbl[%]))*AG21,IF($AF$2=3,(S21*AG21)-AX21,S21*AG21)),0) -> 0 | BD21: =IF($AF21=3,IF($AF$2=2,(T21/SUMIF(Refurb_Poss_Tbl[Refurbishment Possible],I21,Refurb_Poss_Tbl[%]))*AG21,T21*$AG21),0) -> 0 | BE21: =IF($AF21=3,IF($AF$2=2,(Q21/SUMIF(Refurb_Poss_Tbl[Refurbishment Possible],I21,Refurb_Poss_Tbl[%]))*AG21,Q21*$AG21),0) -> 0 | BF21: =IF($AF21=3,IF($AF$2=2,(U21/SUMIF(Refurb_Poss_Tbl[Refurbishment Possible],I21,Refurb_Poss_Tbl[%]))*AG21,U21*$AG21),0) -> 0 | BG21: =IF($AF21=3,IF($AF$2=2,(V21/SUMIF(Refurb_Poss_Tbl[Refurbishment Possible],I21,Refurb_Poss_Tbl[%]))*AG21,IF($AF$2=3,(V21*AG21)-AW21,V21*AG21)),0) -> 0 | BH21: =IF($AF21=3,IF($AF$2=2,(W21/SUMIF(Refurb_Poss_Tbl[Refurbishment Possible],I21,Refurb_Poss_Tbl[%]))*AG21,W21*$AG21),0) -> 0
A22: DredEA11 | B22: New channel | C22: Dredging Works | D22: DredEA1146 | E22: New channel-Excavation | F22: Dredging | G22: 120 | H22: 120 | I22: Moderate Refurbishment | J22: 60 | K22: New Build | L22: 0 | M22: 0 | N22: 0 | O22: 2 | P22: 22156.8888 | Q22: 22156.8888 | R22: 772.6037996 | S22: 153.8312699 | T22: 0.3320971537 | U22: 50.30718144 | V22: 0 | W22: 11346.73443 | X22: 34480.69757 | Y22: 0.26988 | Z22: 0 | AA22: 8620.174394 | AB22: 4554.35561 | AC22: 0.1660485769 | AD22: 76.91563493 | AE22: 20 | AF22: 0 | AG22: =VLOOKUP(AE22,ValidationLists!$M$1:$N$102,2,FALSE) -> 0.5025658844 | AH22: 0 | AI22: 0 | AJ22: 0 | AK22: 0 | AL22: 0 | AM22: 0 | AN22: 0 | AO22: 0 | AP22: 0.1356324809 | AQ22: =IF(OR(AF22=3,AF22=2,AF22=0),SUMIFS(FlatMaint!$Z$2:$Z$10000,FlatMaint!$A$2:$A$10000,D22,FlatMaint!$Y$2:$Y$10000,AE22)*AG22,0) -> 1113.534251 | AR22: =IF(OR(AF22=3,AF22=2,AF22=0),SUMIFS(FlatRepair!$Z$2:$Z$10000,FlatRepair!$A$2:$A$10000,D22,FlatRepair!$Y$2:$Y$10000,AE22)*AG22,0) -> 0 | AS22: 0 | AT22: 1113.669884 | AU22: 0 | AV22: 0 | AW22: 0 | AX22: 0 | AY22: 0 | AZ22: 1113.669884 | BA22: 0 | BB22: =IF($AF22=3,IF($AF$2=2,(R22/SUMIF(Refurb_Poss_Tbl[Refurbishment Possible],I22,Refurb_Poss_Tbl[%]))*AG22,IF($AF$2=3,(R22*AG22)-AV22,R22*AG22)),0) -> 0 | BC22: =IF(AF22=3,IF($AF$2=2,(S22/SUMIF(Refurb_Poss_Tbl[Refurbishment Possible],I22,Refurb_Poss_Tbl[%]))*AG22,IF($AF$2=3,(S22*AG22)-AX22,S22*AG22)),0) -> 0 | BD22: =IF($AF22=3,IF($AF$2=2,(T22/SUMIF(Refurb_Poss_Tbl[Refurbishment Possible],I22,Refurb_Poss_Tbl[%]))*AG22,T22*$AG22),0) -> 0 | BE22: =IF($AF22=3,IF($AF$2=2,(Q22/SUMIF(Refurb_Poss_Tbl[Refurbishment Possible],I22,Refurb_Poss_Tbl[%]))*AG22,Q22*$AG22),0) -> 0 | BF22: =IF($AF22=3,IF($AF$2=2,(U22/SUMIF(Refurb_Poss_Tbl[Refurbishment Possible],I22,Refurb_Poss_Tbl[%]))*AG22,U22*$AG22),0) -> 0 | BG22: =IF($AF22=3,IF($AF$2=2,(V22/SUMIF(Refurb_Poss_Tbl[Refurbishment Possible],I22,Refurb_Poss_Tbl[%]))*AG22,IF($AF$2=3,(V22*AG22)-AW22,V22*AG22)),0) -> 0 | BH22: =IF($AF22=3,IF($AF$2=2,(W22/SUMIF(Refurb_Poss_Tbl[Refurbishment Possible],I22,Refurb_Poss_Tbl[%]))*AG22,W22*$AG22),0) -> 0
A23: DredEA11 | B23: New channel | C23: Dredging Works | D23: DredEA1146 | E23: New channel-Excavation | F23: Dredging | G23: 120 | H23: 120 | I23: Moderate Refurbishment | J23: 60 | K23: New Build | L23: 0 | M23: 0 | N23: 0 | O23: 2 | P23: 22156.8888 | Q23: 22156.8888 | R23: 772.6037996 | S23: 153.8312699 | T23: 0.3320971537 | U23: 50.30718144 | V23: 0 | W23: 11346.73443 | X23: 34480.69757 | Y23: 0.26988 | Z23: 0 | AA23: 8620.174394 | AB23: 4554.35561 | AC23: 0.1660485769 | AD23: 76.91563493 | AE23: 21 | AF23: 0 | AG23: =VLOOKUP(AE23,ValidationLists!$M$1:$N$102,2,FALSE) -> 0.4855709028 | AH23: 0 | AI23: 0 | AJ23: 0 | AK23: 0 | AL23: 0 | AM23: 0 | AN23: 0 | AO23: 0 | AP23: 0.1310458753 | AQ23: =IF(OR(AF23=3,AF23=2,AF23=0),SUMIFS(FlatMaint!$Z$2:$Z$10000,FlatMaint!$A$2:$A$10000,D23,FlatMaint!$Y$2:$Y$10000,AE23)*AG23,0) -> 0 | AR23: =IF(OR(AF23=3,AF23=2,AF23=0),SUMIFS(FlatRepair!$Z$2:$Z$10000,FlatRepair!$A$2:$A$10000,D23,FlatRepair!$Y$2:$Y$10000,AE23)*AG23,0) -> 0 | AS23: 0 | AT23: 0.1310458753 | AU23: 0 | AV23: 0 | AW23: 0 | AX23: 0 | AY23: 0 | AZ23: 0.1310458753 | BA23: 0 | BB23: =IF($AF23=3,IF($AF$2=2,(R23/SUMIF(Refurb_Poss_Tbl[Refurbishment Possible],I23,Refurb_Poss_Tbl[%]))*AG23,IF($AF$2=3,(R23*AG23)-AV23,R23*AG23)),0) -> 0 | BC23: =IF(AF23=3,IF($AF$2=2,(S23/SUMIF(Refurb_Poss_Tbl[Refurbishment Possible],I23,Refurb_Poss_Tbl[%]))*AG23,IF($AF$2=3,(S23*AG23)-AX23,S23*AG23)),0) -> 0 | BD23: =IF($AF23=3,IF($AF$2=2,(T23/SUMIF(Refurb_Poss_Tbl[Refurbishment Possible],I23,Refurb_Poss_Tbl[%]))*AG23,T23*$AG23),0) -> 0 | BE23: =IF($AF23=3,IF($AF$2=2,(Q23/SUMIF(Refurb_Poss_Tbl[Refurbishment Possible],I23,Refurb_Poss_Tbl[%]))*AG23,Q23*$AG23),0) -> 0 | BF23: =IF($AF23=3,IF($AF$2=2,(U23/SUMIF(Refurb_Poss_Tbl[Refurbishment Possible],I23,Refurb_Poss_Tbl[%]))*AG23,U23*$AG23),0) -> 0 | BG23: =IF($AF23=3,IF($AF$2=2,(V23/SUMIF(Refurb_Poss_Tbl[Refurbishment Possible],I23,Refurb_Poss_Tbl[%]))*AG23,IF($AF$2=3,(V23*AG23)-AW23,V23*AG23)),0) -> 0 | BH23: =IF($AF23=3,IF($AF$2=2,(W23/SUMIF(Refurb_Poss_Tbl[Refurbishment Possible],I23,Refurb_Poss_Tbl[%]))*AG23,W23*$AG23),0) -> 0
A24: DredEA11 | B24: New channel | C24: Dredging Works | D24: DredEA1146 | E24: New channel-Excavation | F24: Dredging | G24: 120 | H24: 120 | I24: Moderate Refurbishment | J24: 60 | K24: New Build | L24: 0 | M24: 0 | N24: 0 | O24: 2 | P24: 22156.8888 | Q24: 22156.8888 | R24: 772.6037996 | S24: 153.8312699 | T24: 0.3320971537 | U24: 50.30718144 | V24: 0 | W24: 11346.73443 | X24: 34480.69757 | Y24: 0.26988 | Z24: 0 | AA24: 8620.174394 | AB24: 4554.35561 | AC24: 0.1660485769 | AD24: 76.91563493 | AE24: 22 | AF24: 0 | AG24: =VLOOKUP(AE24,ValidationLists!$M$1:$N$102,2,FALSE) -> 0.4691506308 | AH24: 0 | AI24: 0 | AJ24: 0 | AK24: 0 | AL24: 0 | AM24: 0 | AN24: 0 | AO24: 0 | AP24: 0.1266143722 | AQ24: =IF(OR(AF24=3,AF24=2,AF24=0),SUMIFS(FlatMaint!$Z$2:$Z$10000,FlatMaint!$A$2:$A$10000,D24,FlatMaint!$Y$2:$Y$10000,AE24)*AG24,0) -> 1039.496139 | AR24: =IF(OR(AF24=3,AF24=2,AF24=0),SUMIFS(FlatRepair!$Z$2:$Z$10000,FlatRepair!$A$2:$A$10000,D24,FlatRepair!$Y$2:$Y$10000,AE24)*AG24,0) -> 0 | AS24: 0 | AT24: 1039.622753 | AU24: 0 | AV24: 0 | AW24: 0 | AX24: 0 | AY24: 0 | AZ24: 1039.622753 | BA24: 0 | BB24: =IF($AF24=3,IF($AF$2=2,(R24/SUMIF(Refurb_Poss_Tbl[Refurbishment Possible],I24,Refurb_Poss_Tbl[%]))*AG24,IF($AF$2=3,(R24*AG24)-AV24,R24*AG24)),0) -> 0 | BC24: =IF(AF24=3,IF($AF$2=2,(S24/SUMIF(Refurb_Poss_Tbl[Refurbishment Possible],I24,Refurb_Poss_Tbl[%]))*AG24,IF($AF$2=3,(S24*AG24)-AX24,S24*AG24)),0) -> 0 | BD24: =IF($AF24=3,IF($AF$2=2,(T24/SUMIF(Refurb_Poss_Tbl[Refurbishment Possible],I24,Refurb_Poss_Tbl[%]))*AG24,T24*$AG24),0) -> 0 | BE24: =IF($AF24=3,IF($AF$2=2,(Q24/SUMIF(Refurb_Poss_Tbl[Refurbishment Possible],I24,Refurb_Poss_Tbl[%]))*AG24,Q24*$AG24),0) -> 0 | BF24: =IF($AF24=3,IF($AF$2=2,(U24/SUMIF(Refurb_Poss_Tbl[Refurbishment Possible],I24,Refurb_Poss_Tbl[%]))*AG24,U24*$AG24),0) -> 0 | BG24: =IF($AF24=3,IF($AF$2=2,(V24/SUMIF(Refurb_Poss_Tbl[Refurbishment Possible],I24,Refurb_Poss_Tbl[%]))*AG24,IF($AF$2=3,(V24*AG24)-AW24,V24*AG24)),0) -> 0 | BH24: =IF($AF24=3,IF($AF$2=2,(W24/SUMIF(Refurb_Poss_Tbl[Refurbishment Possible],I24,Refurb_Poss_Tbl[%]))*AG24,W24*$AG24),0) -> 0
A25: DredEA11 | B25: New channel | C25: Dredging Works | D25: DredEA1146 | E25: New channel-Excavation | F25: Dredging | G25: 120 | H25: 120 | I25: Moderate Refurbishment | J25: 60 | K25: New Build | L25: 0 | M25: 0 | N25: 0 | O25: 2 | P25: 22156.8888 | Q25: 22156.8888 | R25: 772.6037996 | S25: 153.8312699 | T25: 0.3320971537 | U25: 50.30718144 | V25: 0 | W25: 11346.73443 | X25: 34480.69757 | Y25: 0.26988 | Z25: 0 | AA25: 8620.174394 | AB25: 4554.35561 | AC25: 0.1660485769 | AD25: 76.91563493 | AE25: 23 | AF25: 0 | AG25: =VLOOKUP(AE25,ValidationLists!$M$1:$N$102,2,FALSE) -> 0.4532856336 | AH25: 0 | AI25: 0 | AJ25: 0 | AK25: 0 | AL25: 0 | AM25: 0 | AN25: 0 | AO25: 0 | AP25: 0.1223327268 | AQ25: =IF(OR(AF25=3,AF25=2,AF25=0),SUMIFS(FlatMaint!$Z$2:$Z$10000,FlatMaint!$A$2:$A$10000,D25,FlatMaint!$Y$2:$Y$10000,AE25)*AG25,0) -> 0 | AR25: =IF(OR(AF25=3,AF25=2,AF25=0),SUMIFS(FlatRepair!$Z$2:$Z$10000,FlatRepair!$A$2:$A$10000,D25,FlatRepair!$Y$2:$Y$10000,AE25)*AG25,0) -> 0 | AS25: 0 | AT25: 0.1223327268 | AU25: 0 | AV25: 0 | AW25: 0 | AX25: 0 | AY25: 0 | AZ25: 0.1223327268 | BA25: 0 | BB25: =IF($AF25=3,IF($AF$2=2,(R25/SUMIF(Refurb_Poss_Tbl[Refurbishment Possible],I25,Refurb_Poss_Tbl[%]))*AG25,IF($AF$2=3,(R25*AG25)-AV25,R25*AG25)),0) -> 0 | BC25: =IF(AF25=3,IF($AF$2=2,(S25/SUMIF(Refurb_Poss_Tbl[Refurbishment Possible],I25,Refurb_Poss_Tbl[%]))*AG25,IF($AF$2=3,(S25*AG25)-AX25,S25*AG25)),0) -> 0 | BD25: =IF($AF25=3,IF($AF$2=2,(T25/SUMIF(Refurb_Poss_Tbl[Refurbishment Possible],I25,Refurb_Poss_Tbl[%]))*AG25,T25*$AG25),0) -> 0 | BE25: =IF($AF25=3,IF($AF$2=2,(Q25/SUMIF(Refurb_Poss_Tbl[Refurbishment Possible],I25,Refurb_Poss_Tbl[%]))*AG25,Q25*$AG25),0) -> 0 | BF25: =IF($AF25=3,IF($AF$2=2,(U25/SUMIF(Refurb_Poss_Tbl[Refurbishment Possible],I25,Refurb_Poss_Tbl[%]))*AG25,U25*$AG25),0) -> 0 | BG25: =IF($AF25=3,IF($AF$2=2,(V25/SUMIF(Refurb_Poss_Tbl[Refurbishment Possible],I25,Refurb_Poss_Tbl[%]))*AG25,IF($AF$2=3,(V25*AG25)-AW25,V25*AG25)),0) -> 0 | BH25: =IF($AF25=3,IF($AF$2=2,(W25/SUMIF(Refurb_Poss_Tbl[Refurbishment Possible],I25,Refurb_Poss_Tbl[%]))*AG25,W25*$AG25),0) -> 0
A26: DredEA11 | B26: New channel | C26: Dredging Works | D26: DredEA1146 | E26: New channel-Excavation | F26: Dredging | G26: 120 | H26: 120 | I26: Moderate Refurbishment | J26: 60 | K26: New Build | L26: 0 | M26: 0 | N26: 0 | O26: 2 | P26: 22156.8888 | Q26: 22156.8888 | R26: 772.6037996 | S26: 153.8312699 | T26: 0.3320971537 | U26: 50.30718144 | V26: 0 | W26: 11346.73443 | X26: 34480.69757 | Y26: 0.26988 | Z26: 0 | AA26: 8620.174394 | AB26: 4554.35561 | AC26: 0.1660485769 | AD26: 76.91563493 | AE26: 24 | AF26: 0 | AG26: =VLOOKUP(AE26,ValidationLists!$M$1:$N$102,2,FALSE) -> 0.4379571339 | AH26: 0 | AI26: 0 | AJ26: 0 | AK26: 0 | AL26: 0 | AM26: 0 | AN26: 0 | AO26: 0 | AP26: 0.1181958713 | AQ26: =IF(OR(AF26=3,AF26=2,AF26=0),SUMIFS(FlatMaint!$Z$2:$Z$10000,FlatMaint!$A$2:$A$10000,D26,FlatMaint!$Y$2:$Y$10000,AE26)*AG26,0) -> 970.3807686 | AR26: =IF(OR(AF26=3,AF26=2,AF26=0),SUMIFS(FlatRepair!$Z$2:$Z$10000,FlatRepair!$A$2:$A$10000,D26,FlatRepair!$Y$2:$Y$10000,AE26)*AG26,0) -> 0 | AS26: 0 | AT26: 970.4989644 | AU26: 0 | AV26: 0 | AW26: 0 | AX26: 0 | AY26: 0 | AZ26: 970.4989644 | BA26: 0 | BB26: =IF($AF26=3,IF($AF$2=2,(R26/SUMIF(Refurb_Poss_Tbl[Refurbishment Possible],I26,Refurb_Poss_Tbl[%]))*AG26,IF($AF$2=3,(R26*AG26)-AV26,R26*AG26)),0) -> 0 | BC26: =IF(AF26=3,IF($AF$2=2,(S26/SUMIF(Refurb_Poss_Tbl[Refurbishment Possible],I26,Refurb_Poss_Tbl[%]))*AG26,IF($AF$2=3,(S26*AG26)-AX26,S26*AG26)),0) -> 0 | BD26: =IF($AF26=3,IF($AF$2=2,(T26/SUMIF(Refurb_Poss_Tbl[Refurbishment Possible],I26,Refurb_Poss_Tbl[%]))*AG26,T26*$AG26),0) -> 0 | BE26: =IF($AF26=3,IF($AF$2=2,(Q26/SUMIF(Refurb_Poss_Tbl[Refurbishment Possible],I26,Refurb_Poss_Tbl[%]))*AG26,Q26*$AG26),0) -> 0 | BF26: =IF($AF26=3,IF($AF$2=2,(U26/SUMIF(Refurb_Poss_Tbl[Refurbishment Possible],I26,Refurb_Poss_Tbl[%]))*AG26,U26*$AG26),0) -> 0 | BG26: =IF($AF26=3,IF($AF$2=2,(V26/SUMIF(Refurb_Poss_Tbl[Refurbishment Possible],I26,Refurb_Poss_Tbl[%]))*AG26,IF($AF$2=3,(V26*AG26)-AW26,V26*AG26)),0) -> 0 | BH26: =IF($AF26=3,IF($AF$2=2,(W26/SUMIF(Refurb_Poss_Tbl[Refurbishment Possible],I26,Refurb_Poss_Tbl[%]))*AG26,W26*$AG26),0) -> 0
A27: DredEA11 | B27: New channel | C27: Dredging Works | D27: DredEA1146 | E27: New channel-Excavation | F27: Dredging | G27: 120 | H27: 120 | I27: Moderate Refurbishment | J27: 60 | K27: New Build | L27: 0 | M27: 0 | N27: 0 | O27: 2 | P27: 22156.8888 | Q27: 22156.8888 | R27: 772.6037996 | S27: 153.8312699 | T27: 0.3320971537 | U27: 50.30718144 | V27: 0 | W27: 11346.73443 | X27: 34480.69757 | Y27: 0.26988 | Z27: 0 | AA27: 8620.174394 | AB27: 4554.35561 | AC27: 0.1660485769 | AD27: 76.91563493 | AE27: 25 | AF27: 0 | AG27: =VLOOKUP(AE27,ValidationLists!$M$1:$N$102,2,FALSE) -> 0.4231469893 | AH27: 0 | AI27: 0 | AJ27: 0 | AK27: 0 | AL27: 0 | AM27: 0 | AN27: 0 | AO27: 0 | AP27: 0.1141989095 | AQ27: =IF(OR(AF27=3,AF27=2,AF27=0),SUMIFS(FlatMaint!$Z$2:$Z$10000,FlatMaint!$A$2:$A$10000,D27,FlatMaint!$Y$2:$Y$10000,AE27)*AG27,0) -> 0 | AR27: =IF(OR(AF27=3,AF27=2,AF27=0),SUMIFS(FlatRepair!$Z$2:$Z$10000,FlatRepair!$A$2:$A$10000,D27,FlatRepair!$Y$2:$Y$10000,AE27)*AG27,0) -> 0 | AS27: 0 | AT27: 0.1141989095 | AU27: 0 | AV27: 0 | AW27: 0 | AX27: 0 | AY27: 0 | AZ27: 0.1141989095 | BA27: 0 | BB27: =IF($AF27=3,IF($AF$2=2,(R27/SUMIF(Refurb_Poss_Tbl[Refurbishment Possible],I27,Refurb_Poss_Tbl[%]))*AG27,IF($AF$2=3,(R27*AG27)-AV27,R27*AG27)),0) -> 0 | BC27: =IF(AF27=3,IF($AF$2=2,(S27/SUMIF(Refurb_Poss_Tbl[Refurbishment Possible],I27,Refurb_Poss_Tbl[%]))*AG27,IF($AF$2=3,(S27*AG27)-AX27,S27*AG27)),0) -> 0 | BD27: =IF($AF27=3,IF($AF$2=2,(T27/SUMIF(Refurb_Poss_Tbl[Refurbishment Possible],I27,Refurb_Poss_Tbl[%]))*AG27,T27*$AG27),0) -> 0 | BE27: =IF($AF27=3,IF($AF$2=2,(Q27/SUMIF(Refurb_Poss_Tbl[Refurbishment Possible],I27,Refurb_Poss_Tbl[%]))*AG27,Q27*$AG27),0) -> 0 | BF27: =IF($AF27=3,IF($AF$2=2,(U27/SUMIF(Refurb_Poss_Tbl[Refurbishment Possible],I27,Refurb_Poss_Tbl[%]))*AG27,U27*$AG27),0) -> 0 | BG27: =IF($AF27=3,IF($AF$2=2,(V27/SUMIF(Refurb_Poss_Tbl[Refurbishment Possible],I27,Refurb_Poss_Tbl[%]))*AG27,IF($AF$2=3,(V27*AG27)-AW27,V27*AG27)),0) -> 0 | BH27: =IF($AF27=3,IF($AF$2=2,(W27/SUMIF(Refurb_Poss_Tbl[Refurbishment Possible],I27,Refurb_Poss_Tbl[%]))*AG27,W27*$AG27),0) -> 0
A28: DredEA11 | B28: New channel | C28: Dredging Works | D28: DredEA1146 | E28: New channel-Excavation | F28: Dredging | G28: 120 | H28: 120 | I28: Moderate Refurbishment | J28: 60 | K28: New Build | L28: 0 | M28: 0 | N28: 0 | O28: 2 | P28: 22156.8888 | Q28: 22156.8888 | R28: 772.6037996 | S28: 153.8312699 | T28: 0.3320971537 | U28: 50.30718144 | V28: 0 | W28: 11346.73443 | X28: 34480.69757 | Y28: 0.26988 | Z28: 0 | AA28: 8620.174394 | AB28: 4554.35561 | AC28: 0.1660485769 | AD28: 76.91563493 | AE28: 26 | AF28: 0 | AG28: =VLOOKUP(AE28,ValidationLists!$M$1:$N$102,2,FALSE) -> 0.4088376708 | AH28: 0 | AI28: 0 | AJ28: 0 | AK28: 0 | AL28: 0 | AM28: 0 | AN28: 0 | AO28: 0 | AP28: 0.1103371106 | AQ28: =IF(OR(AF28=3,AF28=2,AF28=0),SUMIFS(FlatMaint!$Z$2:$Z$10000,FlatMaint!$A$2:$A$10000,D28,FlatMaint!$Y$2:$Y$10000,AE28)*AG28,0) -> 905.8608309 | AR28: =IF(OR(AF28=3,AF28=2,AF28=0),SUMIFS(FlatRepair!$Z$2:$Z$10000,FlatRepair!$A$2:$A$10000,D28,FlatRepair!$Y$2:$Y$10000,AE28)*AG28,0) -> 0 | AS28: 0 | AT28: 905.971168 | AU28: 0 | AV28: 0 | AW28: 0 | AX28: 0 | AY28: 0 | AZ28: 905.971168 | BA28: 0 | BB28: =IF($AF28=3,IF($AF$2=2,(R28/SUMIF(Refurb_Poss_Tbl[Refurbishment Possible],I28,Refurb_Poss_Tbl[%]))*AG28,IF($AF$2=3,(R28*AG28)-AV28,R28*AG28)),0) -> 0 | BC28: =IF(AF28=3,IF($AF$2=2,(S28/SUMIF(Refurb_Poss_Tbl[Refurbishment Possible],I28,Refurb_Poss_Tbl[%]))*AG28,IF($AF$2=3,(S28*AG28)-AX28,S28*AG28)),0) -> 0 | BD28: =IF($AF28=3,IF($AF$2=2,(T28/SUMIF(Refurb_Poss_Tbl[Refurbishment Possible],I28,Refurb_Poss_Tbl[%]))*AG28,T28*$AG28),0) -> 0 | BE28: =IF($AF28=3,IF($AF$2=2,(Q28/SUMIF(Refurb_Poss_Tbl[Refurbishment Possible],I28,Refurb_Poss_Tbl[%]))*AG28,Q28*$AG28),0) -> 0 | BF28: =IF($AF28=3,IF($AF$2=2,(U28/SUMIF(Refurb_Poss_Tbl[Refurbishment Possible],I28,Refurb_Poss_Tbl[%]))*AG28,U28*$AG28),0) -> 0 | BG28: =IF($AF28=3,IF($AF$2=2,(V28/SUMIF(Refurb_Poss_Tbl[Refurbishment Possible],I28,Refurb_Poss_Tbl[%]))*AG28,IF($AF$2=3,(V28*AG28)-AW28,V28*AG28)),0) -> 0 | BH28: =IF($AF28=3,IF($AF$2=2,(W28/SUMIF(Refurb_Poss_Tbl[Refurbishment Possible],I28,Refurb_Poss_Tbl[%]))*AG28,W28*$AG28),0) -> 0
A29: DredEA11 | B29: New channel | C29: Dredging Works | D29: DredEA1146 | E29: New channel-Excavation | F29: Dredging | G29: 120 | H29: 120 | I29: Moderate Refurbishment | J29: 60 | K29: New Build | L29: 0 | M29: 0 | N29: 0 | O29: 2 | P29: 22156.8888 | Q29: 22156.8888 | R29: 772.6037996 | S29: 153.8312699 | T29: 0.3320971537 | U29: 50.30718144 | V29: 0 | W29: 11346.73443 | X29: 34480.69757 | Y29: 0.26988 | Z29: 0 | AA29: 8620.174394 | AB29: 4554.35561 | AC29: 0.1660485769 | AD29: 76.91563493 | AE29: 27 | AF29: 0 | AG29: =VLOOKUP(AE29,ValidationLists!$M$1:$N$102,2,FALSE) -> 0.3950122423 | AH29: 0 | AI29: 0 | AJ29: 0 | AK29: 0 | AL29: 0 | AM29: 0 | AN29: 0 | AO29: 0 | AP29: 0.106605904 | AQ29: =IF(OR(AF29=3,AF29=2,AF29=0),SUMIFS(FlatMaint!$Z$2:$Z$10000,FlatMaint!$A$2:$A$10000,D29,FlatMaint!$Y$2:$Y$10000,AE29)*AG29,0) -> 0 | AR29: =IF(OR(AF29=3,AF29=2,AF29=0),SUMIFS(FlatRepair!$Z$2:$Z$10000,FlatRepair!$A$2:$A$10000,D29,FlatRepair!$Y$2:$Y$10000,AE29)*AG29,0) -> 0 | AS29: 0 | AT29: 0.106605904 | AU29: 0 | AV29: 0 | AW29: 0 | AX29: 0 | AY29: 0 | AZ29: 0.106605904 | BA29: 0 | BB29: =IF($AF29=3,IF($AF$2=2,(R29/SUMIF(Refurb_Poss_Tbl[Refurbishment Possible],I29,Refurb_Poss_Tbl[%]))*AG29,IF($AF$2=3,(R29*AG29)-AV29,R29*AG29)),0) -> 0 | BC29: =IF(AF29=3,IF($AF$2=2,(S29/SUMIF(Refurb_Poss_Tbl[Refurbishment Possible],I29,Refurb_Poss_Tbl[%]))*AG29,IF($AF$2=3,(S29*AG29)-AX29,S29*AG29)),0) -> 0 | BD29: =IF($AF29=3,IF($AF$2=2,(T29/SUMIF(Refurb_Poss_Tbl[Refurbishment Possible],I29,Refurb_Poss_Tbl[%]))*AG29,T29*$AG29),0) -> 0 | BE29: =IF($AF29=3,IF($AF$2=2,(Q29/SUMIF(Refurb_Poss_Tbl[Refurbishment Possible],I29,Refurb_Poss_Tbl[%]))*AG29,Q29*$AG29),0) -> 0 | BF29: =IF($AF29=3,IF($AF$2=2,(U29/SUMIF(Refurb_Poss_Tbl[Refurbishment Possible],I29,Refurb_Poss_Tbl[%]))*AG29,U29*$AG29),0) -> 0 | BG29: =IF($AF29=3,IF($AF$2=2,(V29/SUMIF(Refurb_Poss_Tbl[Refurbishment Possible],I29,Refurb_Poss_Tbl[%]))*AG29,IF($AF$2=3,(V29*AG29)-AW29,V29*AG29)),0) -> 0 | BH29: =IF($AF29=3,IF($AF$2=2,(W29/SUMIF(Refurb_Poss_Tbl[Refurbishment Possible],I29,Refurb_Poss_Tbl[%]))*AG29,W29*$AG29),0) -> 0
A30: DredEA11 | B30: New channel | C30: Dredging Works | D30: DredEA1146 | E30: New channel-Excavation | F30: Dredging | G30: 120 | H30: 120 | I30: Moderate Refurbishment | J30: 60 | K30: New Build | L30: 0 | M30: 0 | N30: 0 | O30: 2 | P30: 22156.8888 | Q30: 22156.8888 | R30: 772.6037996 | S30: 153.8312699 | T30: 0.3320971537 | U30: 50.30718144 | V30: 0 | W30: 11346.73443 | X30: 34480.69757 | Y30: 0.26988 | Z30: 0 | AA30: 8620.174394 | AB30: 4554.35561 | AC30: 0.1660485769 | AD30: 76.91563493 | AE30: 28 | AF30: 0 | AG30: =VLOOKUP(AE30,ValidationLists!$M$1:$N$102,2,FALSE) -> 0.3816543404 | AH30: 0 | AI30: 0 | AJ30: 0 | AK30: 0 | AL30: 0 | AM30: 0 | AN30: 0 | AO30: 0 | AP30: 0.1030008734 | AQ30: =IF(OR(AF30=3,AF30=2,AF30=0),SUMIFS(FlatMaint!$Z$2:$Z$10000,FlatMaint!$A$2:$A$10000,D30,FlatMaint!$Y$2:$Y$10000,AE30)*AG30,0) -> 845.6307787 | AR30: =IF(OR(AF30=3,AF30=2,AF30=0),SUMIFS(FlatRepair!$Z$2:$Z$10000,FlatRepair!$A$2:$A$10000,D30,FlatRepair!$Y$2:$Y$10000,AE30)*AG30,0) -> 0 | AS30: 0 | AT30: 845.7337795 | AU30: 0 | AV30: 0 | AW30: 0 | AX30: 0 | AY30: 0 | AZ30: 845.7337795 | BA30: 0 | BB30: =IF($AF30=3,IF($AF$2=2,(R30/SUMIF(Refurb_Poss_Tbl[Refurbishment Possible],I30,Refurb_Poss_Tbl[%]))*AG30,IF($AF$2=3,(R30*AG30)-AV30,R30*AG30)),0) -> 0 | BC30: =IF(AF30=3,IF($AF$2=2,(S30/SUMIF(Refurb_Poss_Tbl[Refurbishment Possible],I30,Refurb_Poss_Tbl[%]))*AG30,IF($AF$2=3,(S30*AG30)-AX30,S30*AG30)),0) -> 0 | BD30: =IF($AF30=3,IF($AF$2=2,(T30/SUMIF(Refurb_Poss_Tbl[Refurbishment Possible],I30,Refurb_Poss_Tbl[%]))*AG30,T30*$AG30),0) -> 0 | BE30: =IF($AF30=3,IF($AF$2=2,(Q30/SUMIF(Refurb_Poss_Tbl[Refurbishment Possible],I30,Refurb_Poss_Tbl[%]))*AG30,Q30*$AG30),0) -> 0 | BF30: =IF($AF30=3,IF($AF$2=2,(U30/SUMIF(Refurb_Poss_Tbl[Refurbishment Possible],I30,Refurb_Poss_Tbl[%]))*AG30,U30*$AG30),0) -> 0 | BG30: =IF($AF30=3,IF($AF$2=2,(V30/SUMIF(Refurb_Poss_Tbl[Refurbishment Possible],I30,Refurb_Poss_Tbl[%]))*AG30,IF($AF$2=3,(V30*AG30)-AW30,V30*AG30)),0) -> 0 | BH30: =IF($AF30=3,IF($AF$2=2,(W30/SUMIF(Refurb_Poss_Tbl[Refurbishment Possible],I30,Refurb_Poss_Tbl[%]))*AG30,W30*$AG30),0) -> 0
A31: DredEA11 | B31: New channel | C31: Dredging Works | D31: DredEA1146 | E31: New channel-Excavation | F31: Dredging | G31: 120 | H31: 120 | I31: Moderate Refurbishment | J31: 60 | K31: New Build | L31: 0 | M31: 0 | N31: 0 | O31: 2 | P31: 22156.8888 | Q31: 22156.8888 | R31: 772.6037996 | S31: 153.8312699 | T31: 0.3320971537 | U31: 50.30718144 | V31: 0 | W31: 11346.73443 | X31: 34480.69757 | Y31: 0.26988 | Z31: 0 | AA31: 8620.174394 | AB31: 4554.35561 | AC31: 0.1660485769 | AD31: 76.91563493 | AE31: 29 | AF31: 0 | AG31: =VLOOKUP(AE31,ValidationLists!$M$1:$N$102,2,FALSE) -> 0.368748155 | AH31: 0 | AI31: 0 | AJ31: 0 | AK31: 0 | AL31: 0 | AM31: 0 | AN31: 0 | AO31: 0 | AP31: 0.09951775206 | AQ31: =IF(OR(AF31=3,AF31=2,AF31=0),SUMIFS(FlatMaint!$Z$2:$Z$10000,FlatMaint!$A$2:$A$10000,D31,FlatMaint!$Y$2:$Y$10000,AE31)*AG31,0) -> 0 | AR31: =IF(OR(AF31=3,AF31=2,AF31=0),SUMIFS(FlatRepair!$Z$2:$Z$10000,FlatRepair!$A$2:$A$10000,D31,FlatRepair!$Y$2:$Y$10000,AE31)*AG31,0) -> 0 | AS31: 0 | AT31: 0.09951775206 | AU31: 0 | AV31: 0 | AW31: 0 | AX31: 0 | AY31: 0 | AZ31: 0.09951775206 | BA31: 0 | BB31: =IF($AF31=3,IF($AF$2=2,(R31/SUMIF(Refurb_Poss_Tbl[Refurbishment Possible],I31,Refurb_Poss_Tbl[%]))*AG31,IF($AF$2=3,(R31*AG31)-AV31,R31*AG31)),0) -> 0 | BC31: =IF(AF31=3,IF($AF$2=2,(S31/SUMIF(Refurb_Poss_Tbl[Refurbishment Possible],I31,Refurb_Poss_Tbl[%]))*AG31,IF($AF$2=3,(S31*AG31)-AX31,S31*AG31)),0) -> 0 | BD31: =IF($AF31=3,IF($AF$2=2,(T31/SUMIF(Refurb_Poss_Tbl[Refurbishment Possible],I31,Refurb_Poss_Tbl[%]))*AG31,T31*$AG31),0) -> 0 | BE31: =IF($AF31=3,IF($AF$2=2,(Q31/SUMIF(Refurb_Poss_Tbl[Refurbishment Possible],I31,Refurb_Poss_Tbl[%]))*AG31,Q31*$AG31),0) -> 0 | BF31: =IF($AF31=3,IF($AF$2=2,(U31/SUMIF(Refurb_Poss_Tbl[Refurbishment Possible],I31,Refurb_Poss_Tbl[%]))*AG31,U31*$AG31),0) -> 0 | BG31: =IF($AF31=3,IF($AF$2=2,(V31/SUMIF(Refurb_Poss_Tbl[Refurbishment Possible],I31,Refurb_Poss_Tbl[%]))*AG31,IF($AF$2=3,(V31*AG31)-AW31,V31*AG31)),0) -> 0 | BH31: =IF($AF31=3,IF($AF$2=2,(W31/SUMIF(Refurb_Poss_Tbl[Refurbishment Possible],I31,Refurb_Poss_Tbl[%]))*AG31,W31*$AG31),0) -> 0
A32: DredEA11 | B32: New channel | C32: Dredging Works | D32: DredEA1146 | E32: New channel-Excavation | F32: Dredging | G32: 120 | H32: 120 | I32: Moderate Refurbishment | J32: 60 | K32: New Build | L32: 0 | M32: 0 | N32: 0 | O32: 2 | P32: 22156.8888 | Q32: 22156.8888 | R32: 772.6037996 | S32: 153.8312699 | T32: 0.3320971537 | U32: 50.30718144 | V32: 0 | W32: 11346.73443 | X32: 34480.69757 | Y32: 0.26988 | Z32: 0 | AA32: 8620.174394 | AB32: 4554.35561 | AC32: 0.1660485769 | AD32: 76.91563493 | AE32: 30 | AF32: 0 | AG32: =VLOOKUP(AE32,ValidationLists!$M$1:$N$102,2,FALSE) -> 0.3562784106 | AH32: 0 | AI32: 0 | AJ32: 0 | AK32: 0 | AL32: 0 | AM32: 0 | AN32: 0 | AO32: 0 | AP32: 0.09615241745 | AQ32: =IF(OR(AF32=3,AF32=2,AF32=0),SUMIFS(FlatMaint!$Z$2:$Z$10000,FlatMaint!$A$2:$A$10000,D32,FlatMaint!$Y$2:$Y$10000,AE32)*AG32,0) -> 789.4053804 | AR32: =IF(OR(AF32=3,AF32=2,AF32=0),SUMIFS(FlatRepair!$Z$2:$Z$10000,FlatRepair!$A$2:$A$10000,D32,FlatRepair!$Y$2:$Y$10000,AE32)*AG32,0) -> 0 | AS32: 0 | AT32: 789.5015329 | AU32: 0 | AV32: 0 | AW32: 0 | AX32: 0 | AY32: 0 | AZ32: 789.5015329 | BA32: 0 | BB32: =IF($AF32=3,IF($AF$2=2,(R32/SUMIF(Refurb_Poss_Tbl[Refurbishment Possible],I32,Refurb_Poss_Tbl[%]))*AG32,IF($AF$2=3,(R32*AG32)-AV32,R32*AG32)),0) -> 0 | BC32: =IF(AF32=3,IF($AF$2=2,(S32/SUMIF(Refurb_Poss_Tbl[Refurbishment Possible],I32,Refurb_Poss_Tbl[%]))*AG32,IF($AF$2=3,(S32*AG32)-AX32,S32*AG32)),0) -> 0 | BD32: =IF($AF32=3,IF($AF$2=2,(T32/SUMIF(Refurb_Poss_Tbl[Refurbishment Possible],I32,Refurb_Poss_Tbl[%]))*AG32,T32*$AG32),0) -> 0 | BE32: =IF($AF32=3,IF($AF$2=2,(Q32/SUMIF(Refurb_Poss_Tbl[Refurbishment Possible],I32,Refurb_Poss_Tbl[%]))*AG32,Q32*$AG32),0) -> 0 | BF32: =IF($AF32=3,IF($AF$2=2,(U32/SUMIF(Refurb_Poss_Tbl[Refurbishment Possible],I32,Refurb_Poss_Tbl[%]))*AG32,U32*$AG32),0) -> 0 | BG32: =IF($AF32=3,IF($AF$2=2,(V32/SUMIF(Refurb_Poss_Tbl[Refurbishment Possible],I32,Refurb_Poss_Tbl[%]))*AG32,IF($AF$2=3,(V32*AG32)-AW32,V32*AG32)),0) -> 0 | BH32: =IF($AF32=3,IF($AF$2=2,(W32/SUMIF(Refurb_Poss_Tbl[Refurbishment Possible],I32,Refurb_Poss_Tbl[%]))*AG32,W32*$AG32),0) -> 0
A33: DredEA11 | B33: New channel | C33: Dredging Works | D33: DredEA1146 | E33: New channel-Excavation | F33: Dredging | G33: 120 | H33: 120 | I33: Moderate Refurbishment | J33: 60 | K33: New Build | L33: 0 | M33: 0 | N33: 0 | O33: 2 | P33: 22156.8888 | Q33: 22156.8888 | R33: 772.6037996 | S33: 153.8312699 | T33: 0.3320971537 | U33: 50.30718144 | V33: 0 | W33: 11346.73443 | X33: 34480.69757 | Y33: 0.26988 | Z33: 0 | AA33: 8620.174394 | AB33: 4554.35561 | AC33: 0.1660485769 | AD33: 76.91563493 | AE33: 31 | AF33: 0 | AG33: =VLOOKUP(AE33,ValidationLists!$M$1:$N$102,2,FALSE) -> 0.3999871452 | AH33: 0 | AI33: 0 | AJ33: 0 | AK33: 0 | AL33: 0 | AM33: 0 | AN33: 0 | AO33: 0 | AP33: 0.1079485307 | AQ33: =IF(OR(AF33=3,AF33=2,AF33=0),SUMIFS(FlatMaint!$Z$2:$Z$10000,FlatMaint!$A$2:$A$10000,D33,FlatMaint!$Y$2:$Y$10000,AE33)*AG33,0) -> 0 | AR33: =IF(OR(AF33=3,AF33=2,AF33=0),SUMIFS(FlatRepair!$Z$2:$Z$10000,FlatRepair!$A$2:$A$10000,D33,FlatRepair!$Y$2:$Y$10000,AE33)*AG33,0) -> 0 | AS33: 0 | AT33: 0.1079485307 | AU33: 0 | AV33: 0 | AW33: 0 | AX33: 0 | AY33: 0 | AZ33: 0.1079485307 | BA33: 0 | BB33: =IF($AF33=3,IF($AF$2=2,(R33/SUMIF(Refurb_Poss_Tbl[Refurbishment Possible],I33,Refurb_Poss_Tbl[%]))*AG33,IF($AF$2=3,(R33*AG33)-AV33,R33*AG33)),0) -> 0 | BC33: =IF(AF33=3,IF($AF$2=2,(S33/SUMIF(Refurb_Poss_Tbl[Refurbishment Possible],I33,Refurb_Poss_Tbl[%]))*AG33,IF($AF$2=3,(S33*AG33)-AX33,S33*AG33)),0) -> 0 | BD33: =IF($AF33=3,IF($AF$2=2,(T33/SUMIF(Refurb_Poss_Tbl[Refurbishment Possible],I33,Refurb_Poss_Tbl[%]))*AG33,T33*$AG33),0) -> 0 | BE33: =IF($AF33=3,IF($AF$2=2,(Q33/SUMIF(Refurb_Poss_Tbl[Refurbishment Possible],I33,Refurb_Poss_Tbl[%]))*AG33,Q33*$AG33),0) -> 0 | BF33: =IF($AF33=3,IF($AF$2=2,(U33/SUMIF(Refurb_Poss_Tbl[Refurbishment Possible],I33,Refurb_Poss_Tbl[%]))*AG33,U33*$AG33),0) -> 0 | BG33: =IF($AF33=3,IF($AF$2=2,(V33/SUMIF(Refurb_Poss_Tbl[Refurbishment Possible],I33,Refurb_Poss_Tbl[%]))*AG33,IF($AF$2=3,(V33*AG33)-AW33,V33*AG33)),0) -> 0 | BH33: =IF($AF33=3,IF($AF$2=2,(W33/SUMIF(Refurb_Poss_Tbl[Refurbishment Possible],I33,Refurb_Poss_Tbl[%]))*AG33,W33*$AG33),0) -> 0
A34: DredEA11 | B34: New channel | C34: Dredging Works | D34: DredEA1146 | E34: New channel-Excavation | F34: Dredging | G34: 120 | H34: 120 | I34: Moderate Refurbishment | J34: 60 | K34: New Build | L34: 0 | M34: 0 | N34: 0 | O34: 2 | P34: 22156.8888 | Q34: 22156.8888 | R34: 772.6037996 | S34: 153.8312699 | T34: 0.3320971537 | U34: 50.30718144 | V34: 0 | W34: 11346.73443 | X34: 34480.69757 | Y34: 0.26988 | Z34: 0 | AA34: 8620.174394 | AB34: 4554.35561 | AC34: 0.1660485769 | AD34: 76.91563493 | AE34: 32 | AF34: 0 | AG34: =VLOOKUP(AE34,ValidationLists!$M$1:$N$102,2,FALSE) -> 0.3883370341 | AH34: 0 | AI34: 0 | AJ34: 0 | AK34: 0 | AL34: 0 | AM34: 0 | AN34: 0 | AO34: 0 | AP34: 0.1048043988 | AQ34: =IF(OR(AF34=3,AF34=2,AF34=0),SUMIFS(FlatMaint!$Z$2:$Z$10000,FlatMaint!$A$2:$A$10000,D34,FlatMaint!$Y$2:$Y$10000,AE34)*AG34,0) -> 860.4376102 | AR34: =IF(OR(AF34=3,AF34=2,AF34=0),SUMIFS(FlatRepair!$Z$2:$Z$10000,FlatRepair!$A$2:$A$10000,D34,FlatRepair!$Y$2:$Y$10000,AE34)*AG34,0) -> 0 | AS34: 0 | AT34: 860.5424146 | AU34: 0 | AV34: 0 | AW34: 0 | AX34: 0 | AY34: 0 | AZ34: 860.5424146 | BA34: 0 | BB34: =IF($AF34=3,IF($AF$2=2,(R34/SUMIF(Refurb_Poss_Tbl[Refurbishment Possible],I34,Refurb_Poss_Tbl[%]))*AG34,IF($AF$2=3,(R34*AG34)-AV34,R34*AG34)),0) -> 0 | BC34: =IF(AF34=3,IF($AF$2=2,(S34/SUMIF(Refurb_Poss_Tbl[Refurbishment Possible],I34,Refurb_Poss_Tbl[%]))*AG34,IF($AF$2=3,(S34*AG34)-AX34,S34*AG34)),0) -> 0 | BD34: =IF($AF34=3,IF($AF$2=2,(T34/SUMIF(Refurb_Poss_Tbl[Refurbishment Possible],I34,Refurb_Poss_Tbl[%]))*AG34,T34*$AG34),0) -> 0 | BE34: =IF($AF34=3,IF($AF$2=2,(Q34/SUMIF(Refurb_Poss_Tbl[Refurbishment Possible],I34,Refurb_Poss_Tbl[%]))*AG34,Q34*$AG34),0) -> 0 | BF34: =IF($AF34=3,IF($AF$2=2,(U34/SUMIF(Refurb_Poss_Tbl[Refurbishment Possible],I34,Refurb_Poss_Tbl[%]))*AG34,U34*$AG34),0) -> 0 | BG34: =IF($AF34=3,IF($AF$2=2,(V34/SUMIF(Refurb_Poss_Tbl[Refurbishment Possible],I34,Refurb_Poss_Tbl[%]))*AG34,IF($AF$2=3,(V34*AG34)-AW34,V34*AG34)),0) -> 0 | BH34: =IF($AF34=3,IF($AF$2=2,(W34/SUMIF(Refurb_Poss_Tbl[Refurbishment Possible],I34,Refurb_Poss_Tbl[%]))*AG34,W34*$AG34),0) -> 0
A35: DredEA11 | B35: New channel | C35: Dredging Works | D35: DredEA1146 | E35: New channel-Excavation | F35: Dredging | G35: 120 | H35: 120 | I35: Moderate Refurbishment | J35: 60 | K35: New Build | L35: 0 | M35: 0 | N35: 0 | O35: 2 | P35: 22156.8888 | Q35: 22156.8888 | R35: 772.6037996 | S35: 153.8312699 | T35: 0.3320971537 | U35: 50.30718144 | V35: 0 | W35: 11346.73443 | X35: 34480.69757 | Y35: 0.26988 | Z35: 0 | AA35: 8620.174394 | AB35: 4554.35561 | AC35: 0.1660485769 | AD35: 76.91563493 | AE35: 33 | AF35: 0 | AG35: =VLOOKUP(AE35,ValidationLists!$M$1:$N$102,2,FALSE) -> 0.3770262467 | AH35: 0 | AI35: 0 | AJ35: 0 | AK35: 0 | AL35: 0 | AM35: 0 | AN35: 0 | AO35: 0 | AP35: 0.1017518435 | AQ35: =IF(OR(AF35=3,AF35=2,AF35=0),SUMIFS(FlatMaint!$Z$2:$Z$10000,FlatMaint!$A$2:$A$10000,D35,FlatMaint!$Y$2:$Y$10000,AE35)*AG35,0) -> 0 | AR35: =IF(OR(AF35=3,AF35=2,AF35=0),SUMIFS(FlatRepair!$Z$2:$Z$10000,FlatRepair!$A$2:$A$10000,D35,FlatRepair!$Y$2:$Y$10000,AE35)*AG35,0) -> 0 | AS35: 0 | AT35: 0.1017518435 | AU35: 0 | AV35: 0 | AW35: 0 | AX35: 0 | AY35: 0 | AZ35: 0.1017518435 | BA35: 0 | BB35: =IF($AF35=3,IF($AF$2=2,(R35/SUMIF(Refurb_Poss_Tbl[Refurbishment Possible],I35,Refurb_Poss_Tbl[%]))*AG35,IF($AF$2=3,(R35*AG35)-AV35,R35*AG35)),0) -> 0 | BC35: =IF(AF35=3,IF($AF$2=2,(S35/SUMIF(Refurb_Poss_Tbl[Refurbishment Possible],I35,Refurb_Poss_Tbl[%]))*AG35,IF($AF$2=3,(S35*AG35)-AX35,S35*AG35)),0) -> 0 | BD35: =IF($AF35=3,IF($AF$2=2,(T35/SUMIF(Refurb_Poss_Tbl[Refurbishment Possible],I35,Refurb_Poss_Tbl[%]))*AG35,T35*$AG35),0) -> 0 | BE35: =IF($AF35=3,IF($AF$2=2,(Q35/SUMIF(Refurb_Poss_Tbl[Refurbishment Possible],I35,Refurb_Poss_Tbl[%]))*AG35,Q35*$AG35),0) -> 0 | BF35: =IF($AF35=3,IF($AF$2=2,(U35/SUMIF(Refurb_Poss_Tbl[Refurbishment Possible],I35,Refurb_Poss_Tbl[%]))*AG35,U35*$AG35),0) -> 0 | BG35: =IF($AF35=3,IF($AF$2=2,(V35/SUMIF(Refurb_Poss_Tbl[Refurbishment Possible],I35,Refurb_Poss_Tbl[%]))*AG35,IF($AF$2=3,(V35*AG35)-AW35,V35*AG35)),0) -> 0 | BH35: =IF($AF35=3,IF($AF$2=2,(W35/SUMIF(Refurb_Poss_Tbl[Refurbishment Possible],I35,Refurb_Poss_Tbl[%]))*AG35,W35*$AG35),0) -> 0
A36: DredEA11 | B36: New channel | C36: Dredging Works | D36: DredEA1146 | E36: New channel-Excavation | F36: Dredging | G36: 120 | H36: 120 | I36: Moderate Refurbishment | J36: 60 | K36: New Build | L36: 0 | M36: 0 | N36: 0 | O36: 2 | P36: 22156.8888 | Q36: 22156.8888 | R36: 772.6037996 | S36: 153.8312699 | T36: 0.3320971537 | U36: 50.30718144 | V36: 0 | W36: 11346.73443 | X36: 34480.69757 | Y36: 0.26988 | Z36: 0 | AA36: 8620.174394 | AB36: 4554.35561 | AC36: 0.1660485769 | AD36: 76.91563493 | AE36: 34 | AF36: 0 | AG36: =VLOOKUP(AE36,ValidationLists!$M$1:$N$102,2,FALSE) -> 0.3660448997 | AH36: 0 | AI36: 0 | AJ36: 0 | AK36: 0 | AL36: 0 | AM36: 0 | AN36: 0 | AO36: 0 | AP36: 0.09878819754 | AQ36: =IF(OR(AF36=3,AF36=2,AF36=0),SUMIFS(FlatMaint!$Z$2:$Z$10000,FlatMaint!$A$2:$A$10000,D36,FlatMaint!$Y$2:$Y$10000,AE36)*AG36,0) -> 811.0449714 | AR36: =IF(OR(AF36=3,AF36=2,AF36=0),SUMIFS(FlatRepair!$Z$2:$Z$10000,FlatRepair!$A$2:$A$10000,D36,FlatRepair!$Y$2:$Y$10000,AE36)*AG36,0) -> 0 | AS36: 0 | AT36: 811.1437596 | AU36: 0 | AV36: 0 | AW36: 0 | AX36: 0 | AY36: 0 | AZ36: 811.1437596 | BA36: 0 | BB36: =IF($AF36=3,IF($AF$2=2,(R36/SUMIF(Refurb_Poss_Tbl[Refurbishment Possible],I36,Refurb_Poss_Tbl[%]))*AG36,IF($AF$2=3,(R36*AG36)-AV36,R36*AG36)),0) -> 0 | BC36: =IF(AF36=3,IF($AF$2=2,(S36/SUMIF(Refurb_Poss_Tbl[Refurbishment Possible],I36,Refurb_Poss_Tbl[%]))*AG36,IF($AF$2=3,(S36*AG36)-AX36,S36*AG36)),0) -> 0 | BD36: =IF($AF36=3,IF($AF$2=2,(T36/SUMIF(Refurb_Poss_Tbl[Refurbishment Possible],I36,Refurb_Poss_Tbl[%]))*AG36,T36*$AG36),0) -> 0 | BE36: =IF($AF36=3,IF($AF$2=2,(Q36/SUMIF(Refurb_Poss_Tbl[Refurbishment Possible],I36,Refurb_Poss_Tbl[%]))*AG36,Q36*$AG36),0) -> 0 | BF36: =IF($AF36=3,IF($AF$2=2,(U36/SUMIF(Refurb_Poss_Tbl[Refurbishment Possible],I36,Refurb_Poss_Tbl[%]))*AG36,U36*$AG36),0) -> 0 | BG36: =IF($AF36=3,IF($AF$2=2,(V36/SUMIF(Refurb_Poss_Tbl[Refurbishment Possible],I36,Refurb_Poss_Tbl[%]))*AG36,IF($AF$2=3,(V36*AG36)-AW36,V36*AG36)),0) -> 0 | BH36: =IF($AF36=3,IF($AF$2=2,(W36/SUMIF(Refurb_Poss_Tbl[Refurbishment Possible],I36,Refurb_Poss_Tbl[%]))*AG36,W36*$AG36),0) -> 0
A37: DredEA11 | B37: New channel | C37: Dredging Works | D37: DredEA1146 | E37: New channel-Excavation | F37: Dredging | G37: 120 | H37: 120 | I37: Moderate Refurbishment | J37: 60 | K37: New Build | L37: 0 | M37: 0 | N37: 0 | O37: 2 | P37: 22156.8888 | Q37: 22156.8888 | R37: 772.6037996 | S37: 153.8312699 | T37: 0.3320971537 | U37: 50.30718144 | V37: 0 | W37: 11346.73443 | X37: 34480.69757 | Y37: 0.26988 | Z37: 0 | AA37: 8620.174394 | AB37: 4554.35561 | AC37: 0.1660485769 | AD37: 76.91563493 | AE37: 35 | AF37: 0 | AG37: =VLOOKUP(AE37,ValidationLists!$M$1:$N$102,2,FALSE) -> 0.3553833978 | AH37: 0 | AI37: 0 | AJ37: 0 | AK37: 0 | AL37: 0 | AM37: 0 | AN37: 0 | AO37: 0 | AP37: 0.0959108714 | AQ37: =IF(OR(AF37=3,AF37=2,AF37=0),SUMIFS(FlatMaint!$Z$2:$Z$10000,FlatMaint!$A$2:$A$10000,D37,FlatMaint!$Y$2:$Y$10000,AE37)*AG37,0) -> 0 | AR37: =IF(OR(AF37=3,AF37=2,AF37=0),SUMIFS(FlatRepair!$Z$2:$Z$10000,FlatRepair!$A$2:$A$10000,D37,FlatRepair!$Y$2:$Y$10000,AE37)*AG37,0) -> 0 | AS37: 0 | AT37: 0.0959108714 | AU37: 0 | AV37: 0 | AW37: 0 | AX37: 0 | AY37: 0 | AZ37: 0.0959108714 | BA37: 0 | BB37: =IF($AF37=3,IF($AF$2=2,(R37/SUMIF(Refurb_Poss_Tbl[Refurbishment Possible],I37,Refurb_Poss_Tbl[%]))*AG37,IF($AF$2=3,(R37*AG37)-AV37,R37*AG37)),0) -> 0 | BC37: =IF(AF37=3,IF($AF$2=2,(S37/SUMIF(Refurb_Poss_Tbl[Refurbishment Possible],I37,Refurb_Poss_Tbl[%]))*AG37,IF($AF$2=3,(S37*AG37)-AX37,S37*AG37)),0) -> 0 | BD37: =IF($AF37=3,IF($AF$2=2,(T37/SUMIF(Refurb_Poss_Tbl[Refurbishment Possible],I37,Refurb_Poss_Tbl[%]))*AG37,T37*$AG37),0) -> 0 | BE37: =IF($AF37=3,IF($AF$2=2,(Q37/SUMIF(Refurb_Poss_Tbl[Refurbishment Possible],I37,Refurb_Poss_Tbl[%]))*AG37,Q37*$AG37),0) -> 0 | BF37: =IF($AF37=3,IF($AF$2=2,(U37/SUMIF(Refurb_Poss_Tbl[Refurbishment Possible],I37,Refurb_Poss_Tbl[%]))*AG37,U37*$AG37),0) -> 0 | BG37: =IF($AF37=3,IF($AF$2=2,(V37/SUMIF(Refurb_Poss_Tbl[Refurbishment Possible],I37,Refurb_Poss_Tbl[%]))*AG37,IF($AF$2=3,(V37*AG37)-AW37,V37*AG37)),0) -> 0 | BH37: =IF($AF37=3,IF($AF$2=2,(W37/SUMIF(Refurb_Poss_Tbl[Refurbishment Possible],I37,Refurb_Poss_Tbl[%]))*AG37,W37*$AG37),0) -> 0
A38: DredEA11 | B38: New channel | C38: Dredging Works | D38: DredEA1146 | E38: New channel-Excavation | F38: Dredging | G38: 120 | H38: 120 | I38: Moderate Refurbishment | J38: 60 | K38: New Build | L38: 0 | M38: 0 | N38: 0 | O38: 2 | P38: 22156.8888 | Q38: 22156.8888 | R38: 772.6037996 | S38: 153.8312699 | T38: 0.3320971537 | U38: 50.30718144 | V38: 0 | W38: 11346.73443 | X38: 34480.69757 | Y38: 0.26988 | Z38: 0 | AA38: 8620.174394 | AB38: 4554.35561 | AC38: 0.1660485769 | AD38: 76.91563493 | AE38: 36 | AF38: 0 | AG38: =VLOOKUP(AE38,ValidationLists!$M$1:$N$102,2,FALSE) -> 0.3450324251 | AH38: 0 | AI38: 0 | AJ38: 0 | AK38: 0 | AL38: 0 | AM38: 0 | AN38: 0 | AO38: 0 | AP38: 0.09311735087 | AQ38: =IF(OR(AF38=3,AF38=2,AF38=0),SUMIFS(FlatMaint!$Z$2:$Z$10000,FlatMaint!$A$2:$A$10000,D38,FlatMaint!$Y$2:$Y$10000,AE38)*AG38,0) -> 764.4876722 | AR38: =IF(OR(AF38=3,AF38=2,AF38=0),SUMIFS(FlatRepair!$Z$2:$Z$10000,FlatRepair!$A$2:$A$10000,D38,FlatRepair!$Y$2:$Y$10000,AE38)*AG38,0) -> 0 | AS38: 0 | AT38: 764.5807895 | AU38: 0 | AV38: 0 | AW38: 0 | AX38: 0 | AY38: 0 | AZ38: 764.5807895 | BA38: 0 | BB38: =IF($AF38=3,IF($AF$2=2,(R38/SUMIF(Refurb_Poss_Tbl[Refurbishment Possible],I38,Refurb_Poss_Tbl[%]))*AG38,IF($AF$2=3,(R38*AG38)-AV38,R38*AG38)),0) -> 0 | BC38: =IF(AF38=3,IF($AF$2=2,(S38/SUMIF(Refurb_Poss_Tbl[Refurbishment Possible],I38,Refurb_Poss_Tbl[%]))*AG38,IF($AF$2=3,(S38*AG38)-AX38,S38*AG38)),0) -> 0 | BD38: =IF($AF38=3,IF($AF$2=2,(T38/SUMIF(Refurb_Poss_Tbl[Refurbishment Possible],I38,Refurb_Poss_Tbl[%]))*AG38,T38*$AG38),0) -> 0 | BE38: =IF($AF38=3,IF($AF$2=2,(Q38/SUMIF(Refurb_Poss_Tbl[Refurbishment Possible],I38,Refurb_Poss_Tbl[%]))*AG38,Q38*$AG38),0) -> 0 | BF38: =IF($AF38=3,IF($AF$2=2,(U38/SUMIF(Refurb_Poss_Tbl[Refurbishment Possible],I38,Refurb_Poss_Tbl[%]))*AG38,U38*$AG38),0) -> 0 | BG38: =IF($AF38=3,IF($AF$2=2,(V38/SUMIF(Refurb_Poss_Tbl[Refurbishment Possible],I38,Refurb_Poss_Tbl[%]))*AG38,IF($AF$2=3,(V38*AG38)-AW38,V38*AG38)),0) -> 0 | BH38: =IF($AF38=3,IF($AF$2=2,(W38/SUMIF(Refurb_Poss_Tbl[Refurbishment Possible],I38,Refurb_Poss_Tbl[%]))*AG38,W38*$AG38),0) -> 0
A39: DredEA11 | B39: New channel | C39: Dredging Works | D39: DredEA1146 | E39: New channel-Excavation | F39: Dredging | G39: 120 | H39: 120 | I39: Moderate Refurbishment | J39: 60 | K39: New Build | L39: 0 | M39: 0 | N39: 0 | O39: 2 | P39: 22156.8888 | Q39: 22156.8888 | R39: 772.6037996 | S39: 153.8312699 | T39: 0.3320971537 | U39: 50.30718144 | V39: 0 | W39: 11346.73443 | X39: 34480.69757 | Y39: 0.26988 | Z39: 0 | AA39: 8620.174394 | AB39: 4554.35561 | AC39: 0.1660485769 | AD39: 76.91563493 | AE39: 37 | AF39: 0 | AG39: =VLOOKUP(AE39,ValidationLists!$M$1:$N$102,2,FALSE) -> 0.3349829369 | AH39: 0 | AI39: 0 | AJ39: 0 | AK39: 0 | AL39: 0 | AM39: 0 | AN39: 0 | AO39: 0 | AP39: 0.09040519502 | AQ39: =IF(OR(AF39=3,AF39=2,AF39=0),SUMIFS(FlatMaint!$Z$2:$Z$10000,FlatMaint!$A$2:$A$10000,D39,FlatMaint!$Y$2:$Y$10000,AE39)*AG39,0) -> 0 | AR39: =IF(OR(AF39=3,AF39=2,AF39=0),SUMIFS(FlatRepair!$Z$2:$Z$10000,FlatRepair!$A$2:$A$10000,D39,FlatRepair!$Y$2:$Y$10000,AE39)*AG39,0) -> 0 | AS39: 0 | AT39: 0.09040519502 | AU39: 0 | AV39: 0 | AW39: 0 | AX39: 0 | AY39: 0 | AZ39: 0.09040519502 | BA39: 0 | BB39: =IF($AF39=3,IF($AF$2=2,(R39/SUMIF(Refurb_Poss_Tbl[Refurbishment Possible],I39,Refurb_Poss_Tbl[%]))*AG39,IF($AF$2=3,(R39*AG39)-AV39,R39*AG39)),0) -> 0 | BC39: =IF(AF39=3,IF($AF$2=2,(S39/SUMIF(Refurb_Poss_Tbl[Refurbishment Possible],I39,Refurb_Poss_Tbl[%]))*AG39,IF($AF$2=3,(S39*AG39)-AX39,S39*AG39)),0) -> 0 | BD39: =IF($AF39=3,IF($AF$2=2,(T39/SUMIF(Refurb_Poss_Tbl[Refurbishment Possible],I39,Refurb_Poss_Tbl[%]))*AG39,T39*$AG39),0) -> 0 | BE39: =IF($AF39=3,IF($AF$2=2,(Q39/SUMIF(Refurb_Poss_Tbl[Refurbishment Possible],I39,Refurb_Poss_Tbl[%]))*AG39,Q39*$AG39),0) -> 0 | BF39: =IF($AF39=3,IF($AF$2=2,(U39/SUMIF(Refurb_Poss_Tbl[Refurbishment Possible],I39,Refurb_Poss_Tbl[%]))*AG39,U39*$AG39),0) -> 0 | BG39: =IF($AF39=3,IF($AF$2=2,(V39/SUMIF(Refurb_Poss_Tbl[Refurbishment Possible],I39,Refurb_Poss_Tbl[%]))*AG39,IF($AF$2=3,(V39*AG39)-AW39,V39*AG39)),0) -> 0 | BH39: =IF($AF39=3,IF($AF$2=2,(W39/SUMIF(Refurb_Poss_Tbl[Refurbishment Possible],I39,Refurb_Poss_Tbl[%]))*AG39,W39*$AG39),0) -> 0
A40: DredEA11 | B40: New channel | C40: Dredging Works | D40: DredEA1146 | E40: New channel-Excavation | F40: Dredging | G40: 120 | H40: 120 | I40: Moderate Refurbishment | J40: 60 | K40: New Build | L40: 0 | M40: 0 | N40: 0 | O40: 2 | P40: 22156.8888 | Q40: 22156.8888 | R40: 772.6037996 | S40: 153.8312699 | T40: 0.3320971537 | U40: 50.30718144 | V40: 0 | W40: 11346.73443 | X40: 34480.69757 | Y40: 0.26988 | Z40: 0 | AA40: 8620.174394 | AB40: 4554.35561 | AC40: 0.1660485769 | AD40: 76.91563493 | AE40: 38 | AF40: 0 | AG40: =VLOOKUP(AE40,ValidationLists!$M$1:$N$102,2,FALSE) -> 0.3252261524 | AH40: 0 | AI40: 0 | AJ40: 0 | AK40: 0 | AL40: 0 | AM40: 0 | AN40: 0 | AO40: 0 | AP40: 0.087772034 | AQ40: =IF(OR(AF40=3,AF40=2,AF40=0),SUMIFS(FlatMaint!$Z$2:$Z$10000,FlatMaint!$A$2:$A$10000,D40,FlatMaint!$Y$2:$Y$10000,AE40)*AG40,0) -> 720.6029524 | AR40: =IF(OR(AF40=3,AF40=2,AF40=0),SUMIFS(FlatRepair!$Z$2:$Z$10000,FlatRepair!$A$2:$A$10000,D40,FlatRepair!$Y$2:$Y$10000,AE40)*AG40,0) -> 0 | AS40: 0 | AT40: 720.6907244 | AU40: 0 | AV40: 0 | AW40: 0 | AX40: 0 | AY40: 0 | AZ40: 720.6907244 | BA40: 0 | BB40: =IF($AF40=3,IF($AF$2=2,(R40/SUMIF(Refurb_Poss_Tbl[Refurbishment Possible],I40,Refurb_Poss_Tbl[%]))*AG40,IF($AF$2=3,(R40*AG40)-AV40,R40*AG40)),0) -> 0 | BC40: =IF(AF40=3,IF($AF$2=2,(S40/SUMIF(Refurb_Poss_Tbl[Refurbishment Possible],I40,Refurb_Poss_Tbl[%]))*AG40,IF($AF$2=3,(S40*AG40)-AX40,S40*AG40)),0) -> 0 | BD40: =IF($AF40=3,IF($AF$2=2,(T40/SUMIF(Refurb_Poss_Tbl[Refurbishment Possible],I40,Refurb_Poss_Tbl[%]))*AG40,T40*$AG40),0) -> 0 | BE40: =IF($AF40=3,IF($AF$2=2,(Q40/SUMIF(Refurb_Poss_Tbl[Refurbishment Possible],I40,Refurb_Poss_Tbl[%]))*AG40,Q40*$AG40),0) -> 0 | BF40: =IF($AF40=3,IF($AF$2=2,(U40/SUMIF(Refurb_Poss_Tbl[Refurbishment Possible],I40,Refurb_Poss_Tbl[%]))*AG40,U40*$AG40),0) -> 0 | BG40: =IF($AF40=3,IF($AF$2=2,(V40/SUMIF(Refurb_Poss_Tbl[Refurbishment Possible],I40,Refurb_Poss_Tbl[%]))*AG40,IF($AF$2=3,(V40*AG40)-AW40,V40*AG40)),0) -> 0 | BH40: =IF($AF40=3,IF($AF$2=2,(W40/SUMIF(Refurb_Poss_Tbl[Refurbishment Possible],I40,Refurb_Poss_Tbl[%]))*AG40,W40*$AG40),0) -> 0
A41: DredEA11 | B41: New channel | C41: Dredging Works | D41: DredEA1146 | E41: New channel-Excavation | F41: Dredging | G41: 120 | H41: 120 | I41: Moderate Refurbishment | J41: 60 | K41: New Build | L41: 0 | M41: 0 | N41: 0 | O41: 2 | P41: 22156.8888 | Q41: 22156.8888 | R41: 772.6037996 | S41: 153.8312699 | T41: 0.3320971537 | U41: 50.30718144 | V41: 0 | W41: 11346.73443 | X41: 34480.69757 | Y41: 0.26988 | Z41: 0 | AA41: 8620.174394 | AB41: 4554.35561 | AC41: 0.1660485769 | AD41: 76.91563493 | AE41: 39 | AF41: 0 | AG41: =VLOOKUP(AE41,ValidationLists!$M$1:$N$102,2,FALSE) -> 0.315753546 | AH41: 0 | AI41: 0 | AJ41: 0 | AK41: 0 | AL41: 0 | AM41: 0 | AN41: 0 | AO41: 0 | AP41: 0.08521556699 | AQ41: =IF(OR(AF41=3,AF41=2,AF41=0),SUMIFS(FlatMaint!$Z$2:$Z$10000,FlatMaint!$A$2:$A$10000,D41,FlatMaint!$Y$2:$Y$10000,AE41)*AG41,0) -> 0 | AR41: =IF(OR(AF41=3,AF41=2,AF41=0),SUMIFS(FlatRepair!$Z$2:$Z$10000,FlatRepair!$A$2:$A$10000,D41,FlatRepair!$Y$2:$Y$10000,AE41)*AG41,0) -> 0 | AS41: 0 | AT41: 0.08521556699 | AU41: 0 | AV41: 0 | AW41: 0 | AX41: 0 | AY41: 0 | AZ41: 0.08521556699 | BA41: 0 | BB41: =IF($AF41=3,IF($AF$2=2,(R41/SUMIF(Refurb_Poss_Tbl[Refurbishment Possible],I41,Refurb_Poss_Tbl[%]))*AG41,IF($AF$2=3,(R41*AG41)-AV41,R41*AG41)),0) -> 0 | BC41: =IF(AF41=3,IF($AF$2=2,(S41/SUMIF(Refurb_Poss_Tbl[Refurbishment Possible],I41,Refurb_Poss_Tbl[%]))*AG41,IF($AF$2=3,(S41*AG41)-AX41,S41*AG41)),0) -> 0 | BD41: =IF($AF41=3,IF($AF$2=2,(T41/SUMIF(Refurb_Poss_Tbl[Refurbishment Possible],I41,Refurb_Poss_Tbl[%]))*AG41,T41*$AG41),0) -> 0 | BE41: =IF($AF41=3,IF($AF$2=2,(Q41/SUMIF(Refurb_Poss_Tbl[Refurbishment Possible],I41,Refurb_Poss_Tbl[%]))*AG41,Q41*$AG41),0) -> 0 | BF41: =IF($AF41=3,IF($AF$2=2,(U41/SUMIF(Refurb_Poss_Tbl[Refurbishment Possible],I41,Refurb_Poss_Tbl[%]))*AG41,U41*$AG41),0) -> 0 | BG41: =IF($AF41=3,IF($AF$2=2,(V41/SUMIF(Refurb_Poss_Tbl[Refurbishment Possible],I41,Refurb_Poss_Tbl[%]))*AG41,IF($AF$2=3,(V41*AG41)-AW41,V41*AG41)),0) -> 0 | BH41: =IF($AF41=3,IF($AF$2=2,(W41/SUMIF(Refurb_Poss_Tbl[Refurbishment Possible],I41,Refurb_Poss_Tbl[%]))*AG41,W41*$AG41),0) -> 0
A42: DredEA11 | B42: New channel | C42: Dredging Works | D42: DredEA1146 | E42: New channel-Excavation | F42: Dredging | G42: 120 | H42: 120 | I42: Moderate Refurbishment | J42: 60 | K42: New Build | L42: 0 | M42: 0 | N42: 0 | O42: 2 | P42: 22156.8888 | Q42: 22156.8888 | R42: 772.6037996 | S42: 153.8312699 | T42: 0.3320971537 | U42: 50.30718144 | V42: 0 | W42: 11346.73443 | X42: 34480.69757 | Y42: 0.26988 | Z42: 0 | AA42: 8620.174394 | AB42: 4554.35561 | AC42: 0.1660485769 | AD42: 76.91563493 | AE42: 40 | AF42: 0 | AG42: =VLOOKUP(AE42,ValidationLists!$M$1:$N$102,2,FALSE) -> 0.3065568408 | AH42: 0 | AI42: 0 | AJ42: 0 | AK42: 0 | AL42: 0 | AM42: 0 | AN42: 0 | AO42: 0 | AP42: 0.08273356019 | AQ42: =IF(OR(AF42=3,AF42=2,AF42=0),SUMIFS(FlatMaint!$Z$2:$Z$10000,FlatMaint!$A$2:$A$10000,D42,FlatMaint!$Y$2:$Y$10000,AE42)*AG42,0) -> 679.237395 | AR42: =IF(OR(AF42=3,AF42=2,AF42=0),SUMIFS(FlatRepair!$Z$2:$Z$10000,FlatRepair!$A$2:$A$10000,D42,FlatRepair!$Y$2:$Y$10000,AE42)*AG42,0) -> 0 | AS42: 0 | AT42: 679.3201286 | AU42: 0 | AV42: 0 | AW42: 0 | AX42: 0 | AY42: 0 | AZ42: 679.3201286 | BA42: 0 | BB42: =IF($AF42=3,IF($AF$2=2,(R42/SUMIF(Refurb_Poss_Tbl[Refurbishment Possible],I42,Refurb_Poss_Tbl[%]))*AG42,IF($AF$2=3,(R42*AG42)-AV42,R42*AG42)),0) -> 0 | BC42: =IF(AF42=3,IF($AF$2=2,(S42/SUMIF(Refurb_Poss_Tbl[Refurbishment Possible],I42,Refurb_Poss_Tbl[%]))*AG42,IF($AF$2=3,(S42*AG42)-AX42,S42*AG42)),0) -> 0 | BD42: =IF($AF42=3,IF($AF$2=2,(T42/SUMIF(Refurb_Poss_Tbl[Refurbishment Possible],I42,Refurb_Poss_Tbl[%]))*AG42,T42*$AG42),0) -> 0 | BE42: =IF($AF42=3,IF($AF$2=2,(Q42/SUMIF(Refurb_Poss_Tbl[Refurbishment Possible],I42,Refurb_Poss_Tbl[%]))*AG42,Q42*$AG42),0) -> 0 | BF42: =IF($AF42=3,IF($AF$2=2,(U42/SUMIF(Refurb_Poss_Tbl[Refurbishment Possible],I42,Refurb_Poss_Tbl[%]))*AG42,U42*$AG42),0) -> 0 | BG42: =IF($AF42=3,IF($AF$2=2,(V42/SUMIF(Refurb_Poss_Tbl[Refurbishment Possible],I42,Refurb_Poss_Tbl[%]))*AG42,IF($AF$2=3,(V42*AG42)-AW42,V42*AG42)),0) -> 0 | BH42: =IF($AF42=3,IF($AF$2=2,(W42/SUMIF(Refurb_Poss_Tbl[Refurbishment Possible],I42,Refurb_Poss_Tbl[%]))*AG42,W42*$AG42),0) -> 0
A43: DredEA11 | B43: New channel | C43: Dredging Works | D43: DredEA1146 | E43: New channel-Excavation | F43: Dredging | G43: 120 | H43: 120 | I43: Moderate Refurbishment | J43: 60 | K43: New Build | L43: 0 | M43: 0 | N43: 0 | O43: 2 | P43: 22156.8888 | Q43: 22156.8888 | R43: 772.6037996 | S43: 153.8312699 | T43: 0.3320971537 | U43: 50.30718144 | V43: 0 | W43: 11346.73443 | X43: 34480.69757 | Y43: 0.26988 | Z43: 0 | AA43: 8620.174394 | AB43: 4554.35561 | AC43: 0.1660485769 | AD43: 76.91563493 | AE43: 41 | AF43: 0 | AG43: =VLOOKUP(AE43,ValidationLists!$M$1:$N$102,2,FALSE) -> 0.2976280008 | AH43: 0 | AI43: 0 | AJ43: 0 | AK43: 0 | AL43: 0 | AM43: 0 | AN43: 0 | AO43: 0 | AP43: 0.08032384484 | AQ43: =IF(OR(AF43=3,AF43=2,AF43=0),SUMIFS(FlatMaint!$Z$2:$Z$10000,FlatMaint!$A$2:$A$10000,D43,FlatMaint!$Y$2:$Y$10000,AE43)*AG43,0) -> 0 | AR43: =IF(OR(AF43=3,AF43=2,AF43=0),SUMIFS(FlatRepair!$Z$2:$Z$10000,FlatRepair!$A$2:$A$10000,D43,FlatRepair!$Y$2:$Y$10000,AE43)*AG43,0) -> 0 | AS43: 0 | AT43: 0.08032384484 | AU43: 0 | AV43: 0 | AW43: 0 | AX43: 0 | AY43: 0 | AZ43: 0.08032384484 | BA43: 0 | BB43: =IF($AF43=3,IF($AF$2=2,(R43/SUMIF(Refurb_Poss_Tbl[Refurbishment Possible],I43,Refurb_Poss_Tbl[%]))*AG43,IF($AF$2=3,(R43*AG43)-AV43,R43*AG43)),0) -> 0 | BC43: =IF(AF43=3,IF($AF$2=2,(S43/SUMIF(Refurb_Poss_Tbl[Refurbishment Possible],I43,Refurb_Poss_Tbl[%]))*AG43,IF($AF$2=3,(S43*AG43)-AX43,S43*AG43)),0) -> 0 | BD43: =IF($AF43=3,IF($AF$2=2,(T43/SUMIF(Refurb_Poss_Tbl[Refurbishment Possible],I43,Refurb_Poss_Tbl[%]))*AG43,T43*$AG43),0) -> 0 | BE43: =IF($AF43=3,IF($AF$2=2,(Q43/SUMIF(Refurb_Poss_Tbl[Refurbishment Possible],I43,Refurb_Poss_Tbl[%]))*AG43,Q43*$AG43),0) -> 0 | BF43: =IF($AF43=3,IF($AF$2=2,(U43/SUMIF(Refurb_Poss_Tbl[Refurbishment Possible],I43,Refurb_Poss_Tbl[%]))*AG43,U43*$AG43),0) -> 0 | BG43: =IF($AF43=3,IF($AF$2=2,(V43/SUMIF(Refurb_Poss_Tbl[Refurbishment Possible],I43,Refurb_Poss_Tbl[%]))*AG43,IF($AF$2=3,(V43*AG43)-AW43,V43*AG43)),0) -> 0 | BH43: =IF($AF43=3,IF($AF$2=2,(W43/SUMIF(Refurb_Poss_Tbl[Refurbishment Possible],I43,Refurb_Poss_Tbl[%]))*AG43,W43*$AG43),0) -> 0
A44: DredEA11 | B44: New channel | C44: Dredging Works | D44: DredEA1146 | E44: New channel-Excavation | F44: Dredging | G44: 120 | H44: 120 | I44: Moderate Refurbishment | J44: 60 | K44: New Build | L44: 0 | M44: 0 | N44: 0 | O44: 2 | P44: 22156.8888 | Q44: 22156.8888 | R44: 772.6037996 | S44: 153.8312699 | T44: 0.3320971537 | U44: 50.30718144 | V44: 0 | W44: 11346.73443 | X44: 34480.69757 | Y44: 0.26988 | Z44: 0 | AA44: 8620.174394 | AB44: 4554.35561 | AC44: 0.1660485769 | AD44: 76.91563493 | AE44: 42 | AF44: 0 | AG44: =VLOOKUP(AE44,ValidationLists!$M$1:$N$102,2,FALSE) -> 0.288959224 | AH44: 0 | AI44: 0 | AJ44: 0 | AK44: 0 | AL44: 0 | AM44: 0 | AN44: 0 | AO44: 0 | AP44: 0.07798431538 | AQ44: =IF(OR(AF44=3,AF44=2,AF44=0),SUMIFS(FlatMaint!$Z$2:$Z$10000,FlatMaint!$A$2:$A$10000,D44,FlatMaint!$Y$2:$Y$10000,AE44)*AG44,0) -> 640.2463899 | AR44: =IF(OR(AF44=3,AF44=2,AF44=0),SUMIFS(FlatRepair!$Z$2:$Z$10000,FlatRepair!$A$2:$A$10000,D44,FlatRepair!$Y$2:$Y$10000,AE44)*AG44,0) -> 0 | AS44: 0 | AT44: 640.3243742 | AU44: 0 | AV44: 0 | AW44: 0 | AX44: 0 | AY44: 0 | AZ44: 640.3243742 | BA44: 0 | BB44: =IF($AF44=3,IF($AF$2=2,(R44/SUMIF(Refurb_Poss_Tbl[Refurbishment Possible],I44,Refurb_Poss_Tbl[%]))*AG44,IF($AF$2=3,(R44*AG44)-AV44,R44*AG44)),0) -> 0 | BC44: =IF(AF44=3,IF($AF$2=2,(S44/SUMIF(Refurb_Poss_Tbl[Refurbishment Possible],I44,Refurb_Poss_Tbl[%]))*AG44,IF($AF$2=3,(S44*AG44)-AX44,S44*AG44)),0) -> 0 | BD44: =IF($AF44=3,IF($AF$2=2,(T44/SUMIF(Refurb_Poss_Tbl[Refurbishment Possible],I44,Refurb_Poss_Tbl[%]))*AG44,T44*$AG44),0) -> 0 | BE44: =IF($AF44=3,IF($AF$2=2,(Q44/SUMIF(Refurb_Poss_Tbl[Refurbishment Possible],I44,Refurb_Poss_Tbl[%]))*AG44,Q44*$AG44),0) -> 0 | BF44: =IF($AF44=3,IF($AF$2=2,(U44/SUMIF(Refurb_Poss_Tbl[Refurbishment Possible],I44,Refurb_Poss_Tbl[%]))*AG44,U44*$AG44),0) -> 0 | BG44: =IF($AF44=3,IF($AF$2=2,(V44/SUMIF(Refurb_Poss_Tbl[Refurbishment Possible],I44,Refurb_Poss_Tbl[%]))*AG44,IF($AF$2=3,(V44*AG44)-AW44,V44*AG44)),0) -> 0 | BH44: =IF($AF44=3,IF($AF$2=2,(W44/SUMIF(Refurb_Poss_Tbl[Refurbishment Possible],I44,Refurb_Poss_Tbl[%]))*AG44,W44*$AG44),0) -> 0
A45: DredEA11 | B45: New channel | C45: Dredging Works | D45: DredEA1146 | E45: New channel-Excavation | F45: Dredging | G45: 120 | H45: 120 | I45: Moderate Refurbishment | J45: 60 | K45: New Build | L45: 0 | M45: 0 | N45: 0 | O45: 2 | P45: 22156.8888 | Q45: 22156.8888 | R45: 772.6037996 | S45: 153.8312699 | T45: 0.3320971537 | U45: 50.30718144 | V45: 0 | W45: 11346.73443 | X45: 34480.69757 | Y45: 0.26988 | Z45: 0 | AA45: 8620.174394 | AB45: 4554.35561 | AC45: 0.1660485769 | AD45: 76.91563493 | AE45: 43 | AF45: 0 | AG45: =VLOOKUP(AE45,ValidationLists!$M$1:$N$102,2,FALSE) -> 0.280542936 | AH45: 0 | AI45: 0 | AJ45: 0 | AK45: 0 | AL45: 0 | AM45: 0 | AN45: 0 | AO45: 0 | AP45: 0.07571292755 | AQ45: =IF(OR(AF45=3,AF45=2,AF45=0),SUMIFS(FlatMaint!$Z$2:$Z$10000,FlatMaint!$A$2:$A$10000,D45,FlatMaint!$Y$2:$Y$10000,AE45)*AG45,0) -> 0 | AR45: =IF(OR(AF45=3,AF45=2,AF45=0),SUMIFS(FlatRepair!$Z$2:$Z$10000,FlatRepair!$A$2:$A$10000,D45,FlatRepair!$Y$2:$Y$10000,AE45)*AG45,0) -> 0 | AS45: 0 | AT45: 0.07571292755 | AU45: 0 | AV45: 0 | AW45: 0 | AX45: 0 | AY45: 0 | AZ45: 0.07571292755 | BA45: 0 | BB45: =IF($AF45=3,IF($AF$2=2,(R45/SUMIF(Refurb_Poss_Tbl[Refurbishment Possible],I45,Refurb_Poss_Tbl[%]))*AG45,IF($AF$2=3,(R45*AG45)-AV45,R45*AG45)),0) -> 0 | BC45: =IF(AF45=3,IF($AF$2=2,(S45/SUMIF(Refurb_Poss_Tbl[Refurbishment Possible],I45,Refurb_Poss_Tbl[%]))*AG45,IF($AF$2=3,(S45*AG45)-AX45,S45*AG45)),0) -> 0 | BD45: =IF($AF45=3,IF($AF$2=2,(T45/SUMIF(Refurb_Poss_Tbl[Refurbishment Possible],I45,Refurb_Poss_Tbl[%]))*AG45,T45*$AG45),0) -> 0 | BE45: =IF($AF45=3,IF($AF$2=2,(Q45/SUMIF(Refurb_Poss_Tbl[Refurbishment Possible],I45,Refurb_Poss_Tbl[%]))*AG45,Q45*$AG45),0) -> 0 | BF45: =IF($AF45=3,IF($AF$2=2,(U45/SUMIF(Refurb_Poss_Tbl[Refurbishment Possible],I45,Refurb_Poss_Tbl[%]))*AG45,U45*$AG45),0) -> 0 | BG45: =IF($AF45=3,IF($AF$2=2,(V45/SUMIF(Refurb_Poss_Tbl[Refurbishment Possible],I45,Refurb_Poss_Tbl[%]))*AG45,IF($AF$2=3,(V45*AG45)-AW45,V45*AG45)),0) -> 0 | BH45: =IF($AF45=3,IF($AF$2=2,(W45/SUMIF(Refurb_Poss_Tbl[Refurbishment Possible],I45,Refurb_Poss_Tbl[%]))*AG45,W45*$AG45),0) -> 0
A46: DredEA11 | B46: New channel | C46: Dredging Works | D46: DredEA1146 | E46: New channel-Excavation | F46: Dredging | G46: 120 | H46: 120 | I46: Moderate Refurbishment | J46: 60 | K46: New Build | L46: 0 | M46: 0 | N46: 0 | O46: 2 | P46: 22156.8888 | Q46: 22156.8888 | R46: 772.6037996 | S46: 153.8312699 | T46: 0.3320971537 | U46: 50.30718144 | V46: 0 | W46: 11346.73443 | X46: 34480.69757 | Y46: 0.26988 | Z46: 0 | AA46: 8620.174394 | AB46: 4554.35561 | AC46: 0.1660485769 | AD46: 76.91563493 | AE46: 44 | AF46: 0 | AG46: =VLOOKUP(AE46,ValidationLists!$M$1:$N$102,2,FALSE) -> 0.2723717825 | AH46: 0 | AI46: 0 | AJ46: 0 | AK46: 0 | AL46: 0 | AM46: 0 | AN46: 0 | AO46: 0 | AP46: 0.07350769666 | AQ46: =IF(OR(AF46=3,AF46=2,AF46=0),SUMIFS(FlatMaint!$Z$2:$Z$10000,FlatMaint!$A$2:$A$10000,D46,FlatMaint!$Y$2:$Y$10000,AE46)*AG46,0) -> 603.4936279 | AR46: =IF(OR(AF46=3,AF46=2,AF46=0),SUMIFS(FlatRepair!$Z$2:$Z$10000,FlatRepair!$A$2:$A$10000,D46,FlatRepair!$Y$2:$Y$10000,AE46)*AG46,0) -> 0 | AS46: 0 | AT46: 603.5671356 | AU46: 0 | AV46: 0 | AW46: 0 | AX46: 0 | AY46: 0 | AZ46: 603.5671356 | BA46: 0 | BB46: =IF($AF46=3,IF($AF$2=2,(R46/SUMIF(Refurb_Poss_Tbl[Refurbishment Possible],I46,Refurb_Poss_Tbl[%]))*AG46,IF($AF$2=3,(R46*AG46)-AV46,R46*AG46)),0) -> 0 | BC46: =IF(AF46=3,IF($AF$2=2,(S46/SUMIF(Refurb_Poss_Tbl[Refurbishment Possible],I46,Refurb_Poss_Tbl[%]))*AG46,IF($AF$2=3,(S46*AG46)-AX46,S46*AG46)),0) -> 0 | BD46: =IF($AF46=3,IF($AF$2=2,(T46/SUMIF(Refurb_Poss_Tbl[Refurbishment Possible],I46,Refurb_Poss_Tbl[%]))*AG46,T46*$AG46),0) -> 0 | BE46: =IF($AF46=3,IF($AF$2=2,(Q46/SUMIF(Refurb_Poss_Tbl[Refurbishment Possible],I46,Refurb_Poss_Tbl[%]))*AG46,Q46*$AG46),0) -> 0 | BF46: =IF($AF46=3,IF($AF$2=2,(U46/SUMIF(Refurb_Poss_Tbl[Refurbishment Possible],I46,Refurb_Poss_Tbl[%]))*AG46,U46*$AG46),0) -> 0 | BG46: =IF($AF46=3,IF($AF$2=2,(V46/SUMIF(Refurb_Poss_Tbl[Refurbishment Possible],I46,Refurb_Poss_Tbl[%]))*AG46,IF($AF$2=3,(V46*AG46)-AW46,V46*AG46)),0) -> 0 | BH46: =IF($AF46=3,IF($AF$2=2,(W46/SUMIF(Refurb_Poss_Tbl[Refurbishment Possible],I46,Refurb_Poss_Tbl[%]))*AG46,W46*$AG46),0) -> 0
A47: DredEA11 | B47: New channel | C47: Dredging Works | D47: DredEA1146 | E47: New channel-Excavation | F47: Dredging | G47: 120 | H47: 120 | I47: Moderate Refurbishment | J47: 60 | K47: New Build | L47: 0 | M47: 0 | N47: 0 | O47: 2 | P47: 22156.8888 | Q47: 22156.8888 | R47: 772.6037996 | S47: 153.8312699 | T47: 0.3320971537 | U47: 50.30718144 | V47: 0 | W47: 11346.73443 | X47: 34480.69757 | Y47: 0.26988 | Z47: 0 | AA47: 8620.174394 | AB47: 4554.35561 | AC47: 0.1660485769 | AD47: 76.91563493 | AE47: 45 | AF47: 0 | AG47: =VLOOKUP(AE47,ValidationLists!$M$1:$N$102,2,FALSE) -> 0.2644386238 | AH47: 0 | AI47: 0 | AJ47: 0 | AK47: 0 | AL47: 0 | AM47: 0 | AN47: 0 | AO47: 0 | AP47: 0.07136669578 | AQ47: =IF(OR(AF47=3,AF47=2,AF47=0),SUMIFS(FlatMaint!$Z$2:$Z$10000,FlatMaint!$A$2:$A$10000,D47,FlatMaint!$Y$2:$Y$10000,AE47)*AG47,0) -> 0 | AR47: =IF(OR(AF47=3,AF47=2,AF47=0),SUMIFS(FlatRepair!$Z$2:$Z$10000,FlatRepair!$A$2:$A$10000,D47,FlatRepair!$Y$2:$Y$10000,AE47)*AG47,0) -> 0 | AS47: 0 | AT47: 0.07136669578 | AU47: 0 | AV47: 0 | AW47: 0 | AX47: 0 | AY47: 0 | AZ47: 0.07136669578 | BA47: 0 | BB47: =IF($AF47=3,IF($AF$2=2,(R47/SUMIF(Refurb_Poss_Tbl[Refurbishment Possible],I47,Refurb_Poss_Tbl[%]))*AG47,IF($AF$2=3,(R47*AG47)-AV47,R47*AG47)),0) -> 0 | BC47: =IF(AF47=3,IF($AF$2=2,(S47/SUMIF(Refurb_Poss_Tbl[Refurbishment Possible],I47,Refurb_Poss_Tbl[%]))*AG47,IF($AF$2=3,(S47*AG47)-AX47,S47*AG47)),0) -> 0 | BD47: =IF($AF47=3,IF($AF$2=2,(T47/SUMIF(Refurb_Poss_Tbl[Refurbishment Possible],I47,Refurb_Poss_Tbl[%]))*AG47,T47*$AG47),0) -> 0 | BE47: =IF($AF47=3,IF($AF$2=2,(Q47/SUMIF(Refurb_Poss_Tbl[Refurbishment Possible],I47,Refurb_Poss_Tbl[%]))*AG47,Q47*$AG47),0) -> 0 | BF47: =IF($AF47=3,IF($AF$2=2,(U47/SUMIF(Refurb_Poss_Tbl[Refurbishment Possible],I47,Refurb_Poss_Tbl[%]))*AG47,U47*$AG47),0) -> 0 | BG47: =IF($AF47=3,IF($AF$2=2,(V47/SUMIF(Refurb_Poss_Tbl[Refurbishment Possible],I47,Refurb_Poss_Tbl[%]))*AG47,IF($AF$2=3,(V47*AG47)-AW47,V47*AG47)),0) -> 0 | BH47: =IF($AF47=3,IF($AF$2=2,(W47/SUMIF(Refurb_Poss_Tbl[Refurbishment Possible],I47,Refurb_Poss_Tbl[%]))*AG47,W47*$AG47),0) -> 0
A48: DredEA11 | B48: New channel | C48: Dredging Works | D48: DredEA1146 | E48: New channel-Excavation | F48: Dredging | G48: 120 | H48: 120 | I48: Moderate Refurbishment | J48: 60 | K48: New Build | L48: 0 | M48: 0 | N48: 0 | O48: 2 | P48: 22156.8888 | Q48: 22156.8888 | R48: 772.6037996 | S48: 153.8312699 | T48: 0.3320971537 | U48: 50.30718144 | V48: 0 | W48: 11346.73443 | X48: 34480.69757 | Y48: 0.26988 | Z48: 0 | AA48: 8620.174394 | AB48: 4554.35561 | AC48: 0.1660485769 | AD48: 76.91563493 | AE48: 46 | AF48: 0 | AG48: =VLOOKUP(AE48,ValidationLists!$M$1:$N$102,2,FALSE) -> 0.2567365279 | AH48: 0 | AI48: 0 | AJ48: 0 | AK48: 0 | AL48: 0 | AM48: 0 | AN48: 0 | AO48: 0 | AP48: 0.06928805416 | AQ48: =IF(OR(AF48=3,AF48=2,AF48=0),SUMIFS(FlatMaint!$Z$2:$Z$10000,FlatMaint!$A$2:$A$10000,D48,FlatMaint!$Y$2:$Y$10000,AE48)*AG48,0) -> 568.8506249 | AR48: =IF(OR(AF48=3,AF48=2,AF48=0),SUMIFS(FlatRepair!$Z$2:$Z$10000,FlatRepair!$A$2:$A$10000,D48,FlatRepair!$Y$2:$Y$10000,AE48)*AG48,0) -> 0 | AS48: 0 | AT48: 568.9199129 | AU48: 0 | AV48: 0 | AW48: 0 | AX48: 0 | AY48: 0 | AZ48: 568.9199129 | BA48: 0 | BB48: =IF($AF48=3,IF($AF$2=2,(R48/SUMIF(Refurb_Poss_Tbl[Refurbishment Possible],I48,Refurb_Poss_Tbl[%]))*AG48,IF($AF$2=3,(R48*AG48)-AV48,R48*AG48)),0) -> 0 | BC48: =IF(AF48=3,IF($AF$2=2,(S48/SUMIF(Refurb_Poss_Tbl[Refurbishment Possible],I48,Refurb_Poss_Tbl[%]))*AG48,IF($AF$2=3,(S48*AG48)-AX48,S48*AG48)),0) -> 0 | BD48: =IF($AF48=3,IF($AF$2=2,(T48/SUMIF(Refurb_Poss_Tbl[Refurbishment Possible],I48,Refurb_Poss_Tbl[%]))*AG48,T48*$AG48),0) -> 0 | BE48: =IF($AF48=3,IF($AF$2=2,(Q48/SUMIF(Refurb_Poss_Tbl[Refurbishment Possible],I48,Refurb_Poss_Tbl[%]))*AG48,Q48*$AG48),0) -> 0 | BF48: =IF($AF48=3,IF($AF$2=2,(U48/SUMIF(Refurb_Poss_Tbl[Refurbishment Possible],I48,Refurb_Poss_Tbl[%]))*AG48,U48*$AG48),0) -> 0 | BG48: =IF($AF48=3,IF($AF$2=2,(V48/SUMIF(Refurb_Poss_Tbl[Refurbishment Possible],I48,Refurb_Poss_Tbl[%]))*AG48,IF($AF$2=3,(V48*AG48)-AW48,V48*AG48)),0) -> 0 | BH48: =IF($AF48=3,IF($AF$2=2,(W48/SUMIF(Refurb_Poss_Tbl[Refurbishment Possible],I48,Refurb_Poss_Tbl[%]))*AG48,W48*$AG48),0) -> 0
A49: DredEA11 | B49: New channel | C49: Dredging Works | D49: DredEA1146 | E49: New channel-Excavation | F49: Dredging | G49: 120 | H49: 120 | I49: Moderate Refurbishment | J49: 60 | K49: New Build | L49: 0 | M49: 0 | N49: 0 | O49: 2 | P49: 22156.8888 | Q49: 22156.8888 | R49: 772.6037996 | S49: 153.8312699 | T49: 0.3320971537 | U49: 50.30718144 | V49: 0 | W49: 11346.73443 | X49: 34480.69757 | Y49: 0.26988 | Z49: 0 | AA49: 8620.174394 | AB49: 4554.35561 | AC49: 0.1660485769 | AD49: 76.91563493 | AE49: 47 | AF49: 0 | AG49: =VLOOKUP(AE49,ValidationLists!$M$1:$N$102,2,FALSE) -> 0.249258765 | AH49: 0 | AI49: 0 | AJ49: 0 | AK49: 0 | AL49: 0 | AM49: 0 | AN49: 0 | AO49: 0 | AP49: 0.06726995549 | AQ49: =IF(OR(AF49=3,AF49=2,AF49=0),SUMIFS(FlatMaint!$Z$2:$Z$10000,FlatMaint!$A$2:$A$10000,D49,FlatMaint!$Y$2:$Y$10000,AE49)*AG49,0) -> 0 | AR49: =IF(OR(AF49=3,AF49=2,AF49=0),SUMIFS(FlatRepair!$Z$2:$Z$10000,FlatRepair!$A$2:$A$10000,D49,FlatRepair!$Y$2:$Y$10000,AE49)*AG49,0) -> 0 | AS49: 0 | AT49: 0.06726995549 | AU49: 0 | AV49: 0 | AW49: 0 | AX49: 0 | AY49: 0 | AZ49: 0.06726995549 | BA49: 0 | BB49: =IF($AF49=3,IF($AF$2=2,(R49/SUMIF(Refurb_Poss_Tbl[Refurbishment Possible],I49,Refurb_Poss_Tbl[%]))*AG49,IF($AF$2=3,(R49*AG49)-AV49,R49*AG49)),0) -> 0 | BC49: =IF(AF49=3,IF($AF$2=2,(S49/SUMIF(Refurb_Poss_Tbl[Refurbishment Possible],I49,Refurb_Poss_Tbl[%]))*AG49,IF($AF$2=3,(S49*AG49)-AX49,S49*AG49)),0) -> 0 | BD49: =IF($AF49=3,IF($AF$2=2,(T49/SUMIF(Refurb_Poss_Tbl[Refurbishment Possible],I49,Refurb_Poss_Tbl[%]))*AG49,T49*$AG49),0) -> 0 | BE49: =IF($AF49=3,IF($AF$2=2,(Q49/SUMIF(Refurb_Poss_Tbl[Refurbishment Possible],I49,Refurb_Poss_Tbl[%]))*AG49,Q49*$AG49),0) -> 0 | BF49: =IF($AF49=3,IF($AF$2=2,(U49/SUMIF(Refurb_Poss_Tbl[Refurbishment Possible],I49,Refurb_Poss_Tbl[%]))*AG49,U49*$AG49),0) -> 0 | BG49: =IF($AF49=3,IF($AF$2=2,(V49/SUMIF(Refurb_Poss_Tbl[Refurbishment Possible],I49,Refurb_Poss_Tbl[%]))*AG49,IF($AF$2=3,(V49*AG49)-AW49,V49*AG49)),0) -> 0 | BH49: =IF($AF49=3,IF($AF$2=2,(W49/SUMIF(Refurb_Poss_Tbl[Refurbishment Possible],I49,Refurb_Poss_Tbl[%]))*AG49,W49*$AG49),0) -> 0
A50: DredEA11 | B50: New channel | C50: Dredging Works | D50: DredEA1146 | E50: New channel-Excavation | F50: Dredging | G50: 120 | H50: 120 | I50: Moderate Refurbishment | J50: 60 | K50: New Build | L50: 0 | M50: 0 | N50: 0 | O50: 2 | P50: 22156.8888 | Q50: 22156.8888 | R50: 772.6037996 | S50: 153.8312699 | T50: 0.3320971537 | U50: 50.30718144 | V50: 0 | W50: 11346.73443 | X50: 34480.69757 | Y50: 0.26988 | Z50: 0 | AA50: 8620.174394 | AB50: 4554.35561 | AC50: 0.1660485769 | AD50: 76.91563493 | AE50: 48 | AF50: 0 | AG50: =VLOOKUP(AE50,ValidationLists!$M$1:$N$102,2,FALSE) -> 0.2419988009 | AH50: 0 | AI50: 0 | AJ50: 0 | AK50: 0 | AL50: 0 | AM50: 0 | AN50: 0 | AO50: 0 | AP50: 0.0653106364 | AQ50: =IF(OR(AF50=3,AF50=2,AF50=0),SUMIFS(FlatMaint!$Z$2:$Z$10000,FlatMaint!$A$2:$A$10000,D50,FlatMaint!$Y$2:$Y$10000,AE50)*AG50,0) -> 536.1962719 | AR50: =IF(OR(AF50=3,AF50=2,AF50=0),SUMIFS(FlatRepair!$Z$2:$Z$10000,FlatRepair!$A$2:$A$10000,D50,FlatRepair!$Y$2:$Y$10000,AE50)*AG50,0) -> 0 | AS50: 0 | AT50: 536.2615826 | AU50: 0 | AV50: 0 | AW50: 0 | AX50: 0 | AY50: 0 | AZ50: 536.2615826 | BA50: 0 | BB50: =IF($AF50=3,IF($AF$2=2,(R50/SUMIF(Refurb_Poss_Tbl[Refurbishment Possible],I50,Refurb_Poss_Tbl[%]))*AG50,IF($AF$2=3,(R50*AG50)-AV50,R50*AG50)),0) -> 0 | BC50: =IF(AF50=3,IF($AF$2=2,(S50/SUMIF(Refurb_Poss_Tbl[Refurbishment Possible],I50,Refurb_Poss_Tbl[%]))*AG50,IF($AF$2=3,(S50*AG50)-AX50,S50*AG50)),0) -> 0 | BD50: =IF($AF50=3,IF($AF$2=2,(T50/SUMIF(Refurb_Poss_Tbl[Refurbishment Possible],I50,Refurb_Poss_Tbl[%]))*AG50,T50*$AG50),0) -> 0 | BE50: =IF($AF50=3,IF($AF$2=2,(Q50/SUMIF(Refurb_Poss_Tbl[Refurbishment Possible],I50,Refurb_Poss_Tbl[%]))*AG50,Q50*$AG50),0) -> 0 | BF50: =IF($AF50=3,IF($AF$2=2,(U50/SUMIF(Refurb_Poss_Tbl[Refurbishment Possible],I50,Refurb_Poss_Tbl[%]))*AG50,U50*$AG50),0) -> 0 | BG50: =IF($AF50=3,IF($AF$2=2,(V50/SUMIF(Refurb_Poss_Tbl[Refurbishment Possible],I50,Refurb_Poss_Tbl[%]))*AG50,IF($AF$2=3,(V50*AG50)-AW50,V50*AG50)),0) -> 0 | BH50: =IF($AF50=3,IF($AF$2=2,(W50/SUMIF(Refurb_Poss_Tbl[Refurbishment Possible],I50,Refurb_Poss_Tbl[%]))*AG50,W50*$AG50),0) -> 0
A51: DredEA11 | B51: New channel | C51: Dredging Works | D51: DredEA1146 | E51: New channel-Excavation | F51: Dredging | G51: 120 | H51: 120 | I51: Moderate Refurbishment | J51: 60 | K51: New Build | L51: 0 | M51: 0 | N51: 0 | O51: 2 | P51: 22156.8888 | Q51: 22156.8888 | R51: 772.6037996 | S51: 153.8312699 | T51: 0.3320971537 | U51: 50.30718144 | V51: 0 | W51: 11346.73443 | X51: 34480.69757 | Y51: 0.26988 | Z51: 0 | AA51: 8620.174394 | AB51: 4554.35561 | AC51: 0.1660485769 | AD51: 76.91563493 | AE51: 49 | AF51: 0 | AG51: =VLOOKUP(AE51,ValidationLists!$M$1:$N$102,2,FALSE) -> 0.2349502922 | AH51: 0 | AI51: 0 | AJ51: 0 | AK51: 0 | AL51: 0 | AM51: 0 | AN51: 0 | AO51: 0 | AP51: 0.06340838485 | AQ51: =IF(OR(AF51=3,AF51=2,AF51=0),SUMIFS(FlatMaint!$Z$2:$Z$10000,FlatMaint!$A$2:$A$10000,D51,FlatMaint!$Y$2:$Y$10000,AE51)*AG51,0) -> 0 | AR51: =IF(OR(AF51=3,AF51=2,AF51=0),SUMIFS(FlatRepair!$Z$2:$Z$10000,FlatRepair!$A$2:$A$10000,D51,FlatRepair!$Y$2:$Y$10000,AE51)*AG51,0) -> 0 | AS51: 0 | AT51: 0.06340838485 | AU51: 0 | AV51: 0 | AW51: 0 | AX51: 0 | AY51: 0 | AZ51: 0.06340838485 | BA51: 0 | BB51: =IF($AF51=3,IF($AF$2=2,(R51/SUMIF(Refurb_Poss_Tbl[Refurbishment Possible],I51,Refurb_Poss_Tbl[%]))*AG51,IF($AF$2=3,(R51*AG51)-AV51,R51*AG51)),0) -> 0 | BC51: =IF(AF51=3,IF($AF$2=2,(S51/SUMIF(Refurb_Poss_Tbl[Refurbishment Possible],I51,Refurb_Poss_Tbl[%]))*AG51,IF($AF$2=3,(S51*AG51)-AX51,S51*AG51)),0) -> 0 | BD51: =IF($AF51=3,IF($AF$2=2,(T51/SUMIF(Refurb_Poss_Tbl[Refurbishment Possible],I51,Refurb_Poss_Tbl[%]))*AG51,T51*$AG51),0) -> 0 | BE51: =IF($AF51=3,IF($AF$2=2,(Q51/SUMIF(Refurb_Poss_Tbl[Refurbishment Possible],I51,Refurb_Poss_Tbl[%]))*AG51,Q51*$AG51),0) -> 0 | BF51: =IF($AF51=3,IF($AF$2=2,(U51/SUMIF(Refurb_Poss_Tbl[Refurbishment Possible],I51,Refurb_Poss_Tbl[%]))*AG51,U51*$AG51),0) -> 0 | BG51: =IF($AF51=3,IF($AF$2=2,(V51/SUMIF(Refurb_Poss_Tbl[Refurbishment Possible],I51,Refurb_Poss_Tbl[%]))*AG51,IF($AF$2=3,(V51*AG51)-AW51,V51*AG51)),0) -> 0 | BH51: =IF($AF51=3,IF($AF$2=2,(W51/SUMIF(Refurb_Poss_Tbl[Refurbishment Possible],I51,Refurb_Poss_Tbl[%]))*AG51,W51*$AG51),0) -> 0
A52: DredEA11 | B52: New channel | C52: Dredging Works | D52: DredEA1146 | E52: New channel-Excavation | F52: Dredging | G52: 120 | H52: 120 | I52: Moderate Refurbishment | J52: 60 | K52: New Build | L52: 0 | M52: 0 | N52: 0 | O52: 2 | P52: 22156.8888 | Q52: 22156.8888 | R52: 772.6037996 | S52: 153.8312699 | T52: 0.3320971537 | U52: 50.30718144 | V52: 0 | W52: 11346.73443 | X52: 34480.69757 | Y52: 0.26988 | Z52: 0 | AA52: 8620.174394 | AB52: 4554.35561 | AC52: 0.1660485769 | AD52: 76.91563493 | AE52: 50 | AF52: 0 | AG52: =VLOOKUP(AE52,ValidationLists!$M$1:$N$102,2,FALSE) -> 0.2281070798 | AH52: 0 | AI52: 0 | AJ52: 0 | AK52: 0 | AL52: 0 | AM52: 0 | AN52: 0 | AO52: 0 | AP52: 0.06156153869 | AQ52: =IF(OR(AF52=3,AF52=2,AF52=0),SUMIFS(FlatMaint!$Z$2:$Z$10000,FlatMaint!$A$2:$A$10000,D52,FlatMaint!$Y$2:$Y$10000,AE52)*AG52,0) -> 505.4164124 | AR52: =IF(OR(AF52=3,AF52=2,AF52=0),SUMIFS(FlatRepair!$Z$2:$Z$10000,FlatRepair!$A$2:$A$10000,D52,FlatRepair!$Y$2:$Y$10000,AE52)*AG52,0) -> 0 | AS52: 0 | AT52: 505.4779739 | AU52: 0 | AV52: 0 | AW52: 0 | AX52: 0 | AY52: 0 | AZ52: 505.4779739 | BA52: 0 | BB52: =IF($AF52=3,IF($AF$2=2,(R52/SUMIF(Refurb_Poss_Tbl[Refurbishment Possible],I52,Refurb_Poss_Tbl[%]))*AG52,IF($AF$2=3,(R52*AG52)-AV52,R52*AG52)),0) -> 0 | BC52: =IF(AF52=3,IF($AF$2=2,(S52/SUMIF(Refurb_Poss_Tbl[Refurbishment Possible],I52,Refurb_Poss_Tbl[%]))*AG52,IF($AF$2=3,(S52*AG52)-AX52,S52*AG52)),0) -> 0 | BD52: =IF($AF52=3,IF($AF$2=2,(T52/SUMIF(Refurb_Poss_Tbl[Refurbishment Possible],I52,Refurb_Poss_Tbl[%]))*AG52,T52*$AG52),0) -> 0 | BE52: =IF($AF52=3,IF($AF$2=2,(Q52/SUMIF(Refurb_Poss_Tbl[Refurbishment Possible],I52,Refurb_Poss_Tbl[%]))*AG52,Q52*$AG52),0) -> 0 | BF52: =IF($AF52=3,IF($AF$2=2,(U52/SUMIF(Refurb_Poss_Tbl[Refurbishment Possible],I52,Refurb_Poss_Tbl[%]))*AG52,U52*$AG52),0) -> 0 | BG52: =IF($AF52=3,IF($AF$2=2,(V52/SUMIF(Refurb_Poss_Tbl[Refurbishment Possible],I52,Refurb_Poss_Tbl[%]))*AG52,IF($AF$2=3,(V52*AG52)-AW52,V52*AG52)),0) -> 0 | BH52: =IF($AF52=3,IF($AF$2=2,(W52/SUMIF(Refurb_Poss_Tbl[Refurbishment Possible],I52,Refurb_Poss_Tbl[%]))*AG52,W52*$AG52),0) -> 0
A53: DredEA11 | B53: New channel | C53: Dredging Works | D53: DredEA1146 | E53: New channel-Excavation | F53: Dredging | G53: 120 | H53: 120 | I53: Moderate Refurbishment | J53: 60 | K53: New Build | L53: 0 | M53: 0 | N53: 0 | O53: 2 | P53: 22156.8888 | Q53: 22156.8888 | R53: 772.6037996 | S53: 153.8312699 | T53: 0.3320971537 | U53: 50.30718144 | V53: 0 | W53: 11346.73443 | X53: 34480.69757 | Y53: 0.26988 | Z53: 0 | AA53: 8620.174394 | AB53: 4554.35561 | AC53: 0.1660485769 | AD53: 76.91563493 | AE53: 51 | AF53: 0 | AG53: =VLOOKUP(AE53,ValidationLists!$M$1:$N$102,2,FALSE) -> 0.2214631843 | AH53: 0 | AI53: 0 | AJ53: 0 | AK53: 0 | AL53: 0 | AM53: 0 | AN53: 0 | AO53: 0 | AP53: 0.05976848417 | AQ53: =IF(OR(AF53=3,AF53=2,AF53=0),SUMIFS(FlatMaint!$Z$2:$Z$10000,FlatMaint!$A$2:$A$10000,D53,FlatMaint!$Y$2:$Y$10000,AE53)*AG53,0) -> 0 | AR53: =IF(OR(AF53=3,AF53=2,AF53=0),SUMIFS(FlatRepair!$Z$2:$Z$10000,FlatRepair!$A$2:$A$10000,D53,FlatRepair!$Y$2:$Y$10000,AE53)*AG53,0) -> 0 | AS53: 0 | AT53: 0.05976848417 | AU53: 0 | AV53: 0 | AW53: 0 | AX53: 0 | AY53: 0 | AZ53: 0.05976848417 | BA53: 0 | BB53: =IF($AF53=3,IF($AF$2=2,(R53/SUMIF(Refurb_Poss_Tbl[Refurbishment Possible],I53,Refurb_Poss_Tbl[%]))*AG53,IF($AF$2=3,(R53*AG53)-AV53,R53*AG53)),0) -> 0 | BC53: =IF(AF53=3,IF($AF$2=2,(S53/SUMIF(Refurb_Poss_Tbl[Refurbishment Possible],I53,Refurb_Poss_Tbl[%]))*AG53,IF($AF$2=3,(S53*AG53)-AX53,S53*AG53)),0) -> 0 | BD53: =IF($AF53=3,IF($AF$2=2,(T53/SUMIF(Refurb_Poss_Tbl[Refurbishment Possible],I53,Refurb_Poss_Tbl[%]))*AG53,T53*$AG53),0) -> 0 | BE53: =IF($AF53=3,IF($AF$2=2,(Q53/SUMIF(Refurb_Poss_Tbl[Refurbishment Possible],I53,Refurb_Poss_Tbl[%]))*AG53,Q53*$AG53),0) -> 0 | BF53: =IF($AF53=3,IF($AF$2=2,(U53/SUMIF(Refurb_Poss_Tbl[Refurbishment Possible],I53,Refurb_Poss_Tbl[%]))*AG53,U53*$AG53),0) -> 0 | BG53: =IF($AF53=3,IF($AF$2=2,(V53/SUMIF(Refurb_Poss_Tbl[Refurbishment Possible],I53,Refurb_Poss_Tbl[%]))*AG53,IF($AF$2=3,(V53*AG53)-AW53,V53*AG53)),0) -> 0 | BH53: =IF($AF53=3,IF($AF$2=2,(W53/SUMIF(Refurb_Poss_Tbl[Refurbishment Possible],I53,Refurb_Poss_Tbl[%]))*AG53,W53*$AG53),0) -> 0
A54: DredEA11 | B54: New channel | C54: Dredging Works | D54: DredEA1146 | E54: New channel-Excavation | F54: Dredging | G54: 120 | H54: 120 | I54: Moderate Refurbishment | J54: 60 | K54: New Build | L54: 0 | M54: 0 | N54: 0 | O54: 2 | P54: 22156.8888 | Q54: 22156.8888 | R54: 772.6037996 | S54: 153.8312699 | T54: 0.3320971537 | U54: 50.30718144 | V54: 0 | W54: 11346.73443 | X54: 34480.69757 | Y54: 0.26988 | Z54: 0 | AA54: 8620.174394 | AB54: 4554.35561 | AC54: 0.1660485769 | AD54: 76.91563493 | AE54: 52 | AF54: 0 | AG54: =VLOOKUP(AE54,ValidationLists!$M$1:$N$102,2,FALSE) -> 0.2150128003 | AH54: 0 | AI54: 0 | AJ54: 0 | AK54: 0 | AL54: 0 | AM54: 0 | AN54: 0 | AO54: 0 | AP54: 0.05802765453 | AQ54: =IF(OR(AF54=3,AF54=2,AF54=0),SUMIFS(FlatMaint!$Z$2:$Z$10000,FlatMaint!$A$2:$A$10000,D54,FlatMaint!$Y$2:$Y$10000,AE54)*AG54,0) -> 476.4034427 | AR54: =IF(OR(AF54=3,AF54=2,AF54=0),SUMIFS(FlatRepair!$Z$2:$Z$10000,FlatRepair!$A$2:$A$10000,D54,FlatRepair!$Y$2:$Y$10000,AE54)*AG54,0) -> 0 | AS54: 0 | AT54: 476.4614704 | AU54: 0 | AV54: 0 | AW54: 0 | AX54: 0 | AY54: 0 | AZ54: 476.4614704 | BA54: 0 | BB54: =IF($AF54=3,IF($AF$2=2,(R54/SUMIF(Refurb_Poss_Tbl[Refurbishment Possible],I54,Refurb_Poss_Tbl[%]))*AG54,IF($AF$2=3,(R54*AG54)-AV54,R54*AG54)),0) -> 0 | BC54: =IF(AF54=3,IF($AF$2=2,(S54/SUMIF(Refurb_Poss_Tbl[Refurbishment Possible],I54,Refurb_Poss_Tbl[%]))*AG54,IF($AF$2=3,(S54*AG54)-AX54,S54*AG54)),0) -> 0 | BD54: =IF($AF54=3,IF($AF$2=2,(T54/SUMIF(Refurb_Poss_Tbl[Refurbishment Possible],I54,Refurb_Poss_Tbl[%]))*AG54,T54*$AG54),0) -> 0 | BE54: =IF($AF54=3,IF($AF$2=2,(Q54/SUMIF(Refurb_Poss_Tbl[Refurbishment Possible],I54,Refurb_Poss_Tbl[%]))*AG54,Q54*$AG54),0) -> 0 | BF54: =IF($AF54=3,IF($AF$2=2,(U54/SUMIF(Refurb_Poss_Tbl[Refurbishment Possible],I54,Refurb_Poss_Tbl[%]))*AG54,U54*$AG54),0) -> 0 | BG54: =IF($AF54=3,IF($AF$2=2,(V54/SUMIF(Refurb_Poss_Tbl[Refurbishment Possible],I54,Refurb_Poss_Tbl[%]))*AG54,IF($AF$2=3,(V54*AG54)-AW54,V54*AG54)),0) -> 0 | BH54: =IF($AF54=3,IF($AF$2=2,(W54/SUMIF(Refurb_Poss_Tbl[Refurbishment Possible],I54,Refurb_Poss_Tbl[%]))*AG54,W54*$AG54),0) -> 0
A55: DredEA11 | B55: New channel | C55: Dredging Works | D55: DredEA1146 | E55: New channel-Excavation | F55: Dredging | G55: 120 | H55: 120 | I55: Moderate Refurbishment | J55: 60 | K55: New Build | L55: 0 | M55: 0 | N55: 0 | O55: 2 | P55: 22156.8888 | Q55: 22156.8888 | R55: 772.6037996 | S55: 153.8312699 | T55: 0.3320971537 | U55: 50.30718144 | V55: 0 | W55: 11346.73443 | X55: 34480.69757 | Y55: 0.26988 | Z55: 0 | AA55: 8620.174394 | AB55: 4554.35561 | AC55: 0.1660485769 | AD55: 76.91563493 | AE55: 53 | AF55: 0 | AG55: =VLOOKUP(AE55,ValidationLists!$M$1:$N$102,2,FALSE) -> 0.2087502915 | AH55: 0 | AI55: 0 | AJ55: 0 | AK55: 0 | AL55: 0 | AM55: 0 | AN55: 0 | AO55: 0 | AP55: 0.05633752867 | AQ55: =IF(OR(AF55=3,AF55=2,AF55=0),SUMIFS(FlatMaint!$Z$2:$Z$10000,FlatMaint!$A$2:$A$10000,D55,FlatMaint!$Y$2:$Y$10000,AE55)*AG55,0) -> 0 | AR55: =IF(OR(AF55=3,AF55=2,AF55=0),SUMIFS(FlatRepair!$Z$2:$Z$10000,FlatRepair!$A$2:$A$10000,D55,FlatRepair!$Y$2:$Y$10000,AE55)*AG55,0) -> 0 | AS55: 0 | AT55: 0.05633752867 | AU55: 0 | AV55: 0 | AW55: 0 | AX55: 0 | AY55: 0 | AZ55: 0.05633752867 | BA55: 0 | BB55: =IF($AF55=3,IF($AF$2=2,(R55/SUMIF(Refurb_Poss_Tbl[Refurbishment Possible],I55,Refurb_Poss_Tbl[%]))*AG55,IF($AF$2=3,(R55*AG55)-AV55,R55*AG55)),0) -> 0 | BC55: =IF(AF55=3,IF($AF$2=2,(S55/SUMIF(Refurb_Poss_Tbl[Refurbishment Possible],I55,Refurb_Poss_Tbl[%]))*AG55,IF($AF$2=3,(S55*AG55)-AX55,S55*AG55)),0) -> 0 | BD55: =IF($AF55=3,IF($AF$2=2,(T55/SUMIF(Refurb_Poss_Tbl[Refurbishment Possible],I55,Refurb_Poss_Tbl[%]))*AG55,T55*$AG55),0) -> 0 | BE55: =IF($AF55=3,IF($AF$2=2,(Q55/SUMIF(Refurb_Poss_Tbl[Refurbishment Possible],I55,Refurb_Poss_Tbl[%]))*AG55,Q55*$AG55),0) -> 0 | BF55: =IF($AF55=3,IF($AF$2=2,(U55/SUMIF(Refurb_Poss_Tbl[Refurbishment Possible],I55,Refurb_Poss_Tbl[%]))*AG55,U55*$AG55),0) -> 0 | BG55: =IF($AF55=3,IF($AF$2=2,(V55/SUMIF(Refurb_Poss_Tbl[Refurbishment Possible],I55,Refurb_Poss_Tbl[%]))*AG55,IF($AF$2=3,(V55*AG55)-AW55,V55*AG55)),0) -> 0 | BH55: =IF($AF55=3,IF($AF$2=2,(W55/SUMIF(Refurb_Poss_Tbl[Refurbishment Possible],I55,Refurb_Poss_Tbl[%]))*AG55,W55*$AG55),0) -> 0
A56: DredEA11 | B56: New channel | C56: Dredging Works | D56: DredEA1146 | E56: New channel-Excavation | F56: Dredging | G56: 120 | H56: 120 | I56: Moderate Refurbishment | J56: 60 | K56: New Build | L56: 0 | M56: 0 | N56: 0 | O56: 2 | P56: 22156.8888 | Q56: 22156.8888 | R56: 772.6037996 | S56: 153.8312699 | T56: 0.3320971537 | U56: 50.30718144 | V56: 0 | W56: 11346.73443 | X56: 34480.69757 | Y56: 0.26988 | Z56: 0 | AA56: 8620.174394 | AB56: 4554.35561 | AC56: 0.1660485769 | AD56: 76.91563493 | AE56: 54 | AF56: 0 | AG56: =VLOOKUP(AE56,ValidationLists!$M$1:$N$102,2,FALSE) -> 0.2026701859 | AH56: 0 | AI56: 0 | AJ56: 0 | AK56: 0 | AL56: 0 | AM56: 0 | AN56: 0 | AO56: 0 | AP56: 0.05469662978 | AQ56: =IF(OR(AF56=3,AF56=2,AF56=0),SUMIFS(FlatMaint!$Z$2:$Z$10000,FlatMaint!$A$2:$A$10000,D56,FlatMaint!$Y$2:$Y$10000,AE56)*AG56,0) -> 449.0559362 | AR56: =IF(OR(AF56=3,AF56=2,AF56=0),SUMIFS(FlatRepair!$Z$2:$Z$10000,FlatRepair!$A$2:$A$10000,D56,FlatRepair!$Y$2:$Y$10000,AE56)*AG56,0) -> 0 | AS56: 0 | AT56: 449.1106329 | AU56: 0 | AV56: 0 | AW56: 0 | AX56: 0 | AY56: 0 | AZ56: 449.1106329 | BA56: 0 | BB56: =IF($AF56=3,IF($AF$2=2,(R56/SUMIF(Refurb_Poss_Tbl[Refurbishment Possible],I56,Refurb_Poss_Tbl[%]))*AG56,IF($AF$2=3,(R56*AG56)-AV56,R56*AG56)),0) -> 0 | BC56: =IF(AF56=3,IF($AF$2=2,(S56/SUMIF(Refurb_Poss_Tbl[Refurbishment Possible],I56,Refurb_Poss_Tbl[%]))*AG56,IF($AF$2=3,(S56*AG56)-AX56,S56*AG56)),0) -> 0 | BD56: =IF($AF56=3,IF($AF$2=2,(T56/SUMIF(Refurb_Poss_Tbl[Refurbishment Possible],I56,Refurb_Poss_Tbl[%]))*AG56,T56*$AG56),0) -> 0 | BE56: =IF($AF56=3,IF($AF$2=2,(Q56/SUMIF(Refurb_Poss_Tbl[Refurbishment Possible],I56,Refurb_Poss_Tbl[%]))*AG56,Q56*$AG56),0) -> 0 | BF56: =IF($AF56=3,IF($AF$2=2,(U56/SUMIF(Refurb_Poss_Tbl[Refurbishment Possible],I56,Refurb_Poss_Tbl[%]))*AG56,U56*$AG56),0) -> 0 | BG56: =IF($AF56=3,IF($AF$2=2,(V56/SUMIF(Refurb_Poss_Tbl[Refurbishment Possible],I56,Refurb_Poss_Tbl[%]))*AG56,IF($AF$2=3,(V56*AG56)-AW56,V56*AG56)),0) -> 0 | BH56: =IF($AF56=3,IF($AF$2=2,(W56/SUMIF(Refurb_Poss_Tbl[Refurbishment Possible],I56,Refurb_Poss_Tbl[%]))*AG56,W56*$AG56),0) -> 0
A57: DredEA11 | B57: New channel | C57: Dredging Works | D57: DredEA1146 | E57: New channel-Excavation | F57: Dredging | G57: 120 | H57: 120 | I57: Moderate Refurbishment | J57: 60 | K57: New Build | L57: 0 | M57: 0 | N57: 0 | O57: 2 | P57: 22156.8888 | Q57: 22156.8888 | R57: 772.6037996 | S57: 153.8312699 | T57: 0.3320971537 | U57: 50.30718144 | V57: 0 | W57: 11346.73443 | X57: 34480.69757 | Y57: 0.26988 | Z57: 0 | AA57: 8620.174394 | AB57: 4554.35561 | AC57: 0.1660485769 | AD57: 76.91563493 | AE57: 55 | AF57: 0 | AG57: =VLOOKUP(AE57,ValidationLists!$M$1:$N$102,2,FALSE) -> 0.1967671708 | AH57: 0 | AI57: 0 | AJ57: 0 | AK57: 0 | AL57: 0 | AM57: 0 | AN57: 0 | AO57: 0 | AP57: 0.05310352406 | AQ57: =IF(OR(AF57=3,AF57=2,AF57=0),SUMIFS(FlatMaint!$Z$2:$Z$10000,FlatMaint!$A$2:$A$10000,D57,FlatMaint!$Y$2:$Y$10000,AE57)*AG57,0) -> 0 | AR57: =IF(OR(AF57=3,AF57=2,AF57=0),SUMIFS(FlatRepair!$Z$2:$Z$10000,FlatRepair!$A$2:$A$10000,D57,FlatRepair!$Y$2:$Y$10000,AE57)*AG57,0) -> 0 | AS57: 0 | AT57: 0.05310352406 | AU57: 0 | AV57: 0 | AW57: 0 | AX57: 0 | AY57: 0 | AZ57: 0.05310352406 | BA57: 0 | BB57: =IF($AF57=3,IF($AF$2=2,(R57/SUMIF(Refurb_Poss_Tbl[Refurbishment Possible],I57,Refurb_Poss_Tbl[%]))*AG57,IF($AF$2=3,(R57*AG57)-AV57,R57*AG57)),0) -> 0 | BC57: =IF(AF57=3,IF($AF$2=2,(S57/SUMIF(Refurb_Poss_Tbl[Refurbishment Possible],I57,Refurb_Poss_Tbl[%]))*AG57,IF($AF$2=3,(S57*AG57)-AX57,S57*AG57)),0) -> 0 | BD57: =IF($AF57=3,IF($AF$2=2,(T57/SUMIF(Refurb_Poss_Tbl[Refurbishment Possible],I57,Refurb_Poss_Tbl[%]))*AG57,T57*$AG57),0) -> 0 | BE57: =IF($AF57=3,IF($AF$2=2,(Q57/SUMIF(Refurb_Poss_Tbl[Refurbishment Possible],I57,Refurb_Poss_Tbl[%]))*AG57,Q57*$AG57),0) -> 0 | BF57: =IF($AF57=3,IF($AF$2=2,(U57/SUMIF(Refurb_Poss_Tbl[Refurbishment Possible],I57,Refurb_Poss_Tbl[%]))*AG57,U57*$AG57),0) -> 0 | BG57: =IF($AF57=3,IF($AF$2=2,(V57/SUMIF(Refurb_Poss_Tbl[Refurbishment Possible],I57,Refurb_Poss_Tbl[%]))*AG57,IF($AF$2=3,(V57*AG57)-AW57,V57*AG57)),0) -> 0 | BH57: =IF($AF57=3,IF($AF$2=2,(W57/SUMIF(Refurb_Poss_Tbl[Refurbishment Possible],I57,Refurb_Poss_Tbl[%]))*AG57,W57*$AG57),0) -> 0
A58: DredEA11 | B58: New channel | C58: Dredging Works | D58: DredEA1146 | E58: New channel-Excavation | F58: Dredging | G58: 120 | H58: 120 | I58: Moderate Refurbishment | J58: 60 | K58: New Build | L58: 0 | M58: 0 | N58: 0 | O58: 2 | P58: 22156.8888 | Q58: 22156.8888 | R58: 772.6037996 | S58: 153.8312699 | T58: 0.3320971537 | U58: 50.30718144 | V58: 0 | W58: 11346.73443 | X58: 34480.69757 | Y58: 0.26988 | Z58: 0 | AA58: 8620.174394 | AB58: 4554.35561 | AC58: 0.1660485769 | AD58: 76.91563493 | AE58: 56 | AF58: 0 | AG58: =VLOOKUP(AE58,ValidationLists!$M$1:$N$102,2,FALSE) -> 0.1910360882 | AH58: 0 | AI58: 0 | AJ58: 0 | AK58: 0 | AL58: 0 | AM58: 0 | AN58: 0 | AO58: 0 | AP58: 0.05155681947 | AQ58: =IF(OR(AF58=3,AF58=2,AF58=0),SUMIFS(FlatMaint!$Z$2:$Z$10000,FlatMaint!$A$2:$A$10000,D58,FlatMaint!$Y$2:$Y$10000,AE58)*AG58,0) -> 423.2782885 | AR58: =IF(OR(AF58=3,AF58=2,AF58=0),SUMIFS(FlatRepair!$Z$2:$Z$10000,FlatRepair!$A$2:$A$10000,D58,FlatRepair!$Y$2:$Y$10000,AE58)*AG58,0) -> 0 | AS58: 0 | AT58: 423.3298453 | AU58: 0 | AV58: 0 | AW58: 0 | AX58: 0 | AY58: 0 | AZ58: 423.3298453 | BA58: 0 | BB58: =IF($AF58=3,IF($AF$2=2,(R58/SUMIF(Refurb_Poss_Tbl[Refurbishment Possible],I58,Refurb_Poss_Tbl[%]))*AG58,IF($AF$2=3,(R58*AG58)-AV58,R58*AG58)),0) -> 0 | BC58: =IF(AF58=3,IF($AF$2=2,(S58/SUMIF(Refurb_Poss_Tbl[Refurbishment Possible],I58,Refurb_Poss_Tbl[%]))*AG58,IF($AF$2=3,(S58*AG58)-AX58,S58*AG58)),0) -> 0 | BD58: =IF($AF58=3,IF($AF$2=2,(T58/SUMIF(Refurb_Poss_Tbl[Refurbishment Possible],I58,Refurb_Poss_Tbl[%]))*AG58,T58*$AG58),0) -> 0 | BE58: =IF($AF58=3,IF($AF$2=2,(Q58/SUMIF(Refurb_Poss_Tbl[Refurbishment Possible],I58,Refurb_Poss_Tbl[%]))*AG58,Q58*$AG58),0) -> 0 | BF58: =IF($AF58=3,IF($AF$2=2,(U58/SUMIF(Refurb_Poss_Tbl[Refurbishment Possible],I58,Refurb_Poss_Tbl[%]))*AG58,U58*$AG58),0) -> 0 | BG58: =IF($AF58=3,IF($AF$2=2,(V58/SUMIF(Refurb_Poss_Tbl[Refurbishment Possible],I58,Refurb_Poss_Tbl[%]))*AG58,IF($AF$2=3,(V58*AG58)-AW58,V58*AG58)),0) -> 0 | BH58: =IF($AF58=3,IF($AF$2=2,(W58/SUMIF(Refurb_Poss_Tbl[Refurbishment Possible],I58,Refurb_Poss_Tbl[%]))*AG58,W58*$AG58),0) -> 0
A59: DredEA11 | B59: New channel | C59: Dredging Works | D59: DredEA1146 | E59: New channel-Excavation | F59: Dredging | G59: 120 | H59: 120 | I59: Moderate Refurbishment | J59: 60 | K59: New Build | L59: 0 | M59: 0 | N59: 0 | O59: 2 | P59: 22156.8888 | Q59: 22156.8888 | R59: 772.6037996 | S59: 153.8312699 | T59: 0.3320971537 | U59: 50.30718144 | V59: 0 | W59: 11346.73443 | X59: 34480.69757 | Y59: 0.26988 | Z59: 0 | AA59: 8620.174394 | AB59: 4554.35561 | AC59: 0.1660485769 | AD59: 76.91563493 | AE59: 57 | AF59: 0 | AG59: =VLOOKUP(AE59,ValidationLists!$M$1:$N$102,2,FALSE) -> 0.1854719303 | AH59: 0 | AI59: 0 | AJ59: 0 | AK59: 0 | AL59: 0 | AM59: 0 | AN59: 0 | AO59: 0 | AP59: 0.05005516454 | AQ59: =IF(OR(AF59=3,AF59=2,AF59=0),SUMIFS(FlatMaint!$Z$2:$Z$10000,FlatMaint!$A$2:$A$10000,D59,FlatMaint!$Y$2:$Y$10000,AE59)*AG59,0) -> 0 | AR59: =IF(OR(AF59=3,AF59=2,AF59=0),SUMIFS(FlatRepair!$Z$2:$Z$10000,FlatRepair!$A$2:$A$10000,D59,FlatRepair!$Y$2:$Y$10000,AE59)*AG59,0) -> 0 | AS59: 0 | AT59: 0.05005516454 | AU59: 0 | AV59: 0 | AW59: 0 | AX59: 0 | AY59: 0 | AZ59: 0.05005516454 | BA59: 0 | BB59: =IF($AF59=3,IF($AF$2=2,(R59/SUMIF(Refurb_Poss_Tbl[Refurbishment Possible],I59,Refurb_Poss_Tbl[%]))*AG59,IF($AF$2=3,(R59*AG59)-AV59,R59*AG59)),0) -> 0 | BC59: =IF(AF59=3,IF($AF$2=2,(S59/SUMIF(Refurb_Poss_Tbl[Refurbishment Possible],I59,Refurb_Poss_Tbl[%]))*AG59,IF($AF$2=3,(S59*AG59)-AX59,S59*AG59)),0) -> 0 | BD59: =IF($AF59=3,IF($AF$2=2,(T59/SUMIF(Refurb_Poss_Tbl[Refurbishment Possible],I59,Refurb_Poss_Tbl[%]))*AG59,T59*$AG59),0) -> 0 | BE59: =IF($AF59=3,IF($AF$2=2,(Q59/SUMIF(Refurb_Poss_Tbl[Refurbishment Possible],I59,Refurb_Poss_Tbl[%]))*AG59,Q59*$AG59),0) -> 0 | BF59: =IF($AF59=3,IF($AF$2=2,(U59/SUMIF(Refurb_Poss_Tbl[Refurbishment Possible],I59,Refurb_Poss_Tbl[%]))*AG59,U59*$AG59),0) -> 0 | BG59: =IF($AF59=3,IF($AF$2=2,(V59/SUMIF(Refurb_Poss_Tbl[Refurbishment Possible],I59,Refurb_Poss_Tbl[%]))*AG59,IF($AF$2=3,(V59*AG59)-AW59,V59*AG59)),0) -> 0 | BH59: =IF($AF59=3,IF($AF$2=2,(W59/SUMIF(Refurb_Poss_Tbl[Refurbishment Possible],I59,Refurb_Poss_Tbl[%]))*AG59,W59*$AG59),0) -> 0
A60: DredEA11 | B60: New channel | C60: Dredging Works | D60: DredEA1146 | E60: New channel-Excavation | F60: Dredging | G60: 120 | H60: 120 | I60: Moderate Refurbishment | J60: 60 | K60: New Build | L60: 0 | M60: 0 | N60: 0 | O60: 2 | P60: 22156.8888 | Q60: 22156.8888 | R60: 772.6037996 | S60: 153.8312699 | T60: 0.3320971537 | U60: 50.30718144 | V60: 0 | W60: 11346.73443 | X60: 34480.69757 | Y60: 0.26988 | Z60: 0 | AA60: 8620.174394 | AB60: 4554.35561 | AC60: 0.1660485769 | AD60: 76.91563493 | AE60: 58 | AF60: 0 | AG60: =VLOOKUP(AE60,ValidationLists!$M$1:$N$102,2,FALSE) -> 0.1800698352 | AH60: 0 | AI60: 0 | AJ60: 0 | AK60: 0 | AL60: 0 | AM60: 0 | AN60: 0 | AO60: 0 | AP60: 0.04859724712 | AQ60: =IF(OR(AF60=3,AF60=2,AF60=0),SUMIFS(FlatMaint!$Z$2:$Z$10000,FlatMaint!$A$2:$A$10000,D60,FlatMaint!$Y$2:$Y$10000,AE60)*AG60,0) -> 398.9803831 | AR60: =IF(OR(AF60=3,AF60=2,AF60=0),SUMIFS(FlatRepair!$Z$2:$Z$10000,FlatRepair!$A$2:$A$10000,D60,FlatRepair!$Y$2:$Y$10000,AE60)*AG60,0) -> 0 | AS60: 0 | AT60: 399.0289804 | AU60: 0 | AV60: 0 | AW60: 0 | AX60: 0 | AY60: 0 | AZ60: 399.0289804 | BA60: 0 | BB60: =IF($AF60=3,IF($AF$2=2,(R60/SUMIF(Refurb_Poss_Tbl[Refurbishment Possible],I60,Refurb_Poss_Tbl[%]))*AG60,IF($AF$2=3,(R60*AG60)-AV60,R60*AG60)),0) -> 0 | BC60: =IF(AF60=3,IF($AF$2=2,(S60/SUMIF(Refurb_Poss_Tbl[Refurbishment Possible],I60,Refurb_Poss_Tbl[%]))*AG60,IF($AF$2=3,(S60*AG60)-AX60,S60*AG60)),0) -> 0 | BD60: =IF($AF60=3,IF($AF$2=2,(T60/SUMIF(Refurb_Poss_Tbl[Refurbishment Possible],I60,Refurb_Poss_Tbl[%]))*AG60,T60*$AG60),0) -> 0 | BE60: =IF($AF60=3,IF($AF$2=2,(Q60/SUMIF(Refurb_Poss_Tbl[Refurbishment Possible],I60,Refurb_Poss_Tbl[%]))*AG60,Q60*$AG60),0) -> 0 | BF60: =IF($AF60=3,IF($AF$2=2,(U60/SUMIF(Refurb_Poss_Tbl[Refurbishment Possible],I60,Refurb_Poss_Tbl[%]))*AG60,U60*$AG60),0) -> 0 | BG60: =IF($AF60=3,IF($AF$2=2,(V60/SUMIF(Refurb_Poss_Tbl[Refurbishment Possible],I60,Refurb_Poss_Tbl[%]))*AG60,IF($AF$2=3,(V60*AG60)-AW60,V60*AG60)),0) -> 0 | BH60: =IF($AF60=3,IF($AF$2=2,(W60/SUMIF(Refurb_Poss_Tbl[Refurbishment Possible],I60,Refurb_Poss_Tbl[%]))*AG60,W60*$AG60),0) -> 0
A61: DredEA11 | B61: New channel | C61: Dredging Works | D61: DredEA1146 | E61: New channel-Excavation | F61: Dredging | G61: 120 | H61: 120 | I61: Moderate Refurbishment | J61: 60 | K61: New Build | L61: 0 | M61: 0 | N61: 0 | O61: 2 | P61: 22156.8888 | Q61: 22156.8888 | R61: 772.6037996 | S61: 153.8312699 | T61: 0.3320971537 | U61: 50.30718144 | V61: 0 | W61: 11346.73443 | X61: 34480.69757 | Y61: 0.26988 | Z61: 0 | AA61: 8620.174394 | AB61: 4554.35561 | AC61: 0.1660485769 | AD61: 76.91563493 | AE61: 59 | AF61: 0 | AG61: =VLOOKUP(AE61,ValidationLists!$M$1:$N$102,2,FALSE) -> 0.1748250827 | AH61: 0 | AI61: 0 | AJ61: 0 | AK61: 0 | AL61: 0 | AM61: 0 | AN61: 0 | AO61: 0 | AP61: 0.04718179332 | AQ61: =IF(OR(AF61=3,AF61=2,AF61=0),SUMIFS(FlatMaint!$Z$2:$Z$10000,FlatMaint!$A$2:$A$10000,D61,FlatMaint!$Y$2:$Y$10000,AE61)*AG61,0) -> 0 | AR61: =IF(OR(AF61=3,AF61=2,AF61=0),SUMIFS(FlatRepair!$Z$2:$Z$10000,FlatRepair!$A$2:$A$10000,D61,FlatRepair!$Y$2:$Y$10000,AE61)*AG61,0) -> 0 | AS61: 0 | AT61: 0.04718179332 | AU61: 0 | AV61: 0 | AW61: 0 | AX61: 0 | AY61: 0 | AZ61: 0.04718179332 | BA61: 0 | BB61: =IF($AF61=3,IF($AF$2=2,(R61/SUMIF(Refurb_Poss_Tbl[Refurbishment Possible],I61,Refurb_Poss_Tbl[%]))*AG61,IF($AF$2=3,(R61*AG61)-AV61,R61*AG61)),0) -> 0 | BC61: =IF(AF61=3,IF($AF$2=2,(S61/SUMIF(Refurb_Poss_Tbl[Refurbishment Possible],I61,Refurb_Poss_Tbl[%]))*AG61,IF($AF$2=3,(S61*AG61)-AX61,S61*AG61)),0) -> 0 | BD61: =IF($AF61=3,IF($AF$2=2,(T61/SUMIF(Refurb_Poss_Tbl[Refurbishment Possible],I61,Refurb_Poss_Tbl[%]))*AG61,T61*$AG61),0) -> 0 | BE61: =IF($AF61=3,IF($AF$2=2,(Q61/SUMIF(Refurb_Poss_Tbl[Refurbishment Possible],I61,Refurb_Poss_Tbl[%]))*AG61,Q61*$AG61),0) -> 0 | BF61: =IF($AF61=3,IF($AF$2=2,(U61/SUMIF(Refurb_Poss_Tbl[Refurbishment Possible],I61,Refurb_Poss_Tbl[%]))*AG61,U61*$AG61),0) -> 0 | BG61: =IF($AF61=3,IF($AF$2=2,(V61/SUMIF(Refurb_Poss_Tbl[Refurbishment Possible],I61,Refurb_Poss_Tbl[%]))*AG61,IF($AF$2=3,(V61*AG61)-AW61,V61*AG61)),0) -> 0 | BH61: =IF($AF61=3,IF($AF$2=2,(W61/SUMIF(Refurb_Poss_Tbl[Refurbishment Possible],I61,Refurb_Poss_Tbl[%]))*AG61,W61*$AG61),0) -> 0
A62: DredEA11 | B62: New channel | C62: Dredging Works | D62: DredEA1146 | E62: New channel-Excavation | F62: Dredging | G62: 120 | H62: 120 | I62: Moderate Refurbishment | J62: 60 | K62: New Build | L62: 0 | M62: 0 | N62: 0 | O62: 2 | P62: 22156.8888 | Q62: 22156.8888 | R62: 772.6037996 | S62: 153.8312699 | T62: 0.3320971537 | U62: 50.30718144 | V62: 0 | W62: 11346.73443 | X62: 34480.69757 | Y62: 0.26988 | Z62: 0 | AA62: 8620.174394 | AB62: 4554.35561 | AC62: 0.1660485769 | AD62: 76.91563493 | AE62: 60 | AF62: 0 | AG62: =VLOOKUP(AE62,ValidationLists!$M$1:$N$102,2,FALSE) -> 0.16973309 | AH62: 0 | AI62: 0 | AJ62: 0 | AK62: 0 | AL62: 0 | AM62: 0 | AN62: 0 | AO62: 0 | AP62: 0.04580756633 | AQ62: =IF(OR(AF62=3,AF62=2,AF62=0),SUMIFS(FlatMaint!$Z$2:$Z$10000,FlatMaint!$A$2:$A$10000,D62,FlatMaint!$Y$2:$Y$10000,AE62)*AG62,0) -> 376.077277 | AR62: =IF(OR(AF62=3,AF62=2,AF62=0),SUMIFS(FlatRepair!$Z$2:$Z$10000,FlatRepair!$A$2:$A$10000,D62,FlatRepair!$Y$2:$Y$10000,AE62)*AG62,0) -> 0 | AS62: 0 | AT62: 376.1230845 | AU62: 0 | AV62: 0 | AW62: 0 | AX62: 0 | AY62: 0 | AZ62: 376.1230845 | BA62: 0 | BB62: =IF($AF62=3,IF($AF$2=2,(R62/SUMIF(Refurb_Poss_Tbl[Refurbishment Possible],I62,Refurb_Poss_Tbl[%]))*AG62,IF($AF$2=3,(R62*AG62)-AV62,R62*AG62)),0) -> 0 | BC62: =IF(AF62=3,IF($AF$2=2,(S62/SUMIF(Refurb_Poss_Tbl[Refurbishment Possible],I62,Refurb_Poss_Tbl[%]))*AG62,IF($AF$2=3,(S62*AG62)-AX62,S62*AG62)),0) -> 0 | BD62: =IF($AF62=3,IF($AF$2=2,(T62/SUMIF(Refurb_Poss_Tbl[Refurbishment Possible],I62,Refurb_Poss_Tbl[%]))*AG62,T62*$AG62),0) -> 0 | BE62: =IF($AF62=3,IF($AF$2=2,(Q62/SUMIF(Refurb_Poss_Tbl[Refurbishment Possible],I62,Refurb_Poss_Tbl[%]))*AG62,Q62*$AG62),0) -> 0 | BF62: =IF($AF62=3,IF($AF$2=2,(U62/SUMIF(Refurb_Poss_Tbl[Refurbishment Possible],I62,Refurb_Poss_Tbl[%]))*AG62,U62*$AG62),0) -> 0 | BG62: =IF($AF62=3,IF($AF$2=2,(V62/SUMIF(Refurb_Poss_Tbl[Refurbishment Possible],I62,Refurb_Poss_Tbl[%]))*AG62,IF($AF$2=3,(V62*AG62)-AW62,V62*AG62)),0) -> 0 | BH62: =IF($AF62=3,IF($AF$2=2,(W62/SUMIF(Refurb_Poss_Tbl[Refurbishment Possible],I62,Refurb_Poss_Tbl[%]))*AG62,W62*$AG62),0) -> 0
A63: DredEA11 | B63: New channel | C63: Dredging Works | D63: DredEA1146 | E63: New channel-Excavation | F63: Dredging | G63: 120 | H63: 120 | I63: Moderate Refurbishment | J63: 60 | K63: New Build | L63: 0 | M63: 0 | N63: 0 | O63: 2 | P63: 22156.8888 | Q63: 22156.8888 | R63: 772.6037996 | S63: 153.8312699 | T63: 0.3320971537 | U63: 50.30718144 | V63: 0 | W63: 11346.73443 | X63: 34480.69757 | Y63: 0.26988 | Z63: 0 | AA63: 8620.174394 | AB63: 4554.35561 | AC63: 0.1660485769 | AD63: 76.91563493 | AE63: 61 | AF63: 0 | AG63: =VLOOKUP(AE63,ValidationLists!$M$1:$N$102,2,FALSE) -> 0.1647894078 | AH63: 0 | AI63: 0 | AJ63: 0 | AK63: 0 | AL63: 0 | AM63: 0 | AN63: 0 | AO63: 0 | AP63: 0.04447336537 | AQ63: =IF(OR(AF63=3,AF63=2,AF63=0),SUMIFS(FlatMaint!$Z$2:$Z$10000,FlatMaint!$A$2:$A$10000,D63,FlatMaint!$Y$2:$Y$10000,AE63)*AG63,0) -> 0 | AR63: =IF(OR(AF63=3,AF63=2,AF63=0),SUMIFS(FlatRepair!$Z$2:$Z$10000,FlatRepair!$A$2:$A$10000,D63,FlatRepair!$Y$2:$Y$10000,AE63)*AG63,0) -> 0 | AS63: 0 | AT63: 0.04447336537 | AU63: 0 | AV63: 0 | AW63: 0 | AX63: 0 | AY63: 0 | AZ63: 0.04447336537 | BA63: 0 | BB63: =IF($AF63=3,IF($AF$2=2,(R63/SUMIF(Refurb_Poss_Tbl[Refurbishment Possible],I63,Refurb_Poss_Tbl[%]))*AG63,IF($AF$2=3,(R63*AG63)-AV63,R63*AG63)),0) -> 0 | BC63: =IF(AF63=3,IF($AF$2=2,(S63/SUMIF(Refurb_Poss_Tbl[Refurbishment Possible],I63,Refurb_Poss_Tbl[%]))*AG63,IF($AF$2=3,(S63*AG63)-AX63,S63*AG63)),0) -> 0 | BD63: =IF($AF63=3,IF($AF$2=2,(T63/SUMIF(Refurb_Poss_Tbl[Refurbishment Possible],I63,Refurb_Poss_Tbl[%]))*AG63,T63*$AG63),0) -> 0 | BE63: =IF($AF63=3,IF($AF$2=2,(Q63/SUMIF(Refurb_Poss_Tbl[Refurbishment Possible],I63,Refurb_Poss_Tbl[%]))*AG63,Q63*$AG63),0) -> 0 | BF63: =IF($AF63=3,IF($AF$2=2,(U63/SUMIF(Refurb_Poss_Tbl[Refurbishment Possible],I63,Refurb_Poss_Tbl[%]))*AG63,U63*$AG63),0) -> 0 | BG63: =IF($AF63=3,IF($AF$2=2,(V63/SUMIF(Refurb_Poss_Tbl[Refurbishment Possible],I63,Refurb_Poss_Tbl[%]))*AG63,IF($AF$2=3,(V63*AG63)-AW63,V63*AG63)),0) -> 0 | BH63: =IF($AF63=3,IF($AF$2=2,(W63/SUMIF(Refurb_Poss_Tbl[Refurbishment Possible],I63,Refurb_Poss_Tbl[%]))*AG63,W63*$AG63),0) -> 0
A64: DredEA11 | B64: New channel | C64: Dredging Works | D64: DredEA1146 | E64: New channel-Excavation | F64: Dredging | G64: 120 | H64: 120 | I64: Moderate Refurbishment | J64: 60 | K64: New Build | L64: 0 | M64: 0 | N64: 0 | O64: 2 | P64: 22156.8888 | Q64: 22156.8888 | R64: 772.6037996 | S64: 153.8312699 | T64: 0.3320971537 | U64: 50.30718144 | V64: 0 | W64: 11346.73443 | X64: 34480.69757 | Y64: 0.26988 | Z64: 0 | AA64: 8620.174394 | AB64: 4554.35561 | AC64: 0.1660485769 | AD64: 76.91563493 | AE64: 62 | AF64: 0 | AG64: =VLOOKUP(AE64,ValidationLists!$M$1:$N$102,2,FALSE) -> 0.1599897163 | AH64: 0 | AI64: 0 | AJ64: 0 | AK64: 0 | AL64: 0 | AM64: 0 | AN64: 0 | AO64: 0 | AP64: 0.04317802463 | AQ64: =IF(OR(AF64=3,AF64=2,AF64=0),SUMIFS(FlatMaint!$Z$2:$Z$10000,FlatMaint!$A$2:$A$10000,D64,FlatMaint!$Y$2:$Y$10000,AE64)*AG64,0) -> 354.4889028 | AR64: =IF(OR(AF64=3,AF64=2,AF64=0),SUMIFS(FlatRepair!$Z$2:$Z$10000,FlatRepair!$A$2:$A$10000,D64,FlatRepair!$Y$2:$Y$10000,AE64)*AG64,0) -> 0 | AS64: 0 | AT64: 354.5320808 | AU64: 0 | AV64: 0 | AW64: 0 | AX64: 0 | AY64: 0 | AZ64: 354.5320808 | BA64: 0 | BB64: =IF($AF64=3,IF($AF$2=2,(R64/SUMIF(Refurb_Poss_Tbl[Refurbishment Possible],I64,Refurb_Poss_Tbl[%]))*AG64,IF($AF$2=3,(R64*AG64)-AV64,R64*AG64)),0) -> 0 | BC64: =IF(AF64=3,IF($AF$2=2,(S64/SUMIF(Refurb_Poss_Tbl[Refurbishment Possible],I64,Refurb_Poss_Tbl[%]))*AG64,IF($AF$2=3,(S64*AG64)-AX64,S64*AG64)),0) -> 0 | BD64: =IF($AF64=3,IF($AF$2=2,(T64/SUMIF(Refurb_Poss_Tbl[Refurbishment Possible],I64,Refurb_Poss_Tbl[%]))*AG64,T64*$AG64),0) -> 0 | BE64: =IF($AF64=3,IF($AF$2=2,(Q64/SUMIF(Refurb_Poss_Tbl[Refurbishment Possible],I64,Refurb_Poss_Tbl[%]))*AG64,Q64*$AG64),0) -> 0 | BF64: =IF($AF64=3,IF($AF$2=2,(U64/SUMIF(Refurb_Poss_Tbl[Refurbishment Possible],I64,Refurb_Poss_Tbl[%]))*AG64,U64*$AG64),0) -> 0 | BG64: =IF($AF64=3,IF($AF$2=2,(V64/SUMIF(Refurb_Poss_Tbl[Refurbishment Possible],I64,Refurb_Poss_Tbl[%]))*AG64,IF($AF$2=3,(V64*AG64)-AW64,V64*AG64)),0) -> 0 | BH64: =IF($AF64=3,IF($AF$2=2,(W64/SUMIF(Refurb_Poss_Tbl[Refurbishment Possible],I64,Refurb_Poss_Tbl[%]))*AG64,W64*$AG64),0) -> 0
A65: DredEA11 | B65: New channel | C65: Dredging Works | D65: DredEA1146 | E65: New channel-Excavation | F65: Dredging | G65: 120 | H65: 120 | I65: Moderate Refurbishment | J65: 60 | K65: New Build | L65: 0 | M65: 0 | N65: 0 | O65: 2 | P65: 22156.8888 | Q65: 22156.8888 | R65: 772.6037996 | S65: 153.8312699 | T65: 0.3320971537 | U65: 50.30718144 | V65: 0 | W65: 11346.73443 | X65: 34480.69757 | Y65: 0.26988 | Z65: 0 | AA65: 8620.174394 | AB65: 4554.35561 | AC65: 0.1660485769 | AD65: 76.91563493 | AE65: 63 | AF65: 0 | AG65: =VLOOKUP(AE65,ValidationLists!$M$1:$N$102,2,FALSE) -> 0.1553298216 | AH65: 0 | AI65: 0 | AJ65: 0 | AK65: 0 | AL65: 0 | AM65: 0 | AN65: 0 | AO65: 0 | AP65: 0.04192041227 | AQ65: =IF(OR(AF65=3,AF65=2,AF65=0),SUMIFS(FlatMaint!$Z$2:$Z$10000,FlatMaint!$A$2:$A$10000,D65,FlatMaint!$Y$2:$Y$10000,AE65)*AG65,0) -> 0 | AR65: =IF(OR(AF65=3,AF65=2,AF65=0),SUMIFS(FlatRepair!$Z$2:$Z$10000,FlatRepair!$A$2:$A$10000,D65,FlatRepair!$Y$2:$Y$10000,AE65)*AG65,0) -> 0 | AS65: 0 | AT65: 0.04192041227 | AU65: 0 | AV65: 0 | AW65: 0 | AX65: 0 | AY65: 0 | AZ65: 0.04192041227 | BA65: 0 | BB65: =IF($AF65=3,IF($AF$2=2,(R65/SUMIF(Refurb_Poss_Tbl[Refurbishment Possible],I65,Refurb_Poss_Tbl[%]))*AG65,IF($AF$2=3,(R65*AG65)-AV65,R65*AG65)),0) -> 0 | BC65: =IF(AF65=3,IF($AF$2=2,(S65/SUMIF(Refurb_Poss_Tbl[Refurbishment Possible],I65,Refurb_Poss_Tbl[%]))*AG65,IF($AF$2=3,(S65*AG65)-AX65,S65*AG65)),0) -> 0 | BD65: =IF($AF65=3,IF($AF$2=2,(T65/SUMIF(Refurb_Poss_Tbl[Refurbishment Possible],I65,Refurb_Poss_Tbl[%]))*AG65,T65*$AG65),0) -> 0 | BE65: =IF($AF65=3,IF($AF$2=2,(Q65/SUMIF(Refurb_Poss_Tbl[Refurbishment Possible],I65,Refurb_Poss_Tbl[%]))*AG65,Q65*$AG65),0) -> 0 | BF65: =IF($AF65=3,IF($AF$2=2,(U65/SUMIF(Refurb_Poss_Tbl[Refurbishment Possible],I65,Refurb_Poss_Tbl[%]))*AG65,U65*$AG65),0) -> 0 | BG65: =IF($AF65=3,IF($AF$2=2,(V65/SUMIF(Refurb_Poss_Tbl[Refurbishment Possible],I65,Refurb_Poss_Tbl[%]))*AG65,IF($AF$2=3,(V65*AG65)-AW65,V65*AG65)),0) -> 0 | BH65: =IF($AF65=3,IF($AF$2=2,(W65/SUMIF(Refurb_Poss_Tbl[Refurbishment Possible],I65,Refurb_Poss_Tbl[%]))*AG65,W65*$AG65),0) -> 0
A66: DredEA11 | B66: New channel | C66: Dredging Works | D66: DredEA1146 | E66: New channel-Excavation | F66: Dredging | G66: 120 | H66: 120 | I66: Moderate Refurbishment | J66: 60 | K66: New Build | L66: 0 | M66: 0 | N66: 0 | O66: 2 | P66: 22156.8888 | Q66: 22156.8888 | R66: 772.6037996 | S66: 153.8312699 | T66: 0.3320971537 | U66: 50.30718144 | V66: 0 | W66: 11346.73443 | X66: 34480.69757 | Y66: 0.26988 | Z66: 0 | AA66: 8620.174394 | AB66: 4554.35561 | AC66: 0.1660485769 | AD66: 76.91563493 | AE66: 64 | AF66: 0 | AG66: =VLOOKUP(AE66,ValidationLists!$M$1:$N$102,2,FALSE) -> 0.1508056521 | AH66: 0 | AI66: 0 | AJ66: 0 | AK66: 0 | AL66: 0 | AM66: 0 | AN66: 0 | AO66: 0 | AP66: 0.04069942938 | AQ66: =IF(OR(AF66=3,AF66=2,AF66=0),SUMIFS(FlatMaint!$Z$2:$Z$10000,FlatMaint!$A$2:$A$10000,D66,FlatMaint!$Y$2:$Y$10000,AE66)*AG66,0) -> 334.1397896 | AR66: =IF(OR(AF66=3,AF66=2,AF66=0),SUMIFS(FlatRepair!$Z$2:$Z$10000,FlatRepair!$A$2:$A$10000,D66,FlatRepair!$Y$2:$Y$10000,AE66)*AG66,0) -> 0 | AS66: 0 | AT66: 334.180489 | AU66: 0 | AV66: 0 | AW66: 0 | AX66: 0 | AY66: 0 | AZ66: 334.180489 | BA66: 0 | BB66: =IF($AF66=3,IF($AF$2=2,(R66/SUMIF(Refurb_Poss_Tbl[Refurbishment Possible],I66,Refurb_Poss_Tbl[%]))*AG66,IF($AF$2=3,(R66*AG66)-AV66,R66*AG66)),0) -> 0 | BC66: =IF(AF66=3,IF($AF$2=2,(S66/SUMIF(Refurb_Poss_Tbl[Refurbishment Possible],I66,Refurb_Poss_Tbl[%]))*AG66,IF($AF$2=3,(S66*AG66)-AX66,S66*AG66)),0) -> 0 | BD66: =IF($AF66=3,IF($AF$2=2,(T66/SUMIF(Refurb_Poss_Tbl[Refurbishment Possible],I66,Refurb_Poss_Tbl[%]))*AG66,T66*$AG66),0) -> 0 | BE66: =IF($AF66=3,IF($AF$2=2,(Q66/SUMIF(Refurb_Poss_Tbl[Refurbishment Possible],I66,Refurb_Poss_Tbl[%]))*AG66,Q66*$AG66),0) -> 0 | BF66: =IF($AF66=3,IF($AF$2=2,(U66/SUMIF(Refurb_Poss_Tbl[Refurbishment Possible],I66,Refurb_Poss_Tbl[%]))*AG66,U66*$AG66),0) -> 0 | BG66: =IF($AF66=3,IF($AF$2=2,(V66/SUMIF(Refurb_Poss_Tbl[Refurbishment Possible],I66,Refurb_Poss_Tbl[%]))*AG66,IF($AF$2=3,(V66*AG66)-AW66,V66*AG66)),0) -> 0 | BH66: =IF($AF66=3,IF($AF$2=2,(W66/SUMIF(Refurb_Poss_Tbl[Refurbishment Possible],I66,Refurb_Poss_Tbl[%]))*AG66,W66*$AG66),0) -> 0
A67: DredEA11 | B67: New channel | C67: Dredging Works | D67: DredEA1146 | E67: New channel-Excavation | F67: Dredging | G67: 120 | H67: 120 | I67: Moderate Refurbishment | J67: 60 | K67: New Build | L67: 0 | M67: 0 | N67: 0 | O67: 2 | P67: 22156.8888 | Q67: 22156.8888 | R67: 772.6037996 | S67: 153.8312699 | T67: 0.3320971537 | U67: 50.30718144 | V67: 0 | W67: 11346.73443 | X67: 34480.69757 | Y67: 0.26988 | Z67: 0 | AA67: 8620.174394 | AB67: 4554.35561 | AC67: 0.1660485769 | AD67: 76.91563493 | AE67: 65 | AF67: 0 | AG67: =VLOOKUP(AE67,ValidationLists!$M$1:$N$102,2,FALSE) -> 0.1464132544 | AH67: =IF(AE67=0,Q67*AG67,0) -> 0 | AI67: =IF(AE67=0,R67*AG67,0) -> 0 | AJ67: =IF(AE67=0,S67*AG67,0) -> 0 | AK67: =IF(AE67=0,T67*AG67,0) -> 0 | AL67: =IF(AE67=0,U67*AG67,0) -> 0 | AM67: =IF(AE67=0,V67*AG67,0) -> 0 | AN67: =IF(AE67=0,W67*AG67,0) -> 0 | AO67: =IF(AE67=0,AH67+AI67+AJ67+AK67+AL67+AM67+AN67,0) -> 0 | AP67: =IF(OR(AF67=3,AF67=2,AF67=0),Y67*AG67,0) -> 0.03951400911 | AQ67: =IF(OR(AF67=3,AF67=2,AF67=0),SUMIFS(FlatMaint!$Z$2:$Z$10000,FlatMaint!$A$2:$A$10000,D67,FlatMaint!$Y$2:$Y$10000,AE67)*AG67,0) -> 0 | AR67: =IF(OR(AF67=3,AF67=2,AF67=0),SUMIFS(FlatRepair!$Z$2:$Z$10000,FlatRepair!$A$2:$A$10000,D67,FlatRepair!$Y$2:$Y$10000,AE67)*AG67,0) -> 0 | AS67: =IF(OR(AF67=3,AF67=2,AF67=0),Z67*AG67,0) -> 0 | AT67: =AP67+AQ67+AR67+AS67 -> 0.03951400911 | AU67: =IF(AF67=2,AA67*AG67,0) -> 0 | AV67: =IF(AF67=3,AB67*AG67,0) -> 0 | AW67: =IF(AF67=3,AC67*AG67,0) -> 0 | AX67: =IF(AF67=3,AD67*AG67,0) -> 0 | AY67: =IF($AF$2=3,BB67+BC67+BD67+BE67+BF67+BG67+BH67,BB67+BC67+BD67+BE67+BF67+BG67+BH67) -> 0 | AZ67: =AO67+AT67+AU67+AV67+AW67+AX67+AY67+BA67 -> 0.03951400911 | BA67: =IFERROR(IF(AE67=100,IF(O67=3,(N67/H67)*(X67*AG67)*-1,(N67/M67)*(X67*AG67)*-1),0),0) -> 0 | BB67: =IF($AF67=3,IF($AF$2=2,(R67/SUMIF(Refurb_Poss_Tbl[Refurbishment Possible],I67,Refurb_Poss_Tbl[%]))*AG67,IF($AF$2=3,(R67*AG67)-AV67,R67*AG67)),0) -> 0 | BC67: =IF(AF67=3,IF($AF$2=2,(S67/SUMIF(Refurb_Poss_Tbl[Refurbishment Possible],I67,Refurb_Poss_Tbl[%]))*AG67,IF($AF$2=3,(S67*AG67)-AX67,S67*AG67)),0) -> 0 | BD67: =IF($AF67=3,IF($AF$2=2,(T67/SUMIF(Refurb_Poss_Tbl[Refurbishment Possible],I67,Refurb_Poss_Tbl[%]))*AG67,T67*$AG67),0) -> 0 | BE67: =IF($AF67=3,IF($AF$2=2,(Q67/SUMIF(Refurb_Poss_Tbl[Refurbishment Possible],I67,Refurb_Poss_Tbl[%]))*AG67,Q67*$AG67),0) -> 0 | BF67: =IF($AF67=3,IF($AF$2=2,(U67/SUMIF(Refurb_Poss_Tbl[Refurbishment Possible],I67,Refurb_Poss_Tbl[%]))*AG67,U67*$AG67),0) -> 0 | BG67: =IF($AF67=3,IF($AF$2=2,(V67/SUMIF(Refurb_Poss_Tbl[Refurbishment Possible],I67,Refurb_Poss_Tbl[%]))*AG67,IF($AF$2=3,(V67*AG67)-AW67,V67*AG67)),0) -> 0 | BH67: =IF($AF67=3,IF($AF$2=2,(W67/SUMIF(Refurb_Poss_Tbl[Refurbishment Possible],I67,Refurb_Poss_Tbl[%]))*AG67,W67*$AG67),0) -> 0
A68: DredEA11 | B68: New channel | C68: Dredging Works | D68: DredEA1146 | E68: New channel-Excavation | F68: Dredging | G68: 120 | H68: 120 | I68: Moderate Refurbishment | J68: 60 | K68: New Build | L68: 0 | M68: 0 | N68: 0 | O68: 2 | P68: 22156.8888 | Q68: 22156.8888 | R68: 772.6037996 | S68: 153.8312699 | T68: 0.3320971537 | U68: 50.30718144 | V68: 0 | W68: 11346.73443 | X68: 34480.69757 | Y68: 0.26988 | Z68: 0 | AA68: 8620.174394 | AB68: 4554.35561 | AC68: 0.1660485769 | AD68: 76.91563493 | AE68: 66 | AF68: 0 | AG68: =VLOOKUP(AE68,ValidationLists!$M$1:$N$102,2,FALSE) -> 0.1421487907 | AH68: 0 | AI68: 0 | AJ68: 0 | AK68: 0 | AL68: 0 | AM68: 0 | AN68: 0 | AO68: 0 | AP68: 0.03836311564 | AQ68: =IF(OR(AF68=3,AF68=2,AF68=0),SUMIFS(FlatMaint!$Z$2:$Z$10000,FlatMaint!$A$2:$A$10000,D68,FlatMaint!$Y$2:$Y$10000,AE68)*AG68,0) -> 314.9587987 | AR68: =IF(OR(AF68=3,AF68=2,AF68=0),SUMIFS(FlatRepair!$Z$2:$Z$10000,FlatRepair!$A$2:$A$10000,D68,FlatRepair!$Y$2:$Y$10000,AE68)*AG68,0) -> 0 | AS68: 0 | AT68: 314.9971619 | AU68: 0 | AV68: 0 | AW68: 0 | AX68: 0 | AY68: 0 | AZ68: 314.9971619 | BA68: 0 | BB68: =IF($AF68=3,IF($AF$2=2,(R68/SUMIF(Refurb_Poss_Tbl[Refurbishment Possible],I68,Refurb_Poss_Tbl[%]))*AG68,IF($AF$2=3,(R68*AG68)-AV68,R68*AG68)),0) -> 0 | BC68: =IF(AF68=3,IF($AF$2=2,(S68/SUMIF(Refurb_Poss_Tbl[Refurbishment Possible],I68,Refurb_Poss_Tbl[%]))*AG68,IF($AF$2=3,(S68*AG68)-AX68,S68*AG68)),0) -> 0 | BD68: =IF($AF68=3,IF($AF$2=2,(T68/SUMIF(Refurb_Poss_Tbl[Refurbishment Possible],I68,Refurb_Poss_Tbl[%]))*AG68,T68*$AG68),0) -> 0 | BE68: =IF($AF68=3,IF($AF$2=2,(Q68/SUMIF(Refurb_Poss_Tbl[Refurbishment Possible],I68,Refurb_Poss_Tbl[%]))*AG68,Q68*$AG68),0) -> 0 | BF68: =IF($AF68=3,IF($AF$2=2,(U68/SUMIF(Refurb_Poss_Tbl[Refurbishment Possible],I68,Refurb_Poss_Tbl[%]))*AG68,U68*$AG68),0) -> 0 | BG68: =IF($AF68=3,IF($AF$2=2,(V68/SUMIF(Refurb_Poss_Tbl[Refurbishment Possible],I68,Refurb_Poss_Tbl[%]))*AG68,IF($AF$2=3,(V68*AG68)-AW68,V68*AG68)),0) -> 0 | BH68: =IF($AF68=3,IF($AF$2=2,(W68/SUMIF(Refurb_Poss_Tbl[Refurbishment Possible],I68,Refurb_Poss_Tbl[%]))*AG68,W68*$AG68),0) -> 0
A69: DredEA11 | B69: New channel | C69: Dredging Works | D69: DredEA1146 | E69: New channel-Excavation | F69: Dredging | G69: 120 | H69: 120 | I69: Moderate Refurbishment | J69: 60 | K69: New Build | L69: 0 | M69: 0 | N69: 0 | O69: 2 | P69: 22156.8888 | Q69: 22156.8888 | R69: 772.6037996 | S69: 153.8312699 | T69: 0.3320971537 | U69: 50.30718144 | V69: 0 | W69: 11346.73443 | X69: 34480.69757 | Y69: 0.26988 | Z69: 0 | AA69: 8620.174394 | AB69: 4554.35561 | AC69: 0.1660485769 | AD69: 76.91563493 | AE69: 67 | AF69: 0 | AG69: =VLOOKUP(AE69,ValidationLists!$M$1:$N$102,2,FALSE) -> 0.1380085347 | AH69: 0 | AI69: 0 | AJ69: 0 | AK69: 0 | AL69: 0 | AM69: 0 | AN69: 0 | AO69: 0 | AP69: 0.03724574334 | AQ69: =IF(OR(AF69=3,AF69=2,AF69=0),SUMIFS(FlatMaint!$Z$2:$Z$10000,FlatMaint!$A$2:$A$10000,D69,FlatMaint!$Y$2:$Y$10000,AE69)*AG69,0) -> 0 | AR69: =IF(OR(AF69=3,AF69=2,AF69=0),SUMIFS(FlatRepair!$Z$2:$Z$10000,FlatRepair!$A$2:$A$10000,D69,FlatRepair!$Y$2:$Y$10000,AE69)*AG69,0) -> 0 | AS69: 0 | AT69: 0.03724574334 | AU69: 0 | AV69: 0 | AW69: 0 | AX69: 0 | AY69: 0 | AZ69: 0.03724574334 | BA69: 0 | BB69: =IF($AF69=3,IF($AF$2=2,(R69/SUMIF(Refurb_Poss_Tbl[Refurbishment Possible],I69,Refurb_Poss_Tbl[%]))*AG69,IF($AF$2=3,(R69*AG69)-AV69,R69*AG69)),0) -> 0 | BC69: =IF(AF69=3,IF($AF$2=2,(S69/SUMIF(Refurb_Poss_Tbl[Refurbishment Possible],I69,Refurb_Poss_Tbl[%]))*AG69,IF($AF$2=3,(S69*AG69)-AX69,S69*AG69)),0) -> 0 | BD69: =IF($AF69=3,IF($AF$2=2,(T69/SUMIF(Refurb_Poss_Tbl[Refurbishment Possible],I69,Refurb_Poss_Tbl[%]))*AG69,T69*$AG69),0) -> 0 | BE69: =IF($AF69=3,IF($AF$2=2,(Q69/SUMIF(Refurb_Poss_Tbl[Refurbishment Possible],I69,Refurb_Poss_Tbl[%]))*AG69,Q69*$AG69),0) -> 0 | BF69: =IF($AF69=3,IF($AF$2=2,(U69/SUMIF(Refurb_Poss_Tbl[Refurbishment Possible],I69,Refurb_Poss_Tbl[%]))*AG69,U69*$AG69),0) -> 0 | BG69: =IF($AF69=3,IF($AF$2=2,(V69/SUMIF(Refurb_Poss_Tbl[Refurbishment Possible],I69,Refurb_Poss_Tbl[%]))*AG69,IF($AF$2=3,(V69*AG69)-AW69,V69*AG69)),0) -> 0 | BH69: =IF($AF69=3,IF($AF$2=2,(W69/SUMIF(Refurb_Poss_Tbl[Refurbishment Possible],I69,Refurb_Poss_Tbl[%]))*AG69,W69*$AG69),0) -> 0
A70: DredEA11 | B70: New channel | C70: Dredging Works | D70: DredEA1146 | E70: New channel-Excavation | F70: Dredging | G70: 120 | H70: 120 | I70: Moderate Refurbishment | J70: 60 | K70: New Build | L70: 0 | M70: 0 | N70: 0 | O70: 2 | P70: 22156.8888 | Q70: 22156.8888 | R70: 772.6037996 | S70: 153.8312699 | T70: 0.3320971537 | U70: 50.30718144 | V70: 0 | W70: 11346.73443 | X70: 34480.69757 | Y70: 0.26988 | Z70: 0 | AA70: 8620.174394 | AB70: 4554.35561 | AC70: 0.1660485769 | AD70: 76.91563493 | AE70: 68 | AF70: 0 | AG70: =VLOOKUP(AE70,ValidationLists!$M$1:$N$102,2,FALSE) -> 0.1339888686 | AH70: 0 | AI70: 0 | AJ70: 0 | AK70: 0 | AL70: 0 | AM70: 0 | AN70: 0 | AO70: 0 | AP70: 0.03616091587 | AQ70: =IF(OR(AF70=3,AF70=2,AF70=0),SUMIFS(FlatMaint!$Z$2:$Z$10000,FlatMaint!$A$2:$A$10000,D70,FlatMaint!$Y$2:$Y$10000,AE70)*AG70,0) -> 296.8788752 | AR70: =IF(OR(AF70=3,AF70=2,AF70=0),SUMIFS(FlatRepair!$Z$2:$Z$10000,FlatRepair!$A$2:$A$10000,D70,FlatRepair!$Y$2:$Y$10000,AE70)*AG70,0) -> 0 | AS70: 0 | AT70: 296.9150362 | AU70: 0 | AV70: 0 | AW70: 0 | AX70: 0 | AY70: 0 | AZ70: 296.9150362 | BA70: 0 | BB70: =IF($AF70=3,IF($AF$2=2,(R70/SUMIF(Refurb_Poss_Tbl[Refurbishment Possible],I70,Refurb_Poss_Tbl[%]))*AG70,IF($AF$2=3,(R70*AG70)-AV70,R70*AG70)),0) -> 0 | BC70: =IF(AF70=3,IF($AF$2=2,(S70/SUMIF(Refurb_Poss_Tbl[Refurbishment Possible],I70,Refurb_Poss_Tbl[%]))*AG70,IF($AF$2=3,(S70*AG70)-AX70,S70*AG70)),0) -> 0 | BD70: =IF($AF70=3,IF($AF$2=2,(T70/SUMIF(Refurb_Poss_Tbl[Refurbishment Possible],I70,Refurb_Poss_Tbl[%]))*AG70,T70*$AG70),0) -> 0 | BE70: =IF($AF70=3,IF($AF$2=2,(Q70/SUMIF(Refurb_Poss_Tbl[Refurbishment Possible],I70,Refurb_Poss_Tbl[%]))*AG70,Q70*$AG70),0) -> 0 | BF70: =IF($AF70=3,IF($AF$2=2,(U70/SUMIF(Refurb_Poss_Tbl[Refurbishment Possible],I70,Refurb_Poss_Tbl[%]))*AG70,U70*$AG70),0) -> 0 | BG70: =IF($AF70=3,IF($AF$2=2,(V70/SUMIF(Refurb_Poss_Tbl[Refurbishment Possible],I70,Refurb_Poss_Tbl[%]))*AG70,IF($AF$2=3,(V70*AG70)-AW70,V70*AG70)),0) -> 0 | BH70: =IF($AF70=3,IF($AF$2=2,(W70/SUMIF(Refurb_Poss_Tbl[Refurbishment Possible],I70,Refurb_Poss_Tbl[%]))*AG70,W70*$AG70),0) -> 0
A71: DredEA11 | B71: New channel | C71: Dredging Works | D71: DredEA1146 | E71: New channel-Excavation | F71: Dredging | G71: 120 | H71: 120 | I71: Moderate Refurbishment | J71: 60 | K71: New Build | L71: 0 | M71: 0 | N71: 0 | O71: 2 | P71: 22156.8888 | Q71: 22156.8888 | R71: 772.6037996 | S71: 153.8312699 | T71: 0.3320971537 | U71: 50.30718144 | V71: 0 | W71: 11346.73443 | X71: 34480.69757 | Y71: 0.26988 | Z71: 0 | AA71: 8620.174394 | AB71: 4554.35561 | AC71: 0.1660485769 | AD71: 76.91563493 | AE71: 69 | AF71: 0 | AG71: =VLOOKUP(AE71,ValidationLists!$M$1:$N$102,2,FALSE) -> 0.1300862802 | AH71: 0 | AI71: 0 | AJ71: 0 | AK71: 0 | AL71: 0 | AM71: 0 | AN71: 0 | AO71: 0 | AP71: 0.03510768531 | AQ71: =IF(OR(AF71=3,AF71=2,AF71=0),SUMIFS(FlatMaint!$Z$2:$Z$10000,FlatMaint!$A$2:$A$10000,D71,FlatMaint!$Y$2:$Y$10000,AE71)*AG71,0) -> 0 | AR71: =IF(OR(AF71=3,AF71=2,AF71=0),SUMIFS(FlatRepair!$Z$2:$Z$10000,FlatRepair!$A$2:$A$10000,D71,FlatRepair!$Y$2:$Y$10000,AE71)*AG71,0) -> 0 | AS71: 0 | AT71: 0.03510768531 | AU71: 0 | AV71: 0 | AW71: 0 | AX71: 0 | AY71: 0 | AZ71: 0.03510768531 | BA71: 0 | BB71: =IF($AF71=3,IF($AF$2=2,(R71/SUMIF(Refurb_Poss_Tbl[Refurbishment Possible],I71,Refurb_Poss_Tbl[%]))*AG71,IF($AF$2=3,(R71*AG71)-AV71,R71*AG71)),0) -> 0 | BC71: =IF(AF71=3,IF($AF$2=2,(S71/SUMIF(Refurb_Poss_Tbl[Refurbishment Possible],I71,Refurb_Poss_Tbl[%]))*AG71,IF($AF$2=3,(S71*AG71)-AX71,S71*AG71)),0) -> 0 | BD71: =IF($AF71=3,IF($AF$2=2,(T71/SUMIF(Refurb_Poss_Tbl[Refurbishment Possible],I71,Refurb_Poss_Tbl[%]))*AG71,T71*$AG71),0) -> 0 | BE71: =IF($AF71=3,IF($AF$2=2,(Q71/SUMIF(Refurb_Poss_Tbl[Refurbishment Possible],I71,Refurb_Poss_Tbl[%]))*AG71,Q71*$AG71),0) -> 0 | BF71: =IF($AF71=3,IF($AF$2=2,(U71/SUMIF(Refurb_Poss_Tbl[Refurbishment Possible],I71,Refurb_Poss_Tbl[%]))*AG71,U71*$AG71),0) -> 0 | BG71: =IF($AF71=3,IF($AF$2=2,(V71/SUMIF(Refurb_Poss_Tbl[Refurbishment Possible],I71,Refurb_Poss_Tbl[%]))*AG71,IF($AF$2=3,(V71*AG71)-AW71,V71*AG71)),0) -> 0 | BH71: =IF($AF71=3,IF($AF$2=2,(W71/SUMIF(Refurb_Poss_Tbl[Refurbishment Possible],I71,Refurb_Poss_Tbl[%]))*AG71,W71*$AG71),0) -> 0
A72: DredEA11 | B72: New channel | C72: Dredging Works | D72: DredEA1146 | E72: New channel-Excavation | F72: Dredging | G72: 120 | H72: 120 | I72: Moderate Refurbishment | J72: 60 | K72: New Build | L72: 0 | M72: 0 | N72: 0 | O72: 2 | P72: 22156.8888 | Q72: 22156.8888 | R72: 772.6037996 | S72: 153.8312699 | T72: 0.3320971537 | U72: 50.30718144 | V72: 0 | W72: 11346.73443 | X72: 34480.69757 | Y72: 0.26988 | Z72: 0 | AA72: 8620.174394 | AB72: 4554.35561 | AC72: 0.1660485769 | AD72: 76.91563493 | AE72: 70 | AF72: 0 | AG72: =VLOOKUP(AE72,ValidationLists!$M$1:$N$102,2,FALSE) -> 0.1262973594 | AH72: 0 | AI72: 0 | AJ72: 0 | AK72: 0 | AL72: 0 | AM72: 0 | AN72: 0 | AO72: 0 | AP72: 0.03408513137 | AQ72: =IF(OR(AF72=3,AF72=2,AF72=0),SUMIFS(FlatMaint!$Z$2:$Z$10000,FlatMaint!$A$2:$A$10000,D72,FlatMaint!$Y$2:$Y$10000,AE72)*AG72,0) -> 279.8368133 | AR72: =IF(OR(AF72=3,AF72=2,AF72=0),SUMIFS(FlatRepair!$Z$2:$Z$10000,FlatRepair!$A$2:$A$10000,D72,FlatRepair!$Y$2:$Y$10000,AE72)*AG72,0) -> 0 | AS72: 0 | AT72: 279.8708984 | AU72: 0 | AV72: 0 | AW72: 0 | AX72: 0 | AY72: 0 | AZ72: 279.8708984 | BA72: 0 | BB72: =IF($AF72=3,IF($AF$2=2,(R72/SUMIF(Refurb_Poss_Tbl[Refurbishment Possible],I72,Refurb_Poss_Tbl[%]))*AG72,IF($AF$2=3,(R72*AG72)-AV72,R72*AG72)),0) -> 0 | BC72: =IF(AF72=3,IF($AF$2=2,(S72/SUMIF(Refurb_Poss_Tbl[Refurbishment Possible],I72,Refurb_Poss_Tbl[%]))*AG72,IF($AF$2=3,(S72*AG72)-AX72,S72*AG72)),0) -> 0 | BD72: =IF($AF72=3,IF($AF$2=2,(T72/SUMIF(Refurb_Poss_Tbl[Refurbishment Possible],I72,Refurb_Poss_Tbl[%]))*AG72,T72*$AG72),0) -> 0 | BE72: =IF($AF72=3,IF($AF$2=2,(Q72/SUMIF(Refurb_Poss_Tbl[Refurbishment Possible],I72,Refurb_Poss_Tbl[%]))*AG72,Q72*$AG72),0) -> 0 | BF72: =IF($AF72=3,IF($AF$2=2,(U72/SUMIF(Refurb_Poss_Tbl[Refurbishment Possible],I72,Refurb_Poss_Tbl[%]))*AG72,U72*$AG72),0) -> 0 | BG72: =IF($AF72=3,IF($AF$2=2,(V72/SUMIF(Refurb_Poss_Tbl[Refurbishment Possible],I72,Refurb_Poss_Tbl[%]))*AG72,IF($AF$2=3,(V72*AG72)-AW72,V72*AG72)),0) -> 0 | BH72: =IF($AF72=3,IF($AF$2=2,(W72/SUMIF(Refurb_Poss_Tbl[Refurbishment Possible],I72,Refurb_Poss_Tbl[%]))*AG72,W72*$AG72),0) -> 0
A73: DredEA11 | B73: New channel | C73: Dredging Works | D73: DredEA1146 | E73: New channel-Excavation | F73: Dredging | G73: 120 | H73: 120 | I73: Moderate Refurbishment | J73: 60 | K73: New Build | L73: 0 | M73: 0 | N73: 0 | O73: 2 | P73: 22156.8888 | Q73: 22156.8888 | R73: 772.6037996 | S73: 153.8312699 | T73: 0.3320971537 | U73: 50.30718144 | V73: 0 | W73: 11346.73443 | X73: 34480.69757 | Y73: 0.26988 | Z73: 0 | AA73: 8620.174394 | AB73: 4554.35561 | AC73: 0.1660485769 | AD73: 76.91563493 | AE73: 71 | AF73: 0 | AG73: =VLOOKUP(AE73,ValidationLists!$M$1:$N$102,2,FALSE) -> 0.1226187956 | AH73: 0 | AI73: 0 | AJ73: 0 | AK73: 0 | AL73: 0 | AM73: 0 | AN73: 0 | AO73: 0 | AP73: 0.03309236055 | AQ73: =IF(OR(AF73=3,AF73=2,AF73=0),SUMIFS(FlatMaint!$Z$2:$Z$10000,FlatMaint!$A$2:$A$10000,D73,FlatMaint!$Y$2:$Y$10000,AE73)*AG73,0) -> 0 | AR73: =IF(OR(AF73=3,AF73=2,AF73=0),SUMIFS(FlatRepair!$Z$2:$Z$10000,FlatRepair!$A$2:$A$10000,D73,FlatRepair!$Y$2:$Y$10000,AE73)*AG73,0) -> 0 | AS73: 0 | AT73: 0.03309236055 | AU73: 0 | AV73: 0 | AW73: 0 | AX73: 0 | AY73: 0 | AZ73: 0.03309236055 | BA73: 0 | BB73: =IF($AF73=3,IF($AF$2=2,(R73/SUMIF(Refurb_Poss_Tbl[Refurbishment Possible],I73,Refurb_Poss_Tbl[%]))*AG73,IF($AF$2=3,(R73*AG73)-AV73,R73*AG73)),0) -> 0 | BC73: =IF(AF73=3,IF($AF$2=2,(S73/SUMIF(Refurb_Poss_Tbl[Refurbishment Possible],I73,Refurb_Poss_Tbl[%]))*AG73,IF($AF$2=3,(S73*AG73)-AX73,S73*AG73)),0) -> 0 | BD73: =IF($AF73=3,IF($AF$2=2,(T73/SUMIF(Refurb_Poss_Tbl[Refurbishment Possible],I73,Refurb_Poss_Tbl[%]))*AG73,T73*$AG73),0) -> 0 | BE73: =IF($AF73=3,IF($AF$2=2,(Q73/SUMIF(Refurb_Poss_Tbl[Refurbishment Possible],I73,Refurb_Poss_Tbl[%]))*AG73,Q73*$AG73),0) -> 0 | BF73: =IF($AF73=3,IF($AF$2=2,(U73/SUMIF(Refurb_Poss_Tbl[Refurbishment Possible],I73,Refurb_Poss_Tbl[%]))*AG73,U73*$AG73),0) -> 0 | BG73: =IF($AF73=3,IF($AF$2=2,(V73/SUMIF(Refurb_Poss_Tbl[Refurbishment Possible],I73,Refurb_Poss_Tbl[%]))*AG73,IF($AF$2=3,(V73*AG73)-AW73,V73*AG73)),0) -> 0 | BH73: =IF($AF73=3,IF($AF$2=2,(W73/SUMIF(Refurb_Poss_Tbl[Refurbishment Possible],I73,Refurb_Poss_Tbl[%]))*AG73,W73*$AG73),0) -> 0
A74: DredEA11 | B74: New channel | C74: Dredging Works | D74: DredEA1146 | E74: New channel-Excavation | F74: Dredging | G74: 120 | H74: 120 | I74: Moderate Refurbishment | J74: 60 | K74: New Build | L74: 0 | M74: 0 | N74: 0 | O74: 2 | P74: 22156.8888 | Q74: 22156.8888 | R74: 772.6037996 | S74: 153.8312699 | T74: 0.3320971537 | U74: 50.30718144 | V74: 0 | W74: 11346.73443 | X74: 34480.69757 | Y74: 0.26988 | Z74: 0 | AA74: 8620.174394 | AB74: 4554.35561 | AC74: 0.1660485769 | AD74: 76.91563493 | AE74: 72 | AF74: 0 | AG74: =VLOOKUP(AE74,ValidationLists!$M$1:$N$102,2,FALSE) -> 0.1190473743 | AH74: 0 | AI74: 0 | AJ74: 0 | AK74: 0 | AL74: 0 | AM74: 0 | AN74: 0 | AO74: 0 | AP74: 0.03212850539 | AQ74: =IF(OR(AF74=3,AF74=2,AF74=0),SUMIFS(FlatMaint!$Z$2:$Z$10000,FlatMaint!$A$2:$A$10000,D74,FlatMaint!$Y$2:$Y$10000,AE74)*AG74,0) -> 263.7730355 | AR74: =IF(OR(AF74=3,AF74=2,AF74=0),SUMIFS(FlatRepair!$Z$2:$Z$10000,FlatRepair!$A$2:$A$10000,D74,FlatRepair!$Y$2:$Y$10000,AE74)*AG74,0) -> 0 | AS74: 0 | AT74: 263.805164 | AU74: 0 | AV74: 0 | AW74: 0 | AX74: 0 | AY74: 0 | AZ74: 263.805164 | BA74: 0 | BB74: =IF($AF74=3,IF($AF$2=2,(R74/SUMIF(Refurb_Poss_Tbl[Refurbishment Possible],I74,Refurb_Poss_Tbl[%]))*AG74,IF($AF$2=3,(R74*AG74)-AV74,R74*AG74)),0) -> 0 | BC74: =IF(AF74=3,IF($AF$2=2,(S74/SUMIF(Refurb_Poss_Tbl[Refurbishment Possible],I74,Refurb_Poss_Tbl[%]))*AG74,IF($AF$2=3,(S74*AG74)-AX74,S74*AG74)),0) -> 0 | BD74: =IF($AF74=3,IF($AF$2=2,(T74/SUMIF(Refurb_Poss_Tbl[Refurbishment Possible],I74,Refurb_Poss_Tbl[%]))*AG74,T74*$AG74),0) -> 0 | BE74: =IF($AF74=3,IF($AF$2=2,(Q74/SUMIF(Refurb_Poss_Tbl[Refurbishment Possible],I74,Refurb_Poss_Tbl[%]))*AG74,Q74*$AG74),0) -> 0 | BF74: =IF($AF74=3,IF($AF$2=2,(U74/SUMIF(Refurb_Poss_Tbl[Refurbishment Possible],I74,Refurb_Poss_Tbl[%]))*AG74,U74*$AG74),0) -> 0 | BG74: =IF($AF74=3,IF($AF$2=2,(V74/SUMIF(Refurb_Poss_Tbl[Refurbishment Possible],I74,Refurb_Poss_Tbl[%]))*AG74,IF($AF$2=3,(V74*AG74)-AW74,V74*AG74)),0) -> 0 | BH74: =IF($AF74=3,IF($AF$2=2,(W74/SUMIF(Refurb_Poss_Tbl[Refurbishment Possible],I74,Refurb_Poss_Tbl[%]))*AG74,W74*$AG74),0) -> 0
A75: DredEA11 | B75: New channel | C75: Dredging Works | D75: DredEA1146 | E75: New channel-Excavation | F75: Dredging | G75: 120 | H75: 120 | I75: Moderate Refurbishment | J75: 60 | K75: New Build | L75: 0 | M75: 0 | N75: 0 | O75: 2 | P75: 22156.8888 | Q75: 22156.8888 | R75: 772.6037996 | S75: 153.8312699 | T75: 0.3320971537 | U75: 50.30718144 | V75: 0 | W75: 11346.73443 | X75: 34480.69757 | Y75: 0.26988 | Z75: 0 | AA75: 8620.174394 | AB75: 4554.35561 | AC75: 0.1660485769 | AD75: 76.91563493 | AE75: 73 | AF75: 0 | AG75: =VLOOKUP(AE75,ValidationLists!$M$1:$N$102,2,FALSE) -> 0.1155799751 | AH75: 0 | AI75: 0 | AJ75: 0 | AK75: 0 | AL75: 0 | AM75: 0 | AN75: 0 | AO75: 0 | AP75: 0.03119272368 | AQ75: =IF(OR(AF75=3,AF75=2,AF75=0),SUMIFS(FlatMaint!$Z$2:$Z$10000,FlatMaint!$A$2:$A$10000,D75,FlatMaint!$Y$2:$Y$10000,AE75)*AG75,0) -> 0 | AR75: =IF(OR(AF75=3,AF75=2,AF75=0),SUMIFS(FlatRepair!$Z$2:$Z$10000,FlatRepair!$A$2:$A$10000,D75,FlatRepair!$Y$2:$Y$10000,AE75)*AG75,0) -> 0 | AS75: 0 | AT75: 0.03119272368 | AU75: 0 | AV75: 0 | AW75: 0 | AX75: 0 | AY75: 0 | AZ75: 0.03119272368 | BA75: 0 | BB75: =IF($AF75=3,IF($AF$2=2,(R75/SUMIF(Refurb_Poss_Tbl[Refurbishment Possible],I75,Refurb_Poss_Tbl[%]))*AG75,IF($AF$2=3,(R75*AG75)-AV75,R75*AG75)),0) -> 0 | BC75: =IF(AF75=3,IF($AF$2=2,(S75/SUMIF(Refurb_Poss_Tbl[Refurbishment Possible],I75,Refurb_Poss_Tbl[%]))*AG75,IF($AF$2=3,(S75*AG75)-AX75,S75*AG75)),0) -> 0 | BD75: =IF($AF75=3,IF($AF$2=2,(T75/SUMIF(Refurb_Poss_Tbl[Refurbishment Possible],I75,Refurb_Poss_Tbl[%]))*AG75,T75*$AG75),0) -> 0 | BE75: =IF($AF75=3,IF($AF$2=2,(Q75/SUMIF(Refurb_Poss_Tbl[Refurbishment Possible],I75,Refurb_Poss_Tbl[%]))*AG75,Q75*$AG75),0) -> 0 | BF75: =IF($AF75=3,IF($AF$2=2,(U75/SUMIF(Refurb_Poss_Tbl[Refurbishment Possible],I75,Refurb_Poss_Tbl[%]))*AG75,U75*$AG75),0) -> 0 | BG75: =IF($AF75=3,IF($AF$2=2,(V75/SUMIF(Refurb_Poss_Tbl[Refurbishment Possible],I75,Refurb_Poss_Tbl[%]))*AG75,IF($AF$2=3,(V75*AG75)-AW75,V75*AG75)),0) -> 0 | BH75: =IF($AF75=3,IF($AF$2=2,(W75/SUMIF(Refurb_Poss_Tbl[Refurbishment Possible],I75,Refurb_Poss_Tbl[%]))*AG75,W75*$AG75),0) -> 0
A76: DredEA11 | B76: New channel | C76: Dredging Works | D76: DredEA1146 | E76: New channel-Excavation | F76: Dredging | G76: 120 | H76: 120 | I76: Moderate Refurbishment | J76: 60 | K76: New Build | L76: 0 | M76: 0 | N76: 0 | O76: 2 | P76: 22156.8888 | Q76: 22156.8888 | R76: 772.6037996 | S76: 153.8312699 | T76: 0.3320971537 | U76: 50.30718144 | V76: 0 | W76: 11346.73443 | X76: 34480.69757 | Y76: 0.26988 | Z76: 0 | AA76: 8620.174394 | AB76: 4554.35561 | AC76: 0.1660485769 | AD76: 76.91563493 | AE76: 74 | AF76: 0 | AG76: =VLOOKUP(AE76,ValidationLists!$M$1:$N$102,2,FALSE) -> 0.112213568 | AH76: 0 | AI76: 0 | AJ76: 0 | AK76: 0 | AL76: 0 | AM76: 0 | AN76: 0 | AO76: 0 | AP76: 0.03028419774 | AQ76: =IF(OR(AF76=3,AF76=2,AF76=0),SUMIFS(FlatMaint!$Z$2:$Z$10000,FlatMaint!$A$2:$A$10000,D76,FlatMaint!$Y$2:$Y$10000,AE76)*AG76,0) -> 248.6313842 | AR76: =IF(OR(AF76=3,AF76=2,AF76=0),SUMIFS(FlatRepair!$Z$2:$Z$10000,FlatRepair!$A$2:$A$10000,D76,FlatRepair!$Y$2:$Y$10000,AE76)*AG76,0) -> 0 | AS76: 0 | AT76: 248.6616684 | AU76: 0 | AV76: 0 | AW76: 0 | AX76: 0 | AY76: 0 | AZ76: 248.6616684 | BA76: 0 | BB76: =IF($AF76=3,IF($AF$2=2,(R76/SUMIF(Refurb_Poss_Tbl[Refurbishment Possible],I76,Refurb_Poss_Tbl[%]))*AG76,IF($AF$2=3,(R76*AG76)-AV76,R76*AG76)),0) -> 0 | BC76: =IF(AF76=3,IF($AF$2=2,(S76/SUMIF(Refurb_Poss_Tbl[Refurbishment Possible],I76,Refurb_Poss_Tbl[%]))*AG76,IF($AF$2=3,(S76*AG76)-AX76,S76*AG76)),0) -> 0 | BD76: =IF($AF76=3,IF($AF$2=2,(T76/SUMIF(Refurb_Poss_Tbl[Refurbishment Possible],I76,Refurb_Poss_Tbl[%]))*AG76,T76*$AG76),0) -> 0 | BE76: =IF($AF76=3,IF($AF$2=2,(Q76/SUMIF(Refurb_Poss_Tbl[Refurbishment Possible],I76,Refurb_Poss_Tbl[%]))*AG76,Q76*$AG76),0) -> 0 | BF76: =IF($AF76=3,IF($AF$2=2,(U76/SUMIF(Refurb_Poss_Tbl[Refurbishment Possible],I76,Refurb_Poss_Tbl[%]))*AG76,U76*$AG76),0) -> 0 | BG76: =IF($AF76=3,IF($AF$2=2,(V76/SUMIF(Refurb_Poss_Tbl[Refurbishment Possible],I76,Refurb_Poss_Tbl[%]))*AG76,IF($AF$2=3,(V76*AG76)-AW76,V76*AG76)),0) -> 0 | BH76: =IF($AF76=3,IF($AF$2=2,(W76/SUMIF(Refurb_Poss_Tbl[Refurbishment Possible],I76,Refurb_Poss_Tbl[%]))*AG76,W76*$AG76),0) -> 0
A77: DredEA11 | B77: New channel | C77: Dredging Works | D77: DredEA1146 | E77: New channel-Excavation | F77: Dredging | G77: 120 | H77: 120 | I77: Moderate Refurbishment | J77: 60 | K77: New Build | L77: 0 | M77: 0 | N77: 0 | O77: 2 | P77: 22156.8888 | Q77: 22156.8888 | R77: 772.6037996 | S77: 153.8312699 | T77: 0.3320971537 | U77: 50.30718144 | V77: 0 | W77: 11346.73443 | X77: 34480.69757 | Y77: 0.26988 | Z77: 0 | AA77: 8620.174394 | AB77: 4554.35561 | AC77: 0.1660485769 | AD77: 76.91563493 | AE77: 75 | AF77: 0 | AG77: =VLOOKUP(AE77,ValidationLists!$M$1:$N$102,2,FALSE) -> 0.1089452117 | AH77: 0 | AI77: 0 | AJ77: 0 | AK77: 0 | AL77: 0 | AM77: 0 | AN77: 0 | AO77: 0 | AP77: 0.02940213373 | AQ77: =IF(OR(AF77=3,AF77=2,AF77=0),SUMIFS(FlatMaint!$Z$2:$Z$10000,FlatMaint!$A$2:$A$10000,D77,FlatMaint!$Y$2:$Y$10000,AE77)*AG77,0) -> 0 | AR77: =IF(OR(AF77=3,AF77=2,AF77=0),SUMIFS(FlatRepair!$Z$2:$Z$10000,FlatRepair!$A$2:$A$10000,D77,FlatRepair!$Y$2:$Y$10000,AE77)*AG77,0) -> 0 | AS77: 0 | AT77: 0.02940213373 | AU77: 0 | AV77: 0 | AW77: 0 | AX77: 0 | AY77: 0 | AZ77: 0.02940213373 | BA77: 0 | BB77: =IF($AF77=3,IF($AF$2=2,(R77/SUMIF(Refurb_Poss_Tbl[Refurbishment Possible],I77,Refurb_Poss_Tbl[%]))*AG77,IF($AF$2=3,(R77*AG77)-AV77,R77*AG77)),0) -> 0 | BC77: =IF(AF77=3,IF($AF$2=2,(S77/SUMIF(Refurb_Poss_Tbl[Refurbishment Possible],I77,Refurb_Poss_Tbl[%]))*AG77,IF($AF$2=3,(S77*AG77)-AX77,S77*AG77)),0) -> 0 | BD77: =IF($AF77=3,IF($AF$2=2,(T77/SUMIF(Refurb_Poss_Tbl[Refurbishment Possible],I77,Refurb_Poss_Tbl[%]))*AG77,T77*$AG77),0) -> 0 | BE77: =IF($AF77=3,IF($AF$2=2,(Q77/SUMIF(Refurb_Poss_Tbl[Refurbishment Possible],I77,Refurb_Poss_Tbl[%]))*AG77,Q77*$AG77),0) -> 0 | BF77: =IF($AF77=3,IF($AF$2=2,(U77/SUMIF(Refurb_Poss_Tbl[Refurbishment Possible],I77,Refurb_Poss_Tbl[%]))*AG77,U77*$AG77),0) -> 0 | BG77: =IF($AF77=3,IF($AF$2=2,(V77/SUMIF(Refurb_Poss_Tbl[Refurbishment Possible],I77,Refurb_Poss_Tbl[%]))*AG77,IF($AF$2=3,(V77*AG77)-AW77,V77*AG77)),0) -> 0 | BH77: =IF($AF77=3,IF($AF$2=2,(W77/SUMIF(Refurb_Poss_Tbl[Refurbishment Possible],I77,Refurb_Poss_Tbl[%]))*AG77,W77*$AG77),0) -> 0
A78: DredEA11 | B78: New channel | C78: Dredging Works | D78: DredEA1146 | E78: New channel-Excavation | F78: Dredging | G78: 120 | H78: 120 | I78: Moderate Refurbishment | J78: 60 | K78: New Build | L78: 0 | M78: 0 | N78: 0 | O78: 2 | P78: 22156.8888 | Q78: 22156.8888 | R78: 772.6037996 | S78: 153.8312699 | T78: 0.3320971537 | U78: 50.30718144 | V78: 0 | W78: 11346.73443 | X78: 34480.69757 | Y78: 0.26988 | Z78: 0 | AA78: 8620.174394 | AB78: 4554.35561 | AC78: 0.1660485769 | AD78: 76.91563493 | AE78: 76 | AF78: 0 | AG78: =VLOOKUP(AE78,ValidationLists!$M$1:$N$102,2,FALSE) -> 0.1531038918 | AH78: 0 | AI78: 0 | AJ78: 0 | AK78: 0 | AL78: 0 | AM78: 0 | AN78: 0 | AO78: 0 | AP78: 0.04131967831 | AQ78: =IF(OR(AF78=3,AF78=2,AF78=0),SUMIFS(FlatMaint!$Z$2:$Z$10000,FlatMaint!$A$2:$A$10000,D78,FlatMaint!$Y$2:$Y$10000,AE78)*AG78,0) -> 339.2319948 | AR78: =IF(OR(AF78=3,AF78=2,AF78=0),SUMIFS(FlatRepair!$Z$2:$Z$10000,FlatRepair!$A$2:$A$10000,D78,FlatRepair!$Y$2:$Y$10000,AE78)*AG78,0) -> 0 | AS78: 0 | AT78: 339.2733145 | AU78: 0 | AV78: 0 | AW78: 0 | AX78: 0 | AY78: 0 | AZ78: 339.2733145 | BA78: 0 | BB78: =IF($AF78=3,IF($AF$2=2,(R78/SUMIF(Refurb_Poss_Tbl[Refurbishment Possible],I78,Refurb_Poss_Tbl[%]))*AG78,IF($AF$2=3,(R78*AG78)-AV78,R78*AG78)),0) -> 0 | BC78: =IF(AF78=3,IF($AF$2=2,(S78/SUMIF(Refurb_Poss_Tbl[Refurbishment Possible],I78,Refurb_Poss_Tbl[%]))*AG78,IF($AF$2=3,(S78*AG78)-AX78,S78*AG78)),0) -> 0 | BD78: =IF($AF78=3,IF($AF$2=2,(T78/SUMIF(Refurb_Poss_Tbl[Refurbishment Possible],I78,Refurb_Poss_Tbl[%]))*AG78,T78*$AG78),0) -> 0 | BE78: =IF($AF78=3,IF($AF$2=2,(Q78/SUMIF(Refurb_Poss_Tbl[Refurbishment Possible],I78,Refurb_Poss_Tbl[%]))*AG78,Q78*$AG78),0) -> 0 | BF78: =IF($AF78=3,IF($AF$2=2,(U78/SUMIF(Refurb_Poss_Tbl[Refurbishment Possible],I78,Refurb_Poss_Tbl[%]))*AG78,U78*$AG78),0) -> 0 | BG78: =IF($AF78=3,IF($AF$2=2,(V78/SUMIF(Refurb_Poss_Tbl[Refurbishment Possible],I78,Refurb_Poss_Tbl[%]))*AG78,IF($AF$2=3,(V78*AG78)-AW78,V78*AG78)),0) -> 0 | BH78: =IF($AF78=3,IF($AF$2=2,(W78/SUMIF(Refurb_Poss_Tbl[Refurbishment Possible],I78,Refurb_Poss_Tbl[%]))*AG78,W78*$AG78),0) -> 0
A79: DredEA11 | B79: New channel | C79: Dredging Works | D79: DredEA1146 | E79: New channel-Excavation | F79: Dredging | G79: 120 | H79: 120 | I79: Moderate Refurbishment | J79: 60 | K79: New Build | L79: 0 | M79: 0 | N79: 0 | O79: 2 | P79: 22156.8888 | Q79: 22156.8888 | R79: 772.6037996 | S79: 153.8312699 | T79: 0.3320971537 | U79: 50.30718144 | V79: 0 | W79: 11346.73443 | X79: 34480.69757 | Y79: 0.26988 | Z79: 0 | AA79: 8620.174394 | AB79: 4554.35561 | AC79: 0.1660485769 | AD79: 76.91563493 | AE79: 77 | AF79: 0 | AG79: =VLOOKUP(AE79,ValidationLists!$M$1:$N$102,2,FALSE) -> 0.1493696505 | AH79: 0 | AI79: 0 | AJ79: 0 | AK79: 0 | AL79: 0 | AM79: 0 | AN79: 0 | AO79: 0 | AP79: 0.04031188128 | AQ79: =IF(OR(AF79=3,AF79=2,AF79=0),SUMIFS(FlatMaint!$Z$2:$Z$10000,FlatMaint!$A$2:$A$10000,D79,FlatMaint!$Y$2:$Y$10000,AE79)*AG79,0) -> 0 | AR79: =IF(OR(AF79=3,AF79=2,AF79=0),SUMIFS(FlatRepair!$Z$2:$Z$10000,FlatRepair!$A$2:$A$10000,D79,FlatRepair!$Y$2:$Y$10000,AE79)*AG79,0) -> 0 | AS79: 0 | AT79: 0.04031188128 | AU79: 0 | AV79: 0 | AW79: 0 | AX79: 0 | AY79: 0 | AZ79: 0.04031188128 | BA79: 0 | BB79: =IF($AF79=3,IF($AF$2=2,(R79/SUMIF(Refurb_Poss_Tbl[Refurbishment Possible],I79,Refurb_Poss_Tbl[%]))*AG79,IF($AF$2=3,(R79*AG79)-AV79,R79*AG79)),0) -> 0 | BC79: =IF(AF79=3,IF($AF$2=2,(S79/SUMIF(Refurb_Poss_Tbl[Refurbishment Possible],I79,Refurb_Poss_Tbl[%]))*AG79,IF($AF$2=3,(S79*AG79)-AX79,S79*AG79)),0) -> 0 | BD79: =IF($AF79=3,IF($AF$2=2,(T79/SUMIF(Refurb_Poss_Tbl[Refurbishment Possible],I79,Refurb_Poss_Tbl[%]))*AG79,T79*$AG79),0) -> 0 | BE79: =IF($AF79=3,IF($AF$2=2,(Q79/SUMIF(Refurb_Poss_Tbl[Refurbishment Possible],I79,Refurb_Poss_Tbl[%]))*AG79,Q79*$AG79),0) -> 0 | BF79: =IF($AF79=3,IF($AF$2=2,(U79/SUMIF(Refurb_Poss_Tbl[Refurbishment Possible],I79,Refurb_Poss_Tbl[%]))*AG79,U79*$AG79),0) -> 0 | BG79: =IF($AF79=3,IF($AF$2=2,(V79/SUMIF(Refurb_Poss_Tbl[Refurbishment Possible],I79,Refurb_Poss_Tbl[%]))*AG79,IF($AF$2=3,(V79*AG79)-AW79,V79*AG79)),0) -> 0 | BH79: =IF($AF79=3,IF($AF$2=2,(W79/SUMIF(Refurb_Poss_Tbl[Refurbishment Possible],I79,Refurb_Poss_Tbl[%]))*AG79,W79*$AG79),0) -> 0
A80: DredEA11 | B80: New channel | C80: Dredging Works | D80: DredEA1146 | E80: New channel-Excavation | F80: Dredging | G80: 120 | H80: 120 | I80: Moderate Refurbishment | J80: 60 | K80: New Build | L80: 0 | M80: 0 | N80: 0 | O80: 2 | P80: 22156.8888 | Q80: 22156.8888 | R80: 772.6037996 | S80: 153.8312699 | T80: 0.3320971537 | U80: 50.30718144 | V80: 0 | W80: 11346.73443 | X80: 34480.69757 | Y80: 0.26988 | Z80: 0 | AA80: 8620.174394 | AB80: 4554.35561 | AC80: 0.1660485769 | AD80: 76.91563493 | AE80: 78 | AF80: 0 | AG80: =VLOOKUP(AE80,ValidationLists!$M$1:$N$102,2,FALSE) -> 0.1457264883 | AH80: 0 | AI80: 0 | AJ80: 0 | AK80: 0 | AL80: 0 | AM80: 0 | AN80: 0 | AO80: 0 | AP80: 0.03932866466 | AQ80: =IF(OR(AF80=3,AF80=2,AF80=0),SUMIFS(FlatMaint!$Z$2:$Z$10000,FlatMaint!$A$2:$A$10000,D80,FlatMaint!$Y$2:$Y$10000,AE80)*AG80,0) -> 322.8858963 | AR80: =IF(OR(AF80=3,AF80=2,AF80=0),SUMIFS(FlatRepair!$Z$2:$Z$10000,FlatRepair!$A$2:$A$10000,D80,FlatRepair!$Y$2:$Y$10000,AE80)*AG80,0) -> 0 | AS80: 0 | AT80: 322.925225 | AU80: 0 | AV80: 0 | AW80: 0 | AX80: 0 | AY80: 0 | AZ80: 322.925225 | BA80: 0 | BB80: =IF($AF80=3,IF($AF$2=2,(R80/SUMIF(Refurb_Poss_Tbl[Refurbishment Possible],I80,Refurb_Poss_Tbl[%]))*AG80,IF($AF$2=3,(R80*AG80)-AV80,R80*AG80)),0) -> 0 | BC80: =IF(AF80=3,IF($AF$2=2,(S80/SUMIF(Refurb_Poss_Tbl[Refurbishment Possible],I80,Refurb_Poss_Tbl[%]))*AG80,IF($AF$2=3,(S80*AG80)-AX80,S80*AG80)),0) -> 0 | BD80: =IF($AF80=3,IF($AF$2=2,(T80/SUMIF(Refurb_Poss_Tbl[Refurbishment Possible],I80,Refurb_Poss_Tbl[%]))*AG80,T80*$AG80),0) -> 0 | BE80: =IF($AF80=3,IF($AF$2=2,(Q80/SUMIF(Refurb_Poss_Tbl[Refurbishment Possible],I80,Refurb_Poss_Tbl[%]))*AG80,Q80*$AG80),0) -> 0 | BF80: =IF($AF80=3,IF($AF$2=2,(U80/SUMIF(Refurb_Poss_Tbl[Refurbishment Possible],I80,Refurb_Poss_Tbl[%]))*AG80,U80*$AG80),0) -> 0 | BG80: =IF($AF80=3,IF($AF$2=2,(V80/SUMIF(Refurb_Poss_Tbl[Refurbishment Possible],I80,Refurb_Poss_Tbl[%]))*AG80,IF($AF$2=3,(V80*AG80)-AW80,V80*AG80)),0) -> 0 | BH80: =IF($AF80=3,IF($AF$2=2,(W80/SUMIF(Refurb_Poss_Tbl[Refurbishment Possible],I80,Refurb_Poss_Tbl[%]))*AG80,W80*$AG80),0) -> 0
A81: DredEA11 | B81: New channel | C81: Dredging Works | D81: DredEA1146 | E81: New channel-Excavation | F81: Dredging | G81: 120 | H81: 120 | I81: Moderate Refurbishment | J81: 60 | K81: New Build | L81: 0 | M81: 0 | N81: 0 | O81: 2 | P81: 22156.8888 | Q81: 22156.8888 | R81: 772.6037996 | S81: 153.8312699 | T81: 0.3320971537 | U81: 50.30718144 | V81: 0 | W81: 11346.73443 | X81: 34480.69757 | Y81: 0.26988 | Z81: 0 | AA81: 8620.174394 | AB81: 4554.35561 | AC81: 0.1660485769 | AD81: 76.91563493 | AE81: 79 | AF81: 0 | AG81: =VLOOKUP(AE81,ValidationLists!$M$1:$N$102,2,FALSE) -> 0.1421721837 | AH81: 0 | AI81: 0 | AJ81: 0 | AK81: 0 | AL81: 0 | AM81: 0 | AN81: 0 | AO81: 0 | AP81: 0.03836942894 | AQ81: =IF(OR(AF81=3,AF81=2,AF81=0),SUMIFS(FlatMaint!$Z$2:$Z$10000,FlatMaint!$A$2:$A$10000,D81,FlatMaint!$Y$2:$Y$10000,AE81)*AG81,0) -> 0 | AR81: =IF(OR(AF81=3,AF81=2,AF81=0),SUMIFS(FlatRepair!$Z$2:$Z$10000,FlatRepair!$A$2:$A$10000,D81,FlatRepair!$Y$2:$Y$10000,AE81)*AG81,0) -> 0 | AS81: 0 | AT81: 0.03836942894 | AU81: 0 | AV81: 0 | AW81: 0 | AX81: 0 | AY81: 0 | AZ81: 0.03836942894 | BA81: 0 | BB81: =IF($AF81=3,IF($AF$2=2,(R81/SUMIF(Refurb_Poss_Tbl[Refurbishment Possible],I81,Refurb_Poss_Tbl[%]))*AG81,IF($AF$2=3,(R81*AG81)-AV81,R81*AG81)),0) -> 0 | BC81: =IF(AF81=3,IF($AF$2=2,(S81/SUMIF(Refurb_Poss_Tbl[Refurbishment Possible],I81,Refurb_Poss_Tbl[%]))*AG81,IF($AF$2=3,(S81*AG81)-AX81,S81*AG81)),0) -> 0 | BD81: =IF($AF81=3,IF($AF$2=2,(T81/SUMIF(Refurb_Poss_Tbl[Refurbishment Possible],I81,Refurb_Poss_Tbl[%]))*AG81,T81*$AG81),0) -> 0 | BE81: =IF($AF81=3,IF($AF$2=2,(Q81/SUMIF(Refurb_Poss_Tbl[Refurbishment Possible],I81,Refurb_Poss_Tbl[%]))*AG81,Q81*$AG81),0) -> 0 | BF81: =IF($AF81=3,IF($AF$2=2,(U81/SUMIF(Refurb_Poss_Tbl[Refurbishment Possible],I81,Refurb_Poss_Tbl[%]))*AG81,U81*$AG81),0) -> 0 | BG81: =IF($AF81=3,IF($AF$2=2,(V81/SUMIF(Refurb_Poss_Tbl[Refurbishment Possible],I81,Refurb_Poss_Tbl[%]))*AG81,IF($AF$2=3,(V81*AG81)-AW81,V81*AG81)),0) -> 0 | BH81: =IF($AF81=3,IF($AF$2=2,(W81/SUMIF(Refurb_Poss_Tbl[Refurbishment Possible],I81,Refurb_Poss_Tbl[%]))*AG81,W81*$AG81),0) -> 0
A82: DredEA11 | B82: New channel | C82: Dredging Works | D82: DredEA1146 | E82: New channel-Excavation | F82: Dredging | G82: 120 | H82: 120 | I82: Moderate Refurbishment | J82: 60 | K82: New Build | L82: 0 | M82: 0 | N82: 0 | O82: 2 | P82: 22156.8888 | Q82: 22156.8888 | R82: 772.6037996 | S82: 153.8312699 | T82: 0.3320971537 | U82: 50.30718144 | V82: 0 | W82: 11346.73443 | X82: 34480.69757 | Y82: 0.26988 | Z82: 0 | AA82: 8620.174394 | AB82: 4554.35561 | AC82: 0.1660485769 | AD82: 76.91563493 | AE82: 80 | AF82: 0 | AG82: =VLOOKUP(AE82,ValidationLists!$M$1:$N$102,2,FALSE) -> 0.1387045695 | AH82: 0 | AI82: 0 | AJ82: 0 | AK82: 0 | AL82: 0 | AM82: 0 | AN82: 0 | AO82: 0 | AP82: 0.03743358921 | AQ82: =IF(OR(AF82=3,AF82=2,AF82=0),SUMIFS(FlatMaint!$Z$2:$Z$10000,FlatMaint!$A$2:$A$10000,D82,FlatMaint!$Y$2:$Y$10000,AE82)*AG82,0) -> 307.3274444 | AR82: =IF(OR(AF82=3,AF82=2,AF82=0),SUMIFS(FlatRepair!$Z$2:$Z$10000,FlatRepair!$A$2:$A$10000,D82,FlatRepair!$Y$2:$Y$10000,AE82)*AG82,0) -> 0 | AS82: 0 | AT82: 307.364878 | AU82: 0 | AV82: 0 | AW82: 0 | AX82: 0 | AY82: 0 | AZ82: 307.364878 | BA82: 0 | BB82: =IF($AF82=3,IF($AF$2=2,(R82/SUMIF(Refurb_Poss_Tbl[Refurbishment Possible],I82,Refurb_Poss_Tbl[%]))*AG82,IF($AF$2=3,(R82*AG82)-AV82,R82*AG82)),0) -> 0 | BC82: =IF(AF82=3,IF($AF$2=2,(S82/SUMIF(Refurb_Poss_Tbl[Refurbishment Possible],I82,Refurb_Poss_Tbl[%]))*AG82,IF($AF$2=3,(S82*AG82)-AX82,S82*AG82)),0) -> 0 | BD82: =IF($AF82=3,IF($AF$2=2,(T82/SUMIF(Refurb_Poss_Tbl[Refurbishment Possible],I82,Refurb_Poss_Tbl[%]))*AG82,T82*$AG82),0) -> 0 | BE82: =IF($AF82=3,IF($AF$2=2,(Q82/SUMIF(Refurb_Poss_Tbl[Refurbishment Possible],I82,Refurb_Poss_Tbl[%]))*AG82,Q82*$AG82),0) -> 0 | BF82: =IF($AF82=3,IF($AF$2=2,(U82/SUMIF(Refurb_Poss_Tbl[Refurbishment Possible],I82,Refurb_Poss_Tbl[%]))*AG82,U82*$AG82),0) -> 0 | BG82: =IF($AF82=3,IF($AF$2=2,(V82/SUMIF(Refurb_Poss_Tbl[Refurbishment Possible],I82,Refurb_Poss_Tbl[%]))*AG82,IF($AF$2=3,(V82*AG82)-AW82,V82*AG82)),0) -> 0 | BH82: =IF($AF82=3,IF($AF$2=2,(W82/SUMIF(Refurb_Poss_Tbl[Refurbishment Possible],I82,Refurb_Poss_Tbl[%]))*AG82,W82*$AG82),0) -> 0
A83: DredEA11 | B83: New channel | C83: Dredging Works | D83: DredEA1146 | E83: New channel-Excavation | F83: Dredging | G83: 120 | H83: 120 | I83: Moderate Refurbishment | J83: 60 | K83: New Build | L83: 0 | M83: 0 | N83: 0 | O83: 2 | P83: 22156.8888 | Q83: 22156.8888 | R83: 772.6037996 | S83: 153.8312699 | T83: 0.3320971537 | U83: 50.30718144 | V83: 0 | W83: 11346.73443 | X83: 34480.69757 | Y83: 0.26988 | Z83: 0 | AA83: 8620.174394 | AB83: 4554.35561 | AC83: 0.1660485769 | AD83: 76.91563493 | AE83: 81 | AF83: 0 | AG83: =VLOOKUP(AE83,ValidationLists!$M$1:$N$102,2,FALSE) -> 0.1353215312 | AH83: 0 | AI83: 0 | AJ83: 0 | AK83: 0 | AL83: 0 | AM83: 0 | AN83: 0 | AO83: 0 | AP83: 0.03652057484 | AQ83: =IF(OR(AF83=3,AF83=2,AF83=0),SUMIFS(FlatMaint!$Z$2:$Z$10000,FlatMaint!$A$2:$A$10000,D83,FlatMaint!$Y$2:$Y$10000,AE83)*AG83,0) -> 0 | AR83: =IF(OR(AF83=3,AF83=2,AF83=0),SUMIFS(FlatRepair!$Z$2:$Z$10000,FlatRepair!$A$2:$A$10000,D83,FlatRepair!$Y$2:$Y$10000,AE83)*AG83,0) -> 0 | AS83: 0 | AT83: 0.03652057484 | AU83: 0 | AV83: 0 | AW83: 0 | AX83: 0 | AY83: 0 | AZ83: 0.03652057484 | BA83: 0 | BB83: =IF($AF83=3,IF($AF$2=2,(R83/SUMIF(Refurb_Poss_Tbl[Refurbishment Possible],I83,Refurb_Poss_Tbl[%]))*AG83,IF($AF$2=3,(R83*AG83)-AV83,R83*AG83)),0) -> 0 | BC83: =IF(AF83=3,IF($AF$2=2,(S83/SUMIF(Refurb_Poss_Tbl[Refurbishment Possible],I83,Refurb_Poss_Tbl[%]))*AG83,IF($AF$2=3,(S83*AG83)-AX83,S83*AG83)),0) -> 0 | BD83: =IF($AF83=3,IF($AF$2=2,(T83/SUMIF(Refurb_Poss_Tbl[Refurbishment Possible],I83,Refurb_Poss_Tbl[%]))*AG83,T83*$AG83),0) -> 0 | BE83: =IF($AF83=3,IF($AF$2=2,(Q83/SUMIF(Refurb_Poss_Tbl[Refurbishment Possible],I83,Refurb_Poss_Tbl[%]))*AG83,Q83*$AG83),0) -> 0 | BF83: =IF($AF83=3,IF($AF$2=2,(U83/SUMIF(Refurb_Poss_Tbl[Refurbishment Possible],I83,Refurb_Poss_Tbl[%]))*AG83,U83*$AG83),0) -> 0 | BG83: =IF($AF83=3,IF($AF$2=2,(V83/SUMIF(Refurb_Poss_Tbl[Refurbishment Possible],I83,Refurb_Poss_Tbl[%]))*AG83,IF($AF$2=3,(V83*AG83)-AW83,V83*AG83)),0) -> 0 | BH83: =IF($AF83=3,IF($AF$2=2,(W83/SUMIF(Refurb_Poss_Tbl[Refurbishment Possible],I83,Refurb_Poss_Tbl[%]))*AG83,W83*$AG83),0) -> 0
A84: DredEA11 | B84: New channel | C84: Dredging Works | D84: DredEA1146 | E84: New channel-Excavation | F84: Dredging | G84: 120 | H84: 120 | I84: Moderate Refurbishment | J84: 60 | K84: New Build | L84: 0 | M84: 0 | N84: 0 | O84: 2 | P84: 22156.8888 | Q84: 22156.8888 | R84: 772.6037996 | S84: 153.8312699 | T84: 0.3320971537 | U84: 50.30718144 | V84: 0 | W84: 11346.73443 | X84: 34480.69757 | Y84: 0.26988 | Z84: 0 | AA84: 8620.174394 | AB84: 4554.35561 | AC84: 0.1660485769 | AD84: 76.91563493 | AE84: 82 | AF84: 0 | AG84: =VLOOKUP(AE84,ValidationLists!$M$1:$N$102,2,FALSE) -> 0.132021006 | AH84: 0 | AI84: 0 | AJ84: 0 | AK84: 0 | AL84: 0 | AM84: 0 | AN84: 0 | AO84: 0 | AP84: 0.03562982911 | AQ84: =IF(OR(AF84=3,AF84=2,AF84=0),SUMIFS(FlatMaint!$Z$2:$Z$10000,FlatMaint!$A$2:$A$10000,D84,FlatMaint!$Y$2:$Y$10000,AE84)*AG84,0) -> 292.5186859 | AR84: =IF(OR(AF84=3,AF84=2,AF84=0),SUMIFS(FlatRepair!$Z$2:$Z$10000,FlatRepair!$A$2:$A$10000,D84,FlatRepair!$Y$2:$Y$10000,AE84)*AG84,0) -> 0 | AS84: 0 | AT84: 292.5543158 | AU84: 0 | AV84: 0 | AW84: 0 | AX84: 0 | AY84: 0 | AZ84: 292.5543158 | BA84: 0 | BB84: =IF($AF84=3,IF($AF$2=2,(R84/SUMIF(Refurb_Poss_Tbl[Refurbishment Possible],I84,Refurb_Poss_Tbl[%]))*AG84,IF($AF$2=3,(R84*AG84)-AV84,R84*AG84)),0) -> 0 | BC84: =IF(AF84=3,IF($AF$2=2,(S84/SUMIF(Refurb_Poss_Tbl[Refurbishment Possible],I84,Refurb_Poss_Tbl[%]))*AG84,IF($AF$2=3,(S84*AG84)-AX84,S84*AG84)),0) -> 0 | BD84: =IF($AF84=3,IF($AF$2=2,(T84/SUMIF(Refurb_Poss_Tbl[Refurbishment Possible],I84,Refurb_Poss_Tbl[%]))*AG84,T84*$AG84),0) -> 0 | BE84: =IF($AF84=3,IF($AF$2=2,(Q84/SUMIF(Refurb_Poss_Tbl[Refurbishment Possible],I84,Refurb_Poss_Tbl[%]))*AG84,Q84*$AG84),0) -> 0 | BF84: =IF($AF84=3,IF($AF$2=2,(U84/SUMIF(Refurb_Poss_Tbl[Refurbishment Possible],I84,Refurb_Poss_Tbl[%]))*AG84,U84*$AG84),0) -> 0 | BG84: =IF($AF84=3,IF($AF$2=2,(V84/SUMIF(Refurb_Poss_Tbl[Refurbishment Possible],I84,Refurb_Poss_Tbl[%]))*AG84,IF($AF$2=3,(V84*AG84)-AW84,V84*AG84)),0) -> 0 | BH84: =IF($AF84=3,IF($AF$2=2,(W84/SUMIF(Refurb_Poss_Tbl[Refurbishment Possible],I84,Refurb_Poss_Tbl[%]))*AG84,W84*$AG84),0) -> 0
A85: DredEA11 | B85: New channel | C85: Dredging Works | D85: DredEA1146 | E85: New channel-Excavation | F85: Dredging | G85: 120 | H85: 120 | I85: Moderate Refurbishment | J85: 60 | K85: New Build | L85: 0 | M85: 0 | N85: 0 | O85: 2 | P85: 22156.8888 | Q85: 22156.8888 | R85: 772.6037996 | S85: 153.8312699 | T85: 0.3320971537 | U85: 50.30718144 | V85: 0 | W85: 11346.73443 | X85: 34480.69757 | Y85: 0.26988 | Z85: 0 | AA85: 8620.174394 | AB85: 4554.35561 | AC85: 0.1660485769 | AD85: 76.91563493 | AE85: 83 | AF85: 0 | AG85: =VLOOKUP(AE85,ValidationLists!$M$1:$N$102,2,FALSE) -> 0.1288009815 | AH85: 0 | AI85: 0 | AJ85: 0 | AK85: 0 | AL85: 0 | AM85: 0 | AN85: 0 | AO85: 0 | AP85: 0.03476080889 | AQ85: =IF(OR(AF85=3,AF85=2,AF85=0),SUMIFS(FlatMaint!$Z$2:$Z$10000,FlatMaint!$A$2:$A$10000,D85,FlatMaint!$Y$2:$Y$10000,AE85)*AG85,0) -> 0 | AR85: =IF(OR(AF85=3,AF85=2,AF85=0),SUMIFS(FlatRepair!$Z$2:$Z$10000,FlatRepair!$A$2:$A$10000,D85,FlatRepair!$Y$2:$Y$10000,AE85)*AG85,0) -> 0 | AS85: 0 | AT85: 0.03476080889 | AU85: 0 | AV85: 0 | AW85: 0 | AX85: 0 | AY85: 0 | AZ85: 0.03476080889 | BA85: 0 | BB85: =IF($AF85=3,IF($AF$2=2,(R85/SUMIF(Refurb_Poss_Tbl[Refurbishment Possible],I85,Refurb_Poss_Tbl[%]))*AG85,IF($AF$2=3,(R85*AG85)-AV85,R85*AG85)),0) -> 0 | BC85: =IF(AF85=3,IF($AF$2=2,(S85/SUMIF(Refurb_Poss_Tbl[Refurbishment Possible],I85,Refurb_Poss_Tbl[%]))*AG85,IF($AF$2=3,(S85*AG85)-AX85,S85*AG85)),0) -> 0 | BD85: =IF($AF85=3,IF($AF$2=2,(T85/SUMIF(Refurb_Poss_Tbl[Refurbishment Possible],I85,Refurb_Poss_Tbl[%]))*AG85,T85*$AG85),0) -> 0 | BE85: =IF($AF85=3,IF($AF$2=2,(Q85/SUMIF(Refurb_Poss_Tbl[Refurbishment Possible],I85,Refurb_Poss_Tbl[%]))*AG85,Q85*$AG85),0) -> 0 | BF85: =IF($AF85=3,IF($AF$2=2,(U85/SUMIF(Refurb_Poss_Tbl[Refurbishment Possible],I85,Refurb_Poss_Tbl[%]))*AG85,U85*$AG85),0) -> 0 | BG85: =IF($AF85=3,IF($AF$2=2,(V85/SUMIF(Refurb_Poss_Tbl[Refurbishment Possible],I85,Refurb_Poss_Tbl[%]))*AG85,IF($AF$2=3,(V85*AG85)-AW85,V85*AG85)),0) -> 0 | BH85: =IF($AF85=3,IF($AF$2=2,(W85/SUMIF(Refurb_Poss_Tbl[Refurbishment Possible],I85,Refurb_Poss_Tbl[%]))*AG85,W85*$AG85),0) -> 0
A86: DredEA11 | B86: New channel | C86: Dredging Works | D86: DredEA1146 | E86: New channel-Excavation | F86: Dredging | G86: 120 | H86: 120 | I86: Moderate Refurbishment | J86: 60 | K86: New Build | L86: 0 | M86: 0 | N86: 0 | O86: 2 | P86: 22156.8888 | Q86: 22156.8888 | R86: 772.6037996 | S86: 153.8312699 | T86: 0.3320971537 | U86: 50.30718144 | V86: 0 | W86: 11346.73443 | X86: 34480.69757 | Y86: 0.26988 | Z86: 0 | AA86: 8620.174394 | AB86: 4554.35561 | AC86: 0.1660485769 | AD86: 76.91563493 | AE86: 84 | AF86: 0 | AG86: =VLOOKUP(AE86,ValidationLists!$M$1:$N$102,2,FALSE) -> 0.1256594941 | AH86: 0 | AI86: 0 | AJ86: 0 | AK86: 0 | AL86: 0 | AM86: 0 | AN86: 0 | AO86: 0 | AP86: 0.03391298428 | AQ86: =IF(OR(AF86=3,AF86=2,AF86=0),SUMIFS(FlatMaint!$Z$2:$Z$10000,FlatMaint!$A$2:$A$10000,D86,FlatMaint!$Y$2:$Y$10000,AE86)*AG86,0) -> 278.4234964 | AR86: =IF(OR(AF86=3,AF86=2,AF86=0),SUMIFS(FlatRepair!$Z$2:$Z$10000,FlatRepair!$A$2:$A$10000,D86,FlatRepair!$Y$2:$Y$10000,AE86)*AG86,0) -> 0 | AS86: 0 | AT86: 278.4574094 | AU86: 0 | AV86: 0 | AW86: 0 | AX86: 0 | AY86: 0 | AZ86: 278.4574094 | BA86: 0 | BB86: =IF($AF86=3,IF($AF$2=2,(R86/SUMIF(Refurb_Poss_Tbl[Refurbishment Possible],I86,Refurb_Poss_Tbl[%]))*AG86,IF($AF$2=3,(R86*AG86)-AV86,R86*AG86)),0) -> 0 | BC86: =IF(AF86=3,IF($AF$2=2,(S86/SUMIF(Refurb_Poss_Tbl[Refurbishment Possible],I86,Refurb_Poss_Tbl[%]))*AG86,IF($AF$2=3,(S86*AG86)-AX86,S86*AG86)),0) -> 0 | BD86: =IF($AF86=3,IF($AF$2=2,(T86/SUMIF(Refurb_Poss_Tbl[Refurbishment Possible],I86,Refurb_Poss_Tbl[%]))*AG86,T86*$AG86),0) -> 0 | BE86: =IF($AF86=3,IF($AF$2=2,(Q86/SUMIF(Refurb_Poss_Tbl[Refurbishment Possible],I86,Refurb_Poss_Tbl[%]))*AG86,Q86*$AG86),0) -> 0 | BF86: =IF($AF86=3,IF($AF$2=2,(U86/SUMIF(Refurb_Poss_Tbl[Refurbishment Possible],I86,Refurb_Poss_Tbl[%]))*AG86,U86*$AG86),0) -> 0 | BG86: =IF($AF86=3,IF($AF$2=2,(V86/SUMIF(Refurb_Poss_Tbl[Refurbishment Possible],I86,Refurb_Poss_Tbl[%]))*AG86,IF($AF$2=3,(V86*AG86)-AW86,V86*AG86)),0) -> 0 | BH86: =IF($AF86=3,IF($AF$2=2,(W86/SUMIF(Refurb_Poss_Tbl[Refurbishment Possible],I86,Refurb_Poss_Tbl[%]))*AG86,W86*$AG86),0) -> 0
A87: DredEA11 | B87: New channel | C87: Dredging Works | D87: DredEA1146 | E87: New channel-Excavation | F87: Dredging | G87: 120 | H87: 120 | I87: Moderate Refurbishment | J87: 60 | K87: New Build | L87: 0 | M87: 0 | N87: 0 | O87: 2 | P87: 22156.8888 | Q87: 22156.8888 | R87: 772.6037996 | S87: 153.8312699 | T87: 0.3320971537 | U87: 50.30718144 | V87: 0 | W87: 11346.73443 | X87: 34480.69757 | Y87: 0.26988 | Z87: 0 | AA87: 8620.174394 | AB87: 4554.35561 | AC87: 0.1660485769 | AD87: 76.91563493 | AE87: 85 | AF87: 0 | AG87: =VLOOKUP(AE87,ValidationLists!$M$1:$N$102,2,FALSE) -> 0.1225946284 | AH87: 0 | AI87: 0 | AJ87: 0 | AK87: 0 | AL87: 0 | AM87: 0 | AN87: 0 | AO87: 0 | AP87: 0.03308583832 | AQ87: =IF(OR(AF87=3,AF87=2,AF87=0),SUMIFS(FlatMaint!$Z$2:$Z$10000,FlatMaint!$A$2:$A$10000,D87,FlatMaint!$Y$2:$Y$10000,AE87)*AG87,0) -> 0 | AR87: =IF(OR(AF87=3,AF87=2,AF87=0),SUMIFS(FlatRepair!$Z$2:$Z$10000,FlatRepair!$A$2:$A$10000,D87,FlatRepair!$Y$2:$Y$10000,AE87)*AG87,0) -> 0 | AS87: 0 | AT87: 0.03308583832 | AU87: 0 | AV87: 0 | AW87: 0 | AX87: 0 | AY87: 0 | AZ87: 0.03308583832 | BA87: 0 | BB87: =IF($AF87=3,IF($AF$2=2,(R87/SUMIF(Refurb_Poss_Tbl[Refurbishment Possible],I87,Refurb_Poss_Tbl[%]))*AG87,IF($AF$2=3,(R87*AG87)-AV87,R87*AG87)),0) -> 0 | BC87: =IF(AF87=3,IF($AF$2=2,(S87/SUMIF(Refurb_Poss_Tbl[Refurbishment Possible],I87,Refurb_Poss_Tbl[%]))*AG87,IF($AF$2=3,(S87*AG87)-AX87,S87*AG87)),0) -> 0 | BD87: =IF($AF87=3,IF($AF$2=2,(T87/SUMIF(Refurb_Poss_Tbl[Refurbishment Possible],I87,Refurb_Poss_Tbl[%]))*AG87,T87*$AG87),0) -> 0 | BE87: =IF($AF87=3,IF($AF$2=2,(Q87/SUMIF(Refurb_Poss_Tbl[Refurbishment Possible],I87,Refurb_Poss_Tbl[%]))*AG87,Q87*$AG87),0) -> 0 | BF87: =IF($AF87=3,IF($AF$2=2,(U87/SUMIF(Refurb_Poss_Tbl[Refurbishment Possible],I87,Refurb_Poss_Tbl[%]))*AG87,U87*$AG87),0) -> 0 | BG87: =IF($AF87=3,IF($AF$2=2,(V87/SUMIF(Refurb_Poss_Tbl[Refurbishment Possible],I87,Refurb_Poss_Tbl[%]))*AG87,IF($AF$2=3,(V87*AG87)-AW87,V87*AG87)),0) -> 0 | BH87: =IF($AF87=3,IF($AF$2=2,(W87/SUMIF(Refurb_Poss_Tbl[Refurbishment Possible],I87,Refurb_Poss_Tbl[%]))*AG87,W87*$AG87),0) -> 0
A88: DredEA11 | B88: New channel | C88: Dredging Works | D88: DredEA1146 | E88: New channel-Excavation | F88: Dredging | G88: 120 | H88: 120 | I88: Moderate Refurbishment | J88: 60 | K88: New Build | L88: 0 | M88: 0 | N88: 0 | O88: 2 | P88: 22156.8888 | Q88: 22156.8888 | R88: 772.6037996 | S88: 153.8312699 | T88: 0.3320971537 | U88: 50.30718144 | V88: 0 | W88: 11346.73443 | X88: 34480.69757 | Y88: 0.26988 | Z88: 0 | AA88: 8620.174394 | AB88: 4554.35561 | AC88: 0.1660485769 | AD88: 76.91563493 | AE88: 86 | AF88: 0 | AG88: =VLOOKUP(AE88,ValidationLists!$M$1:$N$102,2,FALSE) -> 0.1196045155 | AH88: 0 | AI88: 0 | AJ88: 0 | AK88: 0 | AL88: 0 | AM88: 0 | AN88: 0 | AO88: 0 | AP88: 0.03227886666 | AQ88: =IF(OR(AF88=3,AF88=2,AF88=0),SUMIFS(FlatMaint!$Z$2:$Z$10000,FlatMaint!$A$2:$A$10000,D88,FlatMaint!$Y$2:$Y$10000,AE88)*AG88,0) -> 265.0074921 | AR88: =IF(OR(AF88=3,AF88=2,AF88=0),SUMIFS(FlatRepair!$Z$2:$Z$10000,FlatRepair!$A$2:$A$10000,D88,FlatRepair!$Y$2:$Y$10000,AE88)*AG88,0) -> 0 | AS88: 0 | AT88: 265.039771 | AU88: 0 | AV88: 0 | AW88: 0 | AX88: 0 | AY88: 0 | AZ88: 265.039771 | BA88: 0 | BB88: =IF($AF88=3,IF($AF$2=2,(R88/SUMIF(Refurb_Poss_Tbl[Refurbishment Possible],I88,Refurb_Poss_Tbl[%]))*AG88,IF($AF$2=3,(R88*AG88)-AV88,R88*AG88)),0) -> 0 | BC88: =IF(AF88=3,IF($AF$2=2,(S88/SUMIF(Refurb_Poss_Tbl[Refurbishment Possible],I88,Refurb_Poss_Tbl[%]))*AG88,IF($AF$2=3,(S88*AG88)-AX88,S88*AG88)),0) -> 0 | BD88: =IF($AF88=3,IF($AF$2=2,(T88/SUMIF(Refurb_Poss_Tbl[Refurbishment Possible],I88,Refurb_Poss_Tbl[%]))*AG88,T88*$AG88),0) -> 0 | BE88: =IF($AF88=3,IF($AF$2=2,(Q88/SUMIF(Refurb_Poss_Tbl[Refurbishment Possible],I88,Refurb_Poss_Tbl[%]))*AG88,Q88*$AG88),0) -> 0 | BF88: =IF($AF88=3,IF($AF$2=2,(U88/SUMIF(Refurb_Poss_Tbl[Refurbishment Possible],I88,Refurb_Poss_Tbl[%]))*AG88,U88*$AG88),0) -> 0 | BG88: =IF($AF88=3,IF($AF$2=2,(V88/SUMIF(Refurb_Poss_Tbl[Refurbishment Possible],I88,Refurb_Poss_Tbl[%]))*AG88,IF($AF$2=3,(V88*AG88)-AW88,V88*AG88)),0) -> 0 | BH88: =IF($AF88=3,IF($AF$2=2,(W88/SUMIF(Refurb_Poss_Tbl[Refurbishment Possible],I88,Refurb_Poss_Tbl[%]))*AG88,W88*$AG88),0) -> 0
A89: DredEA11 | B89: New channel | C89: Dredging Works | D89: DredEA1146 | E89: New channel-Excavation | F89: Dredging | G89: 120 | H89: 120 | I89: Moderate Refurbishment | J89: 60 | K89: New Build | L89: 0 | M89: 0 | N89: 0 | O89: 2 | P89: 22156.8888 | Q89: 22156.8888 | R89: 772.6037996 | S89: 153.8312699 | T89: 0.3320971537 | U89: 50.30718144 | V89: 0 | W89: 11346.73443 | X89: 34480.69757 | Y89: 0.26988 | Z89: 0 | AA89: 8620.174394 | AB89: 4554.35561 | AC89: 0.1660485769 | AD89: 76.91563493 | AE89: 87 | AF89: 0 | AG89: =VLOOKUP(AE89,ValidationLists!$M$1:$N$102,2,FALSE) -> 0.1166873322 | AH89: 0 | AI89: 0 | AJ89: 0 | AK89: 0 | AL89: 0 | AM89: 0 | AN89: 0 | AO89: 0 | AP89: 0.03149157723 | AQ89: =IF(OR(AF89=3,AF89=2,AF89=0),SUMIFS(FlatMaint!$Z$2:$Z$10000,FlatMaint!$A$2:$A$10000,D89,FlatMaint!$Y$2:$Y$10000,AE89)*AG89,0) -> 0 | AR89: =IF(OR(AF89=3,AF89=2,AF89=0),SUMIFS(FlatRepair!$Z$2:$Z$10000,FlatRepair!$A$2:$A$10000,D89,FlatRepair!$Y$2:$Y$10000,AE89)*AG89,0) -> 0 | AS89: 0 | AT89: 0.03149157723 | AU89: 0 | AV89: 0 | AW89: 0 | AX89: 0 | AY89: 0 | AZ89: 0.03149157723 | BA89: 0 | BB89: =IF($AF89=3,IF($AF$2=2,(R89/SUMIF(Refurb_Poss_Tbl[Refurbishment Possible],I89,Refurb_Poss_Tbl[%]))*AG89,IF($AF$2=3,(R89*AG89)-AV89,R89*AG89)),0) -> 0 | BC89: =IF(AF89=3,IF($AF$2=2,(S89/SUMIF(Refurb_Poss_Tbl[Refurbishment Possible],I89,Refurb_Poss_Tbl[%]))*AG89,IF($AF$2=3,(S89*AG89)-AX89,S89*AG89)),0) -> 0 | BD89: =IF($AF89=3,IF($AF$2=2,(T89/SUMIF(Refurb_Poss_Tbl[Refurbishment Possible],I89,Refurb_Poss_Tbl[%]))*AG89,T89*$AG89),0) -> 0 | BE89: =IF($AF89=3,IF($AF$2=2,(Q89/SUMIF(Refurb_Poss_Tbl[Refurbishment Possible],I89,Refurb_Poss_Tbl[%]))*AG89,Q89*$AG89),0) -> 0 | BF89: =IF($AF89=3,IF($AF$2=2,(U89/SUMIF(Refurb_Poss_Tbl[Refurbishment Possible],I89,Refurb_Poss_Tbl[%]))*AG89,U89*$AG89),0) -> 0 | BG89: =IF($AF89=3,IF($AF$2=2,(V89/SUMIF(Refurb_Poss_Tbl[Refurbishment Possible],I89,Refurb_Poss_Tbl[%]))*AG89,IF($AF$2=3,(V89*AG89)-AW89,V89*AG89)),0) -> 0 | BH89: =IF($AF89=3,IF($AF$2=2,(W89/SUMIF(Refurb_Poss_Tbl[Refurbishment Possible],I89,Refurb_Poss_Tbl[%]))*AG89,W89*$AG89),0) -> 0
A90: DredEA11 | B90: New channel | C90: Dredging Works | D90: DredEA1146 | E90: New channel-Excavation | F90: Dredging | G90: 120 | H90: 120 | I90: Moderate Refurbishment | J90: 60 | K90: New Build | L90: 0 | M90: 0 | N90: 0 | O90: 2 | P90: 22156.8888 | Q90: 22156.8888 | R90: 772.6037996 | S90: 153.8312699 | T90: 0.3320971537 | U90: 50.30718144 | V90: 0 | W90: 11346.73443 | X90: 34480.69757 | Y90: 0.26988 | Z90: 0 | AA90: 8620.174394 | AB90: 4554.35561 | AC90: 0.1660485769 | AD90: 76.91563493 | AE90: 88 | AF90: 0 | AG90: =VLOOKUP(AE90,ValidationLists!$M$1:$N$102,2,FALSE) -> 0.1138412997 | AH90: 0 | AI90: 0 | AJ90: 0 | AK90: 0 | AL90: 0 | AM90: 0 | AN90: 0 | AO90: 0 | AP90: 0.03072348998 | AQ90: =IF(OR(AF90=3,AF90=2,AF90=0),SUMIFS(FlatMaint!$Z$2:$Z$10000,FlatMaint!$A$2:$A$10000,D90,FlatMaint!$Y$2:$Y$10000,AE90)*AG90,0) -> 252.2379461 | AR90: =IF(OR(AF90=3,AF90=2,AF90=0),SUMIFS(FlatRepair!$Z$2:$Z$10000,FlatRepair!$A$2:$A$10000,D90,FlatRepair!$Y$2:$Y$10000,AE90)*AG90,0) -> 0 | AS90: 0 | AT90: 252.2686696 | AU90: 0 | AV90: 0 | AW90: 0 | AX90: 0 | AY90: 0 | AZ90: 252.2686696 | BA90: 0 | BB90: =IF($AF90=3,IF($AF$2=2,(R90/SUMIF(Refurb_Poss_Tbl[Refurbishment Possible],I90,Refurb_Poss_Tbl[%]))*AG90,IF($AF$2=3,(R90*AG90)-AV90,R90*AG90)),0) -> 0 | BC90: =IF(AF90=3,IF($AF$2=2,(S90/SUMIF(Refurb_Poss_Tbl[Refurbishment Possible],I90,Refurb_Poss_Tbl[%]))*AG90,IF($AF$2=3,(S90*AG90)-AX90,S90*AG90)),0) -> 0 | BD90: =IF($AF90=3,IF($AF$2=2,(T90/SUMIF(Refurb_Poss_Tbl[Refurbishment Possible],I90,Refurb_Poss_Tbl[%]))*AG90,T90*$AG90),0) -> 0 | BE90: =IF($AF90=3,IF($AF$2=2,(Q90/SUMIF(Refurb_Poss_Tbl[Refurbishment Possible],I90,Refurb_Poss_Tbl[%]))*AG90,Q90*$AG90),0) -> 0 | BF90: =IF($AF90=3,IF($AF$2=2,(U90/SUMIF(Refurb_Poss_Tbl[Refurbishment Possible],I90,Refurb_Poss_Tbl[%]))*AG90,U90*$AG90),0) -> 0 | BG90: =IF($AF90=3,IF($AF$2=2,(V90/SUMIF(Refurb_Poss_Tbl[Refurbishment Possible],I90,Refurb_Poss_Tbl[%]))*AG90,IF($AF$2=3,(V90*AG90)-AW90,V90*AG90)),0) -> 0 | BH90: =IF($AF90=3,IF($AF$2=2,(W90/SUMIF(Refurb_Poss_Tbl[Refurbishment Possible],I90,Refurb_Poss_Tbl[%]))*AG90,W90*$AG90),0) -> 0
A91: DredEA11 | B91: New channel | C91: Dredging Works | D91: DredEA1146 | E91: New channel-Excavation | F91: Dredging | G91: 120 | H91: 120 | I91: Moderate Refurbishment | J91: 60 | K91: New Build | L91: 0 | M91: 0 | N91: 0 | O91: 2 | P91: 22156.8888 | Q91: 22156.8888 | R91: 772.6037996 | S91: 153.8312699 | T91: 0.3320971537 | U91: 50.30718144 | V91: 0 | W91: 11346.73443 | X91: 34480.69757 | Y91: 0.26988 | Z91: 0 | AA91: 8620.174394 | AB91: 4554.35561 | AC91: 0.1660485769 | AD91: 76.91563493 | AE91: 89 | AF91: 0 | AG91: =VLOOKUP(AE91,ValidationLists!$M$1:$N$102,2,FALSE) -> 0.1110646827 | AH91: 0 | AI91: 0 | AJ91: 0 | AK91: 0 | AL91: 0 | AM91: 0 | AN91: 0 | AO91: 0 | AP91: 0.02997413656 | AQ91: =IF(OR(AF91=3,AF91=2,AF91=0),SUMIFS(FlatMaint!$Z$2:$Z$10000,FlatMaint!$A$2:$A$10000,D91,FlatMaint!$Y$2:$Y$10000,AE91)*AG91,0) -> 0 | AR91: =IF(OR(AF91=3,AF91=2,AF91=0),SUMIFS(FlatRepair!$Z$2:$Z$10000,FlatRepair!$A$2:$A$10000,D91,FlatRepair!$Y$2:$Y$10000,AE91)*AG91,0) -> 0 | AS91: 0 | AT91: 0.02997413656 | AU91: 0 | AV91: 0 | AW91: 0 | AX91: 0 | AY91: 0 | AZ91: 0.02997413656 | BA91: 0 | BB91: =IF($AF91=3,IF($AF$2=2,(R91/SUMIF(Refurb_Poss_Tbl[Refurbishment Possible],I91,Refurb_Poss_Tbl[%]))*AG91,IF($AF$2=3,(R91*AG91)-AV91,R91*AG91)),0) -> 0 | BC91: =IF(AF91=3,IF($AF$2=2,(S91/SUMIF(Refurb_Poss_Tbl[Refurbishment Possible],I91,Refurb_Poss_Tbl[%]))*AG91,IF($AF$2=3,(S91*AG91)-AX91,S91*AG91)),0) -> 0 | BD91: =IF($AF91=3,IF($AF$2=2,(T91/SUMIF(Refurb_Poss_Tbl[Refurbishment Possible],I91,Refurb_Poss_Tbl[%]))*AG91,T91*$AG91),0) -> 0 | BE91: =IF($AF91=3,IF($AF$2=2,(Q91/SUMIF(Refurb_Poss_Tbl[Refurbishment Possible],I91,Refurb_Poss_Tbl[%]))*AG91,Q91*$AG91),0) -> 0 | BF91: =IF($AF91=3,IF($AF$2=2,(U91/SUMIF(Refurb_Poss_Tbl[Refurbishment Possible],I91,Refurb_Poss_Tbl[%]))*AG91,U91*$AG91),0) -> 0 | BG91: =IF($AF91=3,IF($AF$2=2,(V91/SUMIF(Refurb_Poss_Tbl[Refurbishment Possible],I91,Refurb_Poss_Tbl[%]))*AG91,IF($AF$2=3,(V91*AG91)-AW91,V91*AG91)),0) -> 0 | BH91: =IF($AF91=3,IF($AF$2=2,(W91/SUMIF(Refurb_Poss_Tbl[Refurbishment Possible],I91,Refurb_Poss_Tbl[%]))*AG91,W91*$AG91),0) -> 0
A92: DredEA11 | B92: New channel | C92: Dredging Works | D92: DredEA1146 | E92: New channel-Excavation | F92: Dredging | G92: 120 | H92: 120 | I92: Moderate Refurbishment | J92: 60 | K92: New Build | L92: 0 | M92: 0 | N92: 0 | O92: 2 | P92: 22156.8888 | Q92: 22156.8888 | R92: 772.6037996 | S92: 153.8312699 | T92: 0.3320971537 | U92: 50.30718144 | V92: 0 | W92: 11346.73443 | X92: 34480.69757 | Y92: 0.26988 | Z92: 0 | AA92: 8620.174394 | AB92: 4554.35561 | AC92: 0.1660485769 | AD92: 76.91563493 | AE92: 90 | AF92: 0 | AG92: =VLOOKUP(AE92,ValidationLists!$M$1:$N$102,2,FALSE) -> 0.108355788 | AH92: 0 | AI92: 0 | AJ92: 0 | AK92: 0 | AL92: 0 | AM92: 0 | AN92: 0 | AO92: 0 | AP92: 0.02924306006 | AQ92: =IF(OR(AF92=3,AF92=2,AF92=0),SUMIFS(FlatMaint!$Z$2:$Z$10000,FlatMaint!$A$2:$A$10000,D92,FlatMaint!$Y$2:$Y$10000,AE92)*AG92,0) -> 240.0837084 | AR92: =IF(OR(AF92=3,AF92=2,AF92=0),SUMIFS(FlatRepair!$Z$2:$Z$10000,FlatRepair!$A$2:$A$10000,D92,FlatRepair!$Y$2:$Y$10000,AE92)*AG92,0) -> 0 | AS92: 0 | AT92: 240.1129514 | AU92: 0 | AV92: 0 | AW92: 0 | AX92: 0 | AY92: 0 | AZ92: 240.1129514 | BA92: 0 | BB92: =IF($AF92=3,IF($AF$2=2,(R92/SUMIF(Refurb_Poss_Tbl[Refurbishment Possible],I92,Refurb_Poss_Tbl[%]))*AG92,IF($AF$2=3,(R92*AG92)-AV92,R92*AG92)),0) -> 0 | BC92: =IF(AF92=3,IF($AF$2=2,(S92/SUMIF(Refurb_Poss_Tbl[Refurbishment Possible],I92,Refurb_Poss_Tbl[%]))*AG92,IF($AF$2=3,(S92*AG92)-AX92,S92*AG92)),0) -> 0 | BD92: =IF($AF92=3,IF($AF$2=2,(T92/SUMIF(Refurb_Poss_Tbl[Refurbishment Possible],I92,Refurb_Poss_Tbl[%]))*AG92,T92*$AG92),0) -> 0 | BE92: =IF($AF92=3,IF($AF$2=2,(Q92/SUMIF(Refurb_Poss_Tbl[Refurbishment Possible],I92,Refurb_Poss_Tbl[%]))*AG92,Q92*$AG92),0) -> 0 | BF92: =IF($AF92=3,IF($AF$2=2,(U92/SUMIF(Refurb_Poss_Tbl[Refurbishment Possible],I92,Refurb_Poss_Tbl[%]))*AG92,U92*$AG92),0) -> 0 | BG92: =IF($AF92=3,IF($AF$2=2,(V92/SUMIF(Refurb_Poss_Tbl[Refurbishment Possible],I92,Refurb_Poss_Tbl[%]))*AG92,IF($AF$2=3,(V92*AG92)-AW92,V92*AG92)),0) -> 0 | BH92: =IF($AF92=3,IF($AF$2=2,(W92/SUMIF(Refurb_Poss_Tbl[Refurbishment Possible],I92,Refurb_Poss_Tbl[%]))*AG92,W92*$AG92),0) -> 0
A93: DredEA11 | B93: New channel | C93: Dredging Works | D93: DredEA1146 | E93: New channel-Excavation | F93: Dredging | G93: 120 | H93: 120 | I93: Moderate Refurbishment | J93: 60 | K93: New Build | L93: 0 | M93: 0 | N93: 0 | O93: 2 | P93: 22156.8888 | Q93: 22156.8888 | R93: 772.6037996 | S93: 153.8312699 | T93: 0.3320971537 | U93: 50.30718144 | V93: 0 | W93: 11346.73443 | X93: 34480.69757 | Y93: 0.26988 | Z93: 0 | AA93: 8620.174394 | AB93: 4554.35561 | AC93: 0.1660485769 | AD93: 76.91563493 | AE93: 91 | AF93: 0 | AG93: =VLOOKUP(AE93,ValidationLists!$M$1:$N$102,2,FALSE) -> 0.1057129639 | AH93: 0 | AI93: 0 | AJ93: 0 | AK93: 0 | AL93: 0 | AM93: 0 | AN93: 0 | AO93: 0 | AP93: 0.02852981469 | AQ93: =IF(OR(AF93=3,AF93=2,AF93=0),SUMIFS(FlatMaint!$Z$2:$Z$10000,FlatMaint!$A$2:$A$10000,D93,FlatMaint!$Y$2:$Y$10000,AE93)*AG93,0) -> 0 | AR93: =IF(OR(AF93=3,AF93=2,AF93=0),SUMIFS(FlatRepair!$Z$2:$Z$10000,FlatRepair!$A$2:$A$10000,D93,FlatRepair!$Y$2:$Y$10000,AE93)*AG93,0) -> 0 | AS93: 0 | AT93: 0.02852981469 | AU93: 0 | AV93: 0 | AW93: 0 | AX93: 0 | AY93: 0 | AZ93: 0.02852981469 | BA93: 0 | BB93: =IF($AF93=3,IF($AF$2=2,(R93/SUMIF(Refurb_Poss_Tbl[Refurbishment Possible],I93,Refurb_Poss_Tbl[%]))*AG93,IF($AF$2=3,(R93*AG93)-AV93,R93*AG93)),0) -> 0 | BC93: =IF(AF93=3,IF($AF$2=2,(S93/SUMIF(Refurb_Poss_Tbl[Refurbishment Possible],I93,Refurb_Poss_Tbl[%]))*AG93,IF($AF$2=3,(S93*AG93)-AX93,S93*AG93)),0) -> 0 | BD93: =IF($AF93=3,IF($AF$2=2,(T93/SUMIF(Refurb_Poss_Tbl[Refurbishment Possible],I93,Refurb_Poss_Tbl[%]))*AG93,T93*$AG93),0) -> 0 | BE93: =IF($AF93=3,IF($AF$2=2,(Q93/SUMIF(Refurb_Poss_Tbl[Refurbishment Possible],I93,Refurb_Poss_Tbl[%]))*AG93,Q93*$AG93),0) -> 0 | BF93: =IF($AF93=3,IF($AF$2=2,(U93/SUMIF(Refurb_Poss_Tbl[Refurbishment Possible],I93,Refurb_Poss_Tbl[%]))*AG93,U93*$AG93),0) -> 0 | BG93: =IF($AF93=3,IF($AF$2=2,(V93/SUMIF(Refurb_Poss_Tbl[Refurbishment Possible],I93,Refurb_Poss_Tbl[%]))*AG93,IF($AF$2=3,(V93*AG93)-AW93,V93*AG93)),0) -> 0 | BH93: =IF($AF93=3,IF($AF$2=2,(W93/SUMIF(Refurb_Poss_Tbl[Refurbishment Possible],I93,Refurb_Poss_Tbl[%]))*AG93,W93*$AG93),0) -> 0
A94: DredEA11 | B94: New channel | C94: Dredging Works | D94: DredEA1146 | E94: New channel-Excavation | F94: Dredging | G94: 120 | H94: 120 | I94: Moderate Refurbishment | J94: 60 | K94: New Build | L94: 0 | M94: 0 | N94: 0 | O94: 2 | P94: 22156.8888 | Q94: 22156.8888 | R94: 772.6037996 | S94: 153.8312699 | T94: 0.3320971537 | U94: 50.30718144 | V94: 0 | W94: 11346.73443 | X94: 34480.69757 | Y94: 0.26988 | Z94: 0 | AA94: 8620.174394 | AB94: 4554.35561 | AC94: 0.1660485769 | AD94: 76.91563493 | AE94: 92 | AF94: 0 | AG94: =VLOOKUP(AE94,ValidationLists!$M$1:$N$102,2,FALSE) -> 0.1031345989 | AH94: 0 | AI94: 0 | AJ94: 0 | AK94: 0 | AL94: 0 | AM94: 0 | AN94: 0 | AO94: 0 | AP94: 0.02783396555 | AQ94: =IF(OR(AF94=3,AF94=2,AF94=0),SUMIFS(FlatMaint!$Z$2:$Z$10000,FlatMaint!$A$2:$A$10000,D94,FlatMaint!$Y$2:$Y$10000,AE94)*AG94,0) -> 228.5151299 | AR94: =IF(OR(AF94=3,AF94=2,AF94=0),SUMIFS(FlatRepair!$Z$2:$Z$10000,FlatRepair!$A$2:$A$10000,D94,FlatRepair!$Y$2:$Y$10000,AE94)*AG94,0) -> 0 | AS94: 0 | AT94: 228.5429639 | AU94: 0 | AV94: 0 | AW94: 0 | AX94: 0 | AY94: 0 | AZ94: 228.5429639 | BA94: 0 | BB94: =IF($AF94=3,IF($AF$2=2,(R94/SUMIF(Refurb_Poss_Tbl[Refurbishment Possible],I94,Refurb_Poss_Tbl[%]))*AG94,IF($AF$2=3,(R94*AG94)-AV94,R94*AG94)),0) -> 0 | BC94: =IF(AF94=3,IF($AF$2=2,(S94/SUMIF(Refurb_Poss_Tbl[Refurbishment Possible],I94,Refurb_Poss_Tbl[%]))*AG94,IF($AF$2=3,(S94*AG94)-AX94,S94*AG94)),0) -> 0 | BD94: =IF($AF94=3,IF($AF$2=2,(T94/SUMIF(Refurb_Poss_Tbl[Refurbishment Possible],I94,Refurb_Poss_Tbl[%]))*AG94,T94*$AG94),0) -> 0 | BE94: =IF($AF94=3,IF($AF$2=2,(Q94/SUMIF(Refurb_Poss_Tbl[Refurbishment Possible],I94,Refurb_Poss_Tbl[%]))*AG94,Q94*$AG94),0) -> 0 | BF94: =IF($AF94=3,IF($AF$2=2,(U94/SUMIF(Refurb_Poss_Tbl[Refurbishment Possible],I94,Refurb_Poss_Tbl[%]))*AG94,U94*$AG94),0) -> 0 | BG94: =IF($AF94=3,IF($AF$2=2,(V94/SUMIF(Refurb_Poss_Tbl[Refurbishment Possible],I94,Refurb_Poss_Tbl[%]))*AG94,IF($AF$2=3,(V94*AG94)-AW94,V94*AG94)),0) -> 0 | BH94: =IF($AF94=3,IF($AF$2=2,(W94/SUMIF(Refurb_Poss_Tbl[Refurbishment Possible],I94,Refurb_Poss_Tbl[%]))*AG94,W94*$AG94),0) -> 0
A95: DredEA11 | B95: New channel | C95: Dredging Works | D95: DredEA1146 | E95: New channel-Excavation | F95: Dredging | G95: 120 | H95: 120 | I95: Moderate Refurbishment | J95: 60 | K95: New Build | L95: 0 | M95: 0 | N95: 0 | O95: 2 | P95: 22156.8888 | Q95: 22156.8888 | R95: 772.6037996 | S95: 153.8312699 | T95: 0.3320971537 | U95: 50.30718144 | V95: 0 | W95: 11346.73443 | X95: 34480.69757 | Y95: 0.26988 | Z95: 0 | AA95: 8620.174394 | AB95: 4554.35561 | AC95: 0.1660485769 | AD95: 76.91563493 | AE95: 93 | AF95: 0 | AG95: =VLOOKUP(AE95,ValidationLists!$M$1:$N$102,2,FALSE) -> 0.1006191209 | AH95: 0 | AI95: 0 | AJ95: 0 | AK95: 0 | AL95: 0 | AM95: 0 | AN95: 0 | AO95: 0 | AP95: 0.02715508835 | AQ95: =IF(OR(AF95=3,AF95=2,AF95=0),SUMIFS(FlatMaint!$Z$2:$Z$10000,FlatMaint!$A$2:$A$10000,D95,FlatMaint!$Y$2:$Y$10000,AE95)*AG95,0) -> 0 | AR95: =IF(OR(AF95=3,AF95=2,AF95=0),SUMIFS(FlatRepair!$Z$2:$Z$10000,FlatRepair!$A$2:$A$10000,D95,FlatRepair!$Y$2:$Y$10000,AE95)*AG95,0) -> 0 | AS95: 0 | AT95: 0.02715508835 | AU95: 0 | AV95: 0 | AW95: 0 | AX95: 0 | AY95: 0 | AZ95: 0.02715508835 | BA95: 0 | BB95: =IF($AF95=3,IF($AF$2=2,(R95/SUMIF(Refurb_Poss_Tbl[Refurbishment Possible],I95,Refurb_Poss_Tbl[%]))*AG95,IF($AF$2=3,(R95*AG95)-AV95,R95*AG95)),0) -> 0 | BC95: =IF(AF95=3,IF($AF$2=2,(S95/SUMIF(Refurb_Poss_Tbl[Refurbishment Possible],I95,Refurb_Poss_Tbl[%]))*AG95,IF($AF$2=3,(S95*AG95)-AX95,S95*AG95)),0) -> 0 | BD95: =IF($AF95=3,IF($AF$2=2,(T95/SUMIF(Refurb_Poss_Tbl[Refurbishment Possible],I95,Refurb_Poss_Tbl[%]))*AG95,T95*$AG95),0) -> 0 | BE95: =IF($AF95=3,IF($AF$2=2,(Q95/SUMIF(Refurb_Poss_Tbl[Refurbishment Possible],I95,Refurb_Poss_Tbl[%]))*AG95,Q95*$AG95),0) -> 0 | BF95: =IF($AF95=3,IF($AF$2=2,(U95/SUMIF(Refurb_Poss_Tbl[Refurbishment Possible],I95,Refurb_Poss_Tbl[%]))*AG95,U95*$AG95),0) -> 0 | BG95: =IF($AF95=3,IF($AF$2=2,(V95/SUMIF(Refurb_Poss_Tbl[Refurbishment Possible],I95,Refurb_Poss_Tbl[%]))*AG95,IF($AF$2=3,(V95*AG95)-AW95,V95*AG95)),0) -> 0 | BH95: =IF($AF95=3,IF($AF$2=2,(W95/SUMIF(Refurb_Poss_Tbl[Refurbishment Possible],I95,Refurb_Poss_Tbl[%]))*AG95,W95*$AG95),0) -> 0
A96: DredEA11 | B96: New channel | C96: Dredging Works | D96: DredEA1146 | E96: New channel-Excavation | F96: Dredging | G96: 120 | H96: 120 | I96: Moderate Refurbishment | J96: 60 | K96: New Build | L96: 0 | M96: 0 | N96: 0 | O96: 2 | P96: 22156.8888 | Q96: 22156.8888 | R96: 772.6037996 | S96: 153.8312699 | T96: 0.3320971537 | U96: 50.30718144 | V96: 0 | W96: 11346.73443 | X96: 34480.69757 | Y96: 0.26988 | Z96: 0 | AA96: 8620.174394 | AB96: 4554.35561 | AC96: 0.1660485769 | AD96: 76.91563493 | AE96: 94 | AF96: 0 | AG96: =VLOOKUP(AE96,ValidationLists!$M$1:$N$102,2,FALSE) -> 0.09816499599 | AH96: 0 | AI96: 0 | AJ96: 0 | AK96: 0 | AL96: 0 | AM96: 0 | AN96: 0 | AO96: 0 | AP96: 0.02649276912 | AQ96: =IF(OR(AF96=3,AF96=2,AF96=0),SUMIFS(FlatMaint!$Z$2:$Z$10000,FlatMaint!$A$2:$A$10000,D96,FlatMaint!$Y$2:$Y$10000,AE96)*AG96,0) -> 217.5039904 | AR96: =IF(OR(AF96=3,AF96=2,AF96=0),SUMIFS(FlatRepair!$Z$2:$Z$10000,FlatRepair!$A$2:$A$10000,D96,FlatRepair!$Y$2:$Y$10000,AE96)*AG96,0) -> 0 | AS96: 0 | AT96: 217.5304832 | AU96: 0 | AV96: 0 | AW96: 0 | AX96: 0 | AY96: 0 | AZ96: 217.5304832 | BA96: 0 | BB96: =IF($AF96=3,IF($AF$2=2,(R96/SUMIF(Refurb_Poss_Tbl[Refurbishment Possible],I96,Refurb_Poss_Tbl[%]))*AG96,IF($AF$2=3,(R96*AG96)-AV96,R96*AG96)),0) -> 0 | BC96: =IF(AF96=3,IF($AF$2=2,(S96/SUMIF(Refurb_Poss_Tbl[Refurbishment Possible],I96,Refurb_Poss_Tbl[%]))*AG96,IF($AF$2=3,(S96*AG96)-AX96,S96*AG96)),0) -> 0 | BD96: =IF($AF96=3,IF($AF$2=2,(T96/SUMIF(Refurb_Poss_Tbl[Refurbishment Possible],I96,Refurb_Poss_Tbl[%]))*AG96,T96*$AG96),0) -> 0 | BE96: =IF($AF96=3,IF($AF$2=2,(Q96/SUMIF(Refurb_Poss_Tbl[Refurbishment Possible],I96,Refurb_Poss_Tbl[%]))*AG96,Q96*$AG96),0) -> 0 | BF96: =IF($AF96=3,IF($AF$2=2,(U96/SUMIF(Refurb_Poss_Tbl[Refurbishment Possible],I96,Refurb_Poss_Tbl[%]))*AG96,U96*$AG96),0) -> 0 | BG96: =IF($AF96=3,IF($AF$2=2,(V96/SUMIF(Refurb_Poss_Tbl[Refurbishment Possible],I96,Refurb_Poss_Tbl[%]))*AG96,IF($AF$2=3,(V96*AG96)-AW96,V96*AG96)),0) -> 0 | BH96: =IF($AF96=3,IF($AF$2=2,(W96/SUMIF(Refurb_Poss_Tbl[Refurbishment Possible],I96,Refurb_Poss_Tbl[%]))*AG96,W96*$AG96),0) -> 0
A97: DredEA11 | B97: New channel | C97: Dredging Works | D97: DredEA1146 | E97: New channel-Excavation | F97: Dredging | G97: 120 | H97: 120 | I97: Moderate Refurbishment | J97: 60 | K97: New Build | L97: 0 | M97: 0 | N97: 0 | O97: 2 | P97: 22156.8888 | Q97: 22156.8888 | R97: 772.6037996 | S97: 153.8312699 | T97: 0.3320971537 | U97: 50.30718144 | V97: 0 | W97: 11346.73443 | X97: 34480.69757 | Y97: 0.26988 | Z97: 0 | AA97: 8620.174394 | AB97: 4554.35561 | AC97: 0.1660485769 | AD97: 76.91563493 | AE97: 95 | AF97: 0 | AG97: =VLOOKUP(AE97,ValidationLists!$M$1:$N$102,2,FALSE) -> 0.09577072779 | AH97: 0 | AI97: 0 | AJ97: 0 | AK97: 0 | AL97: 0 | AM97: 0 | AN97: 0 | AO97: 0 | AP97: 0.02584660402 | AQ97: =IF(OR(AF97=3,AF97=2,AF97=0),SUMIFS(FlatMaint!$Z$2:$Z$10000,FlatMaint!$A$2:$A$10000,D97,FlatMaint!$Y$2:$Y$10000,AE97)*AG97,0) -> 0 | AR97: =IF(OR(AF97=3,AF97=2,AF97=0),SUMIFS(FlatRepair!$Z$2:$Z$10000,FlatRepair!$A$2:$A$10000,D97,FlatRepair!$Y$2:$Y$10000,AE97)*AG97,0) -> 0 | AS97: 0 | AT97: 0.02584660402 | AU97: 0 | AV97: 0 | AW97: 0 | AX97: 0 | AY97: 0 | AZ97: 0.02584660402 | BA97: 0 | BB97: =IF($AF97=3,IF($AF$2=2,(R97/SUMIF(Refurb_Poss_Tbl[Refurbishment Possible],I97,Refurb_Poss_Tbl[%]))*AG97,IF($AF$2=3,(R97*AG97)-AV97,R97*AG97)),0) -> 0 | BC97: =IF(AF97=3,IF($AF$2=2,(S97/SUMIF(Refurb_Poss_Tbl[Refurbishment Possible],I97,Refurb_Poss_Tbl[%]))*AG97,IF($AF$2=3,(S97*AG97)-AX97,S97*AG97)),0) -> 0 | BD97: =IF($AF97=3,IF($AF$2=2,(T97/SUMIF(Refurb_Poss_Tbl[Refurbishment Possible],I97,Refurb_Poss_Tbl[%]))*AG97,T97*$AG97),0) -> 0 | BE97: =IF($AF97=3,IF($AF$2=2,(Q97/SUMIF(Refurb_Poss_Tbl[Refurbishment Possible],I97,Refurb_Poss_Tbl[%]))*AG97,Q97*$AG97),0) -> 0 | BF97: =IF($AF97=3,IF($AF$2=2,(U97/SUMIF(Refurb_Poss_Tbl[Refurbishment Possible],I97,Refurb_Poss_Tbl[%]))*AG97,U97*$AG97),0) -> 0 | BG97: =IF($AF97=3,IF($AF$2=2,(V97/SUMIF(Refurb_Poss_Tbl[Refurbishment Possible],I97,Refurb_Poss_Tbl[%]))*AG97,IF($AF$2=3,(V97*AG97)-AW97,V97*AG97)),0) -> 0 | BH97: =IF($AF97=3,IF($AF$2=2,(W97/SUMIF(Refurb_Poss_Tbl[Refurbishment Possible],I97,Refurb_Poss_Tbl[%]))*AG97,W97*$AG97),0) -> 0
A98: DredEA11 | B98: New channel | C98: Dredging Works | D98: DredEA1146 | E98: New channel-Excavation | F98: Dredging | G98: 120 | H98: 120 | I98: Moderate Refurbishment | J98: 60 | K98: New Build | L98: 0 | M98: 0 | N98: 0 | O98: 2 | P98: 22156.8888 | Q98: 22156.8888 | R98: 772.6037996 | S98: 153.8312699 | T98: 0.3320971537 | U98: 50.30718144 | V98: 0 | W98: 11346.73443 | X98: 34480.69757 | Y98: 0.26988 | Z98: 0 | AA98: 8620.174394 | AB98: 4554.35561 | AC98: 0.1660485769 | AD98: 76.91563493 | AE98: 96 | AF98: 0 | AG98: =VLOOKUP(AE98,ValidationLists!$M$1:$N$102,2,FALSE) -> 0.09343485638 | AH98: 0 | AI98: 0 | AJ98: 0 | AK98: 0 | AL98: 0 | AM98: 0 | AN98: 0 | AO98: 0 | AP98: 0.02521619904 | AQ98: =IF(OR(AF98=3,AF98=2,AF98=0),SUMIFS(FlatMaint!$Z$2:$Z$10000,FlatMaint!$A$2:$A$10000,D98,FlatMaint!$Y$2:$Y$10000,AE98)*AG98,0) -> 207.0234293 | AR98: =IF(OR(AF98=3,AF98=2,AF98=0),SUMIFS(FlatRepair!$Z$2:$Z$10000,FlatRepair!$A$2:$A$10000,D98,FlatRepair!$Y$2:$Y$10000,AE98)*AG98,0) -> 0 | AS98: 0 | AT98: 207.0486455 | AU98: 0 | AV98: 0 | AW98: 0 | AX98: 0 | AY98: 0 | AZ98: 207.0486455 | BA98: 0 | BB98: =IF($AF98=3,IF($AF$2=2,(R98/SUMIF(Refurb_Poss_Tbl[Refurbishment Possible],I98,Refurb_Poss_Tbl[%]))*AG98,IF($AF$2=3,(R98*AG98)-AV98,R98*AG98)),0) -> 0 | BC98: =IF(AF98=3,IF($AF$2=2,(S98/SUMIF(Refurb_Poss_Tbl[Refurbishment Possible],I98,Refurb_Poss_Tbl[%]))*AG98,IF($AF$2=3,(S98*AG98)-AX98,S98*AG98)),0) -> 0 | BD98: =IF($AF98=3,IF($AF$2=2,(T98/SUMIF(Refurb_Poss_Tbl[Refurbishment Possible],I98,Refurb_Poss_Tbl[%]))*AG98,T98*$AG98),0) -> 0 | BE98: =IF($AF98=3,IF($AF$2=2,(Q98/SUMIF(Refurb_Poss_Tbl[Refurbishment Possible],I98,Refurb_Poss_Tbl[%]))*AG98,Q98*$AG98),0) -> 0 | BF98: =IF($AF98=3,IF($AF$2=2,(U98/SUMIF(Refurb_Poss_Tbl[Refurbishment Possible],I98,Refurb_Poss_Tbl[%]))*AG98,U98*$AG98),0) -> 0 | BG98: =IF($AF98=3,IF($AF$2=2,(V98/SUMIF(Refurb_Poss_Tbl[Refurbishment Possible],I98,Refurb_Poss_Tbl[%]))*AG98,IF($AF$2=3,(V98*AG98)-AW98,V98*AG98)),0) -> 0 | BH98: =IF($AF98=3,IF($AF$2=2,(W98/SUMIF(Refurb_Poss_Tbl[Refurbishment Possible],I98,Refurb_Poss_Tbl[%]))*AG98,W98*$AG98),0) -> 0
A99: DredEA11 | B99: New channel | C99: Dredging Works | D99: DredEA1146 | E99: New channel-Excavation | F99: Dredging | G99: 120 | H99: 120 | I99: Moderate Refurbishment | J99: 60 | K99: New Build | L99: 0 | M99: 0 | N99: 0 | O99: 2 | P99: 22156.8888 | Q99: 22156.8888 | R99: 772.6037996 | S99: 153.8312699 | T99: 0.3320971537 | U99: 50.30718144 | V99: 0 | W99: 11346.73443 | X99: 34480.69757 | Y99: 0.26988 | Z99: 0 | AA99: 8620.174394 | AB99: 4554.35561 | AC99: 0.1660485769 | AD99: 76.91563493 | AE99: 97 | AF99: 0 | AG99: =VLOOKUP(AE99,ValidationLists!$M$1:$N$102,2,FALSE) -> 0.09115595745 | AH99: 0 | AI99: 0 | AJ99: 0 | AK99: 0 | AL99: 0 | AM99: 0 | AN99: 0 | AO99: 0 | AP99: 0.0246011698 | AQ99: =IF(OR(AF99=3,AF99=2,AF99=0),SUMIFS(FlatMaint!$Z$2:$Z$10000,FlatMaint!$A$2:$A$10000,D99,FlatMaint!$Y$2:$Y$10000,AE99)*AG99,0) -> 0 | AR99: =IF(OR(AF99=3,AF99=2,AF99=0),SUMIFS(FlatRepair!$Z$2:$Z$10000,FlatRepair!$A$2:$A$10000,D99,FlatRepair!$Y$2:$Y$10000,AE99)*AG99,0) -> 0 | AS99: 0 | AT99: 0.0246011698 | AU99: 0 | AV99: 0 | AW99: 0 | AX99: 0 | AY99: 0 | AZ99: 0.0246011698 | BA99: 0 | BB99: =IF($AF99=3,IF($AF$2=2,(R99/SUMIF(Refurb_Poss_Tbl[Refurbishment Possible],I99,Refurb_Poss_Tbl[%]))*AG99,IF($AF$2=3,(R99*AG99)-AV99,R99*AG99)),0) -> 0 | BC99: =IF(AF99=3,IF($AF$2=2,(S99/SUMIF(Refurb_Poss_Tbl[Refurbishment Possible],I99,Refurb_Poss_Tbl[%]))*AG99,IF($AF$2=3,(S99*AG99)-AX99,S99*AG99)),0) -> 0 | BD99: =IF($AF99=3,IF($AF$2=2,(T99/SUMIF(Refurb_Poss_Tbl[Refurbishment Possible],I99,Refurb_Poss_Tbl[%]))*AG99,T99*$AG99),0) -> 0 | BE99: =IF($AF99=3,IF($AF$2=2,(Q99/SUMIF(Refurb_Poss_Tbl[Refurbishment Possible],I99,Refurb_Poss_Tbl[%]))*AG99,Q99*$AG99),0) -> 0 | BF99: =IF($AF99=3,IF($AF$2=2,(U99/SUMIF(Refurb_Poss_Tbl[Refurbishment Possible],I99,Refurb_Poss_Tbl[%]))*AG99,U99*$AG99),0) -> 0 | BG99: =IF($AF99=3,IF($AF$2=2,(V99/SUMIF(Refurb_Poss_Tbl[Refurbishment Possible],I99,Refurb_Poss_Tbl[%]))*AG99,IF($AF$2=3,(V99*AG99)-AW99,V99*AG99)),0) -> 0 | BH99: =IF($AF99=3,IF($AF$2=2,(W99/SUMIF(Refurb_Poss_Tbl[Refurbishment Possible],I99,Refurb_Poss_Tbl[%]))*AG99,W99*$AG99),0) -> 0
A100: DredEA11 | B100: New channel | C100: Dredging Works | D100: DredEA1146 | E100: New channel-Excavation | F100: Dredging | G100: 120 | H100: 120 | I100: Moderate Refurbishment | J100: 60 | K100: New Build | L100: 0 | M100: 0 | N100: 0 | O100: 2 | P100: 22156.8888 | Q100: 22156.8888 | R100: 772.6037996 | S100: 153.8312699 | T100: 0.3320971537 | U100: 50.30718144 | V100: 0 | W100: 11346.73443 | X100: 34480.69757 | Y100: 0.26988 | Z100: 0 | AA100: 8620.174394 | AB100: 4554.35561 | AC100: 0.1660485769 | AD100: 76.91563493 | AE100: 98 | AF100: 0 | AG100: =VLOOKUP(AE100,ValidationLists!$M$1:$N$102,2,FALSE) -> 0.08893264141 | AH100: 0 | AI100: 0 | AJ100: 0 | AK100: 0 | AL100: 0 | AM100: 0 | AN100: 0 | AO100: 0 | AP100: 0.02400114126 | AQ100: =IF(OR(AF100=3,AF100=2,AF100=0),SUMIFS(FlatMaint!$Z$2:$Z$10000,FlatMaint!$A$2:$A$10000,D100,FlatMaint!$Y$2:$Y$10000,AE100)*AG100,0) -> 197.0478804 | AR100: =IF(OR(AF100=3,AF100=2,AF100=0),SUMIFS(FlatRepair!$Z$2:$Z$10000,FlatRepair!$A$2:$A$10000,D100,FlatRepair!$Y$2:$Y$10000,AE100)*AG100,0) -> 0 | AS100: 0 | AT100: 197.0718815 | AU100: 0 | AV100: 0 | AW100: 0 | AX100: 0 | AY100: 0 | AZ100: 197.0718815 | BA100: 0 | BB100: =IF($AF100=3,IF($AF$2=2,(R100/SUMIF(Refurb_Poss_Tbl[Refurbishment Possible],I100,Refurb_Poss_Tbl[%]))*AG100,IF($AF$2=3,(R100*AG100)-AV100,R100*AG100)),0) -> 0 | BC100: =IF(AF100=3,IF($AF$2=2,(S100/SUMIF(Refurb_Poss_Tbl[Refurbishment Possible],I100,Refurb_Poss_Tbl[%]))*AG100,IF($AF$2=3,(S100*AG100)-AX100,S100*AG100)),0) -> 0 | BD100: =IF($AF100=3,IF($AF$2=2,(T100/SUMIF(Refurb_Poss_Tbl[Refurbishment Possible],I100,Refurb_Poss_Tbl[%]))*AG100,T100*$AG100),0) -> 0 | BE100: =IF($AF100=3,IF($AF$2=2,(Q100/SUMIF(Refurb_Poss_Tbl[Refurbishment Possible],I100,Refurb_Poss_Tbl[%]))*AG100,Q100*$AG100),0) -> 0 | BF100: =IF($AF100=3,IF($AF$2=2,(U100/SUMIF(Refurb_Poss_Tbl[Refurbishment Possible],I100,Refurb_Poss_Tbl[%]))*AG100,U100*$AG100),0) -> 0 | BG100: =IF($AF100=3,IF($AF$2=2,(V100/SUMIF(Refurb_Poss_Tbl[Refurbishment Possible],I100,Refurb_Poss_Tbl[%]))*AG100,IF($AF$2=3,(V100*AG100)-AW100,V100*AG100)),0) -> 0 | BH100: =IF($AF100=3,IF($AF$2=2,(W100/SUMIF(Refurb_Poss_Tbl[Refurbishment Possible],I100,Refurb_Poss_Tbl[%]))*AG100,W100*$AG100),0) -> 0
A101: DredEA11 | B101: New channel | C101: Dredging Works | D101: DredEA1146 | E101: New channel-Excavation | F101: Dredging | G101: 120 | H101: 120 | I101: Moderate Refurbishment | J101: 60 | K101: New Build | L101: 0 | M101: 0 | N101: 0 | O101: 2 | P101: 22156.8888 | Q101: 22156.8888 | R101: 772.6037996 | S101: 153.8312699 | T101: 0.3320971537 | U101: 50.30718144 | V101: 0 | W101: 11346.73443 | X101: 34480.69757 | Y101: 0.26988 | Z101: 0 | AA101: 8620.174394 | AB101: 4554.35561 | AC101: 0.1660485769 | AD101: 76.91563493 | AE101: 99 | AF101: 0 | AG101: =VLOOKUP(AE101,ValidationLists!$M$1:$N$102,2,FALSE) -> 0.0867635526 | AH101: 0 | AI101: 0 | AJ101: 0 | AK101: 0 | AL101: 0 | AM101: 0 | AN101: 0 | AO101: 0 | AP101: 0.02341574758 | AQ101: =IF(OR(AF101=3,AF101=2,AF101=0),SUMIFS(FlatMaint!$Z$2:$Z$10000,FlatMaint!$A$2:$A$10000,D101,FlatMaint!$Y$2:$Y$10000,AE101)*AG101,0) -> 0 | AR101: =IF(OR(AF101=3,AF101=2,AF101=0),SUMIFS(FlatRepair!$Z$2:$Z$10000,FlatRepair!$A$2:$A$10000,D101,FlatRepair!$Y$2:$Y$10000,AE101)*AG101,0) -> 0 | AS101: 0 | AT101: 0.02341574758 | AU101: 0 | AV101: 0 | AW101: 0 | AX101: 0 | AY101: 0 | AZ101: 0.02341574758 | BA101: 0 | BB101: =IF($AF101=3,IF($AF$2=2,(R101/SUMIF(Refurb_Poss_Tbl[Refurbishment Possible],I101,Refurb_Poss_Tbl[%]))*AG101,IF($AF$2=3,(R101*AG101)-AV101,R101*AG101)),0) -> 0 | BC101: =IF(AF101=3,IF($AF$2=2,(S101/SUMIF(Refurb_Poss_Tbl[Refurbishment Possible],I101,Refurb_Poss_Tbl[%]))*AG101,IF($AF$2=3,(S101*AG101)-AX101,S101*AG101)),0) -> 0 | BD101: =IF($AF101=3,IF($AF$2=2,(T101/SUMIF(Refurb_Poss_Tbl[Refurbishment Possible],I101,Refurb_Poss_Tbl[%]))*AG101,T101*$AG101),0) -> 0 | BE101: =IF($AF101=3,IF($AF$2=2,(Q101/SUMIF(Refurb_Poss_Tbl[Refurbishment Possible],I101,Refurb_Poss_Tbl[%]))*AG101,Q101*$AG101),0) -> 0 | BF101: =IF($AF101=3,IF($AF$2=2,(U101/SUMIF(Refurb_Poss_Tbl[Refurbishment Possible],I101,Refurb_Poss_Tbl[%]))*AG101,U101*$AG101),0) -> 0 | BG101: =IF($AF101=3,IF($AF$2=2,(V101/SUMIF(Refurb_Poss_Tbl[Refurbishment Possible],I101,Refurb_Poss_Tbl[%]))*AG101,IF($AF$2=3,(V101*AG101)-AW101,V101*AG101)),0) -> 0 | BH101: =IF($AF101=3,IF($AF$2=2,(W101/SUMIF(Refurb_Poss_Tbl[Refurbishment Possible],I101,Refurb_Poss_Tbl[%]))*AG101,W101*$AG101),0) -> 0
A102: DredEA11 | B102: New channel | C102: Dredging Works | D102: DredEA1146 | E102: New channel-Excavation | F102: Dredging | G102: 120 | H102: 120 | I102: Moderate Refurbishment | J102: 60 | K102: New Build | L102: 0 | M102: 0 | N102: 0 | O102: 2 | P102: 22156.8888 | Q102: 22156.8888 | R102: 772.6037996 | S102: 153.8312699 | T102: 0.3320971537 | U102: 50.30718144 | V102: 0 | W102: 11346.73443 | X102: 34480.69757 | Y102: 0.26988 | Z102: 0 | AA102: 8620.174394 | AB102: 4554.35561 | AC102: 0.1660485769 | AD102: 76.91563493 | AE102: 100 | AF102: 0 | AG102: =VLOOKUP(AE102,ValidationLists!$M$1:$N$102,2,FALSE) -> 0.08464736839 | AH102: 0 | AI102: 0 | AJ102: 0 | AK102: 0 | AL102: 0 | AM102: 0 | AN102: 0 | AO102: 0 | AP102: 0.02284463178 | AQ102: =IF(OR(AF102=3,AF102=2,AF102=0),SUMIFS(FlatMaint!$Z$2:$Z$10000,FlatMaint!$A$2:$A$10000,D102,FlatMaint!$Y$2:$Y$10000,AE102)*AG102,0) -> 187.5530093 | AR102: =IF(OR(AF102=3,AF102=2,AF102=0),SUMIFS(FlatRepair!$Z$2:$Z$10000,FlatRepair!$A$2:$A$10000,D102,FlatRepair!$Y$2:$Y$10000,AE102)*AG102,0) -> 0 | AS102: 0 | AT102: 187.5758539 | AU102: 0 | AV102: 0 | AW102: 0 | AX102: 0 | AY102: 0 | AZ102: 187.5758539 | BA102: 0 | BB102: =IF($AF102=3,IF($AF$2=2,(R102/SUMIF(Refurb_Poss_Tbl[Refurbishment Possible],I102,Refurb_Poss_Tbl[%]))*AG102,IF($AF$2=3,(R102*AG102)-AV102,R102*AG102)),0) -> 0 | BC102: =IF(AF102=3,IF($AF$2=2,(S102/SUMIF(Refurb_Poss_Tbl[Refurbishment Possible],I102,Refurb_Poss_Tbl[%]))*AG102,IF($AF$2=3,(S102*AG102)-AX102,S102*AG102)),0) -> 0 | BD102: =IF($AF102=3,IF($AF$2=2,(T102/SUMIF(Refurb_Poss_Tbl[Refurbishment Possible],I102,Refurb_Poss_Tbl[%]))*AG102,T102*$AG102),0) -> 0 | BE102: =IF($AF102=3,IF($AF$2=2,(Q102/SUMIF(Refurb_Poss_Tbl[Refurbishment Possible],I102,Refurb_Poss_Tbl[%]))*AG102,Q102*$AG102),0) -> 0 | BF102: =IF($AF102=3,IF($AF$2=2,(U102/SUMIF(Refurb_Poss_Tbl[Refurbishment Possible],I102,Refurb_Poss_Tbl[%]))*AG102,U102*$AG102),0) -> 0 | BG102: =IF($AF102=3,IF($AF$2=2,(V102/SUMIF(Refurb_Poss_Tbl[Refurbishment Possible],I102,Refurb_Poss_Tbl[%]))*AG102,IF($AF$2=3,(V102*AG102)-AW102,V102*AG102)),0) -> 0 | BH102: =IF($AF102=3,IF($AF$2=2,(W102/SUMIF(Refurb_Poss_Tbl[Refurbishment Possible],I102,Refurb_Poss_Tbl[%]))*AG102,W102*$AG102),0) -> 0
A103: BridEA04 | B103: Modification Botley Bridge | C103: Bridge - Vehicle Access | D103: BridEA0447 | E103: Modification Botley Bridge | F103: Bridges | G103: 60 | H103: 60 | I103: Major Refurbishment | J103: 50 | K103: Replacement | L103: 93 | M103: 0 | N103: 100 | O103: 2 | P103: 190.08 | Q103: 190.08 | R103: 1.215089795 | S103: 6.33621499 | T103: 0.01367887664 | U103: 2.072121731 | V103: 0 | W103: 2.480229407 | X103: 197.8072981 | Y103: 0 | Z103: 0 | AA103: 98.90364904 | AB103: 22.32206466 | AC103: 0.006839438319 | AD103: 3.168107495 | AE103: 0 | AF103: 3 | AG103: =VLOOKUP(AE103,ValidationLists!$M$1:$N$102,2,FALSE) -> 1 | AH103: 190.08 | AI103: 1.215089795 | AJ103: 6.33621499 | AK103: 0.01367887664 | AL103: 2.072121731 | AM103: 0 | AN103: 2.480229407 | AO103: 202.1973348 | AP103: 0 | AQ103: =IF(OR(AF103=3,AF103=2,AF103=0),SUMIFS(FlatMaint!$Z$2:$Z$10000,FlatMaint!$A$2:$A$10000,D103,FlatMaint!$Y$2:$Y$10000,AE103)*AG103,0) -> 0 | AR103: =IF(OR(AF103=3,AF103=2,AF103=0),SUMIFS(FlatRepair!$Z$2:$Z$10000,FlatRepair!$A$2:$A$10000,D103,FlatRepair!$Y$2:$Y$10000,AE103)*AG103,0) -> 0 | AS103: 0 | AT103: 0 | AU103: 0 | AV103: 22.32206466 | AW103: 0.006839438319 | AX103: 3.168107495 | AY103: 202.1973348 | AZ103: 429.8916812 | BA103: 0 | BB103: =IF($AF103=3,IF($AF$2=2,(R103/SUMIF(Refurb_Poss_Tbl[Refurbishment Possible],I103,Refurb_Poss_Tbl[%]))*AG103,IF($AF$2=3,(R103*AG103)-AV103,R103*AG103)),0) -> 1.215089795 | BC103: =IF(AF103=3,IF($AF$2=2,(S103/SUMIF(Refurb_Poss_Tbl[Refurbishment Possible],I103,Refurb_Poss_Tbl[%]))*AG103,IF($AF$2=3,(S103*AG103)-AX103,S103*AG103)),0) -> 6.33621499 | BD103: =IF($AF103=3,IF($AF$2=2,(T103/SUMIF(Refurb_Poss_Tbl[Refurbishment Possible],I103,Refurb_Poss_Tbl[%]))*AG103,T103*$AG103),0) -> 0.01367887664 | BE103: =IF($AF103=3,IF($AF$2=2,(Q103/SUMIF(Refurb_Poss_Tbl[Refurbishment Possible],I103,Refurb_Poss_Tbl[%]))*AG103,Q103*$AG103),0) -> 190.08 | BF103: =IF($AF103=3,IF($AF$2=2,(U103/SUMIF(Refurb_Poss_Tbl[Refurbishment Possible],I103,Refurb_Poss_Tbl[%]))*AG103,U103*$AG103),0) -> 2.072121731 | BG103: =IF($AF103=3,IF($AF$2=2,(V103/SUMIF(Refurb_Poss_Tbl[Refurbishment Possible],I103,Refurb_Poss_Tbl[%]))*AG103,IF($AF$2=3,(V103*AG103)-AW103,V103*AG103)),0) -> 0 | BH103: =IF($AF103=3,IF($AF$2=2,(W103/SUMIF(Refurb_Poss_Tbl[Refurbishment Possible],I103,Refurb_Poss_Tbl[%]))*AG103,W103*$AG103),0) -> 2.480229407
A104: BridEA04 | B104: Modification Botley Bridge | C104: Bridge - Vehicle Access | D104: BridEA0447 | E104: Modification Botley Bridge | F104: Bridges | G104: 60 | H104: 60 | I104: Major Refurbishment | J104: 50 | K104: Replacement | L104: 93 | M104: 0 | N104: 100 | O104: 2 | P104: 190.08 | Q104: 190.08 | R104: 1.215089795 | S104: 6.33621499 | T104: 0.01367887664 | U104: 2.072121731 | V104: 0 | W104: 2.480229407 | X104: 197.8072981 | Y104: 0 | Z104: 0 | AA104: 98.90364904 | AB104: 22.32206466 | AC104: 0.006839438319 | AD104: 3.168107495 | AE104: 1 | AF104: 0 | AG104: =VLOOKUP(AE104,ValidationLists!$M$1:$N$102,2,FALSE) -> 0.9661835749 | AH104: 0 | AI104: 0 | AJ104: 0 | AK104: 0 | AL104: 0 | AM104: 0 | AN104: 0 | AO104: 0 | AP104: 0 | AQ104: =IF(OR(AF104=3,AF104=2,AF104=0),SUMIFS(FlatMaint!$Z$2:$Z$10000,FlatMaint!$A$2:$A$10000,D104,FlatMaint!$Y$2:$Y$10000,AE104)*AG104,0) -> 18.37112547 | AR104: =IF(OR(AF104=3,AF104=2,AF104=0),SUMIFS(FlatRepair!$Z$2:$Z$10000,FlatRepair!$A$2:$A$10000,D104,FlatRepair!$Y$2:$Y$10000,AE104)*AG104,0) -> 0 | AS104: 0 | AT104: 18.37112547 | AU104: 0 | AV104: 0 | AW104: 0 | AX104: 0 | AY104: 0 | AZ104: 18.37112547 | BA104: 0 | BB104: =IF($AF104=3,IF($AF$2=2,(R104/SUMIF(Refurb_Poss_Tbl[Refurbishment Possible],I104,Refurb_Poss_Tbl[%]))*AG104,IF($AF$2=3,(R104*AG104)-AV104,R104*AG104)),0) -> 0 | BC104: =IF(AF104=3,IF($AF$2=2,(S104/SUMIF(Refurb_Poss_Tbl[Refurbishment Possible],I104,Refurb_Poss_Tbl[%]))*AG104,IF($AF$2=3,(S104*AG104)-AX104,S104*AG104)),0) -> 0 | BD104: =IF($AF104=3,IF($AF$2=2,(T104/SUMIF(Refurb_Poss_Tbl[Refurbishment Possible],I104,Refurb_Poss_Tbl[%]))*AG104,T104*$AG104),0) -> 0 | BE104: =IF($AF104=3,IF($AF$2=2,(Q104/SUMIF(Refurb_Poss_Tbl[Refurbishment Possible],I104,Refurb_Poss_Tbl[%]))*AG104,Q104*$AG104),0) -> 0 | BF104: =IF($AF104=3,IF($AF$2=2,(U104/SUMIF(Refurb_Poss_Tbl[Refurbishment Possible],I104,Refurb_Poss_Tbl[%]))*AG104,U104*$AG104),0) -> 0 | BG104: =IF($AF104=3,IF($AF$2=2,(V104/SUMIF(Refurb_Poss_Tbl[Refurbishment Possible],I104,Refurb_Poss_Tbl[%]))*AG104,IF($AF$2=3,(V104*AG104)-AW104,V104*AG104)),0) -> 0 | BH104: =IF($AF104=3,IF($AF$2=2,(W104/SUMIF(Refurb_Poss_Tbl[Refurbishment Possible],I104,Refurb_Poss_Tbl[%]))*AG104,W104*$AG104),0) -> 0
A105: BridEA04 | B105: Modification Botley Bridge | C105: Bridge - Vehicle Access | D105: BridEA0447 | E105: Modification Botley Bridge | F105: Bridges | G105: 60 | H105: 60 | I105: Major Refurbishment | J105: 50 | K105: Replacement | L105: 93 | M105: 0 | N105: 100 | O105: 2 | P105: 190.08 | Q105: 190.08 | R105: 1.215089795 | S105: 6.33621499 | T105: 0.01367887664 | U105: 2.072121731 | V105: 0 | W105: 2.480229407 | X105: 197.8072981 | Y105: 0 | Z105: 0 | AA105: 98.90364904 | AB105: 22.32206466 | AC105: 0.006839438319 | AD105: 3.168107495 | AE105: 2 | AF105: 0 | AG105: =VLOOKUP(AE105,ValidationLists!$M$1:$N$102,2,FALSE) -> 0.9335107004 | AH105: 0 | AI105: 0 | AJ105: 0 | AK105: 0 | AL105: 0 | AM105: 0 | AN105: 0 | AO105: 0 | AP105: 0 | AQ105: =IF(OR(AF105=3,AF105=2,AF105=0),SUMIFS(FlatMaint!$Z$2:$Z$10000,FlatMaint!$A$2:$A$10000,D105,FlatMaint!$Y$2:$Y$10000,AE105)*AG105,0) -> 17.74987968 | AR105: =IF(OR(AF105=3,AF105=2,AF105=0),SUMIFS(FlatRepair!$Z$2:$Z$10000,FlatRepair!$A$2:$A$10000,D105,FlatRepair!$Y$2:$Y$10000,AE105)*AG105,0) -> 0 | AS105: 0 | AT105: 17.74987968 | AU105: 0 | AV105: 0 | AW105: 0 | AX105: 0 | AY105: 0 | AZ105: 17.74987968 | BA105: 0 | BB105: =IF($AF105=3,IF($AF$2=2,(R105/SUMIF(Refurb_Poss_Tbl[Refurbishment Possible],I105,Refurb_Poss_Tbl[%]))*AG105,IF($AF$2=3,(R105*AG105)-AV105,R105*AG105)),0) -> 0 | BC105: =IF(AF105=3,IF($AF$2=2,(S105/SUMIF(Refurb_Poss_Tbl[Refurbishment Possible],I105,Refurb_Poss_Tbl[%]))*AG105,IF($AF$2=3,(S105*AG105)-AX105,S105*AG105)),0) -> 0 | BD105: =IF($AF105=3,IF($AF$2=2,(T105/SUMIF(Refurb_Poss_Tbl[Refurbishment Possible],I105,Refurb_Poss_Tbl[%]))*AG105,T105*$AG105),0) -> 0 | BE105: =IF($AF105=3,IF($AF$2=2,(Q105/SUMIF(Refurb_Poss_Tbl[Refurbishment Possible],I105,Refurb_Poss_Tbl[%]))*AG105,Q105*$AG105),0) -> 0 | BF105: =IF($AF105=3,IF($AF$2=2,(U105/SUMIF(Refurb_Poss_Tbl[Refurbishment Possible],I105,Refurb_Poss_Tbl[%]))*AG105,U105*$AG105),0) -> 0 | BG105: =IF($AF105=3,IF($AF$2=2,(V105/SUMIF(Refurb_Poss_Tbl[Refurbishment Possible],I105,Refurb_Poss_Tbl[%]))*AG105,IF($AF$2=3,(V105*AG105)-AW105,V105*AG105)),0) -> 0 | BH105: =IF($AF105=3,IF($AF$2=2,(W105/SUMIF(Refurb_Poss_Tbl[Refurbishment Possible],I105,Refurb_Poss_Tbl[%]))*AG105,W105*$AG105),0) -> 0
A106: BridEA04 | B106: Modification Botley Bridge | C106: Bridge - Vehicle Access | D106: BridEA0447 | E106: Modification Botley Bridge | F106: Bridges | G106: 60 | H106: 60 | I106: Major Refurbishment | J106: 50 | K106: Replacement | L106: 93 | M106: 0 | N106: 100 | O106: 2 | P106: 190.08 | Q106: 190.08 | R106: 1.215089795 | S106: 6.33621499 | T106: 0.01367887664 | U106: 2.072121731 | V106: 0 | W106: 2.480229407 | X106: 197.8072981 | Y106: 0 | Z106: 0 | AA106: 98.90364904 | AB106: 22.32206466 | AC106: 0.006839438319 | AD106: 3.168107495 | AE106: 3 | AF106: 0 | AG106: =VLOOKUP(AE106,ValidationLists!$M$1:$N$102,2,FALSE) -> 0.9019427057 | AH106: 0 | AI106: 0 | AJ106: 0 | AK106: 0 | AL106: 0 | AM106: 0 | AN106: 0 | AO106: 0 | AP106: 0 | AQ106: =IF(OR(AF106=3,AF106=2,AF106=0),SUMIFS(FlatMaint!$Z$2:$Z$10000,FlatMaint!$A$2:$A$10000,D106,FlatMaint!$Y$2:$Y$10000,AE106)*AG106,0) -> 17.14964221 | AR106: =IF(OR(AF106=3,AF106=2,AF106=0),SUMIFS(FlatRepair!$Z$2:$Z$10000,FlatRepair!$A$2:$A$10000,D106,FlatRepair!$Y$2:$Y$10000,AE106)*AG106,0) -> 0 | AS106: 0 | AT106: 17.14964221 | AU106: 0 | AV106: 0 | AW106: 0 | AX106: 0 | AY106: 0 | AZ106: 17.14964221 | BA106: 0 | BB106: =IF($AF106=3,IF($AF$2=2,(R106/SUMIF(Refurb_Poss_Tbl[Refurbishment Possible],I106,Refurb_Poss_Tbl[%]))*AG106,IF($AF$2=3,(R106*AG106)-AV106,R106*AG106)),0) -> 0 | BC106: =IF(AF106=3,IF($AF$2=2,(S106/SUMIF(Refurb_Poss_Tbl[Refurbishment Possible],I106,Refurb_Poss_Tbl[%]))*AG106,IF($AF$2=3,(S106*AG106)-AX106,S106*AG106)),0) -> 0 | BD106: =IF($AF106=3,IF($AF$2=2,(T106/SUMIF(Refurb_Poss_Tbl[Refurbishment Possible],I106,Refurb_Poss_Tbl[%]))*AG106,T106*$AG106),0) -> 0 | BE106: =IF($AF106=3,IF($AF$2=2,(Q106/SUMIF(Refurb_Poss_Tbl[Refurbishment Possible],I106,Refurb_Poss_Tbl[%]))*AG106,Q106*$AG106),0) -> 0 | BF106: =IF($AF106=3,IF($AF$2=2,(U106/SUMIF(Refurb_Poss_Tbl[Refurbishment Possible],I106,Refurb_Poss_Tbl[%]))*AG106,U106*$AG106),0) -> 0 | BG106: =IF($AF106=3,IF($AF$2=2,(V106/SUMIF(Refurb_Poss_Tbl[Refurbishment Possible],I106,Refurb_Poss_Tbl[%]))*AG106,IF($AF$2=3,(V106*AG106)-AW106,V106*AG106)),0) -> 0 | BH106: =IF($AF106=3,IF($AF$2=2,(W106/SUMIF(Refurb_Poss_Tbl[Refurbishment Possible],I106,Refurb_Poss_Tbl[%]))*AG106,W106*$AG106),0) -> 0
A107: BridEA04 | B107: Modification Botley Bridge | C107: Bridge - Vehicle Access | D107: BridEA0447 | E107: Modification Botley Bridge | F107: Bridges | G107: 60 | H107: 60 | I107: Major Refurbishment | J107: 50 | K107: Replacement | L107: 93 | M107: 0 | N107: 100 | O107: 2 | P107: 190.08 | Q107: 190.08 | R107: 1.215089795 | S107: 6.33621499 | T107: 0.01367887664 | U107: 2.072121731 | V107: 0 | W107: 2.480229407 | X107: 197.8072981 | Y107: 0 | Z107: 0 | AA107: 98.90364904 | AB107: 22.32206466 | AC107: 0.006839438319 | AD107: 3.168107495 | AE107: 4 | AF107: 0 | AG107: =VLOOKUP(AE107,ValidationLists!$M$1:$N$102,2,FALSE) -> 0.8714422277 | AH107: 0 | AI107: 0 | AJ107: 0 | AK107: 0 | AL107: 0 | AM107: 0 | AN107: 0 | AO107: 0 | AP107: 0 | AQ107: =IF(OR(AF107=3,AF107=2,AF107=0),SUMIFS(FlatMaint!$Z$2:$Z$10000,FlatMaint!$A$2:$A$10000,D107,FlatMaint!$Y$2:$Y$10000,AE107)*AG107,0) -> 16.56970261 | AR107: =IF(OR(AF107=3,AF107=2,AF107=0),SUMIFS(FlatRepair!$Z$2:$Z$10000,FlatRepair!$A$2:$A$10000,D107,FlatRepair!$Y$2:$Y$10000,AE107)*AG107,0) -> 0 | AS107: 0 | AT107: 16.56970261 | AU107: 0 | AV107: 0 | AW107: 0 | AX107: 0 | AY107: 0 | AZ107: 16.56970261 | BA107: 0 | BB107: =IF($AF107=3,IF($AF$2=2,(R107/SUMIF(Refurb_Poss_Tbl[Refurbishment Possible],I107,Refurb_Poss_Tbl[%]))*AG107,IF($AF$2=3,(R107*AG107)-AV107,R107*AG107)),0) -> 0 | BC107: =IF(AF107=3,IF($AF$2=2,(S107/SUMIF(Refurb_Poss_Tbl[Refurbishment Possible],I107,Refurb_Poss_Tbl[%]))*AG107,IF($AF$2=3,(S107*AG107)-AX107,S107*AG107)),0) -> 0 | BD107: =IF($AF107=3,IF($AF$2=2,(T107/SUMIF(Refurb_Poss_Tbl[Refurbishment Possible],I107,Refurb_Poss_Tbl[%]))*AG107,T107*$AG107),0) -> 0 | BE107: =IF($AF107=3,IF($AF$2=2,(Q107/SUMIF(Refurb_Poss_Tbl[Refurbishment Possible],I107,Refurb_Poss_Tbl[%]))*AG107,Q107*$AG107),0) -> 0 | BF107: =IF($AF107=3,IF($AF$2=2,(U107/SUMIF(Refurb_Poss_Tbl[Refurbishment Possible],I107,Refurb_Poss_Tbl[%]))*AG107,U107*$AG107),0) -> 0 | BG107: =IF($AF107=3,IF($AF$2=2,(V107/SUMIF(Refurb_Poss_Tbl[Refurbishment Possible],I107,Refurb_Poss_Tbl[%]))*AG107,IF($AF$2=3,(V107*AG107)-AW107,V107*AG107)),0) -> 0 | BH107: =IF($AF107=3,IF($AF$2=2,(W107/SUMIF(Refurb_Poss_Tbl[Refurbishment Possible],I107,Refurb_Poss_Tbl[%]))*AG107,W107*$AG107),0) -> 0
A108: BridEA04 | B108: Modification Botley Bridge | C108: Bridge - Vehicle Access | D108: BridEA0447 | E108: Modification Botley Bridge | F108: Bridges | G108: 60 | H108: 60 | I108: Major Refurbishment | J108: 50 | K108: Replacement | L108: 93 | M108: 0 | N108: 100 | O108: 2 | P108: 190.08 | Q108: 190.08 | R108: 1.215089795 | S108: 6.33621499 | T108: 0.01367887664 | U108: 2.072121731 | V108: 0 | W108: 2.480229407 | X108: 197.8072981 | Y108: 0 | Z108: 0 | AA108: 98.90364904 | AB108: 22.32206466 | AC108: 0.006839438319 | AD108: 3.168107495 | AE108: 5 | AF108: 0 | AG108: =VLOOKUP(AE108,ValidationLists!$M$1:$N$102,2,FALSE) -> 0.8419731669 | AH108: 0 | AI108: 0 | AJ108: 0 | AK108: 0 | AL108: 0 | AM108: 0 | AN108: 0 | AO108: 0 | AP108: 0 | AQ108: =IF(OR(AF108=3,AF108=2,AF108=0),SUMIFS(FlatMaint!$Z$2:$Z$10000,FlatMaint!$A$2:$A$10000,D108,FlatMaint!$Y$2:$Y$10000,AE108)*AG108,0) -> 16.00937451 | AR108: =IF(OR(AF108=3,AF108=2,AF108=0),SUMIFS(FlatRepair!$Z$2:$Z$10000,FlatRepair!$A$2:$A$10000,D108,FlatRepair!$Y$2:$Y$10000,AE108)*AG108,0) -> 160.0887629 | AS108: 0 | AT108: 176.0981374 | AU108: 0 | AV108: 0 | AW108: 0 | AX108: 0 | AY108: 0 | AZ108: 176.0981374 | BA108: 0 | BB108: =IF($AF108=3,IF($AF$2=2,(R108/SUMIF(Refurb_Poss_Tbl[Refurbishment Possible],I108,Refurb_Poss_Tbl[%]))*AG108,IF($AF$2=3,(R108*AG108)-AV108,R108*AG108)),0) -> 0 | BC108: =IF(AF108=3,IF($AF$2=2,(S108/SUMIF(Refurb_Poss_Tbl[Refurbishment Possible],I108,Refurb_Poss_Tbl[%]))*AG108,IF($AF$2=3,(S108*AG108)-AX108,S108*AG108)),0) -> 0 | BD108: =IF($AF108=3,IF($AF$2=2,(T108/SUMIF(Refurb_Poss_Tbl[Refurbishment Possible],I108,Refurb_Poss_Tbl[%]))*AG108,T108*$AG108),0) -> 0 | BE108: =IF($AF108=3,IF($AF$2=2,(Q108/SUMIF(Refurb_Poss_Tbl[Refurbishment Possible],I108,Refurb_Poss_Tbl[%]))*AG108,Q108*$AG108),0) -> 0 | BF108: =IF($AF108=3,IF($AF$2=2,(U108/SUMIF(Refurb_Poss_Tbl[Refurbishment Possible],I108,Refurb_Poss_Tbl[%]))*AG108,U108*$AG108),0) -> 0 | BG108: =IF($AF108=3,IF($AF$2=2,(V108/SUMIF(Refurb_Poss_Tbl[Refurbishment Possible],I108,Refurb_Poss_Tbl[%]))*AG108,IF($AF$2=3,(V108*AG108)-AW108,V108*AG108)),0) -> 0 | BH108: =IF($AF108=3,IF($AF$2=2,(W108/SUMIF(Refurb_Poss_Tbl[Refurbishment Possible],I108,Refurb_Poss_Tbl[%]))*AG108,W108*$AG108),0) -> 0
A109: BridEA04 | B109: Modification Botley Bridge | C109: Bridge - Vehicle Access | D109: BridEA0447 | E109: Modification Botley Bridge | F109: Bridges | G109: 60 | H109: 60 | I109: Major Refurbishment | J109: 50 | K109: Replacement | L109: 93 | M109: 0 | N109: 100 | O109: 2 | P109: 190.08 | Q109: 190.08 | R109: 1.215089795 | S109: 6.33621499 | T109: 0.01367887664 | U109: 2.072121731 | V109: 0 | W109: 2.480229407 | X109: 197.8072981 | Y109: 0 | Z109: 0 | AA109: 98.90364904 | AB109: 22.32206466 | AC109: 0.006839438319 | AD109: 3.168107495 | AE109: 6 | AF109: 0 | AG109: =VLOOKUP(AE109,ValidationLists!$M$1:$N$102,2,FALSE) -> 0.8135006443 | AH109: 0 | AI109: 0 | AJ109: 0 | AK109: 0 | AL109: 0 | AM109: 0 | AN109: 0 | AO109: 0 | AP109: 0 | AQ109: =IF(OR(AF109=3,AF109=2,AF109=0),SUMIFS(FlatMaint!$Z$2:$Z$10000,FlatMaint!$A$2:$A$10000,D109,FlatMaint!$Y$2:$Y$10000,AE109)*AG109,0) -> 15.46799469 | AR109: =IF(OR(AF109=3,AF109=2,AF109=0),SUMIFS(FlatRepair!$Z$2:$Z$10000,FlatRepair!$A$2:$A$10000,D109,FlatRepair!$Y$2:$Y$10000,AE109)*AG109,0) -> 0 | AS109: 0 | AT109: 15.46799469 | AU109: 0 | AV109: 0 | AW109: 0 | AX109: 0 | AY109: 0 | AZ109: 15.46799469 | BA109: 0 | BB109: =IF($AF109=3,IF($AF$2=2,(R109/SUMIF(Refurb_Poss_Tbl[Refurbishment Possible],I109,Refurb_Poss_Tbl[%]))*AG109,IF($AF$2=3,(R109*AG109)-AV109,R109*AG109)),0) -> 0 | BC109: =IF(AF109=3,IF($AF$2=2,(S109/SUMIF(Refurb_Poss_Tbl[Refurbishment Possible],I109,Refurb_Poss_Tbl[%]))*AG109,IF($AF$2=3,(S109*AG109)-AX109,S109*AG109)),0) -> 0 | BD109: =IF($AF109=3,IF($AF$2=2,(T109/SUMIF(Refurb_Poss_Tbl[Refurbishment Possible],I109,Refurb_Poss_Tbl[%]))*AG109,T109*$AG109),0) -> 0 | BE109: =IF($AF109=3,IF($AF$2=2,(Q109/SUMIF(Refurb_Poss_Tbl[Refurbishment Possible],I109,Refurb_Poss_Tbl[%]))*AG109,Q109*$AG109),0) -> 0 | BF109: =IF($AF109=3,IF($AF$2=2,(U109/SUMIF(Refurb_Poss_Tbl[Refurbishment Possible],I109,Refurb_Poss_Tbl[%]))*AG109,U109*$AG109),0) -> 0 | BG109: =IF($AF109=3,IF($AF$2=2,(V109/SUMIF(Refurb_Poss_Tbl[Refurbishment Possible],I109,Refurb_Poss_Tbl[%]))*AG109,IF($AF$2=3,(V109*AG109)-AW109,V109*AG109)),0) -> 0 | BH109: =IF($AF109=3,IF($AF$2=2,(W109/SUMIF(Refurb_Poss_Tbl[Refurbishment Possible],I109,Refurb_Poss_Tbl[%]))*AG109,W109*$AG109),0) -> 0
A110: BridEA04 | B110: Modification Botley Bridge | C110: Bridge - Vehicle Access | D110: BridEA0447 | E110: Modification Botley Bridge | F110: Bridges | G110: 60 | H110: 60 | I110: Major Refurbishment | J110: 50 | K110: Replacement | L110: 93 | M110: 0 | N110: 100 | O110: 2 | P110: 190.08 | Q110: 190.08 | R110: 1.215089795 | S110: 6.33621499 | T110: 0.01367887664 | U110: 2.072121731 | V110: 0 | W110: 2.480229407 | X110: 197.8072981 | Y110: 0 | Z110: 0 | AA110: 98.90364904 | AB110: 22.32206466 | AC110: 0.006839438319 | AD110: 3.168107495 | AE110: 7 | AF110: 0 | AG110: =VLOOKUP(AE110,ValidationLists!$M$1:$N$102,2,FALSE) -> 0.7859909607 | AH110: 0 | AI110: 0 | AJ110: 0 | AK110: 0 | AL110: 0 | AM110: 0 | AN110: 0 | AO110: 0 | AP110: 0 | AQ110: =IF(OR(AF110=3,AF110=2,AF110=0),SUMIFS(FlatMaint!$Z$2:$Z$10000,FlatMaint!$A$2:$A$10000,D110,FlatMaint!$Y$2:$Y$10000,AE110)*AG110,0) -> 14.94492241 | AR110: =IF(OR(AF110=3,AF110=2,AF110=0),SUMIFS(FlatRepair!$Z$2:$Z$10000,FlatRepair!$A$2:$A$10000,D110,FlatRepair!$Y$2:$Y$10000,AE110)*AG110,0) -> 0 | AS110: 0 | AT110: 14.94492241 | AU110: 0 | AV110: 0 | AW110: 0 | AX110: 0 | AY110: 0 | AZ110: 14.94492241 | BA110: 0 | BB110: =IF($AF110=3,IF($AF$2=2,(R110/SUMIF(Refurb_Poss_Tbl[Refurbishment Possible],I110,Refurb_Poss_Tbl[%]))*AG110,IF($AF$2=3,(R110*AG110)-AV110,R110*AG110)),0) -> 0 | BC110: =IF(AF110=3,IF($AF$2=2,(S110/SUMIF(Refurb_Poss_Tbl[Refurbishment Possible],I110,Refurb_Poss_Tbl[%]))*AG110,IF($AF$2=3,(S110*AG110)-AX110,S110*AG110)),0) -> 0 | BD110: =IF($AF110=3,IF($AF$2=2,(T110/SUMIF(Refurb_Poss_Tbl[Refurbishment Possible],I110,Refurb_Poss_Tbl[%]))*AG110,T110*$AG110),0) -> 0 | BE110: =IF($AF110=3,IF($AF$2=2,(Q110/SUMIF(Refurb_Poss_Tbl[Refurbishment Possible],I110,Refurb_Poss_Tbl[%]))*AG110,Q110*$AG110),0) -> 0 | BF110: =IF($AF110=3,IF($AF$2=2,(U110/SUMIF(Refurb_Poss_Tbl[Refurbishment Possible],I110,Refurb_Poss_Tbl[%]))*AG110,U110*$AG110),0) -> 0 | BG110: =IF($AF110=3,IF($AF$2=2,(V110/SUMIF(Refurb_Poss_Tbl[Refurbishment Possible],I110,Refurb_Poss_Tbl[%]))*AG110,IF($AF$2=3,(V110*AG110)-AW110,V110*AG110)),0) -> 0 | BH110: =IF($AF110=3,IF($AF$2=2,(W110/SUMIF(Refurb_Poss_Tbl[Refurbishment Possible],I110,Refurb_Poss_Tbl[%]))*AG110,W110*$AG110),0) -> 0
A111: BridEA04 | B111: Modification Botley Bridge | C111: Bridge - Vehicle Access | D111: BridEA0447 | E111: Modification Botley Bridge | F111: Bridges | G111: 60 | H111: 60 | I111: Major Refurbishment | J111: 50 | K111: Replacement | L111: 93 | M111: 0 | N111: 100 | O111: 2 | P111: 190.08 | Q111: 190.08 | R111: 1.215089795 | S111: 6.33621499 | T111: 0.01367887664 | U111: 2.072121731 | V111: 0 | W111: 2.480229407 | X111: 197.8072981 | Y111: 0 | Z111: 0 | AA111: 98.90364904 | AB111: 22.32206466 | AC111: 0.006839438319 | AD111: 3.168107495 | AE111: 8 | AF111: 0 | AG111: =VLOOKUP(AE111,ValidationLists!$M$1:$N$102,2,FALSE) -> 0.7594115562 | AH111: 0 | AI111: 0 | AJ111: 0 | AK111: 0 | AL111: 0 | AM111: 0 | AN111: 0 | AO111: 0 | AP111: 0 | AQ111: =IF(OR(AF111=3,AF111=2,AF111=0),SUMIFS(FlatMaint!$Z$2:$Z$10000,FlatMaint!$A$2:$A$10000,D111,FlatMaint!$Y$2:$Y$10000,AE111)*AG111,0) -> 14.43953856 | AR111: =IF(OR(AF111=3,AF111=2,AF111=0),SUMIFS(FlatRepair!$Z$2:$Z$10000,FlatRepair!$A$2:$A$10000,D111,FlatRepair!$Y$2:$Y$10000,AE111)*AG111,0) -> 0 | AS111: 0 | AT111: 14.43953856 | AU111: 0 | AV111: 0 | AW111: 0 | AX111: 0 | AY111: 0 | AZ111: 14.43953856 | BA111: 0 | BB111: =IF($AF111=3,IF($AF$2=2,(R111/SUMIF(Refurb_Poss_Tbl[Refurbishment Possible],I111,Refurb_Poss_Tbl[%]))*AG111,IF($AF$2=3,(R111*AG111)-AV111,R111*AG111)),0) -> 0 | BC111: =IF(AF111=3,IF($AF$2=2,(S111/SUMIF(Refurb_Poss_Tbl[Refurbishment Possible],I111,Refurb_Poss_Tbl[%]))*AG111,IF($AF$2=3,(S111*AG111)-AX111,S111*AG111)),0) -> 0 | BD111: =IF($AF111=3,IF($AF$2=2,(T111/SUMIF(Refurb_Poss_Tbl[Refurbishment Possible],I111,Refurb_Poss_Tbl[%]))*AG111,T111*$AG111),0) -> 0 | BE111: =IF($AF111=3,IF($AF$2=2,(Q111/SUMIF(Refurb_Poss_Tbl[Refurbishment Possible],I111,Refurb_Poss_Tbl[%]))*AG111,Q111*$AG111),0) -> 0 | BF111: =IF($AF111=3,IF($AF$2=2,(U111/SUMIF(Refurb_Poss_Tbl[Refurbishment Possible],I111,Refurb_Poss_Tbl[%]))*AG111,U111*$AG111),0) -> 0 | BG111: =IF($AF111=3,IF($AF$2=2,(V111/SUMIF(Refurb_Poss_Tbl[Refurbishment Possible],I111,Refurb_Poss_Tbl[%]))*AG111,IF($AF$2=3,(V111*AG111)-AW111,V111*AG111)),0) -> 0 | BH111: =IF($AF111=3,IF($AF$2=2,(W111/SUMIF(Refurb_Poss_Tbl[Refurbishment Possible],I111,Refurb_Poss_Tbl[%]))*AG111,W111*$AG111),0) -> 0
A112: BridEA04 | B112: Modification Botley Bridge | C112: Bridge - Vehicle Access | D112: BridEA0447 | E112: Modification Botley Bridge | F112: Bridges | G112: 60 | H112: 60 | I112: Major Refurbishment | J112: 50 | K112: Replacement | L112: 93 | M112: 0 | N112: 100 | O112: 2 | P112: 190.08 | Q112: 190.08 | R112: 1.215089795 | S112: 6.33621499 | T112: 0.01367887664 | U112: 2.072121731 | V112: 0 | W112: 2.480229407 | X112: 197.8072981 | Y112: 0 | Z112: 0 | AA112: 98.90364904 | AB112: 22.32206466 | AC112: 0.006839438319 | AD112: 3.168107495 | AE112: 9 | AF112: 0 | AG112: =VLOOKUP(AE112,ValidationLists!$M$1:$N$102,2,FALSE) -> 0.7337309722 | AH112: 0 | AI112: 0 | AJ112: 0 | AK112: 0 | AL112: 0 | AM112: 0 | AN112: 0 | AO112: 0 | AP112: 0 | AQ112: =IF(OR(AF112=3,AF112=2,AF112=0),SUMIFS(FlatMaint!$Z$2:$Z$10000,FlatMaint!$A$2:$A$10000,D112,FlatMaint!$Y$2:$Y$10000,AE112)*AG112,0) -> 13.95124498 | AR112: =IF(OR(AF112=3,AF112=2,AF112=0),SUMIFS(FlatRepair!$Z$2:$Z$10000,FlatRepair!$A$2:$A$10000,D112,FlatRepair!$Y$2:$Y$10000,AE112)*AG112,0) -> 0 | AS112: 0 | AT112: 13.95124498 | AU112: 0 | AV112: 0 | AW112: 0 | AX112: 0 | AY112: 0 | AZ112: 13.95124498 | BA112: 0 | BB112: =IF($AF112=3,IF($AF$2=2,(R112/SUMIF(Refurb_Poss_Tbl[Refurbishment Possible],I112,Refurb_Poss_Tbl[%]))*AG112,IF($AF$2=3,(R112*AG112)-AV112,R112*AG112)),0) -> 0 | BC112: =IF(AF112=3,IF($AF$2=2,(S112/SUMIF(Refurb_Poss_Tbl[Refurbishment Possible],I112,Refurb_Poss_Tbl[%]))*AG112,IF($AF$2=3,(S112*AG112)-AX112,S112*AG112)),0) -> 0 | BD112: =IF($AF112=3,IF($AF$2=2,(T112/SUMIF(Refurb_Poss_Tbl[Refurbishment Possible],I112,Refurb_Poss_Tbl[%]))*AG112,T112*$AG112),0) -> 0 | BE112: =IF($AF112=3,IF($AF$2=2,(Q112/SUMIF(Refurb_Poss_Tbl[Refurbishment Possible],I112,Refurb_Poss_Tbl[%]))*AG112,Q112*$AG112),0) -> 0 | BF112: =IF($AF112=3,IF($AF$2=2,(U112/SUMIF(Refurb_Poss_Tbl[Refurbishment Possible],I112,Refurb_Poss_Tbl[%]))*AG112,U112*$AG112),0) -> 0 | BG112: =IF($AF112=3,IF($AF$2=2,(V112/SUMIF(Refurb_Poss_Tbl[Refurbishment Possible],I112,Refurb_Poss_Tbl[%]))*AG112,IF($AF$2=3,(V112*AG112)-AW112,V112*AG112)),0) -> 0 | BH112: =IF($AF112=3,IF($AF$2=2,(W112/SUMIF(Refurb_Poss_Tbl[Refurbishment Possible],I112,Refurb_Poss_Tbl[%]))*AG112,W112*$AG112),0) -> 0
A113: BridEA04 | B113: Modification Botley Bridge | C113: Bridge - Vehicle Access | D113: BridEA0447 | E113: Modification Botley Bridge | F113: Bridges | G113: 60 | H113: 60 | I113: Major Refurbishment | J113: 50 | K113: Replacement | L113: 93 | M113: 0 | N113: 100 | O113: 2 | P113: 190.08 | Q113: 190.08 | R113: 1.215089795 | S113: 6.33621499 | T113: 0.01367887664 | U113: 2.072121731 | V113: 0 | W113: 2.480229407 | X113: 197.8072981 | Y113: 0 | Z113: 0 | AA113: 98.90364904 | AB113: 22.32206466 | AC113: 0.006839438319 | AD113: 3.168107495 | AE113: 10 | AF113: 0 | AG113: =VLOOKUP(AE113,ValidationLists!$M$1:$N$102,2,FALSE) -> 0.7089188137 | AH113: 0 | AI113: 0 | AJ113: 0 | AK113: 0 | AL113: 0 | AM113: 0 | AN113: 0 | AO113: 0 | AP113: 0 | AQ113: =IF(OR(AF113=3,AF113=2,AF113=0),SUMIFS(FlatMaint!$Z$2:$Z$10000,FlatMaint!$A$2:$A$10000,D113,FlatMaint!$Y$2:$Y$10000,AE113)*AG113,0) -> 13.47946375 | AR113: =IF(OR(AF113=3,AF113=2,AF113=0),SUMIFS(FlatRepair!$Z$2:$Z$10000,FlatRepair!$A$2:$A$10000,D113,FlatRepair!$Y$2:$Y$10000,AE113)*AG113,0) -> 134.7904427 | AS113: 0 | AT113: 148.2699064 | AU113: 0 | AV113: 0 | AW113: 0 | AX113: 0 | AY113: 0 | AZ113: 148.2699064 | BA113: 0 | BB113: =IF($AF113=3,IF($AF$2=2,(R113/SUMIF(Refurb_Poss_Tbl[Refurbishment Possible],I113,Refurb_Poss_Tbl[%]))*AG113,IF($AF$2=3,(R113*AG113)-AV113,R113*AG113)),0) -> 0 | BC113: =IF(AF113=3,IF($AF$2=2,(S113/SUMIF(Refurb_Poss_Tbl[Refurbishment Possible],I113,Refurb_Poss_Tbl[%]))*AG113,IF($AF$2=3,(S113*AG113)-AX113,S113*AG113)),0) -> 0 | BD113: =IF($AF113=3,IF($AF$2=2,(T113/SUMIF(Refurb_Poss_Tbl[Refurbishment Possible],I113,Refurb_Poss_Tbl[%]))*AG113,T113*$AG113),0) -> 0 | BE113: =IF($AF113=3,IF($AF$2=2,(Q113/SUMIF(Refurb_Poss_Tbl[Refurbishment Possible],I113,Refurb_Poss_Tbl[%]))*AG113,Q113*$AG113),0) -> 0 | BF113: =IF($AF113=3,IF($AF$2=2,(U113/SUMIF(Refurb_Poss_Tbl[Refurbishment Possible],I113,Refurb_Poss_Tbl[%]))*AG113,U113*$AG113),0) -> 0 | BG113: =IF($AF113=3,IF($AF$2=2,(V113/SUMIF(Refurb_Poss_Tbl[Refurbishment Possible],I113,Refurb_Poss_Tbl[%]))*AG113,IF($AF$2=3,(V113*AG113)-AW113,V113*AG113)),0) -> 0 | BH113: =IF($AF113=3,IF($AF$2=2,(W113/SUMIF(Refurb_Poss_Tbl[Refurbishment Possible],I113,Refurb_Poss_Tbl[%]))*AG113,W113*$AG113),0) -> 0
A114: BridEA04 | B114: Modification Botley Bridge | C114: Bridge - Vehicle Access | D114: BridEA0447 | E114: Modification Botley Bridge | F114: Bridges | G114: 60 | H114: 60 | I114: Major Refurbishment | J114: 50 | K114: Replacement | L114: 93 | M114: 0 | N114: 100 | O114: 2 | P114: 190.08 | Q114: 190.08 | R114: 1.215089795 | S114: 6.33621499 | T114: 0.01367887664 | U114: 2.072121731 | V114: 0 | W114: 2.480229407 | X114: 197.8072981 | Y114: 0 | Z114: 0 | AA114: 98.90364904 | AB114: 22.32206466 | AC114: 0.006839438319 | AD114: 3.168107495 | AE114: 11 | AF114: 0 | AG114: =VLOOKUP(AE114,ValidationLists!$M$1:$N$102,2,FALSE) -> 0.6849457137 | AH114: 0 | AI114: 0 | AJ114: 0 | AK114: 0 | AL114: 0 | AM114: 0 | AN114: 0 | AO114: 0 | AP114: 0 | AQ114: =IF(OR(AF114=3,AF114=2,AF114=0),SUMIFS(FlatMaint!$Z$2:$Z$10000,FlatMaint!$A$2:$A$10000,D114,FlatMaint!$Y$2:$Y$10000,AE114)*AG114,0) -> 13.02363648 | AR114: =IF(OR(AF114=3,AF114=2,AF114=0),SUMIFS(FlatRepair!$Z$2:$Z$10000,FlatRepair!$A$2:$A$10000,D114,FlatRepair!$Y$2:$Y$10000,AE114)*AG114,0) -> 0 | AS114: 0 | AT114: 13.02363648 | AU114: 0 | AV114: 0 | AW114: 0 | AX114: 0 | AY114: 0 | AZ114: 13.02363648 | BA114: 0 | BB114: =IF($AF114=3,IF($AF$2=2,(R114/SUMIF(Refurb_Poss_Tbl[Refurbishment Possible],I114,Refurb_Poss_Tbl[%]))*AG114,IF($AF$2=3,(R114*AG114)-AV114,R114*AG114)),0) -> 0 | BC114: =IF(AF114=3,IF($AF$2=2,(S114/SUMIF(Refurb_Poss_Tbl[Refurbishment Possible],I114,Refurb_Poss_Tbl[%]))*AG114,IF($AF$2=3,(S114*AG114)-AX114,S114*AG114)),0) -> 0 | BD114: =IF($AF114=3,IF($AF$2=2,(T114/SUMIF(Refurb_Poss_Tbl[Refurbishment Possible],I114,Refurb_Poss_Tbl[%]))*AG114,T114*$AG114),0) -> 0 | BE114: =IF($AF114=3,IF($AF$2=2,(Q114/SUMIF(Refurb_Poss_Tbl[Refurbishment Possible],I114,Refurb_Poss_Tbl[%]))*AG114,Q114*$AG114),0) -> 0 | BF114: =IF($AF114=3,IF($AF$2=2,(U114/SUMIF(Refurb_Poss_Tbl[Refurbishment Possible],I114,Refurb_Poss_Tbl[%]))*AG114,U114*$AG114),0) -> 0 | BG114: =IF($AF114=3,IF($AF$2=2,(V114/SUMIF(Refurb_Poss_Tbl[Refurbishment Possible],I114,Refurb_Poss_Tbl[%]))*AG114,IF($AF$2=3,(V114*AG114)-AW114,V114*AG114)),0) -> 0 | BH114: =IF($AF114=3,IF($AF$2=2,(W114/SUMIF(Refurb_Poss_Tbl[Refurbishment Possible],I114,Refurb_Poss_Tbl[%]))*AG114,W114*$AG114),0) -> 0
A115: BridEA04 | B115: Modification Botley Bridge | C115: Bridge - Vehicle Access | D115: BridEA0447 | E115: Modification Botley Bridge | F115: Bridges | G115: 60 | H115: 60 | I115: Major Refurbishment | J115: 50 | K115: Replacement | L115: 93 | M115: 0 | N115: 100 | O115: 2 | P115: 190.08 | Q115: 190.08 | R115: 1.215089795 | S115: 6.33621499 | T115: 0.01367887664 | U115: 2.072121731 | V115: 0 | W115: 2.480229407 | X115: 197.8072981 | Y115: 0 | Z115: 0 | AA115: 98.90364904 | AB115: 22.32206466 | AC115: 0.006839438319 | AD115: 3.168107495 | AE115: 12 | AF115: 0 | AG115: =VLOOKUP(AE115,ValidationLists!$M$1:$N$102,2,FALSE) -> 0.6617832983 | AH115: 0 | AI115: 0 | AJ115: 0 | AK115: 0 | AL115: 0 | AM115: 0 | AN115: 0 | AO115: 0 | AP115: 0 | AQ115: =IF(OR(AF115=3,AF115=2,AF115=0),SUMIFS(FlatMaint!$Z$2:$Z$10000,FlatMaint!$A$2:$A$10000,D115,FlatMaint!$Y$2:$Y$10000,AE115)*AG115,0) -> 12.58322365 | AR115: =IF(OR(AF115=3,AF115=2,AF115=0),SUMIFS(FlatRepair!$Z$2:$Z$10000,FlatRepair!$A$2:$A$10000,D115,FlatRepair!$Y$2:$Y$10000,AE115)*AG115,0) -> 0 | AS115: 0 | AT115: 12.58322365 | AU115: 0 | AV115: 0 | AW115: 0 | AX115: 0 | AY115: 0 | AZ115: 12.58322365 | BA115: 0 | BB115: =IF($AF115=3,IF($AF$2=2,(R115/SUMIF(Refurb_Poss_Tbl[Refurbishment Possible],I115,Refurb_Poss_Tbl[%]))*AG115,IF($AF$2=3,(R115*AG115)-AV115,R115*AG115)),0) -> 0 | BC115: =IF(AF115=3,IF($AF$2=2,(S115/SUMIF(Refurb_Poss_Tbl[Refurbishment Possible],I115,Refurb_Poss_Tbl[%]))*AG115,IF($AF$2=3,(S115*AG115)-AX115,S115*AG115)),0) -> 0 | BD115: =IF($AF115=3,IF($AF$2=2,(T115/SUMIF(Refurb_Poss_Tbl[Refurbishment Possible],I115,Refurb_Poss_Tbl[%]))*AG115,T115*$AG115),0) -> 0 | BE115: =IF($AF115=3,IF($AF$2=2,(Q115/SUMIF(Refurb_Poss_Tbl[Refurbishment Possible],I115,Refurb_Poss_Tbl[%]))*AG115,Q115*$AG115),0) -> 0 | BF115: =IF($AF115=3,IF($AF$2=2,(U115/SUMIF(Refurb_Poss_Tbl[Refurbishment Possible],I115,Refurb_Poss_Tbl[%]))*AG115,U115*$AG115),0) -> 0 | BG115: =IF($AF115=3,IF($AF$2=2,(V115/SUMIF(Refurb_Poss_Tbl[Refurbishment Possible],I115,Refurb_Poss_Tbl[%]))*AG115,IF($AF$2=3,(V115*AG115)-AW115,V115*AG115)),0) -> 0 | BH115: =IF($AF115=3,IF($AF$2=2,(W115/SUMIF(Refurb_Poss_Tbl[Refurbishment Possible],I115,Refurb_Poss_Tbl[%]))*AG115,W115*$AG115),0) -> 0
A116: BridEA04 | B116: Modification Botley Bridge | C116: Bridge - Vehicle Access | D116: BridEA0447 | E116: Modification Botley Bridge | F116: Bridges | G116: 60 | H116: 60 | I116: Major Refurbishment | J116: 50 | K116: Replacement | L116: 93 | M116: 0 | N116: 100 | O116: 2 | P116: 190.08 | Q116: 190.08 | R116: 1.215089795 | S116: 6.33621499 | T116: 0.01367887664 | U116: 2.072121731 | V116: 0 | W116: 2.480229407 | X116: 197.8072981 | Y116: 0 | Z116: 0 | AA116: 98.90364904 | AB116: 22.32206466 | AC116: 0.006839438319 | AD116: 3.168107495 | AE116: 13 | AF116: 0 | AG116: =VLOOKUP(AE116,ValidationLists!$M$1:$N$102,2,FALSE) -> 0.6394041529 | AH116: 0 | AI116: 0 | AJ116: 0 | AK116: 0 | AL116: 0 | AM116: 0 | AN116: 0 | AO116: 0 | AP116: 0 | AQ116: =IF(OR(AF116=3,AF116=2,AF116=0),SUMIFS(FlatMaint!$Z$2:$Z$10000,FlatMaint!$A$2:$A$10000,D116,FlatMaint!$Y$2:$Y$10000,AE116)*AG116,0) -> 12.15770401 | AR116: =IF(OR(AF116=3,AF116=2,AF116=0),SUMIFS(FlatRepair!$Z$2:$Z$10000,FlatRepair!$A$2:$A$10000,D116,FlatRepair!$Y$2:$Y$10000,AE116)*AG116,0) -> 0 | AS116: 0 | AT116: 12.15770401 | AU116: 0 | AV116: 0 | AW116: 0 | AX116: 0 | AY116: 0 | AZ116: 12.15770401 | BA116: 0 | BB116: =IF($AF116=3,IF($AF$2=2,(R116/SUMIF(Refurb_Poss_Tbl[Refurbishment Possible],I116,Refurb_Poss_Tbl[%]))*AG116,IF($AF$2=3,(R116*AG116)-AV116,R116*AG116)),0) -> 0 | BC116: =IF(AF116=3,IF($AF$2=2,(S116/SUMIF(Refurb_Poss_Tbl[Refurbishment Possible],I116,Refurb_Poss_Tbl[%]))*AG116,IF($AF$2=3,(S116*AG116)-AX116,S116*AG116)),0) -> 0 | BD116: =IF($AF116=3,IF($AF$2=2,(T116/SUMIF(Refurb_Poss_Tbl[Refurbishment Possible],I116,Refurb_Poss_Tbl[%]))*AG116,T116*$AG116),0) -> 0 | BE116: =IF($AF116=3,IF($AF$2=2,(Q116/SUMIF(Refurb_Poss_Tbl[Refurbishment Possible],I116,Refurb_Poss_Tbl[%]))*AG116,Q116*$AG116),0) -> 0 | BF116: =IF($AF116=3,IF($AF$2=2,(U116/SUMIF(Refurb_Poss_Tbl[Refurbishment Possible],I116,Refurb_Poss_Tbl[%]))*AG116,U116*$AG116),0) -> 0 | BG116: =IF($AF116=3,IF($AF$2=2,(V116/SUMIF(Refurb_Poss_Tbl[Refurbishment Possible],I116,Refurb_Poss_Tbl[%]))*AG116,IF($AF$2=3,(V116*AG116)-AW116,V116*AG116)),0) -> 0 | BH116: =IF($AF116=3,IF($AF$2=2,(W116/SUMIF(Refurb_Poss_Tbl[Refurbishment Possible],I116,Refurb_Poss_Tbl[%]))*AG116,W116*$AG116),0) -> 0
A117: BridEA04 | B117: Modification Botley Bridge | C117: Bridge - Vehicle Access | D117: BridEA0447 | E117: Modification Botley Bridge | F117: Bridges | G117: 60 | H117: 60 | I117: Major Refurbishment | J117: 50 | K117: Replacement | L117: 93 | M117: 0 | N117: 100 | O117: 2 | P117: 190.08 | Q117: 190.08 | R117: 1.215089795 | S117: 6.33621499 | T117: 0.01367887664 | U117: 2.072121731 | V117: 0 | W117: 2.480229407 | X117: 197.8072981 | Y117: 0 | Z117: 0 | AA117: 98.90364904 | AB117: 22.32206466 | AC117: 0.006839438319 | AD117: 3.168107495 | AE117: 14 | AF117: 0 | AG117: =VLOOKUP(AE117,ValidationLists!$M$1:$N$102,2,FALSE) -> 0.6177817903 | AH117: 0 | AI117: 0 | AJ117: 0 | AK117: 0 | AL117: 0 | AM117: 0 | AN117: 0 | AO117: 0 | AP117: 0 | AQ117: =IF(OR(AF117=3,AF117=2,AF117=0),SUMIFS(FlatMaint!$Z$2:$Z$10000,FlatMaint!$A$2:$A$10000,D117,FlatMaint!$Y$2:$Y$10000,AE117)*AG117,0) -> 11.74657392 | AR117: =IF(OR(AF117=3,AF117=2,AF117=0),SUMIFS(FlatRepair!$Z$2:$Z$10000,FlatRepair!$A$2:$A$10000,D117,FlatRepair!$Y$2:$Y$10000,AE117)*AG117,0) -> 0 | AS117: 0 | AT117: 11.74657392 | AU117: 0 | AV117: 0 | AW117: 0 | AX117: 0 | AY117: 0 | AZ117: 11.74657392 | BA117: 0 | BB117: =IF($AF117=3,IF($AF$2=2,(R117/SUMIF(Refurb_Poss_Tbl[Refurbishment Possible],I117,Refurb_Poss_Tbl[%]))*AG117,IF($AF$2=3,(R117*AG117)-AV117,R117*AG117)),0) -> 0 | BC117: =IF(AF117=3,IF($AF$2=2,(S117/SUMIF(Refurb_Poss_Tbl[Refurbishment Possible],I117,Refurb_Poss_Tbl[%]))*AG117,IF($AF$2=3,(S117*AG117)-AX117,S117*AG117)),0) -> 0 | BD117: =IF($AF117=3,IF($AF$2=2,(T117/SUMIF(Refurb_Poss_Tbl[Refurbishment Possible],I117,Refurb_Poss_Tbl[%]))*AG117,T117*$AG117),0) -> 0 | BE117: =IF($AF117=3,IF($AF$2=2,(Q117/SUMIF(Refurb_Poss_Tbl[Refurbishment Possible],I117,Refurb_Poss_Tbl[%]))*AG117,Q117*$AG117),0) -> 0 | BF117: =IF($AF117=3,IF($AF$2=2,(U117/SUMIF(Refurb_Poss_Tbl[Refurbishment Possible],I117,Refurb_Poss_Tbl[%]))*AG117,U117*$AG117),0) -> 0 | BG117: =IF($AF117=3,IF($AF$2=2,(V117/SUMIF(Refurb_Poss_Tbl[Refurbishment Possible],I117,Refurb_Poss_Tbl[%]))*AG117,IF($AF$2=3,(V117*AG117)-AW117,V117*AG117)),0) -> 0 | BH117: =IF($AF117=3,IF($AF$2=2,(W117/SUMIF(Refurb_Poss_Tbl[Refurbishment Possible],I117,Refurb_Poss_Tbl[%]))*AG117,W117*$AG117),0) -> 0
A118: BridEA04 | B118: Modification Botley Bridge | C118: Bridge - Vehicle Access | D118: BridEA0447 | E118: Modification Botley Bridge | F118: Bridges | G118: 60 | H118: 60 | I118: Major Refurbishment | J118: 50 | K118: Replacement | L118: 93 | M118: 0 | N118: 100 | O118: 2 | P118: 190.08 | Q118: 190.08 | R118: 1.215089795 | S118: 6.33621499 | T118: 0.01367887664 | U118: 2.072121731 | V118: 0 | W118: 2.480229407 | X118: 197.8072981 | Y118: 0 | Z118: 0 | AA118: 98.90364904 | AB118: 22.32206466 | AC118: 0.006839438319 | AD118: 3.168107495 | AE118: 15 | AF118: 0 | AG118: =VLOOKUP(AE118,ValidationLists!$M$1:$N$102,2,FALSE) -> 0.5968906186 | AH118: 0 | AI118: 0 | AJ118: 0 | AK118: 0 | AL118: 0 | AM118: 0 | AN118: 0 | AO118: 0 | AP118: 0 | AQ118: =IF(OR(AF118=3,AF118=2,AF118=0),SUMIFS(FlatMaint!$Z$2:$Z$10000,FlatMaint!$A$2:$A$10000,D118,FlatMaint!$Y$2:$Y$10000,AE118)*AG118,0) -> 11.34934678 | AR118: =IF(OR(AF118=3,AF118=2,AF118=0),SUMIFS(FlatRepair!$Z$2:$Z$10000,FlatRepair!$A$2:$A$10000,D118,FlatRepair!$Y$2:$Y$10000,AE118)*AG118,0) -> 113.4899359 | AS118: 0 | AT118: 124.8392826 | AU118: 0 | AV118: 0 | AW118: 0 | AX118: 0 | AY118: 0 | AZ118: 124.8392826 | BA118: 0 | BB118: =IF($AF118=3,IF($AF$2=2,(R118/SUMIF(Refurb_Poss_Tbl[Refurbishment Possible],I118,Refurb_Poss_Tbl[%]))*AG118,IF($AF$2=3,(R118*AG118)-AV118,R118*AG118)),0) -> 0 | BC118: =IF(AF118=3,IF($AF$2=2,(S118/SUMIF(Refurb_Poss_Tbl[Refurbishment Possible],I118,Refurb_Poss_Tbl[%]))*AG118,IF($AF$2=3,(S118*AG118)-AX118,S118*AG118)),0) -> 0 | BD118: =IF($AF118=3,IF($AF$2=2,(T118/SUMIF(Refurb_Poss_Tbl[Refurbishment Possible],I118,Refurb_Poss_Tbl[%]))*AG118,T118*$AG118),0) -> 0 | BE118: =IF($AF118=3,IF($AF$2=2,(Q118/SUMIF(Refurb_Poss_Tbl[Refurbishment Possible],I118,Refurb_Poss_Tbl[%]))*AG118,Q118*$AG118),0) -> 0 | BF118: =IF($AF118=3,IF($AF$2=2,(U118/SUMIF(Refurb_Poss_Tbl[Refurbishment Possible],I118,Refurb_Poss_Tbl[%]))*AG118,U118*$AG118),0) -> 0 | BG118: =IF($AF118=3,IF($AF$2=2,(V118/SUMIF(Refurb_Poss_Tbl[Refurbishment Possible],I118,Refurb_Poss_Tbl[%]))*AG118,IF($AF$2=3,(V118*AG118)-AW118,V118*AG118)),0) -> 0 | BH118: =IF($AF118=3,IF($AF$2=2,(W118/SUMIF(Refurb_Poss_Tbl[Refurbishment Possible],I118,Refurb_Poss_Tbl[%]))*AG118,W118*$AG118),0) -> 0
A119: BridEA04 | B119: Modification Botley Bridge | C119: Bridge - Vehicle Access | D119: BridEA0447 | E119: Modification Botley Bridge | F119: Bridges | G119: 60 | H119: 60 | I119: Major Refurbishment | J119: 50 | K119: Replacement | L119: 93 | M119: 0 | N119: 100 | O119: 2 | P119: 190.08 | Q119: 190.08 | R119: 1.215089795 | S119: 6.33621499 | T119: 0.01367887664 | U119: 2.072121731 | V119: 0 | W119: 2.480229407 | X119: 197.8072981 | Y119: 0 | Z119: 0 | AA119: 98.90364904 | AB119: 22.32206466 | AC119: 0.006839438319 | AD119: 3.168107495 | AE119: 16 | AF119: 0 | AG119: =VLOOKUP(AE119,ValidationLists!$M$1:$N$102,2,FALSE) -> 0.5767059117 | AH119: 0 | AI119: 0 | AJ119: 0 | AK119: 0 | AL119: 0 | AM119: 0 | AN119: 0 | AO119: 0 | AP119: 0 | AQ119: =IF(OR(AF119=3,AF119=2,AF119=0),SUMIFS(FlatMaint!$Z$2:$Z$10000,FlatMaint!$A$2:$A$10000,D119,FlatMaint!$Y$2:$Y$10000,AE119)*AG119,0) -> 10.96555245 | AR119: =IF(OR(AF119=3,AF119=2,AF119=0),SUMIFS(FlatRepair!$Z$2:$Z$10000,FlatRepair!$A$2:$A$10000,D119,FlatRepair!$Y$2:$Y$10000,AE119)*AG119,0) -> 0 | AS119: 0 | AT119: 10.96555245 | AU119: 0 | AV119: 0 | AW119: 0 | AX119: 0 | AY119: 0 | AZ119: 10.96555245 | BA119: 0 | BB119: =IF($AF119=3,IF($AF$2=2,(R119/SUMIF(Refurb_Poss_Tbl[Refurbishment Possible],I119,Refurb_Poss_Tbl[%]))*AG119,IF($AF$2=3,(R119*AG119)-AV119,R119*AG119)),0) -> 0 | BC119: =IF(AF119=3,IF($AF$2=2,(S119/SUMIF(Refurb_Poss_Tbl[Refurbishment Possible],I119,Refurb_Poss_Tbl[%]))*AG119,IF($AF$2=3,(S119*AG119)-AX119,S119*AG119)),0) -> 0 | BD119: =IF($AF119=3,IF($AF$2=2,(T119/SUMIF(Refurb_Poss_Tbl[Refurbishment Possible],I119,Refurb_Poss_Tbl[%]))*AG119,T119*$AG119),0) -> 0 | BE119: =IF($AF119=3,IF($AF$2=2,(Q119/SUMIF(Refurb_Poss_Tbl[Refurbishment Possible],I119,Refurb_Poss_Tbl[%]))*AG119,Q119*$AG119),0) -> 0 | BF119: =IF($AF119=3,IF($AF$2=2,(U119/SUMIF(Refurb_Poss_Tbl[Refurbishment Possible],I119,Refurb_Poss_Tbl[%]))*AG119,U119*$AG119),0) -> 0 | BG119: =IF($AF119=3,IF($AF$2=2,(V119/SUMIF(Refurb_Poss_Tbl[Refurbishment Possible],I119,Refurb_Poss_Tbl[%]))*AG119,IF($AF$2=3,(V119*AG119)-AW119,V119*AG119)),0) -> 0 | BH119: =IF($AF119=3,IF($AF$2=2,(W119/SUMIF(Refurb_Poss_Tbl[Refurbishment Possible],I119,Refurb_Poss_Tbl[%]))*AG119,W119*$AG119),0) -> 0
A120: BridEA04 | B120: Modification Botley Bridge | C120: Bridge - Vehicle Access | D120: BridEA0447 | E120: Modification Botley Bridge | F120: Bridges | G120: 60 | H120: 60 | I120: Major Refurbishment | J120: 50 | K120: Replacement | L120: 93 | M120: 0 | N120: 100 | O120: 2 | P120: 190.08 | Q120: 190.08 | R120: 1.215089795 | S120: 6.33621499 | T120: 0.01367887664 | U120: 2.072121731 | V120: 0 | W120: 2.480229407 | X120: 197.8072981 | Y120: 0 | Z120: 0 | AA120: 98.90364904 | AB120: 22.32206466 | AC120: 0.006839438319 | AD120: 3.168107495 | AE120: 17 | AF120: 0 | AG120: =VLOOKUP(AE120,ValidationLists!$M$1:$N$102,2,FALSE) -> 0.5572037794 | AH120: 0 | AI120: 0 | AJ120: 0 | AK120: 0 | AL120: 0 | AM120: 0 | AN120: 0 | AO120: 0 | AP120: 0 | AQ120: =IF(OR(AF120=3,AF120=2,AF120=0),SUMIFS(FlatMaint!$Z$2:$Z$10000,FlatMaint!$A$2:$A$10000,D120,FlatMaint!$Y$2:$Y$10000,AE120)*AG120,0) -> 10.59473666 | AR120: =IF(OR(AF120=3,AF120=2,AF120=0),SUMIFS(FlatRepair!$Z$2:$Z$10000,FlatRepair!$A$2:$A$10000,D120,FlatRepair!$Y$2:$Y$10000,AE120)*AG120,0) -> 0 | AS120: 0 | AT120: 10.59473666 | AU120: 0 | AV120: 0 | AW120: 0 | AX120: 0 | AY120: 0 | AZ120: 10.59473666 | BA120: 0 | BB120: =IF($AF120=3,IF($AF$2=2,(R120/SUMIF(Refurb_Poss_Tbl[Refurbishment Possible],I120,Refurb_Poss_Tbl[%]))*AG120,IF($AF$2=3,(R120*AG120)-AV120,R120*AG120)),0) -> 0 | BC120: =IF(AF120=3,IF($AF$2=2,(S120/SUMIF(Refurb_Poss_Tbl[Refurbishment Possible],I120,Refurb_Poss_Tbl[%]))*AG120,IF($AF$2=3,(S120*AG120)-AX120,S120*AG120)),0) -> 0 | BD120: =IF($AF120=3,IF($AF$2=2,(T120/SUMIF(Refurb_Poss_Tbl[Refurbishment Possible],I120,Refurb_Poss_Tbl[%]))*AG120,T120*$AG120),0) -> 0 | BE120: =IF($AF120=3,IF($AF$2=2,(Q120/SUMIF(Refurb_Poss_Tbl[Refurbishment Possible],I120,Refurb_Poss_Tbl[%]))*AG120,Q120*$AG120),0) -> 0 | BF120: =IF($AF120=3,IF($AF$2=2,(U120/SUMIF(Refurb_Poss_Tbl[Refurbishment Possible],I120,Refurb_Poss_Tbl[%]))*AG120,U120*$AG120),0) -> 0 | BG120: =IF($AF120=3,IF($AF$2=2,(V120/SUMIF(Refurb_Poss_Tbl[Refurbishment Possible],I120,Refurb_Poss_Tbl[%]))*AG120,IF($AF$2=3,(V120*AG120)-AW120,V120*AG120)),0) -> 0 | BH120: =IF($AF120=3,IF($AF$2=2,(W120/SUMIF(Refurb_Poss_Tbl[Refurbishment Possible],I120,Refurb_Poss_Tbl[%]))*AG120,W120*$AG120),0) -> 0
A121: BridEA04 | B121: Modification Botley Bridge | C121: Bridge - Vehicle Access | D121: BridEA0447 | E121: Modification Botley Bridge | F121: Bridges | G121: 60 | H121: 60 | I121: Major Refurbishment | J121: 50 | K121: Replacement | L121: 93 | M121: 0 | N121: 100 | O121: 2 | P121: 190.08 | Q121: 190.08 | R121: 1.215089795 | S121: 6.33621499 | T121: 0.01367887664 | U121: 2.072121731 | V121: 0 | W121: 2.480229407 | X121: 197.8072981 | Y121: 0 | Z121: 0 | AA121: 98.90364904 | AB121: 22.32206466 | AC121: 0.006839438319 | AD121: 3.168107495 | AE121: 18 | AF121: 0 | AG121: =VLOOKUP(AE121,ValidationLists!$M$1:$N$102,2,FALSE) -> 0.5383611396 | AH121: 0 | AI121: 0 | AJ121: 0 | AK121: 0 | AL121: 0 | AM121: 0 | AN121: 0 | AO121: 0 | AP121: 0 | AQ121: =IF(OR(AF121=3,AF121=2,AF121=0),SUMIFS(FlatMaint!$Z$2:$Z$10000,FlatMaint!$A$2:$A$10000,D121,FlatMaint!$Y$2:$Y$10000,AE121)*AG121,0) -> 10.23646055 | AR121: =IF(OR(AF121=3,AF121=2,AF121=0),SUMIFS(FlatRepair!$Z$2:$Z$10000,FlatRepair!$A$2:$A$10000,D121,FlatRepair!$Y$2:$Y$10000,AE121)*AG121,0) -> 0 | AS121: 0 | AT121: 10.23646055 | AU121: 0 | AV121: 0 | AW121: 0 | AX121: 0 | AY121: 0 | AZ121: 10.23646055 | BA121: 0 | BB121: =IF($AF121=3,IF($AF$2=2,(R121/SUMIF(Refurb_Poss_Tbl[Refurbishment Possible],I121,Refurb_Poss_Tbl[%]))*AG121,IF($AF$2=3,(R121*AG121)-AV121,R121*AG121)),0) -> 0 | BC121: =IF(AF121=3,IF($AF$2=2,(S121/SUMIF(Refurb_Poss_Tbl[Refurbishment Possible],I121,Refurb_Poss_Tbl[%]))*AG121,IF($AF$2=3,(S121*AG121)-AX121,S121*AG121)),0) -> 0 | BD121: =IF($AF121=3,IF($AF$2=2,(T121/SUMIF(Refurb_Poss_Tbl[Refurbishment Possible],I121,Refurb_Poss_Tbl[%]))*AG121,T121*$AG121),0) -> 0 | BE121: =IF($AF121=3,IF($AF$2=2,(Q121/SUMIF(Refurb_Poss_Tbl[Refurbishment Possible],I121,Refurb_Poss_Tbl[%]))*AG121,Q121*$AG121),0) -> 0 | BF121: =IF($AF121=3,IF($AF$2=2,(U121/SUMIF(Refurb_Poss_Tbl[Refurbishment Possible],I121,Refurb_Poss_Tbl[%]))*AG121,U121*$AG121),0) -> 0 | BG121: =IF($AF121=3,IF($AF$2=2,(V121/SUMIF(Refurb_Poss_Tbl[Refurbishment Possible],I121,Refurb_Poss_Tbl[%]))*AG121,IF($AF$2=3,(V121*AG121)-AW121,V121*AG121)),0) -> 0 | BH121: =IF($AF121=3,IF($AF$2=2,(W121/SUMIF(Refurb_Poss_Tbl[Refurbishment Possible],I121,Refurb_Poss_Tbl[%]))*AG121,W121*$AG121),0) -> 0
A122: BridEA04 | B122: Modification Botley Bridge | C122: Bridge - Vehicle Access | D122: BridEA0447 | E122: Modification Botley Bridge | F122: Bridges | G122: 60 | H122: 60 | I122: Major Refurbishment | J122: 50 | K122: Replacement | L122: 93 | M122: 0 | N122: 100 | O122: 2 | P122: 190.08 | Q122: 190.08 | R122: 1.215089795 | S122: 6.33621499 | T122: 0.01367887664 | U122: 2.072121731 | V122: 0 | W122: 2.480229407 | X122: 197.8072981 | Y122: 0 | Z122: 0 | AA122: 98.90364904 | AB122: 22.32206466 | AC122: 0.006839438319 | AD122: 3.168107495 | AE122: 19 | AF122: 0 | AG122: =VLOOKUP(AE122,ValidationLists!$M$1:$N$102,2,FALSE) -> 0.5201556904 | AH122: 0 | AI122: 0 | AJ122: 0 | AK122: 0 | AL122: 0 | AM122: 0 | AN122: 0 | AO122: 0 | AP122: 0 | AQ122: =IF(OR(AF122=3,AF122=2,AF122=0),SUMIFS(FlatMaint!$Z$2:$Z$10000,FlatMaint!$A$2:$A$10000,D122,FlatMaint!$Y$2:$Y$10000,AE122)*AG122,0) -> 9.890300044 | AR122: =IF(OR(AF122=3,AF122=2,AF122=0),SUMIFS(FlatRepair!$Z$2:$Z$10000,FlatRepair!$A$2:$A$10000,D122,FlatRepair!$Y$2:$Y$10000,AE122)*AG122,0) -> 0 | AS122: 0 | AT122: 9.890300044 | AU122: 0 | AV122: 0 | AW122: 0 | AX122: 0 | AY122: 0 | AZ122: 9.890300044 | BA122: 0 | BB122: =IF($AF122=3,IF($AF$2=2,(R122/SUMIF(Refurb_Poss_Tbl[Refurbishment Possible],I122,Refurb_Poss_Tbl[%]))*AG122,IF($AF$2=3,(R122*AG122)-AV122,R122*AG122)),0) -> 0 | BC122: =IF(AF122=3,IF($AF$2=2,(S122/SUMIF(Refurb_Poss_Tbl[Refurbishment Possible],I122,Refurb_Poss_Tbl[%]))*AG122,IF($AF$2=3,(S122*AG122)-AX122,S122*AG122)),0) -> 0 | BD122: =IF($AF122=3,IF($AF$2=2,(T122/SUMIF(Refurb_Poss_Tbl[Refurbishment Possible],I122,Refurb_Poss_Tbl[%]))*AG122,T122*$AG122),0) -> 0 | BE122: =IF($AF122=3,IF($AF$2=2,(Q122/SUMIF(Refurb_Poss_Tbl[Refurbishment Possible],I122,Refurb_Poss_Tbl[%]))*AG122,Q122*$AG122),0) -> 0 | BF122: =IF($AF122=3,IF($AF$2=2,(U122/SUMIF(Refurb_Poss_Tbl[Refurbishment Possible],I122,Refurb_Poss_Tbl[%]))*AG122,U122*$AG122),0) -> 0 | BG122: =IF($AF122=3,IF($AF$2=2,(V122/SUMIF(Refurb_Poss_Tbl[Refurbishment Possible],I122,Refurb_Poss_Tbl[%]))*AG122,IF($AF$2=3,(V122*AG122)-AW122,V122*AG122)),0) -> 0 | BH122: =IF($AF122=3,IF($AF$2=2,(W122/SUMIF(Refurb_Poss_Tbl[Refurbishment Possible],I122,Refurb_Poss_Tbl[%]))*AG122,W122*$AG122),0) -> 0
A123: BridEA04 | B123: Modification Botley Bridge | C123: Bridge - Vehicle Access | D123: BridEA0447 | E123: Modification Botley Bridge | F123: Bridges | G123: 60 | H123: 60 | I123: Major Refurbishment | J123: 50 | K123: Replacement | L123: 93 | M123: 0 | N123: 100 | O123: 2 | P123: 190.08 | Q123: 190.08 | R123: 1.215089795 | S123: 6.33621499 | T123: 0.01367887664 | U123: 2.072121731 | V123: 0 | W123: 2.480229407 | X123: 197.8072981 | Y123: 0 | Z123: 0 | AA123: 98.90364904 | AB123: 22.32206466 | AC123: 0.006839438319 | AD123: 3.168107495 | AE123: 20 | AF123: 0 | AG123: =VLOOKUP(AE123,ValidationLists!$M$1:$N$102,2,FALSE) -> 0.5025658844 | AH123: 0 | AI123: 0 | AJ123: 0 | AK123: 0 | AL123: 0 | AM123: 0 | AN123: 0 | AO123: 0 | AP123: 0 | AQ123: =IF(OR(AF123=3,AF123=2,AF123=0),SUMIFS(FlatMaint!$Z$2:$Z$10000,FlatMaint!$A$2:$A$10000,D123,FlatMaint!$Y$2:$Y$10000,AE123)*AG123,0) -> 9.555845453 | AR123: =IF(OR(AF123=3,AF123=2,AF123=0),SUMIFS(FlatRepair!$Z$2:$Z$10000,FlatRepair!$A$2:$A$10000,D123,FlatRepair!$Y$2:$Y$10000,AE123)*AG123,0) -> 95.55548071 | AS123: 0 | AT123: 105.1113262 | AU123: 0 | AV123: 0 | AW123: 0 | AX123: 0 | AY123: 0 | AZ123: 105.1113262 | BA123: 0 | BB123: =IF($AF123=3,IF($AF$2=2,(R123/SUMIF(Refurb_Poss_Tbl[Refurbishment Possible],I123,Refurb_Poss_Tbl[%]))*AG123,IF($AF$2=3,(R123*AG123)-AV123,R123*AG123)),0) -> 0 | BC123: =IF(AF123=3,IF($AF$2=2,(S123/SUMIF(Refurb_Poss_Tbl[Refurbishment Possible],I123,Refurb_Poss_Tbl[%]))*AG123,IF($AF$2=3,(S123*AG123)-AX123,S123*AG123)),0) -> 0 | BD123: =IF($AF123=3,IF($AF$2=2,(T123/SUMIF(Refurb_Poss_Tbl[Refurbishment Possible],I123,Refurb_Poss_Tbl[%]))*AG123,T123*$AG123),0) -> 0 | BE123: =IF($AF123=3,IF($AF$2=2,(Q123/SUMIF(Refurb_Poss_Tbl[Refurbishment Possible],I123,Refurb_Poss_Tbl[%]))*AG123,Q123*$AG123),0) -> 0 | BF123: =IF($AF123=3,IF($AF$2=2,(U123/SUMIF(Refurb_Poss_Tbl[Refurbishment Possible],I123,Refurb_Poss_Tbl[%]))*AG123,U123*$AG123),0) -> 0 | BG123: =IF($AF123=3,IF($AF$2=2,(V123/SUMIF(Refurb_Poss_Tbl[Refurbishment Possible],I123,Refurb_Poss_Tbl[%]))*AG123,IF($AF$2=3,(V123*AG123)-AW123,V123*AG123)),0) -> 0 | BH123: =IF($AF123=3,IF($AF$2=2,(W123/SUMIF(Refurb_Poss_Tbl[Refurbishment Possible],I123,Refurb_Poss_Tbl[%]))*AG123,W123*$AG123),0) -> 0
A124: BridEA04 | B124: Modification Botley Bridge | C124: Bridge - Vehicle Access | D124: BridEA0447 | E124: Modification Botley Bridge | F124: Bridges | G124: 60 | H124: 60 | I124: Major Refurbishment | J124: 50 | K124: Replacement | L124: 93 | M124: 0 | N124: 100 | O124: 2 | P124: 190.08 | Q124: 190.08 | R124: 1.215089795 | S124: 6.33621499 | T124: 0.01367887664 | U124: 2.072121731 | V124: 0 | W124: 2.480229407 | X124: 197.8072981 | Y124: 0 | Z124: 0 | AA124: 98.90364904 | AB124: 22.32206466 | AC124: 0.006839438319 | AD124: 3.168107495 | AE124: 21 | AF124: 0 | AG124: =VLOOKUP(AE124,ValidationLists!$M$1:$N$102,2,FALSE) -> 0.4855709028 | AH124: 0 | AI124: 0 | AJ124: 0 | AK124: 0 | AL124: 0 | AM124: 0 | AN124: 0 | AO124: 0 | AP124: 0 | AQ124: =IF(OR(AF124=3,AF124=2,AF124=0),SUMIFS(FlatMaint!$Z$2:$Z$10000,FlatMaint!$A$2:$A$10000,D124,FlatMaint!$Y$2:$Y$10000,AE124)*AG124,0) -> 9.232700921 | AR124: =IF(OR(AF124=3,AF124=2,AF124=0),SUMIFS(FlatRepair!$Z$2:$Z$10000,FlatRepair!$A$2:$A$10000,D124,FlatRepair!$Y$2:$Y$10000,AE124)*AG124,0) -> 0 | AS124: 0 | AT124: 9.232700921 | AU124: 0 | AV124: 0 | AW124: 0 | AX124: 0 | AY124: 0 | AZ124: 9.232700921 | BA124: 0 | BB124: =IF($AF124=3,IF($AF$2=2,(R124/SUMIF(Refurb_Poss_Tbl[Refurbishment Possible],I124,Refurb_Poss_Tbl[%]))*AG124,IF($AF$2=3,(R124*AG124)-AV124,R124*AG124)),0) -> 0 | BC124: =IF(AF124=3,IF($AF$2=2,(S124/SUMIF(Refurb_Poss_Tbl[Refurbishment Possible],I124,Refurb_Poss_Tbl[%]))*AG124,IF($AF$2=3,(S124*AG124)-AX124,S124*AG124)),0) -> 0 | BD124: =IF($AF124=3,IF($AF$2=2,(T124/SUMIF(Refurb_Poss_Tbl[Refurbishment Possible],I124,Refurb_Poss_Tbl[%]))*AG124,T124*$AG124),0) -> 0 | BE124: =IF($AF124=3,IF($AF$2=2,(Q124/SUMIF(Refurb_Poss_Tbl[Refurbishment Possible],I124,Refurb_Poss_Tbl[%]))*AG124,Q124*$AG124),0) -> 0 | BF124: =IF($AF124=3,IF($AF$2=2,(U124/SUMIF(Refurb_Poss_Tbl[Refurbishment Possible],I124,Refurb_Poss_Tbl[%]))*AG124,U124*$AG124),0) -> 0 | BG124: =IF($AF124=3,IF($AF$2=2,(V124/SUMIF(Refurb_Poss_Tbl[Refurbishment Possible],I124,Refurb_Poss_Tbl[%]))*AG124,IF($AF$2=3,(V124*AG124)-AW124,V124*AG124)),0) -> 0 | BH124: =IF($AF124=3,IF($AF$2=2,(W124/SUMIF(Refurb_Poss_Tbl[Refurbishment Possible],I124,Refurb_Poss_Tbl[%]))*AG124,W124*$AG124),0) -> 0
A125: BridEA04 | B125: Modification Botley Bridge | C125: Bridge - Vehicle Access | D125: BridEA0447 | E125: Modification Botley Bridge | F125: Bridges | G125: 60 | H125: 60 | I125: Major Refurbishment | J125: 50 | K125: Replacement | L125: 93 | M125: 0 | N125: 100 | O125: 2 | P125: 190.08 | Q125: 190.08 | R125: 1.215089795 | S125: 6.33621499 | T125: 0.01367887664 | U125: 2.072121731 | V125: 0 | W125: 2.480229407 | X125: 197.8072981 | Y125: 0 | Z125: 0 | AA125: 98.90364904 | AB125: 22.32206466 | AC125: 0.006839438319 | AD125: 3.168107495 | AE125: 22 | AF125: 0 | AG125: =VLOOKUP(AE125,ValidationLists!$M$1:$N$102,2,FALSE) -> 0.4691506308 | AH125: 0 | AI125: 0 | AJ125: 0 | AK125: 0 | AL125: 0 | AM125: 0 | AN125: 0 | AO125: 0 | AP125: 0 | AQ125: =IF(OR(AF125=3,AF125=2,AF125=0),SUMIFS(FlatMaint!$Z$2:$Z$10000,FlatMaint!$A$2:$A$10000,D125,FlatMaint!$Y$2:$Y$10000,AE125)*AG125,0) -> 8.920483981 | AR125: =IF(OR(AF125=3,AF125=2,AF125=0),SUMIFS(FlatRepair!$Z$2:$Z$10000,FlatRepair!$A$2:$A$10000,D125,FlatRepair!$Y$2:$Y$10000,AE125)*AG125,0) -> 0 | AS125: 0 | AT125: 8.920483981 | AU125: 0 | AV125: 0 | AW125: 0 | AX125: 0 | AY125: 0 | AZ125: 8.920483981 | BA125: 0 | BB125: =IF($AF125=3,IF($AF$2=2,(R125/SUMIF(Refurb_Poss_Tbl[Refurbishment Possible],I125,Refurb_Poss_Tbl[%]))*AG125,IF($AF$2=3,(R125*AG125)-AV125,R125*AG125)),0) -> 0 | BC125: =IF(AF125=3,IF($AF$2=2,(S125/SUMIF(Refurb_Poss_Tbl[Refurbishment Possible],I125,Refurb_Poss_Tbl[%]))*AG125,IF($AF$2=3,(S125*AG125)-AX125,S125*AG125)),0) -> 0 | BD125: =IF($AF125=3,IF($AF$2=2,(T125/SUMIF(Refurb_Poss_Tbl[Refurbishment Possible],I125,Refurb_Poss_Tbl[%]))*AG125,T125*$AG125),0) -> 0 | BE125: =IF($AF125=3,IF($AF$2=2,(Q125/SUMIF(Refurb_Poss_Tbl[Refurbishment Possible],I125,Refurb_Poss_Tbl[%]))*AG125,Q125*$AG125),0) -> 0 | BF125: =IF($AF125=3,IF($AF$2=2,(U125/SUMIF(Refurb_Poss_Tbl[Refurbishment Possible],I125,Refurb_Poss_Tbl[%]))*AG125,U125*$AG125),0) -> 0 | BG125: =IF($AF125=3,IF($AF$2=2,(V125/SUMIF(Refurb_Poss_Tbl[Refurbishment Possible],I125,Refurb_Poss_Tbl[%]))*AG125,IF($AF$2=3,(V125*AG125)-AW125,V125*AG125)),0) -> 0 | BH125: =IF($AF125=3,IF($AF$2=2,(W125/SUMIF(Refurb_Poss_Tbl[Refurbishment Possible],I125,Refurb_Poss_Tbl[%]))*AG125,W125*$AG125),0) -> 0
A126: BridEA04 | B126: Modification Botley Bridge | C126: Bridge - Vehicle Access | D126: BridEA0447 | E126: Modification Botley Bridge | F126: Bridges | G126: 60 | H126: 60 | I126: Major Refurbishment | J126: 50 | K126: Replacement | L126: 93 | M126: 0 | N126: 100 | O126: 2 | P126: 190.08 | Q126: 190.08 | R126: 1.215089795 | S126: 6.33621499 | T126: 0.01367887664 | U126: 2.072121731 | V126: 0 | W126: 2.480229407 | X126: 197.8072981 | Y126: 0 | Z126: 0 | AA126: 98.90364904 | AB126: 22.32206466 | AC126: 0.006839438319 | AD126: 3.168107495 | AE126: 23 | AF126: 0 | AG126: =VLOOKUP(AE126,ValidationLists!$M$1:$N$102,2,FALSE) -> 0.4532856336 | AH126: 0 | AI126: 0 | AJ126: 0 | AK126: 0 | AL126: 0 | AM126: 0 | AN126: 0 | AO126: 0 | AP126: 0 | AQ126: =IF(OR(AF126=3,AF126=2,AF126=0),SUMIFS(FlatMaint!$Z$2:$Z$10000,FlatMaint!$A$2:$A$10000,D126,FlatMaint!$Y$2:$Y$10000,AE126)*AG126,0) -> 8.618825103 | AR126: =IF(OR(AF126=3,AF126=2,AF126=0),SUMIFS(FlatRepair!$Z$2:$Z$10000,FlatRepair!$A$2:$A$10000,D126,FlatRepair!$Y$2:$Y$10000,AE126)*AG126,0) -> 0 | AS126: 0 | AT126: 8.618825103 | AU126: 0 | AV126: 0 | AW126: 0 | AX126: 0 | AY126: 0 | AZ126: 8.618825103 | BA126: 0 | BB126: =IF($AF126=3,IF($AF$2=2,(R126/SUMIF(Refurb_Poss_Tbl[Refurbishment Possible],I126,Refurb_Poss_Tbl[%]))*AG126,IF($AF$2=3,(R126*AG126)-AV126,R126*AG126)),0) -> 0 | BC126: =IF(AF126=3,IF($AF$2=2,(S126/SUMIF(Refurb_Poss_Tbl[Refurbishment Possible],I126,Refurb_Poss_Tbl[%]))*AG126,IF($AF$2=3,(S126*AG126)-AX126,S126*AG126)),0) -> 0 | BD126: =IF($AF126=3,IF($AF$2=2,(T126/SUMIF(Refurb_Poss_Tbl[Refurbishment Possible],I126,Refurb_Poss_Tbl[%]))*AG126,T126*$AG126),0) -> 0 | BE126: =IF($AF126=3,IF($AF$2=2,(Q126/SUMIF(Refurb_Poss_Tbl[Refurbishment Possible],I126,Refurb_Poss_Tbl[%]))*AG126,Q126*$AG126),0) -> 0 | BF126: =IF($AF126=3,IF($AF$2=2,(U126/SUMIF(Refurb_Poss_Tbl[Refurbishment Possible],I126,Refurb_Poss_Tbl[%]))*AG126,U126*$AG126),0) -> 0 | BG126: =IF($AF126=3,IF($AF$2=2,(V126/SUMIF(Refurb_Poss_Tbl[Refurbishment Possible],I126,Refurb_Poss_Tbl[%]))*AG126,IF($AF$2=3,(V126*AG126)-AW126,V126*AG126)),0) -> 0 | BH126: =IF($AF126=3,IF($AF$2=2,(W126/SUMIF(Refurb_Poss_Tbl[Refurbishment Possible],I126,Refurb_Poss_Tbl[%]))*AG126,W126*$AG126),0) -> 0
A127: BridEA04 | B127: Modification Botley Bridge | C127: Bridge - Vehicle Access | D127: BridEA0447 | E127: Modification Botley Bridge | F127: Bridges | G127: 60 | H127: 60 | I127: Major Refurbishment | J127: 50 | K127: Replacement | L127: 93 | M127: 0 | N127: 100 | O127: 2 | P127: 190.08 | Q127: 190.08 | R127: 1.215089795 | S127: 6.33621499 | T127: 0.01367887664 | U127: 2.072121731 | V127: 0 | W127: 2.480229407 | X127: 197.8072981 | Y127: 0 | Z127: 0 | AA127: 98.90364904 | AB127: 22.32206466 | AC127: 0.006839438319 | AD127: 3.168107495 | AE127: 24 | AF127: 0 | AG127: =VLOOKUP(AE127,ValidationLists!$M$1:$N$102,2,FALSE) -> 0.4379571339 | AH127: 0 | AI127: 0 | AJ127: 0 | AK127: 0 | AL127: 0 | AM127: 0 | AN127: 0 | AO127: 0 | AP127: 0 | AQ127: =IF(OR(AF127=3,AF127=2,AF127=0),SUMIFS(FlatMaint!$Z$2:$Z$10000,FlatMaint!$A$2:$A$10000,D127,FlatMaint!$Y$2:$Y$10000,AE127)*AG127,0) -> 8.327367249 | AR127: =IF(OR(AF127=3,AF127=2,AF127=0),SUMIFS(FlatRepair!$Z$2:$Z$10000,FlatRepair!$A$2:$A$10000,D127,FlatRepair!$Y$2:$Y$10000,AE127)*AG127,0) -> 0 | AS127: 0 | AT127: 8.327367249 | AU127: 0 | AV127: 0 | AW127: 0 | AX127: 0 | AY127: 0 | AZ127: 8.327367249 | BA127: 0 | BB127: =IF($AF127=3,IF($AF$2=2,(R127/SUMIF(Refurb_Poss_Tbl[Refurbishment Possible],I127,Refurb_Poss_Tbl[%]))*AG127,IF($AF$2=3,(R127*AG127)-AV127,R127*AG127)),0) -> 0 | BC127: =IF(AF127=3,IF($AF$2=2,(S127/SUMIF(Refurb_Poss_Tbl[Refurbishment Possible],I127,Refurb_Poss_Tbl[%]))*AG127,IF($AF$2=3,(S127*AG127)-AX127,S127*AG127)),0) -> 0 | BD127: =IF($AF127=3,IF($AF$2=2,(T127/SUMIF(Refurb_Poss_Tbl[Refurbishment Possible],I127,Refurb_Poss_Tbl[%]))*AG127,T127*$AG127),0) -> 0 | BE127: =IF($AF127=3,IF($AF$2=2,(Q127/SUMIF(Refurb_Poss_Tbl[Refurbishment Possible],I127,Refurb_Poss_Tbl[%]))*AG127,Q127*$AG127),0) -> 0 | BF127: =IF($AF127=3,IF($AF$2=2,(U127/SUMIF(Refurb_Poss_Tbl[Refurbishment Possible],I127,Refurb_Poss_Tbl[%]))*AG127,U127*$AG127),0) -> 0 | BG127: =IF($AF127=3,IF($AF$2=2,(V127/SUMIF(Refurb_Poss_Tbl[Refurbishment Possible],I127,Refurb_Poss_Tbl[%]))*AG127,IF($AF$2=3,(V127*AG127)-AW127,V127*AG127)),0) -> 0 | BH127: =IF($AF127=3,IF($AF$2=2,(W127/SUMIF(Refurb_Poss_Tbl[Refurbishment Possible],I127,Refurb_Poss_Tbl[%]))*AG127,W127*$AG127),0) -> 0
A128: BridEA04 | B128: Modification Botley Bridge | C128: Bridge - Vehicle Access | D128: BridEA0447 | E128: Modification Botley Bridge | F128: Bridges | G128: 60 | H128: 60 | I128: Major Refurbishment | J128: 50 | K128: Replacement | L128: 93 | M128: 0 | N128: 100 | O128: 2 | P128: 190.08 | Q128: 190.08 | R128: 1.215089795 | S128: 6.33621499 | T128: 0.01367887664 | U128: 2.072121731 | V128: 0 | W128: 2.480229407 | X128: 197.8072981 | Y128: 0 | Z128: 0 | AA128: 98.90364904 | AB128: 22.32206466 | AC128: 0.006839438319 | AD128: 3.168107495 | AE128: 25 | AF128: 0 | AG128: =VLOOKUP(AE128,ValidationLists!$M$1:$N$102,2,FALSE) -> 0.4231469893 | AH128: 0 | AI128: 0 | AJ128: 0 | AK128: 0 | AL128: 0 | AM128: 0 | AN128: 0 | AO128: 0 | AP128: 0 | AQ128: =IF(OR(AF128=3,AF128=2,AF128=0),SUMIFS(FlatMaint!$Z$2:$Z$10000,FlatMaint!$A$2:$A$10000,D128,FlatMaint!$Y$2:$Y$10000,AE128)*AG128,0) -> 8.045765458 | AR128: =IF(OR(AF128=3,AF128=2,AF128=0),SUMIFS(FlatRepair!$Z$2:$Z$10000,FlatRepair!$A$2:$A$10000,D128,FlatRepair!$Y$2:$Y$10000,AE128)*AG128,0) -> 80.4551507 | AS128: 0 | AT128: 88.50091616 | AU128: 0 | AV128: 0 | AW128: 0 | AX128: 0 | AY128: 0 | AZ128: 88.50091616 | BA128: 0 | BB128: =IF($AF128=3,IF($AF$2=2,(R128/SUMIF(Refurb_Poss_Tbl[Refurbishment Possible],I128,Refurb_Poss_Tbl[%]))*AG128,IF($AF$2=3,(R128*AG128)-AV128,R128*AG128)),0) -> 0 | BC128: =IF(AF128=3,IF($AF$2=2,(S128/SUMIF(Refurb_Poss_Tbl[Refurbishment Possible],I128,Refurb_Poss_Tbl[%]))*AG128,IF($AF$2=3,(S128*AG128)-AX128,S128*AG128)),0) -> 0 | BD128: =IF($AF128=3,IF($AF$2=2,(T128/SUMIF(Refurb_Poss_Tbl[Refurbishment Possible],I128,Refurb_Poss_Tbl[%]))*AG128,T128*$AG128),0) -> 0 | BE128: =IF($AF128=3,IF($AF$2=2,(Q128/SUMIF(Refurb_Poss_Tbl[Refurbishment Possible],I128,Refurb_Poss_Tbl[%]))*AG128,Q128*$AG128),0) -> 0 | BF128: =IF($AF128=3,IF($AF$2=2,(U128/SUMIF(Refurb_Poss_Tbl[Refurbishment Possible],I128,Refurb_Poss_Tbl[%]))*AG128,U128*$AG128),0) -> 0 | BG128: =IF($AF128=3,IF($AF$2=2,(V128/SUMIF(Refurb_Poss_Tbl[Refurbishment Possible],I128,Refurb_Poss_Tbl[%]))*AG128,IF($AF$2=3,(V128*AG128)-AW128,V128*AG128)),0) -> 0 | BH128: =IF($AF128=3,IF($AF$2=2,(W128/SUMIF(Refurb_Poss_Tbl[Refurbishment Possible],I128,Refurb_Poss_Tbl[%]))*AG128,W128*$AG128),0) -> 0
A129: BridEA04 | B129: Modification Botley Bridge | C129: Bridge - Vehicle Access | D129: BridEA0447 | E129: Modification Botley Bridge | F129: Bridges | G129: 60 | H129: 60 | I129: Major Refurbishment | J129: 50 | K129: Replacement | L129: 93 | M129: 0 | N129: 100 | O129: 2 | P129: 190.08 | Q129: 190.08 | R129: 1.215089795 | S129: 6.33621499 | T129: 0.01367887664 | U129: 2.072121731 | V129: 0 | W129: 2.480229407 | X129: 197.8072981 | Y129: 0 | Z129: 0 | AA129: 98.90364904 | AB129: 22.32206466 | AC129: 0.006839438319 | AD129: 3.168107495 | AE129: 26 | AF129: 0 | AG129: =VLOOKUP(AE129,ValidationLists!$M$1:$N$102,2,FALSE) -> 0.4088376708 | AH129: 0 | AI129: 0 | AJ129: 0 | AK129: 0 | AL129: 0 | AM129: 0 | AN129: 0 | AO129: 0 | AP129: 0 | AQ129: =IF(OR(AF129=3,AF129=2,AF129=0),SUMIFS(FlatMaint!$Z$2:$Z$10000,FlatMaint!$A$2:$A$10000,D129,FlatMaint!$Y$2:$Y$10000,AE129)*AG129,0) -> 7.773686433 | AR129: =IF(OR(AF129=3,AF129=2,AF129=0),SUMIFS(FlatRepair!$Z$2:$Z$10000,FlatRepair!$A$2:$A$10000,D129,FlatRepair!$Y$2:$Y$10000,AE129)*AG129,0) -> 0 | AS129: 0 | AT129: 7.773686433 | AU129: 0 | AV129: 0 | AW129: 0 | AX129: 0 | AY129: 0 | AZ129: 7.773686433 | BA129: 0 | BB129: =IF($AF129=3,IF($AF$2=2,(R129/SUMIF(Refurb_Poss_Tbl[Refurbishment Possible],I129,Refurb_Poss_Tbl[%]))*AG129,IF($AF$2=3,(R129*AG129)-AV129,R129*AG129)),0) -> 0 | BC129: =IF(AF129=3,IF($AF$2=2,(S129/SUMIF(Refurb_Poss_Tbl[Refurbishment Possible],I129,Refurb_Poss_Tbl[%]))*AG129,IF($AF$2=3,(S129*AG129)-AX129,S129*AG129)),0) -> 0 | BD129: =IF($AF129=3,IF($AF$2=2,(T129/SUMIF(Refurb_Poss_Tbl[Refurbishment Possible],I129,Refurb_Poss_Tbl[%]))*AG129,T129*$AG129),0) -> 0 | BE129: =IF($AF129=3,IF($AF$2=2,(Q129/SUMIF(Refurb_Poss_Tbl[Refurbishment Possible],I129,Refurb_Poss_Tbl[%]))*AG129,Q129*$AG129),0) -> 0 | BF129: =IF($AF129=3,IF($AF$2=2,(U129/SUMIF(Refurb_Poss_Tbl[Refurbishment Possible],I129,Refurb_Poss_Tbl[%]))*AG129,U129*$AG129),0) -> 0 | BG129: =IF($AF129=3,IF($AF$2=2,(V129/SUMIF(Refurb_Poss_Tbl[Refurbishment Possible],I129,Refurb_Poss_Tbl[%]))*AG129,IF($AF$2=3,(V129*AG129)-AW129,V129*AG129)),0) -> 0 | BH129: =IF($AF129=3,IF($AF$2=2,(W129/SUMIF(Refurb_Poss_Tbl[Refurbishment Possible],I129,Refurb_Poss_Tbl[%]))*AG129,W129*$AG129),0) -> 0
A130: BridEA04 | B130: Modification Botley Bridge | C130: Bridge - Vehicle Access | D130: BridEA0447 | E130: Modification Botley Bridge | F130: Bridges | G130: 60 | H130: 60 | I130: Major Refurbishment | J130: 50 | K130: Replacement | L130: 93 | M130: 0 | N130: 100 | O130: 2 | P130: 190.08 | Q130: 190.08 | R130: 1.215089795 | S130: 6.33621499 | T130: 0.01367887664 | U130: 2.072121731 | V130: 0 | W130: 2.480229407 | X130: 197.8072981 | Y130: 0 | Z130: 0 | AA130: 98.90364904 | AB130: 22.32206466 | AC130: 0.006839438319 | AD130: 3.168107495 | AE130: 27 | AF130: 0 | AG130: =VLOOKUP(AE130,ValidationLists!$M$1:$N$102,2,FALSE) -> 0.3950122423 | AH130: 0 | AI130: 0 | AJ130: 0 | AK130: 0 | AL130: 0 | AM130: 0 | AN130: 0 | AO130: 0 | AP130: 0 | AQ130: =IF(OR(AF130=3,AF130=2,AF130=0),SUMIFS(FlatMaint!$Z$2:$Z$10000,FlatMaint!$A$2:$A$10000,D130,FlatMaint!$Y$2:$Y$10000,AE130)*AG130,0) -> 7.510808148 | AR130: =IF(OR(AF130=3,AF130=2,AF130=0),SUMIFS(FlatRepair!$Z$2:$Z$10000,FlatRepair!$A$2:$A$10000,D130,FlatRepair!$Y$2:$Y$10000,AE130)*AG130,0) -> 0 | AS130: 0 | AT130: 7.510808148 | AU130: 0 | AV130: 0 | AW130: 0 | AX130: 0 | AY130: 0 | AZ130: 7.510808148 | BA130: 0 | BB130: =IF($AF130=3,IF($AF$2=2,(R130/SUMIF(Refurb_Poss_Tbl[Refurbishment Possible],I130,Refurb_Poss_Tbl[%]))*AG130,IF($AF$2=3,(R130*AG130)-AV130,R130*AG130)),0) -> 0 | BC130: =IF(AF130=3,IF($AF$2=2,(S130/SUMIF(Refurb_Poss_Tbl[Refurbishment Possible],I130,Refurb_Poss_Tbl[%]))*AG130,IF($AF$2=3,(S130*AG130)-AX130,S130*AG130)),0) -> 0 | BD130: =IF($AF130=3,IF($AF$2=2,(T130/SUMIF(Refurb_Poss_Tbl[Refurbishment Possible],I130,Refurb_Poss_Tbl[%]))*AG130,T130*$AG130),0) -> 0 | BE130: =IF($AF130=3,IF($AF$2=2,(Q130/SUMIF(Refurb_Poss_Tbl[Refurbishment Possible],I130,Refurb_Poss_Tbl[%]))*AG130,Q130*$AG130),0) -> 0 | BF130: =IF($AF130=3,IF($AF$2=2,(U130/SUMIF(Refurb_Poss_Tbl[Refurbishment Possible],I130,Refurb_Poss_Tbl[%]))*AG130,U130*$AG130),0) -> 0 | BG130: =IF($AF130=3,IF($AF$2=2,(V130/SUMIF(Refurb_Poss_Tbl[Refurbishment Possible],I130,Refurb_Poss_Tbl[%]))*AG130,IF($AF$2=3,(V130*AG130)-AW130,V130*AG130)),0) -> 0 | BH130: =IF($AF130=3,IF($AF$2=2,(W130/SUMIF(Refurb_Poss_Tbl[Refurbishment Possible],I130,Refurb_Poss_Tbl[%]))*AG130,W130*$AG130),0) -> 0
A131: BridEA04 | B131: Modification Botley Bridge | C131: Bridge - Vehicle Access | D131: BridEA0447 | E131: Modification Botley Bridge | F131: Bridges | G131: 60 | H131: 60 | I131: Major Refurbishment | J131: 50 | K131: Replacement | L131: 93 | M131: 0 | N131: 100 | O131: 2 | P131: 190.08 | Q131: 190.08 | R131: 1.215089795 | S131: 6.33621499 | T131: 0.01367887664 | U131: 2.072121731 | V131: 0 | W131: 2.480229407 | X131: 197.8072981 | Y131: 0 | Z131: 0 | AA131: 98.90364904 | AB131: 22.32206466 | AC131: 0.006839438319 | AD131: 3.168107495 | AE131: 28 | AF131: 0 | AG131: =VLOOKUP(AE131,ValidationLists!$M$1:$N$102,2,FALSE) -> 0.3816543404 | AH131: =IF(AE131=0,Q131*AG131,0) -> 0 | AI131: =IF(AE131=0,R131*AG131,0) -> 0 | AJ131: =IF(AE131=0,S131*AG131,0) -> 0 | AK131: =IF(AE131=0,T131*AG131,0) -> 0 | AL131: =IF(AE131=0,U131*AG131,0) -> 0 | AM131: =IF(AE131=0,V131*AG131,0) -> 0 | AN131: =IF(AE131=0,W131*AG131,0) -> 0 | AO131: =IF(AE131=0,AH131+AI131+AJ131+AK131+AL131+AM131+AN131,0) -> 0 | AP131: =IF(OR(AF131=3,AF131=2,AF131=0),Y131*AG131,0) -> 0 | AQ131: =IF(OR(AF131=3,AF131=2,AF131=0),SUMIFS(FlatMaint!$Z$2:$Z$10000,FlatMaint!$A$2:$A$10000,D131,FlatMaint!$Y$2:$Y$10000,AE131)*AG131,0) -> 7.256819466 | AR131: =IF(OR(AF131=3,AF131=2,AF131=0),SUMIFS(FlatRepair!$Z$2:$Z$10000,FlatRepair!$A$2:$A$10000,D131,FlatRepair!$Y$2:$Y$10000,AE131)*AG131,0) -> 0 | AS131: =IF(OR(AF131=3,AF131=2,AF131=0),Z131*AG131,0) -> 0 | AT131: =AP131+AQ131+AR131+AS131 -> 7.256819466 | AU131: =IF(AF131=2,AA131*AG131,0) -> 0 | AV131: =IF(AF131=3,AB131*AG131,0) -> 0 | AW131: =IF(AF131=3,AC131*AG131,0) -> 0 | AX131: =IF(AF131=3,AD131*AG131,0) -> 0 | AY131: =IF($AF$2=3,BB131+BC131+BD131+BE131+BF131+BG131+BH131,BB131+BC131+BD131+BE131+BF131+BG131+BH131) -> 0 | AZ131: =AO131+AT131+AU131+AV131+AW131+AX131+AY131+BA131 -> 7.256819466 | BA131: =IFERROR(IF(AE131=100,IF(O131=3,(N131/H131)*(X131*AG131)*-1,(N131/M131)*(X131*AG131)*-1),0),0) -> 0 | BB131: =IF($AF131=3,IF($AF$2=2,(R131/SUMIF(Refurb_Poss_Tbl[Refurbishment Possible],I131,Refurb_Poss_Tbl[%]))*AG131,IF($AF$2=3,(R131*AG131)-AV131,R131*AG131)),0) -> 0 | BC131: =IF(AF131=3,IF($AF$2=2,(S131/SUMIF(Refurb_Poss_Tbl[Refurbishment Possible],I131,Refurb_Poss_Tbl[%]))*AG131,IF($AF$2=3,(S131*AG131)-AX131,S131*AG131)),0) -> 0 | BD131: =IF($AF131=3,IF($AF$2=2,(T131/SUMIF(Refurb_Poss_Tbl[Refurbishment Possible],I131,Refurb_Poss_Tbl[%]))*AG131,T131*$AG131),0) -> 0 | BE131: =IF($AF131=3,IF($AF$2=2,(Q131/SUMIF(Refurb_Poss_Tbl[Refurbishment Possible],I131,Refurb_Poss_Tbl[%]))*AG131,Q131*$AG131),0) -> 0 | BF131: =IF($AF131=3,IF($AF$2=2,(U131/SUMIF(Refurb_Poss_Tbl[Refurbishment Possible],I131,Refurb_Poss_Tbl[%]))*AG131,U131*$AG131),0) -> 0 | BG131: =IF($AF131=3,IF($AF$2=2,(V131/SUMIF(Refurb_Poss_Tbl[Refurbishment Possible],I131,Refurb_Poss_Tbl[%]))*AG131,IF($AF$2=3,(V131*AG131)-AW131,V131*AG131)),0) -> 0 | BH131: =IF($AF131=3,IF($AF$2=2,(W131/SUMIF(Refurb_Poss_Tbl[Refurbishment Possible],I131,Refurb_Poss_Tbl[%]))*AG131,W131*$AG131),0) -> 0
A132: BridEA04 | B132: Modification Botley Bridge | C132: Bridge - Vehicle Access | D132: BridEA0447 | E132: Modification Botley Bridge | F132: Bridges | G132: 60 | H132: 60 | I132: Major Refurbishment | J132: 50 | K132: Replacement | L132: 93 | M132: 0 | N132: 100 | O132: 2 | P132: 190.08 | Q132: 190.08 | R132: 1.215089795 | S132: 6.33621499 | T132: 0.01367887664 | U132: 2.072121731 | V132: 0 | W132: 2.480229407 | X132: 197.8072981 | Y132: 0 | Z132: 0 | AA132: 98.90364904 | AB132: 22.32206466 | AC132: 0.006839438319 | AD132: 3.168107495 | AE132: 29 | AF132: 0 | AG132: =VLOOKUP(AE132,ValidationLists!$M$1:$N$102,2,FALSE) -> 0.368748155 | AH132: 0 | AI132: 0 | AJ132: 0 | AK132: 0 | AL132: 0 | AM132: 0 | AN132: 0 | AO132: 0 | AP132: 0 | AQ132: =IF(OR(AF132=3,AF132=2,AF132=0),SUMIFS(FlatMaint!$Z$2:$Z$10000,FlatMaint!$A$2:$A$10000,D132,FlatMaint!$Y$2:$Y$10000,AE132)*AG132,0) -> 7.011419774 | AR132: =IF(OR(AF132=3,AF132=2,AF132=0),SUMIFS(FlatRepair!$Z$2:$Z$10000,FlatRepair!$A$2:$A$10000,D132,FlatRepair!$Y$2:$Y$10000,AE132)*AG132,0) -> 0 | AS132: 0 | AT132: 7.011419774 | AU132: 0 | AV132: 0 | AW132: 0 | AX132: 0 | AY132: 0 | AZ132: 7.011419774 | BA132: 0 | BB132: =IF($AF132=3,IF($AF$2=2,(R132/SUMIF(Refurb_Poss_Tbl[Refurbishment Possible],I132,Refurb_Poss_Tbl[%]))*AG132,IF($AF$2=3,(R132*AG132)-AV132,R132*AG132)),0) -> 0 | BC132: =IF(AF132=3,IF($AF$2=2,(S132/SUMIF(Refurb_Poss_Tbl[Refurbishment Possible],I132,Refurb_Poss_Tbl[%]))*AG132,IF($AF$2=3,(S132*AG132)-AX132,S132*AG132)),0) -> 0 | BD132: =IF($AF132=3,IF($AF$2=2,(T132/SUMIF(Refurb_Poss_Tbl[Refurbishment Possible],I132,Refurb_Poss_Tbl[%]))*AG132,T132*$AG132),0) -> 0 | BE132: =IF($AF132=3,IF($AF$2=2,(Q132/SUMIF(Refurb_Poss_Tbl[Refurbishment Possible],I132,Refurb_Poss_Tbl[%]))*AG132,Q132*$AG132),0) -> 0 | BF132: =IF($AF132=3,IF($AF$2=2,(U132/SUMIF(Refurb_Poss_Tbl[Refurbishment Possible],I132,Refurb_Poss_Tbl[%]))*AG132,U132*$AG132),0) -> 0 | BG132: =IF($AF132=3,IF($AF$2=2,(V132/SUMIF(Refurb_Poss_Tbl[Refurbishment Possible],I132,Refurb_Poss_Tbl[%]))*AG132,IF($AF$2=3,(V132*AG132)-AW132,V132*AG132)),0) -> 0 | BH132: =IF($AF132=3,IF($AF$2=2,(W132/SUMIF(Refurb_Poss_Tbl[Refurbishment Possible],I132,Refurb_Poss_Tbl[%]))*AG132,W132*$AG132),0) -> 0
A133: BridEA04 | B133: Modification Botley Bridge | C133: Bridge - Vehicle Access | D133: BridEA0447 | E133: Modification Botley Bridge | F133: Bridges | G133: 60 | H133: 60 | I133: Major Refurbishment | J133: 50 | K133: Replacement | L133: 93 | M133: 0 | N133: 100 | O133: 2 | P133: 190.08 | Q133: 190.08 | R133: 1.215089795 | S133: 6.33621499 | T133: 0.01367887664 | U133: 2.072121731 | V133: 0 | W133: 2.480229407 | X133: 197.8072981 | Y133: 0 | Z133: 0 | AA133: 98.90364904 | AB133: 22.32206466 | AC133: 0.006839438319 | AD133: 3.168107495 | AE133: 30 | AF133: 0 | AG133: =VLOOKUP(AE133,ValidationLists!$M$1:$N$102,2,FALSE) -> 0.3562784106 | AH133: 0 | AI133: 0 | AJ133: 0 | AK133: 0 | AL133: 0 | AM133: 0 | AN133: 0 | AO133: 0 | AP133: 0 | AQ133: =IF(OR(AF133=3,AF133=2,AF133=0),SUMIFS(FlatMaint!$Z$2:$Z$10000,FlatMaint!$A$2:$A$10000,D133,FlatMaint!$Y$2:$Y$10000,AE133)*AG133,0) -> 6.774318622 | AR133: =IF(OR(AF133=3,AF133=2,AF133=0),SUMIFS(FlatRepair!$Z$2:$Z$10000,FlatRepair!$A$2:$A$10000,D133,FlatRepair!$Y$2:$Y$10000,AE133)*AG133,0) -> 67.74107803 | AS133: 0 | AT133: 74.51539665 | AU133: 0 | AV133: 0 | AW133: 0 | AX133: 0 | AY133: 0 | AZ133: 74.51539665 | BA133: 0 | BB133: =IF($AF133=3,IF($AF$2=2,(R133/SUMIF(Refurb_Poss_Tbl[Refurbishment Possible],I133,Refurb_Poss_Tbl[%]))*AG133,IF($AF$2=3,(R133*AG133)-AV133,R133*AG133)),0) -> 0 | BC133: =IF(AF133=3,IF($AF$2=2,(S133/SUMIF(Refurb_Poss_Tbl[Refurbishment Possible],I133,Refurb_Poss_Tbl[%]))*AG133,IF($AF$2=3,(S133*AG133)-AX133,S133*AG133)),0) -> 0 | BD133: =IF($AF133=3,IF($AF$2=2,(T133/SUMIF(Refurb_Poss_Tbl[Refurbishment Possible],I133,Refurb_Poss_Tbl[%]))*AG133,T133*$AG133),0) -> 0 | BE133: =IF($AF133=3,IF($AF$2=2,(Q133/SUMIF(Refurb_Poss_Tbl[Refurbishment Possible],I133,Refurb_Poss_Tbl[%]))*AG133,Q133*$AG133),0) -> 0 | BF133: =IF($AF133=3,IF($AF$2=2,(U133/SUMIF(Refurb_Poss_Tbl[Refurbishment Possible],I133,Refurb_Poss_Tbl[%]))*AG133,U133*$AG133),0) -> 0 | BG133: =IF($AF133=3,IF($AF$2=2,(V133/SUMIF(Refurb_Poss_Tbl[Refurbishment Possible],I133,Refurb_Poss_Tbl[%]))*AG133,IF($AF$2=3,(V133*AG133)-AW133,V133*AG133)),0) -> 0 | BH133: =IF($AF133=3,IF($AF$2=2,(W133/SUMIF(Refurb_Poss_Tbl[Refurbishment Possible],I133,Refurb_Poss_Tbl[%]))*AG133,W133*$AG133),0) -> 0
A134: BridEA04 | B134: Modification Botley Bridge | C134: Bridge - Vehicle Access | D134: BridEA0447 | E134: Modification Botley Bridge | F134: Bridges | G134: 60 | H134: 60 | I134: Major Refurbishment | J134: 50 | K134: Replacement | L134: 93 | M134: 0 | N134: 100 | O134: 2 | P134: 190.08 | Q134: 190.08 | R134: 1.215089795 | S134: 6.33621499 | T134: 0.01367887664 | U134: 2.072121731 | V134: 0 | W134: 2.480229407 | X134: 197.8072981 | Y134: 0 | Z134: 0 | AA134: 98.90364904 | AB134: 22.32206466 | AC134: 0.006839438319 | AD134: 3.168107495 | AE134: 31 | AF134: 0 | AG134: =VLOOKUP(AE134,ValidationLists!$M$1:$N$102,2,FALSE) -> 0.3999871452 | AH134: 0 | AI134: 0 | AJ134: 0 | AK134: 0 | AL134: 0 | AM134: 0 | AN134: 0 | AO134: 0 | AP134: 0 | AQ134: =IF(OR(AF134=3,AF134=2,AF134=0),SUMIFS(FlatMaint!$Z$2:$Z$10000,FlatMaint!$A$2:$A$10000,D134,FlatMaint!$Y$2:$Y$10000,AE134)*AG134,0) -> 7.605401522 | AR134: =IF(OR(AF134=3,AF134=2,AF134=0),SUMIFS(FlatRepair!$Z$2:$Z$10000,FlatRepair!$A$2:$A$10000,D134,FlatRepair!$Y$2:$Y$10000,AE134)*AG134,0) -> 0 | AS134: 0 | AT134: 7.605401522 | AU134: 0 | AV134: 0 | AW134: 0 | AX134: 0 | AY134: 0 | AZ134: 7.605401522 | BA134: 0 | BB134: =IF($AF134=3,IF($AF$2=2,(R134/SUMIF(Refurb_Poss_Tbl[Refurbishment Possible],I134,Refurb_Poss_Tbl[%]))*AG134,IF($AF$2=3,(R134*AG134)-AV134,R134*AG134)),0) -> 0 | BC134: =IF(AF134=3,IF($AF$2=2,(S134/SUMIF(Refurb_Poss_Tbl[Refurbishment Possible],I134,Refurb_Poss_Tbl[%]))*AG134,IF($AF$2=3,(S134*AG134)-AX134,S134*AG134)),0) -> 0 | BD134: =IF($AF134=3,IF($AF$2=2,(T134/SUMIF(Refurb_Poss_Tbl[Refurbishment Possible],I134,Refurb_Poss_Tbl[%]))*AG134,T134*$AG134),0) -> 0 | BE134: =IF($AF134=3,IF($AF$2=2,(Q134/SUMIF(Refurb_Poss_Tbl[Refurbishment Possible],I134,Refurb_Poss_Tbl[%]))*AG134,Q134*$AG134),0) -> 0 | BF134: =IF($AF134=3,IF($AF$2=2,(U134/SUMIF(Refurb_Poss_Tbl[Refurbishment Possible],I134,Refurb_Poss_Tbl[%]))*AG134,U134*$AG134),0) -> 0 | BG134: =IF($AF134=3,IF($AF$2=2,(V134/SUMIF(Refurb_Poss_Tbl[Refurbishment Possible],I134,Refurb_Poss_Tbl[%]))*AG134,IF($AF$2=3,(V134*AG134)-AW134,V134*AG134)),0) -> 0 | BH134: =IF($AF134=3,IF($AF$2=2,(W134/SUMIF(Refurb_Poss_Tbl[Refurbishment Possible],I134,Refurb_Poss_Tbl[%]))*AG134,W134*$AG134),0) -> 0
A135: BridEA04 | B135: Modification Botley Bridge | C135: Bridge - Vehicle Access | D135: BridEA0447 | E135: Modification Botley Bridge | F135: Bridges | G135: 60 | H135: 60 | I135: Major Refurbishment | J135: 50 | K135: Replacement | L135: 93 | M135: 0 | N135: 100 | O135: 2 | P135: 190.08 | Q135: 190.08 | R135: 1.215089795 | S135: 6.33621499 | T135: 0.01367887664 | U135: 2.072121731 | V135: 0 | W135: 2.480229407 | X135: 197.8072981 | Y135: 0 | Z135: 0 | AA135: 98.90364904 | AB135: 22.32206466 | AC135: 0.006839438319 | AD135: 3.168107495 | AE135: 32 | AF135: 0 | AG135: =VLOOKUP(AE135,ValidationLists!$M$1:$N$102,2,FALSE) -> 0.3883370341 | AH135: 0 | AI135: 0 | AJ135: 0 | AK135: 0 | AL135: 0 | AM135: 0 | AN135: 0 | AO135: 0 | AP135: 0 | AQ135: =IF(OR(AF135=3,AF135=2,AF135=0),SUMIFS(FlatMaint!$Z$2:$Z$10000,FlatMaint!$A$2:$A$10000,D135,FlatMaint!$Y$2:$Y$10000,AE135)*AG135,0) -> 7.383884973 | AR135: =IF(OR(AF135=3,AF135=2,AF135=0),SUMIFS(FlatRepair!$Z$2:$Z$10000,FlatRepair!$A$2:$A$10000,D135,FlatRepair!$Y$2:$Y$10000,AE135)*AG135,0) -> 0 | AS135: 0 | AT135: 7.383884973 | AU135: 0 | AV135: 0 | AW135: 0 | AX135: 0 | AY135: 0 | AZ135: 7.383884973 | BA135: 0 | BB135: =IF($AF135=3,IF($AF$2=2,(R135/SUMIF(Refurb_Poss_Tbl[Refurbishment Possible],I135,Refurb_Poss_Tbl[%]))*AG135,IF($AF$2=3,(R135*AG135)-AV135,R135*AG135)),0) -> 0 | BC135: =IF(AF135=3,IF($AF$2=2,(S135/SUMIF(Refurb_Poss_Tbl[Refurbishment Possible],I135,Refurb_Poss_Tbl[%]))*AG135,IF($AF$2=3,(S135*AG135)-AX135,S135*AG135)),0) -> 0 | BD135: =IF($AF135=3,IF($AF$2=2,(T135/SUMIF(Refurb_Poss_Tbl[Refurbishment Possible],I135,Refurb_Poss_Tbl[%]))*AG135,T135*$AG135),0) -> 0 | BE135: =IF($AF135=3,IF($AF$2=2,(Q135/SUMIF(Refurb_Poss_Tbl[Refurbishment Possible],I135,Refurb_Poss_Tbl[%]))*AG135,Q135*$AG135),0) -> 0 | BF135: =IF($AF135=3,IF($AF$2=2,(U135/SUMIF(Refurb_Poss_Tbl[Refurbishment Possible],I135,Refurb_Poss_Tbl[%]))*AG135,U135*$AG135),0) -> 0 | BG135: =IF($AF135=3,IF($AF$2=2,(V135/SUMIF(Refurb_Poss_Tbl[Refurbishment Possible],I135,Refurb_Poss_Tbl[%]))*AG135,IF($AF$2=3,(V135*AG135)-AW135,V135*AG135)),0) -> 0 | BH135: =IF($AF135=3,IF($AF$2=2,(W135/SUMIF(Refurb_Poss_Tbl[Refurbishment Possible],I135,Refurb_Poss_Tbl[%]))*AG135,W135*$AG135),0) -> 0
A136: BridEA04 | B136: Modification Botley Bridge | C136: Bridge - Vehicle Access | D136: BridEA0447 | E136: Modification Botley Bridge | F136: Bridges | G136: 60 | H136: 60 | I136: Major Refurbishment | J136: 50 | K136: Replacement | L136: 93 | M136: 0 | N136: 100 | O136: 2 | P136: 190.08 | Q136: 190.08 | R136: 1.215089795 | S136: 6.33621499 | T136: 0.01367887664 | U136: 2.072121731 | V136: 0 | W136: 2.480229407 | X136: 197.8072981 | Y136: 0 | Z136: 0 | AA136: 98.90364904 | AB136: 22.32206466 | AC136: 0.006839438319 | AD136: 3.168107495 | AE136: 33 | AF136: 0 | AG136: =VLOOKUP(AE136,ValidationLists!$M$1:$N$102,2,FALSE) -> 0.3770262467 | AH136: 0 | AI136: 0 | AJ136: 0 | AK136: 0 | AL136: 0 | AM136: 0 | AN136: 0 | AO136: 0 | AP136: 0 | AQ136: =IF(OR(AF136=3,AF136=2,AF136=0),SUMIFS(FlatMaint!$Z$2:$Z$10000,FlatMaint!$A$2:$A$10000,D136,FlatMaint!$Y$2:$Y$10000,AE136)*AG136,0) -> 7.168820362 | AR136: =IF(OR(AF136=3,AF136=2,AF136=0),SUMIFS(FlatRepair!$Z$2:$Z$10000,FlatRepair!$A$2:$A$10000,D136,FlatRepair!$Y$2:$Y$10000,AE136)*AG136,0) -> 0 | AS136: 0 | AT136: 7.168820362 | AU136: 0 | AV136: 0 | AW136: 0 | AX136: 0 | AY136: 0 | AZ136: 7.168820362 | BA136: 0 | BB136: =IF($AF136=3,IF($AF$2=2,(R136/SUMIF(Refurb_Poss_Tbl[Refurbishment Possible],I136,Refurb_Poss_Tbl[%]))*AG136,IF($AF$2=3,(R136*AG136)-AV136,R136*AG136)),0) -> 0 | BC136: =IF(AF136=3,IF($AF$2=2,(S136/SUMIF(Refurb_Poss_Tbl[Refurbishment Possible],I136,Refurb_Poss_Tbl[%]))*AG136,IF($AF$2=3,(S136*AG136)-AX136,S136*AG136)),0) -> 0 | BD136: =IF($AF136=3,IF($AF$2=2,(T136/SUMIF(Refurb_Poss_Tbl[Refurbishment Possible],I136,Refurb_Poss_Tbl[%]))*AG136,T136*$AG136),0) -> 0 | BE136: =IF($AF136=3,IF($AF$2=2,(Q136/SUMIF(Refurb_Poss_Tbl[Refurbishment Possible],I136,Refurb_Poss_Tbl[%]))*AG136,Q136*$AG136),0) -> 0 | BF136: =IF($AF136=3,IF($AF$2=2,(U136/SUMIF(Refurb_Poss_Tbl[Refurbishment Possible],I136,Refurb_Poss_Tbl[%]))*AG136,U136*$AG136),0) -> 0 | BG136: =IF($AF136=3,IF($AF$2=2,(V136/SUMIF(Refurb_Poss_Tbl[Refurbishment Possible],I136,Refurb_Poss_Tbl[%]))*AG136,IF($AF$2=3,(V136*AG136)-AW136,V136*AG136)),0) -> 0 | BH136: =IF($AF136=3,IF($AF$2=2,(W136/SUMIF(Refurb_Poss_Tbl[Refurbishment Possible],I136,Refurb_Poss_Tbl[%]))*AG136,W136*$AG136),0) -> 0
A137: BridEA04 | B137: Modification Botley Bridge | C137: Bridge - Vehicle Access | D137: BridEA0447 | E137: Modification Botley Bridge | F137: Bridges | G137: 60 | H137: 60 | I137: Major Refurbishment | J137: 50 | K137: Replacement | L137: 93 | M137: 0 | N137: 100 | O137: 2 | P137: 190.08 | Q137: 190.08 | R137: 1.215089795 | S137: 6.33621499 | T137: 0.01367887664 | U137: 2.072121731 | V137: 0 | W137: 2.480229407 | X137: 197.8072981 | Y137: 0 | Z137: 0 | AA137: 98.90364904 | AB137: 22.32206466 | AC137: 0.006839438319 | AD137: 3.168107495 | AE137: 34 | AF137: 0 | AG137: =VLOOKUP(AE137,ValidationLists!$M$1:$N$102,2,FALSE) -> 0.3660448997 | AH137: 0 | AI137: 0 | AJ137: 0 | AK137: 0 | AL137: 0 | AM137: 0 | AN137: 0 | AO137: 0 | AP137: 0 | AQ137: =IF(OR(AF137=3,AF137=2,AF137=0),SUMIFS(FlatMaint!$Z$2:$Z$10000,FlatMaint!$A$2:$A$10000,D137,FlatMaint!$Y$2:$Y$10000,AE137)*AG137,0) -> 6.960019769 | AR137: =IF(OR(AF137=3,AF137=2,AF137=0),SUMIFS(FlatRepair!$Z$2:$Z$10000,FlatRepair!$A$2:$A$10000,D137,FlatRepair!$Y$2:$Y$10000,AE137)*AG137,0) -> 0 | AS137: 0 | AT137: 6.960019769 | AU137: 0 | AV137: 0 | AW137: 0 | AX137: 0 | AY137: 0 | AZ137: 6.960019769 | BA137: 0 | BB137: =IF($AF137=3,IF($AF$2=2,(R137/SUMIF(Refurb_Poss_Tbl[Refurbishment Possible],I137,Refurb_Poss_Tbl[%]))*AG137,IF($AF$2=3,(R137*AG137)-AV137,R137*AG137)),0) -> 0 | BC137: =IF(AF137=3,IF($AF$2=2,(S137/SUMIF(Refurb_Poss_Tbl[Refurbishment Possible],I137,Refurb_Poss_Tbl[%]))*AG137,IF($AF$2=3,(S137*AG137)-AX137,S137*AG137)),0) -> 0 | BD137: =IF($AF137=3,IF($AF$2=2,(T137/SUMIF(Refurb_Poss_Tbl[Refurbishment Possible],I137,Refurb_Poss_Tbl[%]))*AG137,T137*$AG137),0) -> 0 | BE137: =IF($AF137=3,IF($AF$2=2,(Q137/SUMIF(Refurb_Poss_Tbl[Refurbishment Possible],I137,Refurb_Poss_Tbl[%]))*AG137,Q137*$AG137),0) -> 0 | BF137: =IF($AF137=3,IF($AF$2=2,(U137/SUMIF(Refurb_Poss_Tbl[Refurbishment Possible],I137,Refurb_Poss_Tbl[%]))*AG137,U137*$AG137),0) -> 0 | BG137: =IF($AF137=3,IF($AF$2=2,(V137/SUMIF(Refurb_Poss_Tbl[Refurbishment Possible],I137,Refurb_Poss_Tbl[%]))*AG137,IF($AF$2=3,(V137*AG137)-AW137,V137*AG137)),0) -> 0 | BH137: =IF($AF137=3,IF($AF$2=2,(W137/SUMIF(Refurb_Poss_Tbl[Refurbishment Possible],I137,Refurb_Poss_Tbl[%]))*AG137,W137*$AG137),0) -> 0
